Workbook

Sheet Summary
A1: Bus Electrification
A2: Revenue Requirement & Earnings Summary
O3: Earnings Detail >>
A4: File | B4: Scenario | C4: Definition | E4: Capital Spend | F4: In Service | G4: CWIP Property Tax | H4: AFUDC | J4: O&M | L4: Revenue Requirement | M4: Earnings | O4: 2019 | P4: 2020 | Q4: 2021 | R4: 2022 | S4: 2023 | T4: 2024 | U4: 2025 | W4: 2019-2025 | X4: 2026 + | Z4: Total Earnings | AB4: Check
A5: 0 | B5: 1 | C5: Class 2-3 | E5: =INDIRECT("'"&$B5&"'!I42") -> 56014961.49 | F5: =INDIRECT("'"&$B5&"'!I44") -> 56014961.49 | G5: =INDIRECT("'"&$B5&"'!I189") -> 347067.3018 | H5: =INDIRECT("'"&$B5&"'!I190") -> 2324192.25 | J5: =INDIRECT("'"&$B5&"'!I84") -> 2466997.226 | L5: =INDIRECT("'"&$B5&"'!I78") -> 219245553 | M5: =SUM(INDIRECT("'"&$B5&"'!J181:AJV181"))+SUM(INDIRECT("'"&$B5&"'!J87:AJV87"))+SUM(INDIRECT("'"&$B5&"'!J266:AJV266")) -> 72697723.69 | O5: =SUMIF(INDIRECT("'"&$B5&"'!J13:AJV13"),O$4,INDIRECT("'"&$B5&"'!J181:AJV181"))+SUMIF(INDIRECT("'"&$B5&"'!J13:AJV13"),O$4,INDIRECT("'"&$B5&"'!J87:AJV87"))+SUMIF(INDIRECT("'"&$B5&"'!J13:AJV13"),O$4,INDIRECT("'"&$B5&"'!J266:AJV266")) -> 69647.8569 | P5: 600473.1318 | Q5: 1187625.53 | R5: 1775402.459 | S5: 2364253.294 | T5: 2845126.284 | U5: 2845404.284 | W5: =SUM(O5:U5) -> 11687932.84 | X5: =SUMIFS(INDIRECT("'"&$B5&"'!J181:AJV181"),INDIRECT("'"&$B5&"'!J13:AJV13"),">2025")+SUMIFS(INDIRECT("'"&$B5&"'!J87:AJV87"),INDIRECT("'"&$B5&"'!J13:AJV13"),">2025")+SUMIFS(INDIRECT("'"&$B5&"'!J266:AJV266"),INDIRECT("'"&$B5&"'!J13:AJV13"),">2025") -> 61009790.85 | Z5: =SUM(W5:X5) -> 72697723.69 | AB5: =ROUND(M5,0)=ROUND(Z5,0) -> TRUE
B6: 2 | C6: Class 4-5 | E6: 42087236.01 | F6: 42087236.01 | G6: =INDIRECT("'"&$B6&"'!I189") -> 257087.501 | H6: =INDIRECT("'"&$B6&"'!I190") -> 1746155.714 | J6: 2598548.272 | L6: =INDIRECT("'"&$B6&"'!I78") -> 165276202.4 | M6: 54621239.68 | O6: 52329.23794 | P6: 451139.561 | Q6: 892261.68 | R6: 1333853.752 | S6: 1776253.5 | T6: 2137530.334 | U6: 2137740.9 | W6: =SUM(O6:U6) -> 8781108.964 | X6: 45840130.71 | Z6: =SUM(W6:X6) -> 54621239.68 | AB6: =ROUND(M6,0)=ROUND(Z6,0) -> TRUE
B7: 3 | C7: Class 6 | E7: 21438062.85 | F7: 21438062.85 | G7: 130953.1945 | H7: 889442.9642 | J7: 10993604.24 | L7: 91372615.69 | M7: 26525241.59 | O7: 26655.05266 | P7: 229765.6044 | Q7: 454201.2522 | R7: 678607.6995 | S7: 903148.2655 | T7: 1086081.165 | U7: 1084839.498 | W7: 4463298.537 | X7: 22061943.05 | Z7: 26525241.59 | AB7: TRUE
B8: 4 | C8: Class 7-8 | E8: 32458775.66 | F8: 32458775.66 | G8: 198272.5954 | H8: 1346680.893 | J8: 23867186.76 | L8: 145911163.1 | M8: 40195332.55 | O8: 40357.67505 | P8: 347882.5726 | Q8: 687701.1995 | R8: 1027482.696 | S8: 1367474.567 | T8: 1644476.964 | U8: 1642632.552 | W8: 6758008.226 | X8: 33437324.33 | Z8: 40195332.55 | AB8: TRUE
B9: 5 | C9: On Route | E9: 4091623.931 | F9: 4091623.931 | G9: 24993.45339 | H9: 169757.2277 | J9: 2386143.721 | L9: 17689124.48 | M9: 5040333.52 | O9: 5087.327717 | P9: 43852.03065 | Q9: 86682.90304 | R9: 129503.6023 | S9: 172345.1501 | T9: 207240.6485 | U9: 206980.5634 | W9: 851692.2257 | X9: 4188641.294 | Z9: 5040333.52 | AB9: TRUE
B10: 6 | C10: Class FL | E10: 10749852.59 | F10: 10749852.59 | G10: 65664.86659 | H10: 446000.2201 | J10: 819025.3197 | L10: 42402109.51 | M10: 13963320.18 | O10: 13365.84787 | P10: 115229.6245 | Q10: 227902.7228 | R10: 340698.3512 | S10: 453702.8508 | T10: 545989.7259 | U10: 546056.0409 | W10: 2242945.164 | X10: 11720375.01 | Z10: 13963320.18 | AB10: TRUE
B11: 7 | C11: Class V2G | E11: 917899.4752 | F11: 917899.4752 | G11: 4830.363329 | H11: 35268.20702 | J11: 1168628.079 | L11: 4038517.515 | M11: 862301.1874 | O11: 6073.428521 | P11: 43589.5776 | Q11: 46723.1284 | R11: 42676.67118 | S11: 38684.22199 | T11: 34741.73022 | U11: 31195.90992 | W11: 243684.6678 | X11: 618616.5196 | Z11: 862301.1874 | AB11: TRUE
C12: 0% Total | E12: =SUM(E5:E11) -> 167758412 | F12: =SUM(F5:F11) -> 167758412 | G12: 1028869.276 | H12: 6957497.477 | J12: 44300133.62 | L12: 685935285.7 | M12: 213905492.4 | O12: 213516.4267 | P12: 1831932.103 | Q12: 3583098.416 | R12: 5328225.231 | S12: 7075861.849 | T12: 8501186.851 | U12: 8494849.748 | W12: 35028670.62 | X12: 178876821.8 | Z12: 213905492.4 | AB12: TRUE
A14: 0.5 | B14: 8 | C14: Class 2-3 | E14: 56745002.78 | F14: 56745002.78 | G14: 346644.101 | H14: 2354359.859 | J14: 1891774.587 | L14: 219469087.3 | M14: =SUM(INDIRECT("'"&$B14&"'!J181:AJV181"))+SUM(INDIRECT("'"&$B14&"'!J87:AJV87"))+SUM(INDIRECT("'"&$B14&"'!J266:AJV266")) -> 72869338.83 | O14: =SUMIF(INDIRECT("'"&$B14&"'!J13:AJV13"),O$4,INDIRECT("'"&$B14&"'!J181:AJV181"))+SUMIF(INDIRECT("'"&$B14&"'!J13:AJV13"),O$4,INDIRECT("'"&$B14&"'!J87:AJV87"))+SUMIF(INDIRECT("'"&$B14&"'!J13:AJV13"),O$4,INDIRECT("'"&$B14&"'!J266:AJV266")) -> 70682.05626 | P14: 609143.131 | Q14: 1203181.64 | R14: 1796085.046 | S14: 2388332.783 | T14: 2869750.789 | U14: 2864354.13 | W14: 11801529.58 | X14: =SUMIFS(INDIRECT("'"&$B14&"'!J181:AJV181"),INDIRECT("'"&$B14&"'!J13:AJV13"),">2025")+SUMIFS(INDIRECT("'"&$B14&"'!J87:AJV87"),INDIRECT("'"&$B14&"'!J13:AJV13"),">2025")+SUMIFS(INDIRECT("'"&$B14&"'!J266:AJV266"),INDIRECT("'"&$B14&"'!J13:AJV13"),">2025") -> 61067809.26 | Z14: 72869338.83 | AB14: TRUE
B15: 9 | C15: Class 4-5 | E15: 43072791.75 | F15: 43072791.75 | G15: 263135.3344 | H15: 1787138.04 | J15: 1821997.709 | L15: 166003894.3 | M15: 54861422.73 | O15: 53727.50945 | P15: 462898.4257 | Q15: 913388.266 | R15: 1361972.779 | S15: 1809030.171 | T15: 2171103.616 | U15: 2163657.879 | W15: 8935778.647 | X15: 45925644.08 | Z15: 54861422.73 | AB15: TRUE
B16: 10 | C16: Class 6 | E16: 27825924.13 | F16: 27825924.13 | G16: 170152.115 | H16: 1155069.152 | J16: 5960406.153 | L16: 96089137.38 | M16: 28081983.57 | O16: 35717.9235 | P16: 305980.4686 | Q16: 591132.8282 | R16: 860860.6497 | S16: 1115589.656 | T16: 1303685.774 | U16: 1252819.919 | W16: 5465787.218 | X16: 22616196.35 | Z16: 28081983.57 | AB16: TRUE
B17: 11 | C17: Class 7-8 | E17: 46516256.95 | F17: 46516256.95 | G17: 284141.9249 | H17: 1929911.193 | J17: 12800389.23 | L17: 156298102.2 | M17: 43619976.67 | O17: 57836.06881 | P17: 495951.3024 | Q17: 962077.307 | R17: 1406568.08 | S17: 1829078.659 | T17: 2138344.562 | U17: 2030179.023 | W17: 8920035.003 | X17: 34699941.66 | Z17: 43619976.67 | AB17: TRUE
B18: 12 | C18: On Route | E18: 5480017.145 | F18: 5480017.145 | G18: 33474.37481 | H18: 227360.2203 | J18: 1293126.68 | L18: 18714995 | M18: 5378569.975 | O18: 6813.588829 | P18: 58476.10273 | Q18: 113781.7779 | R18: 166944.1341 | S18: 217935.6777 | T18: 256017.6952 | U18: 245256.7581 | W18: 1065225.735 | X18: 4313344.241 | Z18: 5378569.975 | AB18: TRUE
B19: 13 | C19: Class FL | E19: 11062241.06 | F19: 11062241.06 | G19: 67573.07391 | H19: 458960.8934 | J19: 573096.4857 | L19: 42632930.38 | M19: 14039423.38 | O19: 13754.25662 | P19: 118520.0408 | Q19: 233999.9697 | R19: 349122.4708 | S19: 463960.7195 | T19: 556964.5614 | U19: 554668.1847 | W19: 2290990.204 | X19: 11748433.18 | Z19: 14039423.38 | AB19: TRUE
B20: 14 | C20: Class V2G | E20: 917899.4752 | F20: 917899.4752 | G20: 4830.363329 | H20: 35268.20702 | J20: 1168628.079 | L20: 4038517.515 | M20: 862301.1874 | O20: 6073.428521 | P20: 43589.5776 | Q20: 46723.1284 | R20: 42676.67118 | S20: 38684.22199 | T20: 34741.73022 | U20: 31195.90992 | W20: 243684.6678 | X20: 618616.5196 | Z20: 862301.1874 | AB20: TRUE
C21: 50% Total | E21: =SUM(E14:E20) -> 191620133.3 | F21: =SUM(F14:F20) -> 191620133.3 | G21: =SUM(G14:G20) -> 1169951.287 | H21: =SUM(H14:H20) -> 7948067.565 | J21: =SUM(J14:J20) -> 25509418.93 | L21: =SUM(L14:L20) -> 703246664.1 | M21: =SUM(M14:M20) -> 219713016.3 | O21: =SUM(O14:O20) -> 244604.832 | P21: =SUM(P14:P20) -> 2094559.049 | Q21: =SUM(Q14:Q20) -> 4064284.917 | R21: =SUM(R14:R20) -> 5984229.831 | S21: =SUM(S14:S20) -> 7862611.888 | T21: =SUM(T14:T20) -> 9330608.728 | U21: =SUM(U14:U20) -> 9142131.804 | W21: =SUM(W14:W20) -> 38723031.05 | X21: =SUM(X14:X20) -> 180989985.3 | Z21: =SUM(Z14:Z20) -> 219713016.3 | AB21: TRUE
A23: 1 | B23: 15 | C23: Class 2-3 | E23: 57475044.07 | F23: 57475044.07 | G23: 356155.4495 | H23: 2384911.791 | J23: 1316551.949 | L23: 220325120.4 | M23: =SUM(INDIRECT("'"&$B23&"'!J181:AJV181"))+SUM(INDIRECT("'"&$B23&"'!J87:AJV87"))+SUM(INDIRECT("'"&$B23&"'!J266:AJV266")) -> 73053581.26 | O23: =SUMIF(INDIRECT("'"&$B23&"'!J13:AJV13"),O$4,INDIRECT("'"&$B23&"'!J181:AJV181"))+SUMIF(INDIRECT("'"&$B23&"'!J13:AJV13"),O$4,INDIRECT("'"&$B23&"'!J87:AJV87"))+SUMIF(INDIRECT("'"&$B23&"'!J13:AJV13"),O$4,INDIRECT("'"&$B23&"'!J266:AJV266")) -> 71719.41655 | P23: 617894.846 | Q23: 1218926.674 | R23: 1817063.792 | S23: 2412815.548 | T23: 2894868.914 | U23: 2883803.325 | W23: 11917092.52 | X23: =SUMIFS(INDIRECT("'"&$B23&"'!J181:AJV181"),INDIRECT("'"&$B23&"'!J13:AJV13"),">2025")+SUMIFS(INDIRECT("'"&$B23&"'!J87:AJV87"),INDIRECT("'"&$B23&"'!J13:AJV13"),">2025")+SUMIFS(INDIRECT("'"&$B23&"'!J266:AJV266"),INDIRECT("'"&$B23&"'!J13:AJV13"),">2025") -> 61136488.74 | Z23: 73053581.26 | AB23: TRUE
B24: 16 | C24: Class 4-5 | E24: 44058347.49 | F24: 44058347.49 | G24: 269183.1679 | H24: 1828120.366 | J24: 1045447.147 | L24: 166731586.2 | M24: =SUM(INDIRECT("'"&$B24&"'!J181:AJV181"))+SUM(INDIRECT("'"&$B24&"'!J87:AJV87"))+SUM(INDIRECT("'"&$B24&"'!J266:AJV266")) -> 55101605.77 | O24: 55125.78095 | P24: 474657.2905 | Q24: 934514.852 | R24: 1390091.805 | S24: 1841806.843 | T24: 2204676.899 | U24: 2189574.858 | W24: 9090448.329 | X24: 46011157.45 | Z24: 55101605.77 | AB24: TRUE
B25: 17 | C25: Class 6 | E25: 34213785.4 | F25: 34213785.4 | G25: 209351.0355 | H25: 1420695.339 | J25: 927208.0626 | L25: 100805659.1 | M25: 29638725.54 | O25: 44780.79434 | P25: 382195.3328 | Q25: 728064.4042 | R25: 1043113.6 | S25: 1328031.046 | T25: 1521290.383 | U25: 1420800.34 | W25: 6468275.899 | X25: 23170449.64 | Z25: 29638725.54 | AB25: TRUE
B26: 18 | C26: Class 7-8 | E26: 60573738.24 | F26: 60573738.24 | G26: 370011.2543 | H26: 2513141.493 | J26: 1733591.701 | L26: 166685041.2 | M26: 47044620.78 | O26: 75314.46257 | P26: 644020.0322 | Q26: 1236453.415 | R26: 1785653.465 | S26: 2290682.751 | T26: 2632212.161 | U26: 2417725.495 | W26: 11082061.78 | X26: 35962559 | Z26: 47044620.78 | AB26: TRUE
B27: 19 | C27: On Route | E27: 6868410.359 | F27: 6868410.359 | G27: 41955.29624 | H27: 284963.2129 | J27: 200109.6401 | L27: 19740865.53 | M27: 5716806.431 | O27: 8539.849941 | P27: 73100.1748 | Q27: 140880.6527 | R27: 204384.6659 | S27: 263526.2053 | T27: 304794.742 | U27: 283532.9529 | W27: 1278759.243 | X27: 4438047.188 | Z27: 5716806.431 | AB27: TRUE
B28: 20 | C28: Class FL | E28: 11374629.53 | F28: 11374629.53 | G28: 69481.28123 | H28: 471921.5668 | J28: 327167.6516 | L28: 42863751.25 | M28: 14115526.58 | O28: 14142.66537 | P28: 121810.457 | Q28: 240097.2165 | R28: 357546.5905 | S28: 474218.5882 | T28: 567939.3969 | U28: 563280.3286 | W28: 2339035.243 | X28: 11776491.34 | Z28: 14115526.58 | AB28: TRUE
B29: 21 | C29: Class V2G | E29: 917899.4752 | F29: 917899.4752 | G29: 4830.363329 | H29: 35268.20702 | J29: 1168628.079 | L29: 4038517.515 | M29: 862301.1874 | O29: 6073.428521 | P29: 43589.5776 | Q29: 46723.1284 | R29: 42676.67118 | S29: 38684.22199 | T29: 34741.73022 | U29: 31195.90992 | W29: 243684.6678 | X29: 618616.5196 | Z29: 862301.1874 | AB29: TRUE
C30: 100% Total | E30: =SUM(E23:E29) -> 215481854.6 | F30: =SUM(F23:F29) -> 215481854.6 | G30: =SUM(G23:G29) -> 1320967.848 | H30: =SUM(H23:H29) -> 8939021.977 | J30: =SUM(J23:J29) -> 6718704.229 | L30: =SUM(L23:L29) -> 721190541.2 | M30: =SUM(M23:M29) -> 225533167.6 | O30: =SUM(O23:O29) -> 275696.3982 | P30: =SUM(P23:P29) -> 2357267.711 | Q30: =SUM(Q23:Q29) -> 4545660.342 | R30: =SUM(R23:R29) -> 6640530.59 | S30: =SUM(S23:S29) -> 8649765.203 | T30: =SUM(T23:T29) -> 10160524.23 | U30: =SUM(U23:U29) -> 9789913.208 | W30: =SUM(W23:W29) -> 42419357.68 | X30: =SUM(X23:X29) -> 183113809.9 | Z30: =SUM(Z23:Z29) -> 225533167.6 | AB30: TRUE
A32: Input Check
C33: File | E33: Input Tables | F33: PET
C34: 0 | E34: 212058.5456 | F34: =+SUM(E5:E11,J5:J11)/1000 -> 212058.5456
C35: 0.5 | E35: 217129.5522 | F35: =+SUM(E14:E20,J14:J20)/1000 -> 217129.5522
C36: 1 | E36: 222200.5588 | F36: =+SUM(E23:E29,J23:J29)/1000 -> 222200.5588
D38: - | E38: Includes adjustment for water wagon

Sheet Checks
E1: Inputs >> | I1: Revenue Requirements >> | M1: Checks >>
A2: File | B2: Scenario | C2: Definition | E2: Capex | F2: In Service | G2: O&M | I2: Capex | J2: In Service | K2: O&M | M2: Capex | N2: In Service | O2: O&M
A3: 0 | B3: 1 | C3: Class 2-3 | E3: 56014961.49 | F3: 56014961.49 | G3: 2466997.226 | I3: =INDIRECT("'"&$B3&"'!I42") -> 56014961.49 | J3: =INDIRECT("'"&$B3&"'!I44") -> 56014961.49 | K3: =INDIRECT("'"&$B3&"'!I84") -> 2466997.226 | M3: =ROUND(E3,0)=ROUND(I3,0) -> TRUE | N3: =ROUND(F3,0)=ROUND(J3,0) -> TRUE | O3: TRUE
B4: 2 | C4: Class 4-5 | E4: 42087236.01 | F4: 42087236.01 | G4: 2598548.272 | I4: =INDIRECT("'"&$B4&"'!I42") -> 42087236.01 | J4: =INDIRECT("'"&$B4&"'!I44") -> 42087236.01 | K4: =INDIRECT("'"&$B4&"'!I84") -> 2598548.272 | M4: =ROUND(E4,0)=ROUND(I4,0) -> TRUE | N4: =ROUND(F4,0)=ROUND(J4,0) -> TRUE | O4: =ROUND(G4,0)=ROUND(K4,0) -> TRUE
B5: 3 | C5: Class 6 | E5: 21438062.85 | F5: 21438062.85 | G5: 10993604.24 | I5: 21438062.85 | J5: 21438062.85 | K5: 10993604.24 | M5: TRUE | N5: TRUE | O5: TRUE
B6: 4 | C6: Class 7-8 | E6: 32458775.66 | F6: 32458775.66 | G6: 23867186.76 | I6: 32458775.66 | J6: 32458775.66 | K6: 23867186.76 | M6: TRUE | N6: TRUE | O6: TRUE
B7: 5 | C7: On Route | E7: 4091623.931 | F7: 4091623.931 | G7: 2386143.721 | I7: 4091623.931 | J7: 4091623.931 | K7: 2386143.721 | M7: TRUE | N7: TRUE | O7: TRUE
B8: 6 | C8: Class FL | E8: 10749852.59 | F8: 10749852.59 | G8: 819025.3197 | I8: 10749852.59 | J8: 10749852.59 | K8: 819025.3197 | M8: TRUE | N8: TRUE | O8: TRUE
B9: 7 | C9: Class V2G | E9: 917899.4752 | F9: 917899.4752 | G9: 1168628.079 | I9: 917899.4752 | J9: 917899.4752 | K9: 1168628.079 | M9: TRUE | N9: TRUE | O9: TRUE
A10: 0.5 | B10: 8 | C10: Class 2-3 | E10: 56745002.78 | F10: 56745002.78 | G10: 1891774.587 | I10: 56745002.78 | J10: 56745002.78 | K10: 1891774.587 | M10: =ROUND(E10,0)=ROUND(I10,0) -> TRUE | N10: =ROUND(F10,0)=ROUND(J10,0) -> TRUE | O10: =ROUND(G10,0)=ROUND(K10,0) -> TRUE
B11: 9 | C11: Class 4-5 | E11: 43072791.75 | F11: 43072791.75 | G11: 1821997.709 | I11: 43072791.75 | J11: 43072791.75 | K11: 1821997.709 | M11: TRUE | N11: TRUE | O11: TRUE
B12: 10 | C12: Class 6 | E12: 27825924.13 | F12: 27825924.13 | G12: 5960406.153 | I12: 27825924.13 | J12: 27825924.13 | K12: 5960406.153 | M12: TRUE | N12: TRUE | O12: TRUE
B13: 11 | C13: Class 7-8 | E13: 46516256.95 | F13: 46516256.95 | G13: 12800389.23 | I13: 46516256.95 | J13: 46516256.95 | K13: 12800389.23 | M13: TRUE | N13: TRUE | O13: TRUE
B14: 12 | C14: On Route | E14: 5480017.145 | F14: 5480017.145 | G14: 1293126.68 | I14: 5480017.145 | J14: 5480017.145 | K14: 1293126.68 | M14: TRUE | N14: TRUE | O14: TRUE
B15: 13 | C15: Class FL | E15: 11062241.06 | F15: 11062241.06 | G15: 573096.4857 | I15: 11062241.06 | J15: 11062241.06 | K15: 573096.4857 | M15: TRUE | N15: TRUE | O15: TRUE
B16: 14 | C16: Class V2G | E16: 917899.4752 | F16: 917899.4752 | G16: 1168628.079 | I16: 917899.4752 | J16: 917899.4752 | K16: 1168628.079 | M16: TRUE | N16: TRUE | O16: TRUE
A17: 1 | B17: 15 | C17: Class 2-3 | E17: 57475044.07 | F17: 57475044.07 | G17: 1316551.949 | I17: 57475044.07 | J17: 57475044.07 | K17: 1316551.949 | M17: =ROUND(E17,0)=ROUND(I17,0) -> TRUE | N17: =ROUND(F17,0)=ROUND(J17,0) -> TRUE | O17: =ROUND(G17,0)=ROUND(K17,0) -> TRUE
B18: 16 | C18: Class 4-5 | E18: 44058347.49 | F18: 44058347.49 | G18: 1045447.147 | I18: 44058347.49 | J18: 44058347.49 | K18: 1045447.147 | M18: TRUE | N18: TRUE | O18: TRUE
B19: 17 | C19: Class 6 | E19: 34213785.4 | F19: 34213785.4 | G19: 927208.0626 | I19: 34213785.4 | J19: 34213785.4 | K19: 927208.0626 | M19: TRUE | N19: TRUE | O19: TRUE
B20: 18 | C20: Class 7-8 | E20: 60573738.24 | F20: 60573738.24 | G20: 1733591.701 | I20: 60573738.24 | J20: 60573738.24 | K20: 1733591.701 | M20: TRUE | N20: TRUE | O20: TRUE
B21: 19 | C21: On Route | E21: 6868410.359 | F21: 6868410.359 | G21: 200109.6401 | I21: 6868410.359 | J21: 6868410.359 | K21: 200109.6401 | M21: TRUE | N21: TRUE | O21: TRUE
B22: 20 | C22: Class FL | E22: 11374629.53 | F22: 11374629.53 | G22: 327167.6516 | I22: 11374629.53 | J22: 11374629.53 | K22: 327167.6516 | M22: TRUE | N22: TRUE | O22: TRUE
B23: 21 | C23: Class V2G | E23: 917899.4752 | F23: 917899.4752 | G23: 1168628.079 | I23: 917899.4752 | J23: 917899.4752 | K23: 1168628.079 | M23: TRUE | N23: TRUE | O23: TRUE
E35: From Project Team Input Data | I35: From Rev Req Total Tabs

Sheet 1
G1: Tab Type | H1: Totals
H2: All
H3: Monthly
B11: PET -MDHD_6.15.18_ORA Data Request_0%scenario. | H11: Monthly | I11: Period Number: | J11: 0 | K11: 1 | L11: 2 | M11: 3 | N11: 4 | O11: 5 | P11: 6 | Q11: 7 | R11: 8 | S11: 9 | T11: 10 | U11: 11 | V11: 12 | W11: 13 | X11: 14 | Y11: 15 | Z11: 16 | AA11: 17 | AB11: 18 | AC11: 19 | AD11: 20 | AE11: 21 | AF11: 22 | AG11: 23 | AH11: 24 | AI11: 25 | AJ11: 26 | AK11: 27 | AL11: 28 | AM11: 29 | AN11: 30 | AO11: 31 | AP11: 32 | AQ11: 33 | AR11: 34 | AS11: 35 | AT11: 36 | AU11: 37 | AV11: 38 | AW11: 39 | AX11: 40 | AY11: 41 | AZ11: 42 | BA11: 43 | BB11: 44 | BC11: 45 | BD11: 46 | BE11: 47 | BF11: 48 | BG11: 49 | BH11: 50 | BI11: 51 | BJ11: 52 | BK11: 53 | BL11: 54 | BM11: 55 | BN11: 56 | BO11: 57 | BP11: 58 | BQ11: 59 | BR11: 60 | BS11: 61 | BT11: 62 | BU11: 63 | BV11: 64 | BW11: 65 | BX11: 66 | BY11: 67 | BZ11: 68 | CA11: 69 | CB11: 70 | CC11: 71 | CD11: 72 | CE11: 73 | CF11: 74 | CG11: 75 | CH11: 76 | CI11: 77 | CJ11: 78 | CK11: 79 | CL11: 80 | CM11: 81 | CN11: 82 | CO11: 83 | CP11: 84 | CQ11: 85 | CR11: 86 | CS11: 87 | CT11: 88 | CU11: 89 | CV11: 90 | CW11: 91 | CX11: 92 | CY11: 93 | CZ11: 94 | DA11: 95 | DB11: 96 | DC11: 97 | DD11: 98 | DE11: 99 | DF11: 100 | DG11: 101 | DH11: 102 | DI11: 103 | DJ11: 104 | DK11: 105 | DL11: 106 | DM11: 107 | DN11: 108 | DO11: 109 | DP11: 110 | DQ11: 111 | DR11: 112 | DS11: 113 | DT11: 114 | DU11: 115 | DV11: 116 | DW11: 117 | DX11: 118 | DY11: 119 | DZ11: 120 | EA11: 121 | EB11: 122 | EC11: 123 | ED11: 124 | EE11: 125 | EF11: 126 | EG11: 127 | EH11: 128 | EI11: 129 | EJ11: 130 | EK11: 131 | EL11: 132 | EM11: 133 | EN11: 134 | EO11: 135 | EP11: 136 | EQ11: 137 | ER11: 138 | ES11: 139 | ET11: 140 | EU11: 141 | EV11: 142 | EW11: 143 | EX11: 144 | EY11: 145 | EZ11: 146 | FA11: 147 | FB11: 148 | FC11: 149 | FD11: 150 | FE11: 151 | FF11: 152 | FG11: 153 | FH11: 154 | FI11: 155 | FJ11: 156 | FK11: 157 | FL11: 158 | FM11: 159 | FN11: 160 | FO11: 161 | FP11: 162 | FQ11: 163 | FR11: 164 | FS11: 165 | FT11: 166 | FU11: 167 | FV11: 168 | FW11: 169 | FX11: 170 | FY11: 171 | FZ11: 172 | GA11: 173 | GB11: 174 | GC11: 175 | GD11: 176 | GE11: 177 | GF11: 178 | GG11: 179 | GH11: 180 | GI11: 181 | GJ11: 182 | GK11: 183 | GL11: 184 | GM11: 185 | GN11: 186 | GO11: 187 | GP11: 188 | GQ11: 189 | GR11: 190 | GS11: 191 | GT11: 192 | GU11: 193 | GV11: 194 | GW11: 195 | GX11: 196 | GY11: 197 | GZ11: 198 | HA11: 199 | HB11: 200 | HC11: 201 | HD11: 202 | HE11: 203 | HF11: 204 | HG11: 205 | HH11: 206 | HI11: 207 | HJ11: 208 | HK11: 209 | HL11: 210 | HM11: 211 | HN11: 212 | HO11: 213 | HP11: 214 | HQ11: 215 | HR11: 216 | HS11: 217 | HT11: 218 | HU11: 219 | HV11: 220 | HW11: 221 | HX11: 222 | HY11: 223 | HZ11: 224 | IA11: 225 | IB11: 226 | IC11: 227 | ID11: 228 | IE11: 229 | IF11: 230 | IG11: 231 | IH11: 232 | II11: 233 | IJ11: 234 | IK11: 235 | IL11: 236 | IM11: 237 | IN11: 238 | IO11: 239 | IP11: 240 | IQ11: 241 | IR11: 242 | IS11: 243 | IT11: 244 | IU11: 245 | IV11: 246 | IW11: 247 | IX11: 248 | IY11: 249 | IZ11: 250 | JA11: 251 | JB11: 252 | JC11: 253 | JD11: 254 | JE11: 255 | JF11: 256 | JG11: 257 | JH11: 258 | JI11: 259 | JJ11: 260 | JK11: 261 | JL11: 262 | JM11: 263 | JN11: 264 | JO11: 265 | JP11: 266 | JQ11: 267 | JR11: 268 | JS11: 269 | JT11: 270 | JU11: 271 | JV11: 272 | JW11: 273 | JX11: 274 | JY11: 275 | JZ11: 276 | KA11: 277 | KB11: 278 | KC11: 279 | KD11: 280 | KE11: 281 | KF11: 282 | KG11: 283 | KH11: 284 | KI11: 285 | KJ11: 286 | KK11: 287 | KL11: 288 | KM11: 289 | KN11: 290 | KO11: 291 | KP11: 292 | KQ11: 293 | KR11: 294 | KS11: 295 | KT11: 296 | KU11: 297 | KV11: 298 | KW11: 299 | KX11: 300 | KY11: 301 | KZ11: 302 | LA11: 303 | LB11: 304 | LC11: 305 | LD11: 306 | LE11: 307 | LF11: 308 | LG11: 309 | LH11: 310 | LI11: 311 | LJ11: 312 | LK11: 313 | LL11: 314 | LM11: 315 | LN11: 316 | LO11: 317 | LP11: 318 | LQ11: 319 | LR11: 320 | LS11: 321 | LT11: 322 | LU11: 323 | LV11: 324 | LW11: 325 | LX11: 326 | LY11: 327 | LZ11: 328 | MA11: 329 | MB11: 330 | MC11: 331 | MD11: 332 | ME11: 333 | MF11: 334 | MG11: 335 | MH11: 336 | MI11: 337 | MJ11: 338 | MK11: 339 | ML11: 340 | MM11: 341 | MN11: 342 | MO11: 343 | MP11: 344 | MQ11: 345 | MR11: 346 | MS11: 347 | MT11: 348 | MU11: 349 | MV11: 350 | MW11: 351 | MX11: 352 | MY11: 353 | MZ11: 354 | NA11: 355 | NB11: 356 | NC11: 357 | ND11: 358 | NE11: 359 | NF11: 360 | NG11: 361 | NH11: 362 | NI11: 363 | NJ11: 364 | NK11: 365 | NL11: 366 | NM11: 367 | NN11: 368 | NO11: 369 | NP11: 370 | NQ11: 371 | NR11: 372 | NS11: 373 | NT11: 374 | NU11: 375 | NV11: 376 | NW11: 377 | NX11: 378 | NY11: 379 | NZ11: 380 | OA11: 381 | OB11: 382 | OC11: 383 | OD11: 384 | OE11: 385 | OF11: 386 | OG11: 387 | OH11: 388 | OI11: 389 | OJ11: 390 | OK11: 391 | OL11: 392 | OM11: 393 | ON11: 394 | OO11: 395 | OP11: 396 | OQ11: 397 | OR11: 398 | OS11: 399 | OT11: 400 | OU11: 401 | OV11: 402 | OW11: 403 | OX11: 404 | OY11: 405 | OZ11: 406 | PA11: 407 | PB11: 408 | PC11: 409 | PD11: 410 | PE11: 411 | PF11: 412 | PG11: 413 | PH11: 414 | PI11: 415 | PJ11: 416 | PK11: 417 | PL11: 418 | PM11: 419 | PN11: 420 | PO11: 421 | PP11: 422 | PQ11: 423 | PR11: 424 | PS11: 425 | PT11: 426 | PU11: 427 | PV11: 428 | PW11: 429 | PX11: 430 | PY11: 431 | PZ11: 432 | QA11: 433 | QB11: 434 | QC11: 435 | QD11: 436 | QE11: 437 | QF11: 438 | QG11: 439 | QH11: 440 | QI11: 441 | QJ11: 442 | QK11: 443 | QL11: 444 | QM11: 445 | QN11: 446 | QO11: 447 | QP11: 448 | QQ11: 449 | QR11: 450 | QS11: 451 | QT11: 452 | QU11: 453 | QV11: 454 | QW11: 455 | QX11: 456 | QY11: 457 | QZ11: 458 | RA11: 459 | RB11: 460 | RC11: 461 | RD11: 462 | RE11: 463 | RF11: 464 | RG11: 465 | RH11: 466 | RI11: 467 | RJ11: 468 | RK11: 469 | RL11: 470 | RM11: 471 | RN11: 472 | RO11: 473 | RP11: 474 | RQ11: 475 | RR11: 476 | RS11: 477 | RT11: 478 | RU11: 479 | RV11: 480 | RW11: 481 | RX11: 482 | RY11: 483 | RZ11: 484 | SA11: 485 | SB11: 486 | SC11: 487 | SD11: 488 | SE11: 489 | SF11: 490 | SG11: 491 | SH11: 492 | SI11: 493 | SJ11: 494 | SK11: 495 | SL11: 496 | SM11: 497 | SN11: 498 | SO11: 499 | SP11: 500 | SQ11: 501 | SR11: 502 | SS11: 503 | ST11: 504 | SU11: 505 | SV11: 506 | SW11: 507 | SX11: 508 | SY11: 509 | SZ11: 510 | TA11: 511 | TB11: 512 | TC11: 513 | TD11: 514 | TE11: 515 | TF11: 516 | TG11: 517 | TH11: 518 | TI11: 519 | TJ11: 520 | TK11: 521 | TL11: 522 | TM11: 523 | TN11: 524 | TO11: 525 | TP11: 526 | TQ11: 527 | TR11: 528 | TS11: 529 | TT11: 530 | TU11: 531 | TV11: 532 | TW11: 533 | TX11: 534 | TY11: 535 | TZ11: 536 | UA11: 537 | UB11: 538 | UC11: 539 | UD11: 540 | UE11: 541 | UF11: 542 | UG11: 543 | UH11: 544 | UI11: 545 | UJ11: 546 | UK11: 547 | UL11: 548 | UM11: 549 | UN11: 550 | UO11: 551 | UP11: 552 | UQ11: 553 | UR11: 554 | US11: 555 | UT11: 556 | UU11: 557 | UV11: 558 | UW11: 559 | UX11: 560 | UY11: 561 | UZ11: 562 | VA11: 563 | VB11: 564 | VC11: 565 | VD11: 566 | VE11: 567 | VF11: 568 | VG11: 569 | VH11: 570 | VI11: 571 | VJ11: 572 | VK11: 573 | VL11: 574 | VM11: 575 | VN11: 576 | VO11: 577 | VP11: 578 | VQ11: 579 | VR11: 580 | VS11: 581 | VT11: 582 | VU11: 583 | VV11: 584 | VW11: 585 | VX11: 586 | VY11: 587 | VZ11: 588 | WA11: 589 | WB11: 590 | WC11: 591 | WD11: 592 | WE11: 593 | WF11: 594 | WG11: 595 | WH11: 596 | WI11: 597 | WJ11: 598 | WK11: 599 | WL11: 600 | WM11: 601 | WN11: 602 | WO11: 603 | WP11: 604 | WQ11: 605 | WR11: 606 | WS11: 607 | WT11: 608 | WU11: 609 | WV11: 610 | WW11: 611 | WX11: 612 | WY11: 613 | WZ11: 614 | XA11: 615 | XB11: 616 | XC11: 617 | XD11: 618 | XE11: 619 | XF11: 620 | XG11: 621 | XH11: 622 | XI11: 623 | XJ11: 624 | XK11: 625 | XL11: 626 | XM11: 627 | XN11: 628 | XO11: 629 | XP11: 630 | XQ11: 631 | XR11: 632 | XS11: 633 | XT11: 634 | XU11: 635 | XV11: 636 | XW11: 637 | XX11: 638 | XY11: 639 | XZ11: 640 | YA11: 641 | YB11: 642 | YC11: 643 | YD11: 644 | YE11: 645 | YF11: 646 | YG11: 647 | YH11: 648 | YI11: 649 | YJ11: 650 | YK11: 651 | YL11: 652 | YM11: 653 | YN11: 654 | YO11: 655 | YP11: 656 | YQ11: 657 | YR11: 658 | YS11: 659 | YT11: 660 | YU11: 661 | YV11: 662 | YW11: 663 | YX11: 664 | YY11: 665 | YZ11: 666 | ZA11: 667 | ZB11: 668 | ZC11: 669 | ZD11: 670 | ZE11: 671 | ZF11: 672 | ZG11: 673 | ZH11: 674 | ZI11: 675 | ZJ11: 676 | ZK11: 677 | ZL11: 678 | ZM11: 679 | ZN11: 680 | ZO11: 681 | ZP11: 682 | ZQ11: 683 | ZR11: 684 | ZS11: 685 | ZT11: 686 | ZU11: 687 | ZV11: 688 | ZW11: 689 | ZX11: 690 | ZY11: 691 | ZZ11: 692 | AAA11: 693 | AAB11: 694 | AAC11: 695 | AAD11: 696 | AAE11: 697 | AAF11: 698 | AAG11: 699 | AAH11: 700 | AAI11: 701 | AAJ11: 702 | AAK11: 703 | AAL11: 704 | AAM11: 705 | AAN11: 706 | AAO11: 707 | AAP11: 708 | AAQ11: 709 | AAR11: 710 | AAS11: 711 | AAT11: 712 | AAU11: 713 | AAV11: 714 | AAW11: 715 | AAX11: 716 | AAY11: 717 | AAZ11: 718 | ABA11: 719 | ABB11: 720 | ABC11: 721 | ABD11: 722 | ABE11: 723 | ABF11: 724 | ABG11: 725 | ABH11: 726 | ABI11: 727 | ABJ11: 728 | ABK11: 729 | ABL11: 730 | ABM11: 731 | ABN11: 732 | ABO11: 733 | ABP11: 734 | ABQ11: 735 | ABR11: 736 | ABS11: 737 | ABT11: 738 | ABU11: 739 | ABV11: 740 | ABW11: 741 | ABX11: 742 | ABY11: 743 | ABZ11: 744 | ACA11: 745 | ACB11: 746 | ACC11: 747 | ACD11: 748 | ACE11: 749 | ACF11: 750 | ACG11: 751 | ACH11: 752 | ACI11: 753 | ACJ11: 754 | ACK11: 755 | ACL11: 756 | ACM11: 757 | ACN11: 758 | ACO11: 759 | ACP11: 760 | ACQ11: 761 | ACR11: 762 | ACS11: 763 | ACT11: 764 | ACU11: 765 | ACV11: 766 | ACW11: 767 | ACX11: 768 | ACY11: 769 | ACZ11: 770 | ADA11: 771 | ADB11: 772 | ADC11: 773 | ADD11: 774 | ADE11: 775 | ADF11: 776 | ADG11: 777 | ADH11: 778 | ADI11: 779 | ADJ11: 780 | ADK11: 781 | ADL11: 782 | ADM11: 783 | ADN11: 784 | ADO11: 785 | ADP11: 786 | ADQ11: 787 | ADR11: 788 | ADS11: 789 | ADT11: 790 | ADU11: 791 | ADV11: 792 | ADW11: 793 | ADX11: 794 | ADY11: 795 | ADZ11: 796 | AEA11: 797 | AEB11: 798 | AEC11: 799 | AED11: 800 | AEE11: 801 | AEF11: 802 | AEG11: 803 | AEH11: 804 | AEI11: 805 | AEJ11: 806 | AEK11: 807 | AEL11: 808 | AEM11: 809 | AEN11: 810 | AEO11: 811 | AEP11: 812 | AEQ11: 813 | AER11: 814 | AES11: 815 | AET11: 816 | AEU11: 817 | AEV11: 818 | AEW11: 819 | AEX11: 820 | AEY11: 821 | AEZ11: 822 | AFA11: 823 | AFB11: 824 | AFC11: 825 | AFD11: 826 | AFE11: 827 | AFF11: 828 | AFG11: 829 | AFH11: 830 | AFI11: 831 | AFJ11: 832 | AFK11: 833 | AFL11: 834 | AFM11: 835 | AFN11: 836 | AFO11: 837 | AFP11: 838 | AFQ11: 839 | AFR11: 840 | AFS11: 841 | AFT11: 842 | AFU11: 843 | AFV11: 844 | AFW11: 845 | AFX11: 846 | AFY11: 847 | AFZ11: 848 | AGA11: 849 | AGB11: 850 | AGC11: 851 | AGD11: 852 | AGE11: 853 | AGF11: 854 | AGG11: 855 | AGH11: 856 | AGI11: 857 | AGJ11: 858 | AGK11: 859 | AGL11: 860 | AGM11: 861 | AGN11: 862 | AGO11: 863 | AGP11: 864 | AGQ11: 865 | AGR11: 866 | AGS11: 867 | AGT11: 868 | AGU11: 869 | AGV11: 870 | AGW11: 871 | AGX11: 872 | AGY11: 873 | AGZ11: 874 | AHA11: 875 | AHB11: 876 | AHC11: 877 | AHD11: 878 | AHE11: 879 | AHF11: 880 | AHG11: 881 | AHH11: 882 | AHI11: 883 | AHJ11: 884 | AHK11: 885 | AHL11: 886 | AHM11: 887 | AHN11: 888 | AHO11: 889 | AHP11: 890 | AHQ11: 891 | AHR11: 892 | AHS11: 893 | AHT11: 894 | AHU11: 895 | AHV11: 896 | AHW11: 897 | AHX11: 898 | AHY11: 899 | AHZ11: 900 | AIA11: 901 | AIB11: 902 | AIC11: 903 | AID11: 904 | AIE11: 905 | AIF11: 906 | AIG11: 907 | AIH11: 908 | AII11: 909 | AIJ11: 910 | AIK11: 911 | AIL11: 912 | AIM11: 913 | AIN11: 914 | AIO11: 915 | AIP11: 916 | AIQ11: 917 | AIR11: 918 | AIS11: 919 | AIT11: 920 | AIU11: 921 | AIV11: 922 | AIW11: 923 | AIX11: 924 | AIY11: 925 | AIZ11: 926 | AJA11: 927 | AJB11: 928 | AJC11: 929 | AJD11: 930 | AJE11: 931 | AJF11: 932 | AJG11: 933 | AJH11: 934 | AJI11: 935 | AJJ11: 936 | AJK11: 937 | AJL11: 938 | AJM11: 939 | AJN11: 940 | AJO11: 941 | AJP11: 942 | AJQ11: 943 | AJR11: 944 | AJS11: 945 | AJT11: 946 | AJU11: 947 | AJV11: 948
I12: Year: | J12: 2017 | K12: 2018 | L12: 2019 | M12: 2020 | N12: 2021 | O12: 2022 | P12: 2023 | Q12: 2024 | R12: 2025 | S12: 2026 | T12: 2027 | U12: 2028 | V12: 2029 | W12: 2030 | X12: 2031 | Y12: 2032 | Z12: 2033 | AA12: 2034 | AB12: 2035 | AC12: 2036 | AD12: 2037 | AE12: 2038 | AF12: 2039 | AG12: 2040 | AH12: 2041 | AI12: 2042 | AJ12: 2043 | AK12: 2044 | AL12: 2045 | AM12: 2046 | AN12: 2047 | AO12: 2048 | AP12: 2049 | AQ12: 2050 | AR12: 2051 | AS12: 2052 | AT12: 2053 | AU12: 2054 | AV12: 2055 | AW12: 2056 | AX12: 2057 | AY12: 2058 | AZ12: 2059 | BA12: 2060 | BB12: 2061 | BC12: 2062 | BD12: 2063 | BE12: 2064 | BF12: 2065 | BG12: 2066 | BH12: 2067 | BI12: 2068 | BJ12: 2069 | BK12: 2070 | BL12: 2071 | BM12: 2072 | BN12: 2073 | BO12: 2074 | BP12: 2075 | BQ12: 2076 | BR12: 2077 | BS12: 2078 | BT12: 2079 | BU12: 2080 | BV12: 2081 | BW12: 2082 | BX12: 2083 | BY12: 2084 | BZ12: 2085 | CA12: 2086 | CB12: 2087 | CC12: 2088 | CD12: 2089 | CE12: 2090 | CF12: 2091 | CG12: 2092 | CH12: 2093 | CI12: 2094 | CJ12: 2095 | CK12: 2096
I13: Month relates to year: | J13: 2017 | K13: 2018 | L13: 2018 | M13: 2018 | N13: 2018 | O13: 2018 | P13: 2018 | Q13: 2018 | R13: 2018 | S13: 2018 | T13: 2018 | U13: 2018 | V13: 2018 | W13: 2019 | X13: 2019 | Y13: 2019 | Z13: 2019 | AA13: 2019 | AB13: 2019 | AC13: 2019 | AD13: 2019 | AE13: 2019 | AF13: 2019 | AG13: 2019 | AH13: 2019 | AI13: 2020 | AJ13: 2020 | AK13: 2020 | AL13: 2020 | AM13: 2020 | AN13: 2020 | AO13: 2020 | AP13: 2020 | AQ13: 2020 | AR13: 2020 | AS13: 2020 | AT13: 2020 | AU13: 2021 | AV13: 2021 | AW13: 2021 | AX13: 2021 | AY13: 2021 | AZ13: 2021 | BA13: 2021 | BB13: 2021 | BC13: 2021 | BD13: 2021 | BE13: 2021 | BF13: 2021 | BG13: 2022 | BH13: 2022 | BI13: 2022 | BJ13: 2022 | BK13: 2022 | BL13: 2022 | BM13: 2022 | BN13: 2022 | BO13: 2022 | BP13: 2022 | BQ13: 2022 | BR13: 2022 | BS13: 2023 | BT13: 2023 | BU13: 2023 | BV13: 2023 | BW13: 2023 | BX13: 2023 | BY13: 2023 | BZ13: 2023 | CA13: 2023 | CB13: 2023 | CC13: 2023 | CD13: 2023 | CE13: 2024 | CF13: 2024 | CG13: 2024 | CH13: 2024 | CI13: 2024 | CJ13: 2024 | CK13: 2024 | CL13: 2024 | CM13: 2024 | CN13: 2024 | CO13: 2024 | CP13: 2024 | CQ13: 2025 | CR13: 2025 | CS13: 2025 | CT13: 2025 | CU13: 2025 | CV13: 2025 | CW13: 2025 | CX13: 2025 | CY13: 2025 | CZ13: 2025 | DA13: 2025 | DB13: 2025 | DC13: 2026 | DD13: 2026 | DE13: 2026 | DF13: 2026 | DG13: 2026 | DH13: 2026 | DI13: 2026 | DJ13: 2026 | DK13: 2026 | DL13: 2026 | DM13: 2026 | DN13: 2026 | DO13: 2027 | DP13: 2027 | DQ13: 2027 | DR13: 2027 | DS13: 2027 | DT13: 2027 | DU13: 2027 | DV13: 2027 | DW13: 2027 | DX13: 2027 | DY13: 2027 | DZ13: 2027 | EA13: 2028 | EB13: 2028 | EC13: 2028 | ED13: 2028 | EE13: 2028 | EF13: 2028 | EG13: 2028 | EH13: 2028 | EI13: 2028 | EJ13: 2028 | EK13: 2028 | EL13: 2028 | EM13: 2029 | EN13: 2029 | EO13: 2029 | EP13: 2029 | EQ13: 2029 | ER13: 2029 | ES13: 2029 | ET13: 2029 | EU13: 2029 | EV13: 2029 | EW13: 2029 | EX13: 2029 | EY13: 2030 | EZ13: 2030 | FA13: 2030 | FB13: 2030 | FC13: 2030 | FD13: 2030 | FE13: 2030 | FF13: 2030 | FG13: 2030 | FH13: 2030 | FI13: 2030 | FJ13: 2030 | FK13: 2031 | FL13: 2031 | FM13: 2031 | FN13: 2031 | FO13: 2031 | FP13: 2031 | FQ13: 2031 | FR13: 2031 | FS13: 2031 | FT13: 2031 | FU13: 2031 | FV13: 2031 | FW13: 2032 | FX13: 2032 | FY13: 2032 | FZ13: 2032 | GA13: 2032 | GB13: 2032 | GC13: 2032 | GD13: 2032 | GE13: 2032 | GF13: 2032 | GG13: 2032 | GH13: 2032 | GI13: 2033 | GJ13: 2033 | GK13: 2033 | GL13: 2033 | GM13: 2033 | GN13: 2033 | GO13: 2033 | GP13: 2033 | GQ13: 2033 | GR13: 2033 | GS13: 2033 | GT13: 2033 | GU13: 2034 | GV13: 2034 | GW13: 2034 | GX13: 2034 | GY13: 2034 | GZ13: 2034 | HA13: 2034 | HB13: 2034 | HC13: 2034 | HD13: 2034 | HE13: 2034 | HF13: 2034 | HG13: 2035 | HH13: 2035 | HI13: 2035 | HJ13: 2035 | HK13: 2035 | HL13: 2035 | HM13: 2035 | HN13: 2035 | HO13: 2035 | HP13: 2035 | HQ13: 2035 | HR13: 2035 | HS13: 2036 | HT13: 2036 | HU13: 2036 | HV13: 2036 | HW13: 2036 | HX13: 2036 | HY13: 2036 | HZ13: 2036 | IA13: 2036 | IB13: 2036 | IC13: 2036 | ID13: 2036 | IE13: 2037 | IF13: 2037 | IG13: 2037 | IH13: 2037 | II13: 2037 | IJ13: 2037 | IK13: 2037 | IL13: 2037 | IM13: 2037 | IN13: 2037 | IO13: 2037 | IP13: 2037 | IQ13: 2038 | IR13: 2038 | IS13: 2038 | IT13: 2038 | IU13: 2038 | IV13: 2038 | IW13: 2038 | IX13: 2038 | IY13: 2038 | IZ13: 2038 | JA13: 2038 | JB13: 2038 | JC13: 2039 | JD13: 2039 | JE13: 2039 | JF13: 2039 | JG13: 2039 | JH13: 2039 | JI13: 2039 | JJ13: 2039 | JK13: 2039 | JL13: 2039 | JM13: 2039 | JN13: 2039 | JO13: 2040 | JP13: 2040 | JQ13: 2040 | JR13: 2040 | JS13: 2040 | JT13: 2040 | JU13: 2040 | JV13: 2040 | JW13: 2040 | JX13: 2040 | JY13: 2040 | JZ13: 2040 | KA13: 2041 | KB13: 2041 | KC13: 2041 | KD13: 2041 | KE13: 2041 | KF13: 2041 | KG13: 2041 | KH13: 2041 | KI13: 2041 | KJ13: 2041 | KK13: 2041 | KL13: 2041 | KM13: 2042 | KN13: 2042 | KO13: 2042 | KP13: 2042 | KQ13: 2042 | KR13: 2042 | KS13: 2042 | KT13: 2042 | KU13: 2042 | KV13: 2042 | KW13: 2042 | KX13: 2042 | KY13: 2043 | KZ13: 2043 | LA13: 2043 | LB13: 2043 | LC13: 2043 | LD13: 2043 | LE13: 2043 | LF13: 2043 | LG13: 2043 | LH13: 2043 | LI13: 2043 | LJ13: 2043 | LK13: 2044 | LL13: 2044 | LM13: 2044 | LN13: 2044 | LO13: 2044 | LP13: 2044 | LQ13: 2044 | LR13: 2044 | LS13: 2044 | LT13: 2044 | LU13: 2044 | LV13: 2044 | LW13: 2045 | LX13: 2045 | LY13: 2045 | LZ13: 2045 | MA13: 2045 | MB13: 2045 | MC13: 2045 | MD13: 2045 | ME13: 2045 | MF13: 2045 | MG13: 2045 | MH13: 2045 | MI13: 2046 | MJ13: 2046 | MK13: 2046 | ML13: 2046 | MM13: 2046 | MN13: 2046 | MO13: 2046 | MP13: 2046 | MQ13: 2046 | MR13: 2046 | MS13: 2046 | MT13: 2046 | MU13: 2047 | MV13: 2047 | MW13: 2047 | MX13: 2047 | MY13: 2047 | MZ13: 2047 | NA13: 2047 | NB13: 2047 | NC13: 2047 | ND13: 2047 | NE13: 2047 | NF13: 2047 | NG13: 2048 | NH13: 2048 | NI13: 2048 | NJ13: 2048 | NK13: 2048 | NL13: 2048 | NM13: 2048 | NN13: 2048 | NO13: 2048 | NP13: 2048 | NQ13: 2048 | NR13: 2048 | NS13: 2049 | NT13: 2049 | NU13: 2049 | NV13: 2049 | NW13: 2049 | NX13: 2049 | NY13: 2049 | NZ13: 2049 | OA13: 2049 | OB13: 2049 | OC13: 2049 | OD13: 2049 | OE13: 2050 | OF13: 2050 | OG13: 2050 | OH13: 2050 | OI13: 2050 | OJ13: 2050 | OK13: 2050 | OL13: 2050 | OM13: 2050 | ON13: 2050 | OO13: 2050 | OP13: 2050 | OQ13: 2051 | OR13: 2051 | OS13: 2051 | OT13: 2051 | OU13: 2051 | OV13: 2051 | OW13: 2051 | OX13: 2051 | OY13: 2051 | OZ13: 2051 | PA13: 2051 | PB13: 2051 | PC13: 2052 | PD13: 2052 | PE13: 2052 | PF13: 2052 | PG13: 2052 | PH13: 2052 | PI13: 2052 | PJ13: 2052 | PK13: 2052 | PL13: 2052 | PM13: 2052 | PN13: 2052 | PO13: 2053 | PP13: 2053 | PQ13: 2053 | PR13: 2053 | PS13: 2053 | PT13: 2053 | PU13: 2053 | PV13: 2053 | PW13: 2053 | PX13: 2053 | PY13: 2053 | PZ13: 2053 | QA13: 2054 | QB13: 2054 | QC13: 2054 | QD13: 2054 | QE13: 2054 | QF13: 2054 | QG13: 2054 | QH13: 2054 | QI13: 2054 | QJ13: 2054 | QK13: 2054 | QL13: 2054 | QM13: 2055 | QN13: 2055 | QO13: 2055 | QP13: 2055 | QQ13: 2055 | QR13: 2055 | QS13: 2055 | QT13: 2055 | QU13: 2055 | QV13: 2055 | QW13: 2055 | QX13: 2055 | QY13: 2056 | QZ13: 2056 | RA13: 2056 | RB13: 2056 | RC13: 2056 | RD13: 2056 | RE13: 2056 | RF13: 2056 | RG13: 2056 | RH13: 2056 | RI13: 2056 | RJ13: 2056 | RK13: 2057 | RL13: 2057 | RM13: 2057 | RN13: 2057 | RO13: 2057 | RP13: 2057 | RQ13: 2057 | RR13: 2057 | RS13: 2057 | RT13: 2057 | RU13: 2057 | RV13: 2057 | RW13: 2058 | RX13: 2058 | RY13: 2058 | RZ13: 2058 | SA13: 2058 | SB13: 2058 | SC13: 2058 | SD13: 2058 | SE13: 2058 | SF13: 2058 | SG13: 2058 | SH13: 2058 | SI13: 2059 | SJ13: 2059 | SK13: 2059 | SL13: 2059 | SM13: 2059 | SN13: 2059 | SO13: 2059 | SP13: 2059 | SQ13: 2059 | SR13: 2059 | SS13: 2059 | ST13: 2059 | SU13: 2060 | SV13: 2060 | SW13: 2060 | SX13: 2060 | SY13: 2060 | SZ13: 2060 | TA13: 2060 | TB13: 2060 | TC13: 2060 | TD13: 2060 | TE13: 2060 | TF13: 2060 | TG13: 2061 | TH13: 2061 | TI13: 2061 | TJ13: 2061 | TK13: 2061 | TL13: 2061 | TM13: 2061 | TN13: 2061 | TO13: 2061 | TP13: 2061 | TQ13: 2061 | TR13: 2061 | TS13: 2062 | TT13: 2062 | TU13: 2062 | TV13: 2062 | TW13: 2062 | TX13: 2062 | TY13: 2062 | TZ13: 2062 | UA13: 2062 | UB13: 2062 | UC13: 2062 | UD13: 2062 | UE13: 2063 | UF13: 2063 | UG13: 2063 | UH13: 2063 | UI13: 2063 | UJ13: 2063 | UK13: 2063 | UL13: 2063 | UM13: 2063 | UN13: 2063 | UO13: 2063 | UP13: 2063 | UQ13: 2064 | UR13: 2064 | US13: 2064 | UT13: 2064 | UU13: 2064 | UV13: 2064 | UW13: 2064 | UX13: 2064 | UY13: 2064 | UZ13: 2064 | VA13: 2064 | VB13: 2064 | VC13: 2065 | VD13: 2065 | VE13: 2065 | VF13: 2065 | VG13: 2065 | VH13: 2065 | VI13: 2065 | VJ13: 2065 | VK13: 2065 | VL13: 2065 | VM13: 2065 | VN13: 2065 | VO13: 2066 | VP13: 2066 | VQ13: 2066 | VR13: 2066 | VS13: 2066 | VT13: 2066 | VU13: 2066 | VV13: 2066 | VW13: 2066 | VX13: 2066 | VY13: 2066 | VZ13: 2066 | WA13: 2067 | WB13: 2067 | WC13: 2067 | WD13: 2067 | WE13: 2067 | WF13: 2067 | WG13: 2067 | WH13: 2067 | WI13: 2067 | WJ13: 2067 | WK13: 2067 | WL13: 2067 | WM13: 2068 | WN13: 2068 | WO13: 2068 | WP13: 2068 | WQ13: 2068 | WR13: 2068 | WS13: 2068 | WT13: 2068 | WU13: 2068 | WV13: 2068 | WW13: 2068 | WX13: 2068 | WY13: 2069 | WZ13: 2069 | XA13: 2069 | XB13: 2069 | XC13: 2069 | XD13: 2069 | XE13: 2069 | XF13: 2069 | XG13: 2069 | XH13: 2069 | XI13: 2069 | XJ13: 2069 | XK13: 2070 | XL13: 2070 | XM13: 2070 | XN13: 2070 | XO13: 2070 | XP13: 2070 | XQ13: 2070 | XR13: 2070 | XS13: 2070 | XT13: 2070 | XU13: 2070 | XV13: 2070 | XW13: 2071 | XX13: 2071 | XY13: 2071 | XZ13: 2071 | YA13: 2071 | YB13: 2071 | YC13: 2071 | YD13: 2071 | YE13: 2071 | YF13: 2071 | YG13: 2071 | YH13: 2071 | YI13: 2072 | YJ13: 2072 | YK13: 2072 | YL13: 2072 | YM13: 2072 | YN13: 2072 | YO13: 2072 | YP13: 2072 | YQ13: 2072 | YR13: 2072 | YS13: 2072 | YT13: 2072 | YU13: 2073 | YV13: 2073 | YW13: 2073 | YX13: 2073 | YY13: 2073 | YZ13: 2073 | ZA13: 2073 | ZB13: 2073 | ZC13: 2073 | ZD13: 2073 | ZE13: 2073 | ZF13: 2073 | ZG13: 2074 | ZH13: 2074 | ZI13: 2074 | ZJ13: 2074 | ZK13: 2074 | ZL13: 2074 | ZM13: 2074 | ZN13: 2074 | ZO13: 2074 | ZP13: 2074 | ZQ13: 2074 | ZR13: 2074 | ZS13: 2075 | ZT13: 2075 | ZU13: 2075 | ZV13: 2075 | ZW13: 2075 | ZX13: 2075 | ZY13: 2075 | ZZ13: 2075 | AAA13: 2075 | AAB13: 2075 | AAC13: 2075 | AAD13: 2075 | AAE13: 2076 | AAF13: 2076 | AAG13: 2076 | AAH13: 2076 | AAI13: 2076 | AAJ13: 2076 | AAK13: 2076 | AAL13: 2076 | AAM13: 2076 | AAN13: 2076 | AAO13: 2076 | AAP13: 2076 | AAQ13: 2077 | AAR13: 2077 | AAS13: 2077 | AAT13: 2077 | AAU13: 2077 | AAV13: 2077 | AAW13: 2077 | AAX13: 2077 | AAY13: 2077 | AAZ13: 2077 | ABA13: 2077 | ABB13: 2077 | ABC13: 2078 | ABD13: 2078 | ABE13: 2078 | ABF13: 2078 | ABG13: 2078 | ABH13: 2078 | ABI13: 2078 | ABJ13: 2078 | ABK13: 2078 | ABL13: 2078 | ABM13: 2078 | ABN13: 2078 | ABO13: 2079 | ABP13: 2079 | ABQ13: 2079 | ABR13: 2079 | ABS13: 2079 | ABT13: 2079 | ABU13: 2079 | ABV13: 2079 | ABW13: 2079 | ABX13: 2079 | ABY13: 2079 | ABZ13: 2079 | ACA13: 2080 | ACB13: 2080 | ACC13: 2080 | ACD13: 2080 | ACE13: 2080 | ACF13: 2080 | ACG13: 2080 | ACH13: 2080 | ACI13: 2080 | ACJ13: 2080 | ACK13: 2080 | ACL13: 2080 | ACM13: 2081 | ACN13: 2081 | ACO13: 2081 | ACP13: 2081 | ACQ13: 2081 | ACR13: 2081 | ACS13: 2081 | ACT13: 2081 | ACU13: 2081 | ACV13: 2081 | ACW13: 2081 | ACX13: 2081 | ACY13: 2082 | ACZ13: 2082 | ADA13: 2082 | ADB13: 2082 | ADC13: 2082 | ADD13: 2082 | ADE13: 2082 | ADF13: 2082 | ADG13: 2082 | ADH13: 2082 | ADI13: 2082 | ADJ13: 2082 | ADK13: 2083 | ADL13: 2083 | ADM13: 2083 | ADN13: 2083 | ADO13: 2083 | ADP13: 2083 | ADQ13: 2083 | ADR13: 2083 | ADS13: 2083 | ADT13: 2083 | ADU13: 2083 | ADV13: 2083 | ADW13: 2084 | ADX13: 2084 | ADY13: 2084 | ADZ13: 2084 | AEA13: 2084 | AEB13: 2084 | AEC13: 2084 | AED13: 2084 | AEE13: 2084 | AEF13: 2084 | AEG13: 2084 | AEH13: 2084 | AEI13: 2085 | AEJ13: 2085 | AEK13: 2085 | AEL13: 2085 | AEM13: 2085 | AEN13: 2085 | AEO13: 2085 | AEP13: 2085 | AEQ13: 2085 | AER13: 2085 | AES13: 2085 | AET13: 2085 | AEU13: 2086 | AEV13: 2086 | AEW13: 2086 | AEX13: 2086 | AEY13: 2086 | AEZ13: 2086 | AFA13: 2086 | AFB13: 2086 | AFC13: 2086 | AFD13: 2086 | AFE13: 2086 | AFF13: 2086 | AFG13: 2087 | AFH13: 2087 | AFI13: 2087 | AFJ13: 2087 | AFK13: 2087 | AFL13: 2087 | AFM13: 2087 | AFN13: 2087 | AFO13: 2087 | AFP13: 2087 | AFQ13: 2087 | AFR13: 2087 | AFS13: 2088 | AFT13: 2088 | AFU13: 2088 | AFV13: 2088 | AFW13: 2088 | AFX13: 2088 | AFY13: 2088 | AFZ13: 2088 | AGA13: 2088 | AGB13: 2088 | AGC13: 2088 | AGD13: 2088 | AGE13: 2089 | AGF13: 2089 | AGG13: 2089 | AGH13: 2089 | AGI13: 2089 | AGJ13: 2089 | AGK13: 2089 | AGL13: 2089 | AGM13: 2089 | AGN13: 2089 | AGO13: 2089 | AGP13: 2089 | AGQ13: 2090 | AGR13: 2090 | AGS13: 2090 | AGT13: 2090 | AGU13: 2090 | AGV13: 2090 | AGW13: 2090 | AGX13: 2090 | AGY13: 2090 | AGZ13: 2090 | AHA13: 2090 | AHB13: 2090 | AHC13: 2091 | AHD13: 2091 | AHE13: 2091 | AHF13: 2091 | AHG13: 2091 | AHH13: 2091 | AHI13: 2091 | AHJ13: 2091 | AHK13: 2091 | AHL13: 2091 | AHM13: 2091 | AHN13: 2091 | AHO13: 2092 | AHP13: 2092 | AHQ13: 2092 | AHR13: 2092 | AHS13: 2092 | AHT13: 2092 | AHU13: 2092 | AHV13: 2092 | AHW13: 2092 | AHX13: 2092 | AHY13: 2092 | AHZ13: 2092 | AIA13: 2093 | AIB13: 2093 | AIC13: 2093 | AID13: 2093 | AIE13: 2093 | AIF13: 2093 | AIG13: 2093 | AIH13: 2093 | AII13: 2093 | AIJ13: 2093 | AIK13: 2093 | AIL13: 2093 | AIM13: 2094 | AIN13: 2094 | AIO13: 2094 | AIP13: 2094 | AIQ13: 2094 | AIR13: 2094 | AIS13: 2094 | AIT13: 2094 | AIU13: 2094 | AIV13: 2094 | AIW13: 2094 | AIX13: 2094 | AIY13: 2095 | AIZ13: 2095 | AJA13: 2095 | AJB13: 2095 | AJC13: 2095 | AJD13: 2095 | AJE13: 2095 | AJF13: 2095 | AJG13: 2095 | AJH13: 2095 | AJI13: 2095 | AJJ13: 2095 | AJK13: 2096 | AJL13: 2096 | AJM13: 2096 | AJN13: 2096 | AJO13: 2096 | AJP13: 2096 | AJQ13: 2096 | AJR13: 2096 | AJS13: 2096 | AJT13: 2096 | AJU13: 2096 | AJV13: 2096
I14: Month: | J14: 2017-12-01 | K14: 2018-01-01 | L14: 2018-02-01 | M14: 2018-03-01 | N14: 2018-04-01 | O14: 2018-05-01 | P14: 2018-06-01 | Q14: 2018-07-01 | R14: 2018-08-01 | S14: 2018-09-01 | T14: 2018-10-01 | U14: 2018-11-01 | V14: 2018-12-01 | W14: 2019-01-01 | X14: 2019-02-01 | Y14: 2019-03-01 | Z14: 2019-04-01 | AA14: 2019-05-01 | AB14: 2019-06-01 | AC14: 2019-07-01 | AD14: 2019-08-01 | AE14: 2019-09-01 | AF14: 2019-10-01 | AG14: 2019-11-01 | AH14: 2019-12-01 | AI14: 2020-01-01 | AJ14: 2020-02-01 | AK14: 2020-03-01 | AL14: 2020-04-01 | AM14: 2020-05-01 | AN14: 2020-06-01 | AO14: 2020-07-01 | AP14: 2020-08-01 | AQ14: 2020-09-01 | AR14: 2020-10-01 | AS14: 2020-11-01 | AT14: 2020-12-01 | AU14: 2021-01-01 | AV14: 2021-02-01 | AW14: 2021-03-01 | AX14: 2021-04-01 | AY14: 2021-05-01 | AZ14: 2021-06-01 | BA14: 2021-07-01 | BB14: 2021-08-01 | BC14: 2021-09-01 | BD14: 2021-10-01 | BE14: 2021-11-01 | BF14: 2021-12-01 | BG14: 2022-01-01 | BH14: 2022-02-01 | BI14: 2022-03-01 | BJ14: 2022-04-01 | BK14: 2022-05-01 | BL14: 2022-06-01 | BM14: 2022-07-01 | BN14: 2022-08-01 | BO14: 2022-09-01 | BP14: 2022-10-01 | BQ14: 2022-11-01 | BR14: 2022-12-01 | BS14: 2023-01-01 | BT14: 2023-02-01 | BU14: 2023-03-01 | BV14: 2023-04-01 | BW14: 2023-05-01 | BX14: 2023-06-01 | BY14: 2023-07-01 | BZ14: 2023-08-01 | CA14: 2023-09-01 | CB14: 2023-10-01 | CC14: 2023-11-01 | CD14: 2023-12-01 | CE14: 2024-01-01 | CF14: 2024-02-01 | CG14: 2024-03-01 | CH14: 2024-04-01 | CI14: 2024-05-01 | CJ14: 2024-06-01 | CK14: 2024-07-01 | CL14: 2024-08-01 | CM14: 2024-09-01 | CN14: 2024-10-01 | CO14: 2024-11-01 | CP14: 2024-12-01 | CQ14: 2025-01-01 | CR14: 2025-02-01 | CS14: 2025-03-01 | CT14: 2025-04-01 | CU14: 2025-05-01 | CV14: 2025-06-01 | CW14: 2025-07-01 | CX14: 2025-08-01 | CY14: 2025-09-01 | CZ14: 2025-10-01 | DA14: 2025-11-01 | DB14: 2025-12-01 | DC14: 2026-01-01 | DD14: 2026-02-01 | DE14: 2026-03-01 | DF14: 2026-04-01 | DG14: 2026-05-01 | DH14: 2026-06-01 | DI14: 2026-07-01 | DJ14: 2026-08-01 | DK14: 2026-09-01 | DL14: 2026-10-01 | DM14: 2026-11-01 | DN14: 2026-12-01 | DO14: 2027-01-01 | DP14: 2027-02-01 | DQ14: 2027-03-01 | DR14: 2027-04-01 | DS14: 2027-05-01 | DT14: 2027-06-01 | DU14: 2027-07-01 | DV14: 2027-08-01 | DW14: 2027-09-01 | DX14: 2027-10-01 | DY14: 2027-11-01 | DZ14: 2027-12-01 | EA14: 2028-01-01 | EB14: 2028-02-01 | EC14: 2028-03-01 | ED14: 2028-04-01 | EE14: 2028-05-01 | EF14: 2028-06-01 | EG14: 2028-07-01 | EH14: 2028-08-01 | EI14: 2028-09-01 | EJ14: 2028-10-01 | EK14: 2028-11-01 | EL14: 2028-12-01 | EM14: 2029-01-01 | EN14: 2029-02-01 | EO14: 2029-03-01 | EP14: 2029-04-01 | EQ14: 2029-05-01 | ER14: 2029-06-01 | ES14: 2029-07-01 | ET14: 2029-08-01 | EU14: 2029-09-01 | EV14: 2029-10-01 | EW14: 2029-11-01 | EX14: 2029-12-01 | EY14: 2030-01-01 | EZ14: 2030-02-01 | FA14: 2030-03-01 | FB14: 2030-04-01 | FC14: 2030-05-01 | FD14: 2030-06-01 | FE14: 2030-07-01 | FF14: 2030-08-01 | FG14: 2030-09-01 | FH14: 2030-10-01 | FI14: 2030-11-01 | FJ14: 2030-12-01 | FK14: 2031-01-01 | FL14: 2031-02-01 | FM14: 2031-03-01 | FN14: 2031-04-01 | FO14: 2031-05-01 | FP14: 2031-06-01 | FQ14: 2031-07-01 | FR14: 2031-08-01 | FS14: 2031-09-01 | FT14: 2031-10-01 | FU14: 2031-11-01 | FV14: 2031-12-01 | FW14: 2032-01-01 | FX14: 2032-02-01 | FY14: 2032-03-01 | FZ14: 2032-04-01 | GA14: 2032-05-01 | GB14: 2032-06-01 | GC14: 2032-07-01 | GD14: 2032-08-01 | GE14: 2032-09-01 | GF14: 2032-10-01 | GG14: 2032-11-01 | GH14: 2032-12-01 | GI14: 2033-01-01 | GJ14: 2033-02-01 | GK14: 2033-03-01 | GL14: 2033-04-01 | GM14: 2033-05-01 | GN14: 2033-06-01 | GO14: 2033-07-01 | GP14: 2033-08-01 | GQ14: 2033-09-01 | GR14: 2033-10-01 | GS14: 2033-11-01 | GT14: 2033-12-01 | GU14: 2034-01-01 | GV14: 2034-02-01 | GW14: 2034-03-01 | GX14: 2034-04-01 | GY14: 2034-05-01 | GZ14: 2034-06-01 | HA14: 2034-07-01 | HB14: 2034-08-01 | HC14: 2034-09-01 | HD14: 2034-10-01 | HE14: 2034-11-01 | HF14: 2034-12-01 | HG14: 2035-01-01 | HH14: 2035-02-01 | HI14: 2035-03-01 | HJ14: 2035-04-01 | HK14: 2035-05-01 | HL14: 2035-06-01 | HM14: 2035-07-01 | HN14: 2035-08-01 | HO14: 2035-09-01 | HP14: 2035-10-01 | HQ14: 2035-11-01 | HR14: 2035-12-01 | HS14: 2036-01-01 | HT14: 2036-02-01 | HU14: 2036-03-01 | HV14: 2036-04-01 | HW14: 2036-05-01 | HX14: 2036-06-01 | HY14: 2036-07-01 | HZ14: 2036-08-01 | IA14: 2036-09-01 | IB14: 2036-10-01 | IC14: 2036-11-01 | ID14: 2036-12-01 | IE14: 2037-01-01 | IF14: 2037-02-01 | IG14: 2037-03-01 | IH14: 2037-04-01 | II14: 2037-05-01 | IJ14: 2037-06-01 | IK14: 2037-07-01 | IL14: 2037-08-01 | IM14: 2037-09-01 | IN14: 2037-10-01 | IO14: 2037-11-01 | IP14: 2037-12-01 | IQ14: 2038-01-01 | IR14: 2038-02-01 | IS14: 2038-03-01 | IT14: 2038-04-01 | IU14: 2038-05-01 | IV14: 2038-06-01 | IW14: 2038-07-01 | IX14: 2038-08-01 | IY14: 2038-09-01 | IZ14: 2038-10-01 | JA14: 2038-11-01 | JB14: 2038-12-01 | JC14: 2039-01-01 | JD14: 2039-02-01 | JE14: 2039-03-01 | JF14: 2039-04-01 | JG14: 2039-05-01 | JH14: 2039-06-01 | JI14: 2039-07-01 | JJ14: 2039-08-01 | JK14: 2039-09-01 | JL14: 2039-10-01 | JM14: 2039-11-01 | JN14: 2039-12-01 | JO14: 2040-01-01 | JP14: 2040-02-01 | JQ14: 2040-03-01 | JR14: 2040-04-01 | JS14: 2040-05-01 | JT14: 2040-06-01 | JU14: 2040-07-01 | JV14: 2040-08-01 | JW14: 2040-09-01 | JX14: 2040-10-01 | JY14: 2040-11-01 | JZ14: 2040-12-01 | KA14: 2041-01-01 | KB14: 2041-02-01 | KC14: 2041-03-01 | KD14: 2041-04-01 | KE14: 2041-05-01 | KF14: 2041-06-01 | KG14: 2041-07-01 | KH14: 2041-08-01 | KI14: 2041-09-01 | KJ14: 2041-10-01 | KK14: 2041-11-01 | KL14: 2041-12-01 | KM14: 2042-01-01 | KN14: 2042-02-01 | KO14: 2042-03-01 | KP14: 2042-04-01 | KQ14: 2042-05-01 | KR14: 2042-06-01 | KS14: 2042-07-01 | KT14: 2042-08-01 | KU14: 2042-09-01 | KV14: 2042-10-01 | KW14: 2042-11-01 | KX14: 2042-12-01 | KY14: 2043-01-01 | KZ14: 2043-02-01 | LA14: 2043-03-01 | LB14: 2043-04-01 | LC14: 2043-05-01 | LD14: 2043-06-01 | LE14: 2043-07-01 | LF14: 2043-08-01 | LG14: 2043-09-01 | LH14: 2043-10-01 | LI14: 2043-11-01 | LJ14: 2043-12-01 | LK14: 2044-01-01 | LL14: 2044-02-01 | LM14: 2044-03-01 | LN14: 2044-04-01 | LO14: 2044-05-01 | LP14: 2044-06-01 | LQ14: 2044-07-01 | LR14: 2044-08-01 | LS14: 2044-09-01 | LT14: 2044-10-01 | LU14: 2044-11-01 | LV14: 2044-12-01 | LW14: 2045-01-01 | LX14: 2045-02-01 | LY14: 2045-03-01 | LZ14: 2045-04-01 | MA14: 2045-05-01 | MB14: 2045-06-01 | MC14: 2045-07-01 | MD14: 2045-08-01 | ME14: 2045-09-01 | MF14: 2045-10-01 | MG14: 2045-11-01 | MH14: 2045-12-01 | MI14: 2046-01-01 | MJ14: 2046-02-01 | MK14: 2046-03-01 | ML14: 2046-04-01 | MM14: 2046-05-01 | MN14: 2046-06-01 | MO14: 2046-07-01 | MP14: 2046-08-01 | MQ14: 2046-09-01 | MR14: 2046-10-01 | MS14: 2046-11-01 | MT14: 2046-12-01 | MU14: 2047-01-01 | MV14: 2047-02-01 | MW14: 2047-03-01 | MX14: 2047-04-01 | MY14: 2047-05-01 | MZ14: 2047-06-01 | NA14: 2047-07-01 | NB14: 2047-08-01 | NC14: 2047-09-01 | ND14: 2047-10-01 | NE14: 2047-11-01 | NF14: 2047-12-01 | NG14: 2048-01-01 | NH14: 2048-02-01 | NI14: 2048-03-01 | NJ14: 2048-04-01 | NK14: 2048-05-01 | NL14: 2048-06-01 | NM14: 2048-07-01 | NN14: 2048-08-01 | NO14: 2048-09-01 | NP14: 2048-10-01 | NQ14: 2048-11-01 | NR14: 2048-12-01 | NS14: 2049-01-01 | NT14: 2049-02-01 | NU14: 2049-03-01 | NV14: 2049-04-01 | NW14: 2049-05-01 | NX14: 2049-06-01 | NY14: 2049-07-01 | NZ14: 2049-08-01 | OA14: 2049-09-01 | OB14: 2049-10-01 | OC14: 2049-11-01 | OD14: 2049-12-01 | OE14: 2050-01-01 | OF14: 2050-02-01 | OG14: 2050-03-01 | OH14: 2050-04-01 | OI14: 2050-05-01 | OJ14: 2050-06-01 | OK14: 2050-07-01 | OL14: 2050-08-01 | OM14: 2050-09-01 | ON14: 2050-10-01 | OO14: 2050-11-01 | OP14: 2050-12-01 | OQ14: 2051-01-01 | OR14: 2051-02-01 | OS14: 2051-03-01 | OT14: 2051-04-01 | OU14: 2051-05-01 | OV14: 2051-06-01 | OW14: 2051-07-01 | OX14: 2051-08-01 | OY14: 2051-09-01 | OZ14: 2051-10-01 | PA14: 2051-11-01 | PB14: 2051-12-01 | PC14: 2052-01-01 | PD14: 2052-02-01 | PE14: 2052-03-01 | PF14: 2052-04-01 | PG14: 2052-05-01 | PH14: 2052-06-01 | PI14: 2052-07-01 | PJ14: 2052-08-01 | PK14: 2052-09-01 | PL14: 2052-10-01 | PM14: 2052-11-01 | PN14: 2052-12-01 | PO14: 2053-01-01 | PP14: 2053-02-01 | PQ14: 2053-03-01 | PR14: 2053-04-01 | PS14: 2053-05-01 | PT14: 2053-06-01 | PU14: 2053-07-01 | PV14: 2053-08-01 | PW14: 2053-09-01 | PX14: 2053-10-01 | PY14: 2053-11-01 | PZ14: 2053-12-01 | QA14: 2054-01-01 | QB14: 2054-02-01 | QC14: 2054-03-01 | QD14: 2054-04-01 | QE14: 2054-05-01 | QF14: 2054-06-01 | QG14: 2054-07-01 | QH14: 2054-08-01 | QI14: 2054-09-01 | QJ14: 2054-10-01 | QK14: 2054-11-01 | QL14: 2054-12-01 | QM14: 2055-01-01 | QN14: 2055-02-01 | QO14: 2055-03-01 | QP14: 2055-04-01 | QQ14: 2055-05-01 | QR14: 2055-06-01 | QS14: 2055-07-01 | QT14: 2055-08-01 | QU14: 2055-09-01 | QV14: 2055-10-01 | QW14: 2055-11-01 | QX14: 2055-12-01 | QY14: 2056-01-01 | QZ14: 2056-02-01 | RA14: 2056-03-01 | RB14: 2056-04-01 | RC14: 2056-05-01 | RD14: 2056-06-01 | RE14: 2056-07-01 | RF14: 2056-08-01 | RG14: 2056-09-01 | RH14: 2056-10-01 | RI14: 2056-11-01 | RJ14: 2056-12-01 | RK14: 2057-01-01 | RL14: 2057-02-01 | RM14: 2057-03-01 | RN14: 2057-04-01 | RO14: 2057-05-01 | RP14: 2057-06-01 | RQ14: 2057-07-01 | RR14: 2057-08-01 | RS14: 2057-09-01 | RT14: 2057-10-01 | RU14: 2057-11-01 | RV14: 2057-12-01 | RW14: 2058-01-01 | RX14: 2058-02-01 | RY14: 2058-03-01 | RZ14: 2058-04-01 | SA14: 2058-05-01 | SB14: 2058-06-01 | SC14: 2058-07-01 | SD14: 2058-08-01 | SE14: 2058-09-01 | SF14: 2058-10-01 | SG14: 2058-11-01 | SH14: 2058-12-01 | SI14: 2059-01-01 | SJ14: 2059-02-01 | SK14: 2059-03-01 | SL14: 2059-04-01 | SM14: 2059-05-01 | SN14: 2059-06-01 | SO14: 2059-07-01 | SP14: 2059-08-01 | SQ14: 2059-09-01 | SR14: 2059-10-01 | SS14: 2059-11-01 | ST14: 2059-12-01 | SU14: 2060-01-01 | SV14: 2060-02-01 | SW14: 2060-03-01 | SX14: 2060-04-01 | SY14: 2060-05-01 | SZ14: 2060-06-01 | TA14: 2060-07-01 | TB14: 2060-08-01 | TC14: 2060-09-01 | TD14: 2060-10-01 | TE14: 2060-11-01 | TF14: 2060-12-01 | TG14: 2061-01-01 | TH14: 2061-02-01 | TI14: 2061-03-01 | TJ14: 2061-04-01 | TK14: 2061-05-01 | TL14: 2061-06-01 | TM14: 2061-07-01 | TN14: 2061-08-01 | TO14: 2061-09-01 | TP14: 2061-10-01 | TQ14: 2061-11-01 | TR14: 2061-12-01 | TS14: 2062-01-01 | TT14: 2062-02-01 | TU14: 2062-03-01 | TV14: 2062-04-01 | TW14: 2062-05-01 | TX14: 2062-06-01 | TY14: 2062-07-01 | TZ14: 2062-08-01 | UA14: 2062-09-01 | UB14: 2062-10-01 | UC14: 2062-11-01 | UD14: 2062-12-01 | UE14: 2063-01-01 | UF14: 2063-02-01 | UG14: 2063-03-01 | UH14: 2063-04-01 | UI14: 2063-05-01 | UJ14: 2063-06-01 | UK14: 2063-07-01 | UL14: 2063-08-01 | UM14: 2063-09-01 | UN14: 2063-10-01 | UO14: 2063-11-01 | UP14: 2063-12-01 | UQ14: 2064-01-01 | UR14: 2064-02-01 | US14: 2064-03-01 | UT14: 2064-04-01 | UU14: 2064-05-01 | UV14: 2064-06-01 | UW14: 2064-07-01 | UX14: 2064-08-01 | UY14: 2064-09-01 | UZ14: 2064-10-01 | VA14: 2064-11-01 | VB14: 2064-12-01 | VC14: 2065-01-01 | VD14: 2065-02-01 | VE14: 2065-03-01 | VF14: 2065-04-01 | VG14: 2065-05-01 | VH14: 2065-06-01 | VI14: 2065-07-01 | VJ14: 2065-08-01 | VK14: 2065-09-01 | VL14: 2065-10-01 | VM14: 2065-11-01 | VN14: 2065-12-01 | VO14: 2066-01-01 | VP14: 2066-02-01 | VQ14: 2066-03-01 | VR14: 2066-04-01 | VS14: 2066-05-01 | VT14: 2066-06-01 | VU14: 2066-07-01 | VV14: 2066-08-01 | VW14: 2066-09-01 | VX14: 2066-10-01 | VY14: 2066-11-01 | VZ14: 2066-12-01 | WA14: 2067-01-01 | WB14: 2067-02-01 | WC14: 2067-03-01 | WD14: 2067-04-01 | WE14: 2067-05-01 | WF14: 2067-06-01 | WG14: 2067-07-01 | WH14: 2067-08-01 | WI14: 2067-09-01 | WJ14: 2067-10-01 | WK14: 2067-11-01 | WL14: 2067-12-01 | WM14: 61363 | WN14: 61394 | WO14: 61423 | WP14: 61454 | WQ14: 61484 | WR14: 61515 | WS14: 61545 | WT14: 61576 | WU14: 61607 | WV14: 61637 | WW14: 61668 | WX14: 61698 | WY14: 61729 | WZ14: 61760 | XA14: 61788 | XB14: 61819 | XC14: 61849 | XD14: 61880 | XE14: 61910 | XF14: 61941 | XG14: 61972 | XH14: 62002 | XI14: 62033 | XJ14: 62063 | XK14: 62094 | XL14: 62125 | XM14: 62153 | XN14: 62184 | XO14: 62214 | XP14: 62245 | XQ14: 62275 | XR14: 62306 | XS14: 62337 | XT14: 62367 | XU14: 62398 | XV14: 62428 | XW14: 62459 | XX14: 62490 | XY14: 62518 | XZ14: 62549 | YA14: 62579 | YB14: 62610 | YC14: 62640 | YD14: 62671 | YE14: 62702 | YF14: 62732 | YG14: 62763 | YH14: 62793 | YI14: 62824 | YJ14: 62855 | YK14: 62884 | YL14: 62915 | YM14: 62945 | YN14: 62976 | YO14: 63006 | YP14: 63037 | YQ14: 63068 | YR14: 63098 | YS14: 63129 | YT14: 63159 | YU14: 63190 | YV14: 63221 | YW14: 63249 | YX14: 63280 | YY14: 63310 | YZ14: 63341 | ZA14: 63371 | ZB14: 63402 | ZC14: 63433 | ZD14: 63463 | ZE14: 63494 | ZF14: 63524 | ZG14: 63555 | ZH14: 63586 | ZI14: 63614 | ZJ14: 63645 | ZK14: 63675 | ZL14: 63706 | ZM14: 63736 | ZN14: 63767 | ZO14: 63798 | ZP14: 63828 | ZQ14: 63859 | ZR14: 63889 | ZS14: 63920 | ZT14: 63951 | ZU14: 63979 | ZV14: 64010 | ZW14: 64040 | ZX14: 64071 | ZY14: 64101 | ZZ14: 64132 | AAA14: 64163 | AAB14: 64193 | AAC14: 64224 | AAD14: 64254 | AAE14: 64285 | AAF14: 64316 | AAG14: 64345 | AAH14: 64376 | AAI14: 64406 | AAJ14: 64437 | AAK14: 64467 | AAL14: 64498 | AAM14: 64529 | AAN14: 64559 | AAO14: 64590 | AAP14: 64620 | AAQ14: 64651 | AAR14: 64682 | AAS14: 64710 | AAT14: 64741 | AAU14: 64771 | AAV14: 64802 | AAW14: 64832 | AAX14: 64863 | AAY14: 64894 | AAZ14: 64924 | ABA14: 64955 | ABB14: 64985 | ABC14: 65016 | ABD14: 65047 | ABE14: 65075 | ABF14: 65106 | ABG14: 65136 | ABH14: 65167 | ABI14: 65197 | ABJ14: 65228 | ABK14: 65259 | ABL14: 65289 | ABM14: 65320 | ABN14: 65350 | ABO14: 65381 | ABP14: 65412 | ABQ14: 65440 | ABR14: 65471 | ABS14: 65501 | ABT14: 65532 | ABU14: 65562 | ABV14: 65593 | ABW14: 65624 | ABX14: 65654 | ABY14: 65685 | ABZ14: 65715 | ACA14: 65746 | ACB14: 65777 | ACC14: 65806 | ACD14: 65837 | ACE14: 65867 | ACF14: 65898 | ACG14: 65928 | ACH14: 65959 | ACI14: 65990 | ACJ14: 66020 | ACK14: 66051 | ACL14: 66081 | ACM14: 66112 | ACN14: 66143 | ACO14: 66171 | ACP14: 66202 | ACQ14: 66232 | ACR14: 66263 | ACS14: 66293 | ACT14: 66324 | ACU14: 66355 | ACV14: 66385 | ACW14: 66416 | ACX14: 66446 | ACY14: 66477 | ACZ14: 66508 | ADA14: 66536 | ADB14: 66567 | ADC14: 66597 | ADD14: 66628 | ADE14: 66658 | ADF14: 66689 | ADG14: 66720 | ADH14: 66750 | ADI14: 66781 | ADJ14: 66811 | ADK14: 66842 | ADL14: 66873 | ADM14: 66901 | ADN14: 66932 | ADO14: 66962 | ADP14: 66993 | ADQ14: 67023 | ADR14: 67054 | ADS14: 67085 | ADT14: 67115 | ADU14: 67146 | ADV14: 67176 | ADW14: 67207 | ADX14: 67238 | ADY14: 67267 | ADZ14: 67298 | AEA14: 67328 | AEB14: 67359 | AEC14: 67389 | AED14: 67420 | AEE14: 67451 | AEF14: 67481 | AEG14: 67512 | AEH14: 67542 | AEI14: 67573 | AEJ14: 67604 | AEK14: 67632 | AEL14: 67663 | AEM14: 67693 | AEN14: 67724 | AEO14: 67754 | AEP14: 67785 | AEQ14: 67816 | AER14: 67846 | AES14: 67877 | AET14: 67907 | AEU14: 67938 | AEV14: 67969 | AEW14: 67997 | AEX14: 68028 | AEY14: 68058 | AEZ14: 68089 | AFA14: 68119 | AFB14: 68150 | AFC14: 68181 | AFD14: 68211 | AFE14: 68242 | AFF14: 68272 | AFG14: 68303 | AFH14: 68334 | AFI14: 68362 | AFJ14: 68393 | AFK14: 68423 | AFL14: 68454 | AFM14: 68484 | AFN14: 68515 | AFO14: 68546 | AFP14: 68576 | AFQ14: 68607 | AFR14: 68637 | AFS14: 68668 | AFT14: 68699 | AFU14: 68728 | AFV14: 68759 | AFW14: 68789 | AFX14: 68820 | AFY14: 68850 | AFZ14: 68881 | AGA14: 68912 | AGB14: 68942 | AGC14: 68973 | AGD14: 69003 | AGE14: 69034 | AGF14: 69065 | AGG14: 69093 | AGH14: 69124 | AGI14: 69154 | AGJ14: 69185 | AGK14: 69215 | AGL14: 69246 | AGM14: 69277 | AGN14: 69307 | AGO14: 69338 | AGP14: 69368 | AGQ14: 69399 | AGR14: 69430 | AGS14: 69458 | AGT14: 69489 | AGU14: 69519 | AGV14: 69550 | AGW14: 69580 | AGX14: 69611 | AGY14: 69642 | AGZ14: 69672 | AHA14: 69703 | AHB14: 69733 | AHC14: 69764 | AHD14: 69795 | AHE14: 69823 | AHF14: 69854 | AHG14: 69884 | AHH14: 69915 | AHI14: 69945 | AHJ14: 69976 | AHK14: 70007 | AHL14: 70037 | AHM14: 70068 | AHN14: 70098 | AHO14: 70129 | AHP14: 70160 | AHQ14: 70189 | AHR14: 70220 | AHS14: 70250 | AHT14: 70281 | AHU14: 70311 | AHV14: 70342 | AHW14: 70373 | AHX14: 70403 | AHY14: 70434 | AHZ14: 70464 | AIA14: 70495 | AIB14: 70526 | AIC14: 70554 | AID14: 70585 | AIE14: 70615 | AIF14: 70646 | AIG14: 70676 | AIH14: 70707 | AII14: 70738 | AIJ14: 70768 | AIK14: 70799 | AIL14: 70829 | AIM14: 70860 | AIN14: 70891 | AIO14: 70919 | AIP14: 70950 | AIQ14: 70980 | AIR14: 71011 | AIS14: 71041 | AIT14: 71072 | AIU14: 71103 | AIV14: 71133 | AIW14: 71164 | AIX14: 71194 | AIY14: 71225 | AIZ14: 71256 | AJA14: 71284 | AJB14: 71315 | AJC14: 71345 | AJD14: 71376 | AJE14: 71406 | AJF14: 71437 | AJG14: 71468 | AJH14: 71498 | AJI14: 71529 | AJJ14: 71559 | AJK14: 71590 | AJL14: 71621 | AJM14: 71650 | AJN14: 71681 | AJO14: 71711 | AJP14: 71742 | AJQ14: 71772 | AJR14: 71803 | AJS14: 71834 | AJT14: 71864 | AJU14: 71895 | AJV14: 71925
A15: Capital Inputs
B16: Non-Labor Expenses:
H17: Capital Non-Labor Direct (Annual): | I17: 56014961.49 | J17: 0 | K17: 0 | L17: 5219699.764 | M17: 10696713.13 | N17: 11031709.62 | O17: 11367347.07 | P17: 11711854.3 | Q17: 5987637.618 | R17: 0 | S17: 0 | T17: 0 | U17: 0 | V17: 0 | W17: 0 | X17: 0 | Y17: 0 | Z17: 0 | AA17: 0 | AB17: 0 | AC17: 0 | AD17: 0 | AE17: 0 | AF17: 0 | AG17: 0 | AH17: 0 | AI17: 0 | AJ17: 0 | AK17: 0 | AL17: 0 | AM17: 0 | AN17: 0 | AO17: 0 | AP17: 0 | AQ17: 0 | AR17: 0 | AS17: 0 | AT17: 0 | AU17: 0 | AV17: 0 | AW17: 0 | AX17: 0 | AY17: 0 | AZ17: 0 | BA17: 0 | BB17: 0 | BC17: 0 | BD17: 0 | BE17: 0 | BF17: 0 | BG17: 0 | BH17: 0 | BI17: 0 | BJ17: 0 | BK17: 0 | BL17: 0 | BM17: 0 | BN17: 0 | BO17: 0 | BP17: 0 | BQ17: 0 | BR17: 0 | BS17: 0 | BT17: 0 | BU17: 0 | BV17: 0 | BW17: 0 | BX17: 0 | BY17: 0 | BZ17: 0 | CA17: 0 | CB17: 0 | CC17: 0 | CD17: 0 | CE17: 0 | CF17: 0 | CG17: 0 | CH17: 0 | CI17: 0 | CJ17: 0 | CK17: 0
H18: Capital Non-Labor Direct (Monthly): | I18: 56014961.49 | J18: 0 | K18: 0 | L18: 0 | M18: 0 | N18: 0 | O18: 0 | P18: 0 | Q18: 0 | R18: 0 | S18: 0 | T18: 0 | U18: 0 | V18: 0 | W18: 0 | X18: 0 | Y18: 0 | Z18: 0 | AA18: 0 | AB18: 0 | AC18: 863828.9153 | AD18: 866268.1304 | AE18: 868714.2332 | AF18: 871167.2431 | AG18: 873627.1796 | AH18: 876094.0623 | AI18: 878567.9108 | AJ18: 880879.3112 | AK18: 883196.7925 | AL18: 885520.3709 | AM18: 887850.0623 | AN18: 890185.8828 | AO18: 892527.8485 | AP18: 894875.9757 | AQ18: 897230.2805 | AR18: 899590.7792 | AS18: 901957.488 | AT18: 904330.4234 | AU18: 906709.6016 | AV18: 908981.3457 | AW18: 911258.7816 | AX18: 913541.9236 | AY18: 915830.786 | AZ18: 918125.383 | BA18: 920425.7292 | BB18: 922731.8388 | BC18: 925043.7263 | BD18: 927361.4062 | BE18: 929684.893 | BF18: 932014.2013 | BG18: 934349.3456 | BH18: 936680.6785 | BI18: 939017.8284 | BJ18: 941360.8098 | BK18: 943709.6373 | BL18: 946064.3255 | BM18: 948424.8889 | BN18: 950791.3423 | BO18: 953163.7003 | BP18: 955541.9776 | BQ18: 957926.1891 | BR18: 960316.3496 | BS18: 962712.4738 | BT18: 965106.2286 | BU18: 967505.9354 | BV18: 969911.609 | BW18: 972323.2642 | BX18: 974740.9159 | BY18: 977164.5791 | BZ18: 979594.2686 | CA18: 982029.9994 | CB18: 984471.7867 | CC18: 986919.6453 | CD18: 989373.5905 | CE18: 991833.6373 | CF18: 994268.0421 | CG18: 996708.422 | CH18: 999154.7917 | CI18: 1001607.166 | CJ18: 1004065.559 | CK18: 0 | CL18: 0 | CM18: 0 | CN18: 0 | CO18: 0 | CP18: 0 | CQ18: 0 | CR18: 0 | CS18: 0 | CT18: 0 | CU18: 0 | CV18: 0 | CW18: 0 | CX18: 0 | CY18: 0 | CZ18: 0 | DA18: 0 | DB18: 0 | DC18: 0 | DD18: 0 | DE18: 0 | DF18: 0 | DG18: 0 | DH18: 0 | DI18: 0 | DJ18: 0 | DK18: 0 | DL18: 0 | DM18: 0 | DN18: 0 | DO18: 0 | DP18: 0 | DQ18: 0 | DR18: 0 | DS18: 0 | DT18: 0 | DU18: 0 | DV18: 0 | DW18: 0 | DX18: 0 | DY18: 0 | DZ18: 0 | EA18: 0 | EB18: 0 | EC18: 0 | ED18: 0 | EE18: 0 | EF18: 0 | EG18: 0 | EH18: 0 | EI18: 0 | EJ18: 0 | EK18: 0 | EL18: 0 | EM18: 0 | EN18: 0 | EO18: 0 | EP18: 0 | EQ18: 0 | ER18: 0 | ES18: 0 | ET18: 0 | EU18: 0 | EV18: 0 | EW18: 0 | EX18: 0 | EY18: 0 | EZ18: 0 | FA18: 0 | FB18: 0 | FC18: 0 | FD18: 0 | FE18: 0 | FF18: 0 | FG18: 0 | FH18: 0 | FI18: 0 | FJ18: 0 | FK18: 0 | FL18: 0 | FM18: 0 | FN18: 0 | FO18: 0 | FP18: 0 | FQ18: 0 | FR18: 0 | FS18: 0 | FT18: 0 | FU18: 0 | FV18: 0 | FW18: 0 | FX18: 0 | FY18: 0 | FZ18: 0 | GA18: 0 | GB18: 0 | GC18: 0 | GD18: 0 | GE18: 0 | GF18: 0 | GG18: 0 | GH18: 0 | GI18: 0 | GJ18: 0 | GK18: 0 | GL18: 0 | GM18: 0 | GN18: 0 | GO18: 0 | GP18: 0 | GQ18: 0 | GR18: 0 | GS18: 0 | GT18: 0 | GU18: 0 | GV18: 0 | GW18: 0 | GX18: 0 | GY18: 0 | GZ18: 0 | HA18: 0 | HB18: 0 | HC18: 0 | HD18: 0 | HE18: 0 | HF18: 0 | HG18: 0 | HH18: 0 | HI18: 0 | HJ18: 0 | HK18: 0 | HL18: 0 | HM18: 0 | HN18: 0 | HO18: 0 | HP18: 0 | HQ18: 0 | HR18: 0 | HS18: 0 | HT18: 0 | HU18: 0 | HV18: 0 | HW18: 0 | HX18: 0 | HY18: 0 | HZ18: 0 | IA18: 0 | IB18: 0 | IC18: 0 | ID18: 0 | IE18: 0 | IF18: 0 | IG18: 0 | IH18: 0 | II18: 0 | IJ18: 0 | IK18: 0 | IL18: 0 | IM18: 0 | IN18: 0 | IO18: 0 | IP18: 0 | IQ18: 0 | IR18: 0 | IS18: 0 | IT18: 0 | IU18: 0 | IV18: 0 | IW18: 0 | IX18: 0 | IY18: 0 | IZ18: 0 | JA18: 0 | JB18: 0 | JC18: 0 | JD18: 0 | JE18: 0 | JF18: 0 | JG18: 0 | JH18: 0 | JI18: 0 | JJ18: 0 | JK18: 0 | JL18: 0 | JM18: 0 | JN18: 0 | JO18: 0 | JP18: 0 | JQ18: 0 | JR18: 0 | JS18: 0 | JT18: 0 | JU18: 0 | JV18: 0 | JW18: 0 | JX18: 0 | JY18: 0 | JZ18: 0 | KA18: 0 | KB18: 0 | KC18: 0 | KD18: 0 | KE18: 0 | KF18: 0 | KG18: 0 | KH18: 0 | KI18: 0 | KJ18: 0 | KK18: 0 | KL18: 0 | KM18: 0 | KN18: 0 | KO18: 0 | KP18: 0 | KQ18: 0 | KR18: 0 | KS18: 0 | KT18: 0 | KU18: 0 | KV18: 0 | KW18: 0 | KX18: 0 | KY18: 0 | KZ18: 0 | LA18: 0 | LB18: 0 | LC18: 0 | LD18: 0 | LE18: 0 | LF18: 0 | LG18: 0 | LH18: 0 | LI18: 0 | LJ18: 0 | LK18: 0 | LL18: 0 | LM18: 0 | LN18: 0 | LO18: 0 | LP18: 0 | LQ18: 0 | LR18: 0 | LS18: 0 | LT18: 0 | LU18: 0 | LV18: 0 | LW18: 0 | LX18: 0 | LY18: 0 | LZ18: 0 | MA18: 0 | MB18: 0 | MC18: 0 | MD18: 0 | ME18: 0 | MF18: 0 | MG18: 0 | MH18: 0 | MI18: 0 | MJ18: 0 | MK18: 0 | ML18: 0 | MM18: 0 | MN18: 0 | MO18: 0 | MP18: 0 | MQ18: 0 | MR18: 0 | MS18: 0 | MT18: 0 | MU18: 0 | MV18: 0 | MW18: 0 | MX18: 0 | MY18: 0 | MZ18: 0 | NA18: 0 | NB18: 0 | NC18: 0 | ND18: 0 | NE18: 0 | NF18: 0 | NG18: 0 | NH18: 0 | NI18: 0 | NJ18: 0 | NK18: 0 | NL18: 0 | NM18: 0 | NN18: 0 | NO18: 0 | NP18: 0 | NQ18: 0 | NR18: 0 | NS18: 0 | NT18: 0 | NU18: 0 | NV18: 0 | NW18: 0 | NX18: 0 | NY18: 0 | NZ18: 0 | OA18: 0 | OB18: 0 | OC18: 0 | OD18: 0 | OE18: 0 | OF18: 0 | OG18: 0 | OH18: 0 | OI18: 0 | OJ18: 0 | OK18: 0 | OL18: 0 | OM18: 0 | ON18: 0 | OO18: 0 | OP18: 0 | OQ18: 0 | OR18: 0 | OS18: 0 | OT18: 0 | OU18: 0 | OV18: 0 | OW18: 0 | OX18: 0 | OY18: 0 | OZ18: 0 | PA18: 0 | PB18: 0 | PC18: 0 | PD18: 0 | PE18: 0 | PF18: 0 | PG18: 0 | PH18: 0 | PI18: 0 | PJ18: 0 | PK18: 0 | PL18: 0 | PM18: 0 | PN18: 0 | PO18: 0 | PP18: 0 | PQ18: 0 | PR18: 0 | PS18: 0 | PT18: 0 | PU18: 0 | PV18: 0 | PW18: 0 | PX18: 0 | PY18: 0 | PZ18: 0 | QA18: 0 | QB18: 0 | QC18: 0 | QD18: 0 | QE18: 0 | QF18: 0 | QG18: 0 | QH18: 0 | QI18: 0 | QJ18: 0 | QK18: 0 | QL18: 0 | QM18: 0 | QN18: 0 | QO18: 0 | QP18: 0 | QQ18: 0 | QR18: 0 | QS18: 0 | QT18: 0 | QU18: 0 | QV18: 0 | QW18: 0 | QX18: 0 | QY18: 0 | QZ18: 0 | RA18: 0 | RB18: 0 | RC18: 0 | RD18: 0 | RE18: 0 | RF18: 0 | RG18: 0 | RH18: 0 | RI18: 0 | RJ18: 0 | RK18: 0 | RL18: 0 | RM18: 0 | RN18: 0 | RO18: 0 | RP18: 0 | RQ18: 0 | RR18: 0 | RS18: 0 | RT18: 0 | RU18: 0 | RV18: 0 | RW18: 0 | RX18: 0 | RY18: 0 | RZ18: 0 | SA18: 0 | SB18: 0 | SC18: 0 | SD18: 0 | SE18: 0 | SF18: 0 | SG18: 0 | SH18: 0 | SI18: 0 | SJ18: 0 | SK18: 0 | SL18: 0 | SM18: 0 | SN18: 0 | SO18: 0 | SP18: 0 | SQ18: 0 | SR18: 0 | SS18: 0 | ST18: 0 | SU18: 0 | SV18: 0 | SW18: 0 | SX18: 0 | SY18: 0 | SZ18: 0 | TA18: 0 | TB18: 0 | TC18: 0 | TD18: 0 | TE18: 0 | TF18: 0 | TG18: 0 | TH18: 0 | TI18: 0 | TJ18: 0 | TK18: 0 | TL18: 0 | TM18: 0 | TN18: 0 | TO18: 0 | TP18: 0 | TQ18: 0 | TR18: 0 | TS18: 0 | TT18: 0 | TU18: 0 | TV18: 0 | TW18: 0 | TX18: 0 | TY18: 0 | TZ18: 0 | UA18: 0 | UB18: 0 | UC18: 0 | UD18: 0 | UE18: 0 | UF18: 0 | UG18: 0 | UH18: 0 | UI18: 0 | UJ18: 0 | UK18: 0 | UL18: 0 | UM18: 0 | UN18: 0 | UO18: 0 | UP18: 0 | UQ18: 0 | UR18: 0 | US18: 0 | UT18: 0 | UU18: 0 | UV18: 0 | UW18: 0 | UX18: 0 | UY18: 0 | UZ18: 0 | VA18: 0 | VB18: 0 | VC18: 0 | VD18: 0 | VE18: 0 | VF18: 0 | VG18: 0 | VH18: 0 | VI18: 0 | VJ18: 0 | VK18: 0 | VL18: 0 | VM18: 0 | VN18: 0 | VO18: 0 | VP18: 0 | VQ18: 0 | VR18: 0 | VS18: 0 | VT18: 0 | VU18: 0 | VV18: 0 | VW18: 0 | VX18: 0 | VY18: 0 | VZ18: 0 | WA18: 0 | WB18: 0 | WC18: 0 | WD18: 0 | WE18: 0 | WF18: 0 | WG18: 0 | WH18: 0 | WI18: 0 | WJ18: 0 | WK18: 0 | WL18: 0 | WM18: 0 | WN18: 0 | WO18: 0 | WP18: 0 | WQ18: 0 | WR18: 0 | WS18: 0 | WT18: 0 | WU18: 0 | WV18: 0 | WW18: 0 | WX18: 0 | WY18: 0 | WZ18: 0 | XA18: 0 | XB18: 0 | XC18: 0 | XD18: 0 | XE18: 0 | XF18: 0 | XG18: 0 | XH18: 0 | XI18: 0 | XJ18: 0 | XK18: 0 | XL18: 0 | XM18: 0 | XN18: 0 | XO18: 0 | XP18: 0 | XQ18: 0 | XR18: 0 | XS18: 0 | XT18: 0 | XU18: 0 | XV18: 0 | XW18: 0 | XX18: 0 | XY18: 0 | XZ18: 0 | YA18: 0 | YB18: 0 | YC18: 0 | YD18: 0 | YE18: 0 | YF18: 0 | YG18: 0 | YH18: 0 | YI18: 0 | YJ18: 0 | YK18: 0 | YL18: 0 | YM18: 0 | YN18: 0 | YO18: 0 | YP18: 0 | YQ18: 0 | YR18: 0 | YS18: 0 | YT18: 0 | YU18: 0 | YV18: 0 | YW18: 0 | YX18: 0 | YY18: 0 | YZ18: 0 | ZA18: 0 | ZB18: 0 | ZC18: 0 | ZD18: 0 | ZE18: 0 | ZF18: 0 | ZG18: 0 | ZH18: 0 | ZI18: 0 | ZJ18: 0 | ZK18: 0 | ZL18: 0 | ZM18: 0 | ZN18: 0 | ZO18: 0 | ZP18: 0 | ZQ18: 0 | ZR18: 0 | ZS18: 0 | ZT18: 0 | ZU18: 0 | ZV18: 0 | ZW18: 0 | ZX18: 0 | ZY18: 0 | ZZ18: 0 | AAA18: 0 | AAB18: 0 | AAC18: 0 | AAD18: 0 | AAE18: 0 | AAF18: 0 | AAG18: 0 | AAH18: 0 | AAI18: 0 | AAJ18: 0 | AAK18: 0 | AAL18: 0 | AAM18: 0 | AAN18: 0 | AAO18: 0 | AAP18: 0 | AAQ18: 0 | AAR18: 0 | AAS18: 0 | AAT18: 0 | AAU18: 0 | AAV18: 0 | AAW18: 0 | AAX18: 0 | AAY18: 0 | AAZ18: 0 | ABA18: 0 | ABB18: 0 | ABC18: 0 | ABD18: 0 | ABE18: 0 | ABF18: 0 | ABG18: 0 | ABH18: 0 | ABI18: 0 | ABJ18: 0 | ABK18: 0 | ABL18: 0 | ABM18: 0 | ABN18: 0 | ABO18: 0 | ABP18: 0 | ABQ18: 0 | ABR18: 0 | ABS18: 0 | ABT18: 0 | ABU18: 0 | ABV18: 0 | ABW18: 0 | ABX18: 0 | ABY18: 0 | ABZ18: 0 | ACA18: 0 | ACB18: 0 | ACC18: 0 | ACD18: 0 | ACE18: 0 | ACF18: 0 | ACG18: 0 | ACH18: 0 | ACI18: 0 | ACJ18: 0 | ACK18: 0 | ACL18: 0 | ACM18: 0 | ACN18: 0 | ACO18: 0 | ACP18: 0 | ACQ18: 0 | ACR18: 0 | ACS18: 0 | ACT18: 0 | ACU18: 0 | ACV18: 0 | ACW18: 0 | ACX18: 0 | ACY18: 0 | ACZ18: 0 | ADA18: 0 | ADB18: 0 | ADC18: 0 | ADD18: 0 | ADE18: 0 | ADF18: 0 | ADG18: 0 | ADH18: 0 | ADI18: 0 | ADJ18: 0 | ADK18: 0 | ADL18: 0 | ADM18: 0 | ADN18: 0 | ADO18: 0 | ADP18: 0 | ADQ18: 0 | ADR18: 0 | ADS18: 0 | ADT18: 0 | ADU18: 0 | ADV18: 0 | ADW18: 0 | ADX18: 0 | ADY18: 0 | ADZ18: 0 | AEA18: 0 | AEB18: 0 | AEC18: 0 | AED18: 0 | AEE18: 0 | AEF18: 0 | AEG18: 0 | AEH18: 0 | AEI18: 0 | AEJ18: 0 | AEK18: 0 | AEL18: 0 | AEM18: 0 | AEN18: 0 | AEO18: 0 | AEP18: 0 | AEQ18: 0 | AER18: 0 | AES18: 0 | AET18: 0 | AEU18: 0 | AEV18: 0 | AEW18: 0 | AEX18: 0 | AEY18: 0 | AEZ18: 0 | AFA18: 0 | AFB18: 0 | AFC18: 0 | AFD18: 0 | AFE18: 0 | AFF18: 0 | AFG18: 0 | AFH18: 0 | AFI18: 0 | AFJ18: 0 | AFK18: 0 | AFL18: 0 | AFM18: 0 | AFN18: 0 | AFO18: 0 | AFP18: 0 | AFQ18: 0 | AFR18: 0 | AFS18: 0 | AFT18: 0 | AFU18: 0 | AFV18: 0 | AFW18: 0 | AFX18: 0 | AFY18: 0 | AFZ18: 0 | AGA18: 0 | AGB18: 0 | AGC18: 0 | AGD18: 0 | AGE18: 0 | AGF18: 0 | AGG18: 0 | AGH18: 0 | AGI18: 0 | AGJ18: 0 | AGK18: 0 | AGL18: 0 | AGM18: 0 | AGN18: 0 | AGO18: 0 | AGP18: 0 | AGQ18: 0 | AGR18: 0 | AGS18: 0 | AGT18: 0 | AGU18: 0 | AGV18: 0 | AGW18: 0 | AGX18: 0 | AGY18: 0 | AGZ18: 0 | AHA18: 0 | AHB18: 0 | AHC18: 0 | AHD18: 0 | AHE18: 0 | AHF18: 0 | AHG18: 0 | AHH18: 0 | AHI18: 0 | AHJ18: 0 | AHK18: 0 | AHL18: 0 | AHM18: 0 | AHN18: 0 | AHO18: 0 | AHP18: 0 | AHQ18: 0 | AHR18: 0 | AHS18: 0 | AHT18: 0 | AHU18: 0 | AHV18: 0 | AHW18: 0 | AHX18: 0 | AHY18: 0 | AHZ18: 0 | AIA18: 0 | AIB18: 0 | AIC18: 0 | AID18: 0 | AIE18: 0 | AIF18: 0 | AIG18: 0 | AIH18: 0 | AII18: 0 | AIJ18: 0 | AIK18: 0 | AIL18: 0 | AIM18: 0 | AIN18: 0 | AIO18: 0 | AIP18: 0 | AIQ18: 0 | AIR18: 0 | AIS18: 0 | AIT18: 0 | AIU18: 0 | AIV18: 0 | AIW18: 0 | AIX18: 0 | AIY18: 0 | AIZ18: 0 | AJA18: 0 | AJB18: 0 | AJC18: 0 | AJD18: 0 | AJE18: 0 | AJF18: 0 | AJG18: 0 | AJH18: 0 | AJI18: 0 | AJJ18: 0 | AJK18: 0 | AJL18: 0 | AJM18: 0 | AJN18: 0 | AJO18: 0 | AJP18: 0 | AJQ18: 0 | AJR18: 0 | AJS18: 0 | AJT18: 0 | AJU18: 0 | AJV18: 0
H19: Cost Type
J20: 0 | K20: 0 | L20: 0 | M20: 0 | N20: 0 | O20: 0 | P20: 0 | Q20: 0 | R20: 0 | S20: 0 | T20: 0 | U20: 0 | V20: 0 | W20: 0 | X20: 0 | Y20: 0 | Z20: 0 | AA20: 0 | AB20: 0 | AC20: 863828.9153 | AD20: 866268.1304 | AE20: 868714.2332 | AF20: 871167.2431 | AG20: 873627.1796 | AH20: 876094.0623 | AI20: 878567.9108 | AJ20: 880879.3112 | AK20: 883196.7925 | AL20: 885520.3709 | AM20: 887850.0623 | AN20: 890185.8828 | AO20: 892527.8485 | AP20: 894875.9757 | AQ20: 897230.2805 | AR20: 899590.7792 | AS20: 901957.488 | AT20: 904330.4234 | AU20: 906709.6016 | AV20: 908981.3457 | AW20: 911258.7816 | AX20: 913541.9236 | AY20: 915830.786 | AZ20: 918125.383 | BA20: 920425.7292 | BB20: 922731.8388 | BC20: 925043.7263 | BD20: 927361.4062 | BE20: 929684.893 | BF20: 932014.2013 | BG20: 934349.3456 | BH20: 936680.6785 | BI20: 939017.8284 | BJ20: 941360.8098 | BK20: 943709.6373 | BL20: 946064.3255 | BM20: 948424.8889 | BN20: 950791.3423 | BO20: 953163.7003 | BP20: 955541.9776 | BQ20: 957926.1891 | BR20: 960316.3496 | BS20: 962712.4738 | BT20: 965106.2286 | BU20: 967505.9354 | BV20: 969911.609 | BW20: 972323.2642 | BX20: 974740.9159 | BY20: 977164.5791 | BZ20: 979594.2686 | CA20: 982029.9994 | CB20: 984471.7867 | CC20: 986919.6453 | CD20: 989373.5905 | CE20: 991833.6373 | CF20: 994268.0421 | CG20: 996708.422 | CH20: 999154.7917 | CI20: 1001607.166 | CJ20: 1004065.559 | CK20: 0 | CL20: 0 | CM20: 0 | CN20: 0 | CO20: 0 | CP20: 0 | CQ20: 0 | CR20: 0 | CS20: 0 | CT20: 0 | CU20: 0 | CV20: 0 | CW20: 0 | CX20: 0 | CY20: 0 | CZ20: 0 | DA20: 0 | DB20: 0 | DC20: 0 | DD20: 0 | DE20: 0 | DF20: 0 | DG20: 0 | DH20: 0 | DI20: 0 | DJ20: 0 | DK20: 0 | DL20: 0 | DM20: 0 | DN20: 0 | DO20: 0 | DP20: 0 | DQ20: 0 | DR20: 0 | DS20: 0 | DT20: 0 | DU20: 0 | DV20: 0 | DW20: 0 | DX20: 0 | DY20: 0 | DZ20: 0 | EA20: 0 | EB20: 0 | EC20: 0 | ED20: 0 | EE20: 0 | EF20: 0 | EG20: 0 | EH20: 0 | EI20: 0 | EJ20: 0 | EK20: 0 | EL20: 0 | EM20: 0 | EN20: 0 | EO20: 0 | EP20: 0 | EQ20: 0 | ER20: 0 | ES20: 0 | ET20: 0 | EU20: 0 | EV20: 0 | EW20: 0 | EX20: 0 | EY20: 0 | EZ20: 0 | FA20: 0 | FB20: 0 | FC20: 0 | FD20: 0 | FE20: 0 | FF20: 0 | FG20: 0 | FH20: 0 | FI20: 0 | FJ20: 0 | FK20: 0 | FL20: 0 | FM20: 0 | FN20: 0 | FO20: 0 | FP20: 0 | FQ20: 0 | FR20: 0 | FS20: 0 | FT20: 0 | FU20: 0 | FV20: 0 | FW20: 0 | FX20: 0 | FY20: 0 | FZ20: 0 | GA20: 0 | GB20: 0 | GC20: 0 | GD20: 0 | GE20: 0 | GF20: 0 | GG20: 0 | GH20: 0 | GI20: 0 | GJ20: 0 | GK20: 0 | GL20: 0 | GM20: 0 | GN20: 0 | GO20: 0 | GP20: 0 | GQ20: 0 | GR20: 0 | GS20: 0 | GT20: 0 | GU20: 0 | GV20: 0 | GW20: 0 | GX20: 0 | GY20: 0 | GZ20: 0 | HA20: 0 | HB20: 0 | HC20: 0 | HD20: 0 | HE20: 0 | HF20: 0 | HG20: 0 | HH20: 0 | HI20: 0 | HJ20: 0 | HK20: 0 | HL20: 0 | HM20: 0 | HN20: 0 | HO20: 0 | HP20: 0 | HQ20: 0 | HR20: 0 | HS20: 0 | HT20: 0 | HU20: 0 | HV20: 0 | HW20: 0 | HX20: 0 | HY20: 0 | HZ20: 0 | IA20: 0 | IB20: 0 | IC20: 0 | ID20: 0 | IE20: 0 | IF20: 0 | IG20: 0 | IH20: 0 | II20: 0 | IJ20: 0 | IK20: 0 | IL20: 0 | IM20: 0 | IN20: 0 | IO20: 0 | IP20: 0 | IQ20: 0 | IR20: 0 | IS20: 0 | IT20: 0 | IU20: 0 | IV20: 0 | IW20: 0 | IX20: 0 | IY20: 0 | IZ20: 0 | JA20: 0 | JB20: 0 | JC20: 0 | JD20: 0 | JE20: 0 | JF20: 0 | JG20: 0 | JH20: 0 | JI20: 0 | JJ20: 0 | JK20: 0 | JL20: 0 | JM20: 0 | JN20: 0 | JO20: 0 | JP20: 0 | JQ20: 0 | JR20: 0 | JS20: 0 | JT20: 0 | JU20: 0 | JV20: 0 | JW20: 0 | JX20: 0 | JY20: 0 | JZ20: 0 | KA20: 0 | KB20: 0 | KC20: 0 | KD20: 0 | KE20: 0 | KF20: 0 | KG20: 0 | KH20: 0 | KI20: 0 | KJ20: 0 | KK20: 0 | KL20: 0 | KM20: 0 | KN20: 0 | KO20: 0 | KP20: 0 | KQ20: 0 | KR20: 0 | KS20: 0 | KT20: 0 | KU20: 0 | KV20: 0 | KW20: 0 | KX20: 0 | KY20: 0 | KZ20: 0 | LA20: 0 | LB20: 0 | LC20: 0 | LD20: 0 | LE20: 0 | LF20: 0 | LG20: 0 | LH20: 0 | LI20: 0 | LJ20: 0 | LK20: 0 | LL20: 0 | LM20: 0 | LN20: 0 | LO20: 0 | LP20: 0 | LQ20: 0 | LR20: 0 | LS20: 0 | LT20: 0 | LU20: 0 | LV20: 0 | LW20: 0 | LX20: 0 | LY20: 0 | LZ20: 0 | MA20: 0 | MB20: 0 | MC20: 0 | MD20: 0 | ME20: 0 | MF20: 0 | MG20: 0 | MH20: 0 | MI20: 0 | MJ20: 0 | MK20: 0 | ML20: 0 | MM20: 0 | MN20: 0 | MO20: 0 | MP20: 0 | MQ20: 0 | MR20: 0 | MS20: 0 | MT20: 0 | MU20: 0 | MV20: 0 | MW20: 0 | MX20: 0 | MY20: 0 | MZ20: 0 | NA20: 0 | NB20: 0 | NC20: 0 | ND20: 0 | NE20: 0 | NF20: 0 | NG20: 0 | NH20: 0 | NI20: 0 | NJ20: 0 | NK20: 0 | NL20: 0 | NM20: 0 | NN20: 0 | NO20: 0 | NP20: 0 | NQ20: 0 | NR20: 0 | NS20: 0 | NT20: 0 | NU20: 0 | NV20: 0 | NW20: 0 | NX20: 0 | NY20: 0 | NZ20: 0 | OA20: 0 | OB20: 0 | OC20: 0 | OD20: 0 | OE20: 0 | OF20: 0 | OG20: 0 | OH20: 0 | OI20: 0 | OJ20: 0 | OK20: 0 | OL20: 0 | OM20: 0 | ON20: 0 | OO20: 0 | OP20: 0 | OQ20: 0 | OR20: 0 | OS20: 0 | OT20: 0 | OU20: 0 | OV20: 0 | OW20: 0 | OX20: 0 | OY20: 0 | OZ20: 0 | PA20: 0 | PB20: 0 | PC20: 0 | PD20: 0 | PE20: 0 | PF20: 0 | PG20: 0 | PH20: 0 | PI20: 0 | PJ20: 0 | PK20: 0 | PL20: 0 | PM20: 0 | PN20: 0 | PO20: 0 | PP20: 0 | PQ20: 0 | PR20: 0 | PS20: 0 | PT20: 0 | PU20: 0 | PV20: 0 | PW20: 0 | PX20: 0 | PY20: 0 | PZ20: 0 | QA20: 0 | QB20: 0 | QC20: 0 | QD20: 0 | QE20: 0 | QF20: 0 | QG20: 0 | QH20: 0 | QI20: 0 | QJ20: 0 | QK20: 0 | QL20: 0 | QM20: 0 | QN20: 0 | QO20: 0 | QP20: 0 | QQ20: 0 | QR20: 0 | QS20: 0 | QT20: 0 | QU20: 0 | QV20: 0 | QW20: 0 | QX20: 0 | QY20: 0 | QZ20: 0 | RA20: 0 | RB20: 0 | RC20: 0 | RD20: 0 | RE20: 0 | RF20: 0 | RG20: 0 | RH20: 0 | RI20: 0 | RJ20: 0 | RK20: 0 | RL20: 0 | RM20: 0 | RN20: 0 | RO20: 0 | RP20: 0 | RQ20: 0 | RR20: 0 | RS20: 0 | RT20: 0 | RU20: 0 | RV20: 0 | RW20: 0 | RX20: 0 | RY20: 0 | RZ20: 0 | SA20: 0 | SB20: 0 | SC20: 0 | SD20: 0 | SE20: 0 | SF20: 0 | SG20: 0 | SH20: 0 | SI20: 0 | SJ20: 0 | SK20: 0 | SL20: 0 | SM20: 0 | SN20: 0 | SO20: 0 | SP20: 0 | SQ20: 0 | SR20: 0 | SS20: 0 | ST20: 0 | SU20: 0 | SV20: 0 | SW20: 0 | SX20: 0 | SY20: 0 | SZ20: 0 | TA20: 0 | TB20: 0 | TC20: 0 | TD20: 0 | TE20: 0 | TF20: 0 | TG20: 0 | TH20: 0 | TI20: 0 | TJ20: 0 | TK20: 0 | TL20: 0 | TM20: 0 | TN20: 0 | TO20: 0 | TP20: 0 | TQ20: 0 | TR20: 0 | TS20: 0 | TT20: 0 | TU20: 0 | TV20: 0 | TW20: 0 | TX20: 0 | TY20: 0 | TZ20: 0 | UA20: 0 | UB20: 0 | UC20: 0 | UD20: 0 | UE20: 0 | UF20: 0 | UG20: 0 | UH20: 0 | UI20: 0 | UJ20: 0 | UK20: 0 | UL20: 0 | UM20: 0 | UN20: 0 | UO20: 0 | UP20: 0 | UQ20: 0 | UR20: 0 | US20: 0 | UT20: 0 | UU20: 0 | UV20: 0 | UW20: 0 | UX20: 0 | UY20: 0 | UZ20: 0 | VA20: 0 | VB20: 0 | VC20: 0 | VD20: 0 | VE20: 0 | VF20: 0 | VG20: 0 | VH20: 0 | VI20: 0 | VJ20: 0 | VK20: 0 | VL20: 0 | VM20: 0 | VN20: 0 | VO20: 0 | VP20: 0 | VQ20: 0 | VR20: 0 | VS20: 0 | VT20: 0 | VU20: 0 | VV20: 0 | VW20: 0 | VX20: 0 | VY20: 0 | VZ20: 0 | WA20: 0 | WB20: 0 | WC20: 0 | WD20: 0 | WE20: 0 | WF20: 0 | WG20: 0 | WH20: 0 | WI20: 0 | WJ20: 0 | WK20: 0 | WL20: 0 | WM20: 0 | WN20: 0 | WO20: 0 | WP20: 0 | WQ20: 0 | WR20: 0 | WS20: 0 | WT20: 0 | WU20: 0 | WV20: 0 | WW20: 0 | WX20: 0 | WY20: 0 | WZ20: 0 | XA20: 0 | XB20: 0 | XC20: 0 | XD20: 0 | XE20: 0 | XF20: 0 | XG20: 0 | XH20: 0 | XI20: 0 | XJ20: 0 | XK20: 0 | XL20: 0 | XM20: 0 | XN20: 0 | XO20: 0 | XP20: 0 | XQ20: 0 | XR20: 0 | XS20: 0 | XT20: 0 | XU20: 0 | XV20: 0 | XW20: 0 | XX20: 0 | XY20: 0 | XZ20: 0 | YA20: 0 | YB20: 0 | YC20: 0 | YD20: 0 | YE20: 0 | YF20: 0 | YG20: 0 | YH20: 0 | YI20: 0 | YJ20: 0 | YK20: 0 | YL20: 0 | YM20: 0 | YN20: 0 | YO20: 0 | YP20: 0 | YQ20: 0 | YR20: 0 | YS20: 0 | YT20: 0 | YU20: 0 | YV20: 0 | YW20: 0 | YX20: 0 | YY20: 0 | YZ20: 0 | ZA20: 0 | ZB20: 0 | ZC20: 0 | ZD20: 0 | ZE20: 0 | ZF20: 0 | ZG20: 0 | ZH20: 0 | ZI20: 0 | ZJ20: 0 | ZK20: 0 | ZL20: 0 | ZM20: 0 | ZN20: 0 | ZO20: 0 | ZP20: 0 | ZQ20: 0 | ZR20: 0 | ZS20: 0 | ZT20: 0 | ZU20: 0 | ZV20: 0 | ZW20: 0 | ZX20: 0 | ZY20: 0 | ZZ20: 0 | AAA20: 0 | AAB20: 0 | AAC20: 0 | AAD20: 0 | AAE20: 0 | AAF20: 0 | AAG20: 0 | AAH20: 0 | AAI20: 0 | AAJ20: 0 | AAK20: 0 | AAL20: 0 | AAM20: 0 | AAN20: 0 | AAO20: 0 | AAP20: 0 | AAQ20: 0 | AAR20: 0 | AAS20: 0 | AAT20: 0 | AAU20: 0 | AAV20: 0 | AAW20: 0 | AAX20: 0 | AAY20: 0 | AAZ20: 0 | ABA20: 0 | ABB20: 0 | ABC20: 0 | ABD20: 0 | ABE20: 0 | ABF20: 0 | ABG20: 0 | ABH20: 0 | ABI20: 0 | ABJ20: 0 | ABK20: 0 | ABL20: 0 | ABM20: 0 | ABN20: 0 | ABO20: 0 | ABP20: 0 | ABQ20: 0 | ABR20: 0 | ABS20: 0 | ABT20: 0 | ABU20: 0 | ABV20: 0 | ABW20: 0 | ABX20: 0 | ABY20: 0 | ABZ20: 0 | ACA20: 0 | ACB20: 0 | ACC20: 0 | ACD20: 0 | ACE20: 0 | ACF20: 0 | ACG20: 0 | ACH20: 0 | ACI20: 0 | ACJ20: 0 | ACK20: 0 | ACL20: 0 | ACM20: 0 | ACN20: 0 | ACO20: 0 | ACP20: 0 | ACQ20: 0 | ACR20: 0 | ACS20: 0 | ACT20: 0 | ACU20: 0 | ACV20: 0 | ACW20: 0 | ACX20: 0 | ACY20: 0 | ACZ20: 0 | ADA20: 0 | ADB20: 0 | ADC20: 0 | ADD20: 0 | ADE20: 0 | ADF20: 0 | ADG20: 0 | ADH20: 0 | ADI20: 0 | ADJ20: 0 | ADK20: 0 | ADL20: 0 | ADM20: 0 | ADN20: 0 | ADO20: 0 | ADP20: 0 | ADQ20: 0 | ADR20: 0 | ADS20: 0 | ADT20: 0 | ADU20: 0 | ADV20: 0 | ADW20: 0 | ADX20: 0 | ADY20: 0 | ADZ20: 0 | AEA20: 0 | AEB20: 0 | AEC20: 0 | AED20: 0 | AEE20: 0 | AEF20: 0 | AEG20: 0 | AEH20: 0 | AEI20: 0 | AEJ20: 0 | AEK20: 0 | AEL20: 0 | AEM20: 0 | AEN20: 0 | AEO20: 0 | AEP20: 0 | AEQ20: 0 | AER20: 0 | AES20: 0 | AET20: 0 | AEU20: 0 | AEV20: 0 | AEW20: 0 | AEX20: 0 | AEY20: 0 | AEZ20: 0 | AFA20: 0 | AFB20: 0 | AFC20: 0 | AFD20: 0 | AFE20: 0 | AFF20: 0 | AFG20: 0 | AFH20: 0 | AFI20: 0 | AFJ20: 0 | AFK20: 0 | AFL20: 0 | AFM20: 0 | AFN20: 0 | AFO20: 0 | AFP20: 0 | AFQ20: 0 | AFR20: 0 | AFS20: 0 | AFT20: 0 | AFU20: 0 | AFV20: 0 | AFW20: 0 | AFX20: 0 | AFY20: 0 | AFZ20: 0 | AGA20: 0 | AGB20: 0 | AGC20: 0 | AGD20: 0 | AGE20: 0 | AGF20: 0 | AGG20: 0 | AGH20: 0 | AGI20: 0 | AGJ20: 0 | AGK20: 0 | AGL20: 0 | AGM20: 0 | AGN20: 0 | AGO20: 0 | AGP20: 0 | AGQ20: 0 | AGR20: 0 | AGS20: 0 | AGT20: 0 | AGU20: 0 | AGV20: 0 | AGW20: 0 | AGX20: 0 | AGY20: 0 | AGZ20: 0 | AHA20: 0 | AHB20: 0 | AHC20: 0 | AHD20: 0 | AHE20: 0 | AHF20: 0 | AHG20: 0 | AHH20: 0 | AHI20: 0 | AHJ20: 0 | AHK20: 0 | AHL20: 0 | AHM20: 0 | AHN20: 0 | AHO20: 0 | AHP20: 0 | AHQ20: 0 | AHR20: 0 | AHS20: 0 | AHT20: 0 | AHU20: 0 | AHV20: 0 | AHW20: 0 | AHX20: 0 | AHY20: 0 | AHZ20: 0 | AIA20: 0 | AIB20: 0 | AIC20: 0 | AID20: 0 | AIE20: 0 | AIF20: 0 | AIG20: 0 | AIH20: 0 | AII20: 0 | AIJ20: 0 | AIK20: 0 | AIL20: 0 | AIM20: 0 | AIN20: 0 | AIO20: 0 | AIP20: 0 | AIQ20: 0 | AIR20: 0 | AIS20: 0 | AIT20: 0 | AIU20: 0 | AIV20: 0 | AIW20: 0 | AIX20: 0 | AIY20: 0 | AIZ20: 0 | AJA20: 0 | AJB20: 0 | AJC20: 0 | AJD20: 0 | AJE20: 0 | AJF20: 0 | AJG20: 0 | AJH20: 0 | AJI20: 0 | AJJ20: 0 | AJK20: 0 | AJL20: 0 | AJM20: 0 | AJN20: 0 | AJO20: 0 | AJP20: 0 | AJQ20: 0 | AJR20: 0 | AJS20: 0 | AJT20: 0 | AJU20: 0 | AJV20: 0
J21: 0 | K21: 0 | L21: 0 | M21: 0 | N21: 0 | O21: 0 | P21: 0 | Q21: 0 | R21: 0 | S21: 0 | T21: 0 | U21: 0 | V21: 0 | W21: 0 | X21: 0 | Y21: 0 | Z21: 0 | AA21: 0 | AB21: 0 | AC21: 0 | AD21: 0 | AE21: 0 | AF21: 0 | AG21: 0 | AH21: 0 | AI21: 0 | AJ21: 0 | AK21: 0 | AL21: 0 | AM21: 0 | AN21: 0 | AO21: 0 | AP21: 0 | AQ21: 0 | AR21: 0 | AS21: 0 | AT21: 0 | AU21: 0 | AV21: 0 | AW21: 0 | AX21: 0 | AY21: 0 | AZ21: 0 | BA21: 0 | BB21: 0 | BC21: 0 | BD21: 0 | BE21: 0 | BF21: 0 | BG21: 0 | BH21: 0 | BI21: 0 | BJ21: 0 | BK21: 0 | BL21: 0 | BM21: 0 | BN21: 0 | BO21: 0 | BP21: 0 | BQ21: 0 | BR21: 0 | BS21: 0 | BT21: 0 | BU21: 0 | BV21: 0 | BW21: 0 | BX21: 0 | BY21: 0 | BZ21: 0 | CA21: 0 | CB21: 0 | CC21: 0 | CD21: 0 | CE21: 0 | CF21: 0 | CG21: 0 | CH21: 0 | CI21: 0 | CJ21: 0 | CK21: 0 | CL21: 0 | CM21: 0 | CN21: 0 | CO21: 0 | CP21: 0 | CQ21: 0 | CR21: 0 | CS21: 0 | CT21: 0 | CU21: 0 | CV21: 0 | CW21: 0 | CX21: 0 | CY21: 0 | CZ21: 0 | DA21: 0 | DB21: 0 | DC21: 0 | DD21: 0 | DE21: 0 | DF21: 0 | DG21: 0 | DH21: 0 | DI21: 0 | DJ21: 0 | DK21: 0 | DL21: 0 | DM21: 0 | DN21: 0 | DO21: 0 | DP21: 0 | DQ21: 0 | DR21: 0 | DS21: 0 | DT21: 0 | DU21: 0 | DV21: 0 | DW21: 0 | DX21: 0 | DY21: 0 | DZ21: 0 | EA21: 0 | EB21: 0 | EC21: 0 | ED21: 0 | EE21: 0 | EF21: 0 | EG21: 0 | EH21: 0 | EI21: 0 | EJ21: 0 | EK21: 0 | EL21: 0 | EM21: 0 | EN21: 0 | EO21: 0 | EP21: 0 | EQ21: 0 | ER21: 0 | ES21: 0 | ET21: 0 | EU21: 0 | EV21: 0 | EW21: 0 | EX21: 0 | EY21: 0 | EZ21: 0 | FA21: 0 | FB21: 0 | FC21: 0 | FD21: 0 | FE21: 0 | FF21: 0 | FG21: 0 | FH21: 0 | FI21: 0 | FJ21: 0 | FK21: 0 | FL21: 0 | FM21: 0 | FN21: 0 | FO21: 0 | FP21: 0 | FQ21: 0 | FR21: 0 | FS21: 0 | FT21: 0 | FU21: 0 | FV21: 0 | FW21: 0 | FX21: 0 | FY21: 0 | FZ21: 0 | GA21: 0 | GB21: 0 | GC21: 0 | GD21: 0 | GE21: 0 | GF21: 0 | GG21: 0 | GH21: 0 | GI21: 0 | GJ21: 0 | GK21: 0 | GL21: 0 | GM21: 0 | GN21: 0 | GO21: 0 | GP21: 0 | GQ21: 0 | GR21: 0 | GS21: 0 | GT21: 0 | GU21: 0 | GV21: 0 | GW21: 0 | GX21: 0 | GY21: 0 | GZ21: 0 | HA21: 0 | HB21: 0 | HC21: 0 | HD21: 0 | HE21: 0 | HF21: 0 | HG21: 0 | HH21: 0 | HI21: 0 | HJ21: 0 | HK21: 0 | HL21: 0 | HM21: 0 | HN21: 0 | HO21: 0 | HP21: 0 | HQ21: 0 | HR21: 0 | HS21: 0 | HT21: 0 | HU21: 0 | HV21: 0 | HW21: 0 | HX21: 0 | HY21: 0 | HZ21: 0 | IA21: 0 | IB21: 0 | IC21: 0 | ID21: 0 | IE21: 0 | IF21: 0 | IG21: 0 | IH21: 0 | II21: 0 | IJ21: 0 | IK21: 0 | IL21: 0 | IM21: 0 | IN21: 0 | IO21: 0 | IP21: 0 | IQ21: 0 | IR21: 0 | IS21: 0 | IT21: 0 | IU21: 0 | IV21: 0 | IW21: 0 | IX21: 0 | IY21: 0 | IZ21: 0 | JA21: 0 | JB21: 0 | JC21: 0 | JD21: 0 | JE21: 0 | JF21: 0 | JG21: 0 | JH21: 0 | JI21: 0 | JJ21: 0 | JK21: 0 | JL21: 0 | JM21: 0 | JN21: 0 | JO21: 0 | JP21: 0 | JQ21: 0 | JR21: 0 | JS21: 0 | JT21: 0 | JU21: 0 | JV21: 0 | JW21: 0 | JX21: 0 | JY21: 0 | JZ21: 0 | KA21: 0 | KB21: 0 | KC21: 0 | KD21: 0 | KE21: 0 | KF21: 0 | KG21: 0 | KH21: 0 | KI21: 0 | KJ21: 0 | KK21: 0 | KL21: 0 | KM21: 0 | KN21: 0 | KO21: 0 | KP21: 0 | KQ21: 0 | KR21: 0 | KS21: 0 | KT21: 0 | KU21: 0 | KV21: 0 | KW21: 0 | KX21: 0 | KY21: 0 | KZ21: 0 | LA21: 0 | LB21: 0 | LC21: 0 | LD21: 0 | LE21: 0 | LF21: 0 | LG21: 0 | LH21: 0 | LI21: 0 | LJ21: 0 | LK21: 0 | LL21: 0 | LM21: 0 | LN21: 0 | LO21: 0 | LP21: 0 | LQ21: 0 | LR21: 0 | LS21: 0 | LT21: 0 | LU21: 0 | LV21: 0 | LW21: 0 | LX21: 0 | LY21: 0 | LZ21: 0 | MA21: 0 | MB21: 0 | MC21: 0 | MD21: 0 | ME21: 0 | MF21: 0 | MG21: 0 | MH21: 0 | MI21: 0 | MJ21: 0 | MK21: 0 | ML21: 0 | MM21: 0 | MN21: 0 | MO21: 0 | MP21: 0 | MQ21: 0 | MR21: 0 | MS21: 0 | MT21: 0 | MU21: 0 | MV21: 0 | MW21: 0 | MX21: 0 | MY21: 0 | MZ21: 0 | NA21: 0 | NB21: 0 | NC21: 0 | ND21: 0 | NE21: 0 | NF21: 0 | NG21: 0 | NH21: 0 | NI21: 0 | NJ21: 0 | NK21: 0 | NL21: 0 | NM21: 0 | NN21: 0 | NO21: 0 | NP21: 0 | NQ21: 0 | NR21: 0 | NS21: 0 | NT21: 0 | NU21: 0 | NV21: 0 | NW21: 0 | NX21: 0 | NY21: 0 | NZ21: 0 | OA21: 0 | OB21: 0 | OC21: 0 | OD21: 0 | OE21: 0 | OF21: 0 | OG21: 0 | OH21: 0 | OI21: 0 | OJ21: 0 | OK21: 0 | OL21: 0 | OM21: 0 | ON21: 0 | OO21: 0 | OP21: 0 | OQ21: 0 | OR21: 0 | OS21: 0 | OT21: 0 | OU21: 0 | OV21: 0 | OW21: 0 | OX21: 0 | OY21: 0 | OZ21: 0 | PA21: 0 | PB21: 0 | PC21: 0 | PD21: 0 | PE21: 0 | PF21: 0 | PG21: 0 | PH21: 0 | PI21: 0 | PJ21: 0 | PK21: 0 | PL21: 0 | PM21: 0 | PN21: 0 | PO21: 0 | PP21: 0 | PQ21: 0 | PR21: 0 | PS21: 0 | PT21: 0 | PU21: 0 | PV21: 0 | PW21: 0 | PX21: 0 | PY21: 0 | PZ21: 0 | QA21: 0 | QB21: 0 | QC21: 0 | QD21: 0 | QE21: 0 | QF21: 0 | QG21: 0 | QH21: 0 | QI21: 0 | QJ21: 0 | QK21: 0 | QL21: 0 | QM21: 0 | QN21: 0 | QO21: 0 | QP21: 0 | QQ21: 0 | QR21: 0 | QS21: 0 | QT21: 0 | QU21: 0 | QV21: 0 | QW21: 0 | QX21: 0 | QY21: 0 | QZ21: 0 | RA21: 0 | RB21: 0 | RC21: 0 | RD21: 0 | RE21: 0 | RF21: 0 | RG21: 0 | RH21: 0 | RI21: 0 | RJ21: 0 | RK21: 0 | RL21: 0 | RM21: 0 | RN21: 0 | RO21: 0 | RP21: 0 | RQ21: 0 | RR21: 0 | RS21: 0 | RT21: 0 | RU21: 0 | RV21: 0 | RW21: 0 | RX21: 0 | RY21: 0 | RZ21: 0 | SA21: 0 | SB21: 0 | SC21: 0 | SD21: 0 | SE21: 0 | SF21: 0 | SG21: 0 | SH21: 0 | SI21: 0 | SJ21: 0 | SK21: 0 | SL21: 0 | SM21: 0 | SN21: 0 | SO21: 0 | SP21: 0 | SQ21: 0 | SR21: 0 | SS21: 0 | ST21: 0 | SU21: 0 | SV21: 0 | SW21: 0 | SX21: 0 | SY21: 0 | SZ21: 0 | TA21: 0 | TB21: 0 | TC21: 0 | TD21: 0 | TE21: 0 | TF21: 0 | TG21: 0 | TH21: 0 | TI21: 0 | TJ21: 0 | TK21: 0 | TL21: 0 | TM21: 0 | TN21: 0 | TO21: 0 | TP21: 0 | TQ21: 0 | TR21: 0 | TS21: 0 | TT21: 0 | TU21: 0 | TV21: 0 | TW21: 0 | TX21: 0 | TY21: 0 | TZ21: 0 | UA21: 0 | UB21: 0 | UC21: 0 | UD21: 0 | UE21: 0 | UF21: 0 | UG21: 0 | UH21: 0 | UI21: 0 | UJ21: 0 | UK21: 0 | UL21: 0 | UM21: 0 | UN21: 0 | UO21: 0 | UP21: 0 | UQ21: 0 | UR21: 0 | US21: 0 | UT21: 0 | UU21: 0 | UV21: 0 | UW21: 0 | UX21: 0 | UY21: 0 | UZ21: 0 | VA21: 0 | VB21: 0 | VC21: 0 | VD21: 0 | VE21: 0 | VF21: 0 | VG21: 0 | VH21: 0 | VI21: 0 | VJ21: 0 | VK21: 0 | VL21: 0 | VM21: 0 | VN21: 0 | VO21: 0 | VP21: 0 | VQ21: 0 | VR21: 0 | VS21: 0 | VT21: 0 | VU21: 0 | VV21: 0 | VW21: 0 | VX21: 0 | VY21: 0 | VZ21: 0 | WA21: 0 | WB21: 0 | WC21: 0 | WD21: 0 | WE21: 0 | WF21: 0 | WG21: 0 | WH21: 0 | WI21: 0 | WJ21: 0 | WK21: 0 | WL21: 0 | WM21: 0 | WN21: 0 | WO21: 0 | WP21: 0 | WQ21: 0 | WR21: 0 | WS21: 0 | WT21: 0 | WU21: 0 | WV21: 0 | WW21: 0 | WX21: 0 | WY21: 0 | WZ21: 0 | XA21: 0 | XB21: 0 | XC21: 0 | XD21: 0 | XE21: 0 | XF21: 0 | XG21: 0 | XH21: 0 | XI21: 0 | XJ21: 0 | XK21: 0 | XL21: 0 | XM21: 0 | XN21: 0 | XO21: 0 | XP21: 0 | XQ21: 0 | XR21: 0 | XS21: 0 | XT21: 0 | XU21: 0 | XV21: 0 | XW21: 0 | XX21: 0 | XY21: 0 | XZ21: 0 | YA21: 0 | YB21: 0 | YC21: 0 | YD21: 0 | YE21: 0 | YF21: 0 | YG21: 0 | YH21: 0 | YI21: 0 | YJ21: 0 | YK21: 0 | YL21: 0 | YM21: 0 | YN21: 0 | YO21: 0 | YP21: 0 | YQ21: 0 | YR21: 0 | YS21: 0 | YT21: 0 | YU21: 0 | YV21: 0 | YW21: 0 | YX21: 0 | YY21: 0 | YZ21: 0 | ZA21: 0 | ZB21: 0 | ZC21: 0 | ZD21: 0 | ZE21: 0 | ZF21: 0 | ZG21: 0 | ZH21: 0 | ZI21: 0 | ZJ21: 0 | ZK21: 0 | ZL21: 0 | ZM21: 0 | ZN21: 0 | ZO21: 0 | ZP21: 0 | ZQ21: 0 | ZR21: 0 | ZS21: 0 | ZT21: 0 | ZU21: 0 | ZV21: 0 | ZW21: 0 | ZX21: 0 | ZY21: 0 | ZZ21: 0 | AAA21: 0 | AAB21: 0 | AAC21: 0 | AAD21: 0 | AAE21: 0 | AAF21: 0 | AAG21: 0 | AAH21: 0 | AAI21: 0 | AAJ21: 0 | AAK21: 0 | AAL21: 0 | AAM21: 0 | AAN21: 0 | AAO21: 0 | AAP21: 0 | AAQ21: 0 | AAR21: 0 | AAS21: 0 | AAT21: 0 | AAU21: 0 | AAV21: 0 | AAW21: 0 | AAX21: 0 | AAY21: 0 | AAZ21: 0 | ABA21: 0 | ABB21: 0 | ABC21: 0 | ABD21: 0 | ABE21: 0 | ABF21: 0 | ABG21: 0 | ABH21: 0 | ABI21: 0 | ABJ21: 0 | ABK21: 0 | ABL21: 0 | ABM21: 0 | ABN21: 0 | ABO21: 0 | ABP21: 0 | ABQ21: 0 | ABR21: 0 | ABS21: 0 | ABT21: 0 | ABU21: 0 | ABV21: 0 | ABW21: 0 | ABX21: 0 | ABY21: 0 | ABZ21: 0 | ACA21: 0 | ACB21: 0 | ACC21: 0 | ACD21: 0 | ACE21: 0 | ACF21: 0 | ACG21: 0 | ACH21: 0 | ACI21: 0 | ACJ21: 0 | ACK21: 0 | ACL21: 0 | ACM21: 0 | ACN21: 0 | ACO21: 0 | ACP21: 0 | ACQ21: 0 | ACR21: 0 | ACS21: 0 | ACT21: 0 | ACU21: 0 | ACV21: 0 | ACW21: 0 | ACX21: 0 | ACY21: 0 | ACZ21: 0 | ADA21: 0 | ADB21: 0 | ADC21: 0 | ADD21: 0 | ADE21: 0 | ADF21: 0 | ADG21: 0 | ADH21: 0 | ADI21: 0 | ADJ21: 0 | ADK21: 0 | ADL21: 0 | ADM21: 0 | ADN21: 0 | ADO21: 0 | ADP21: 0 | ADQ21: 0 | ADR21: 0 | ADS21: 0 | ADT21: 0 | ADU21: 0 | ADV21: 0 | ADW21: 0 | ADX21: 0 | ADY21: 0 | ADZ21: 0 | AEA21: 0 | AEB21: 0 | AEC21: 0 | AED21: 0 | AEE21: 0 | AEF21: 0 | AEG21: 0 | AEH21: 0 | AEI21: 0 | AEJ21: 0 | AEK21: 0 | AEL21: 0 | AEM21: 0 | AEN21: 0 | AEO21: 0 | AEP21: 0 | AEQ21: 0 | AER21: 0 | AES21: 0 | AET21: 0 | AEU21: 0 | AEV21: 0 | AEW21: 0 | AEX21: 0 | AEY21: 0 | AEZ21: 0 | AFA21: 0 | AFB21: 0 | AFC21: 0 | AFD21: 0 | AFE21: 0 | AFF21: 0 | AFG21: 0 | AFH21: 0 | AFI21: 0 | AFJ21: 0 | AFK21: 0 | AFL21: 0 | AFM21: 0 | AFN21: 0 | AFO21: 0 | AFP21: 0 | AFQ21: 0 | AFR21: 0 | AFS21: 0 | AFT21: 0 | AFU21: 0 | AFV21: 0 | AFW21: 0 | AFX21: 0 | AFY21: 0 | AFZ21: 0 | AGA21: 0 | AGB21: 0 | AGC21: 0 | AGD21: 0 | AGE21: 0 | AGF21: 0 | AGG21: 0 | AGH21: 0 | AGI21: 0 | AGJ21: 0 | AGK21: 0 | AGL21: 0 | AGM21: 0 | AGN21: 0 | AGO21: 0 | AGP21: 0 | AGQ21: 0 | AGR21: 0 | AGS21: 0 | AGT21: 0 | AGU21: 0 | AGV21: 0 | AGW21: 0 | AGX21: 0 | AGY21: 0 | AGZ21: 0 | AHA21: 0 | AHB21: 0 | AHC21: 0 | AHD21: 0 | AHE21: 0 | AHF21: 0 | AHG21: 0 | AHH21: 0 | AHI21: 0 | AHJ21: 0 | AHK21: 0 | AHL21: 0 | AHM21: 0 | AHN21: 0 | AHO21: 0 | AHP21: 0 | AHQ21: 0 | AHR21: 0 | AHS21: 0 | AHT21: 0 | AHU21: 0 | AHV21: 0 | AHW21: 0 | AHX21: 0 | AHY21: 0 | AHZ21: 0 | AIA21: 0 | AIB21: 0 | AIC21: 0 | AID21: 0 | AIE21: 0 | AIF21: 0 | AIG21: 0 | AIH21: 0 | AII21: 0 | AIJ21: 0 | AIK21: 0 | AIL21: 0 | AIM21: 0 | AIN21: 0 | AIO21: 0 | AIP21: 0 | AIQ21: 0 | AIR21: 0 | AIS21: 0 | AIT21: 0 | AIU21: 0 | AIV21: 0 | AIW21: 0 | AIX21: 0 | AIY21: 0 | AIZ21: 0 | AJA21: 0 | AJB21: 0 | AJC21: 0 | AJD21: 0 | AJE21: 0 | AJF21: 0 | AJG21: 0 | AJH21: 0 | AJI21: 0 | AJJ21: 0 | AJK21: 0 | AJL21: 0 | AJM21: 0 | AJN21: 0 | AJO21: 0 | AJP21: 0 | AJQ21: 0 | AJR21: 0 | AJS21: 0 | AJT21: 0 | AJU21: 0 | AJV21: 0
J22: 0 | K22: 0 | L22: 0 | M22: 0 | N22: 0 | O22: 0 | P22: 0 | Q22: 0 | R22: 0 | S22: 0 | T22: 0 | U22: 0 | V22: 0 | W22: 0 | X22: 0 | Y22: 0 | Z22: 0 | AA22: 0 | AB22: 0 | AC22: 0 | AD22: 0 | AE22: 0 | AF22: 0 | AG22: 0 | AH22: 0 | AI22: 0 | AJ22: 0 | AK22: 0 | AL22: 0 | AM22: 0 | AN22: 0 | AO22: 0 | AP22: 0 | AQ22: 0 | AR22: 0 | AS22: 0 | AT22: 0 | AU22: 0 | AV22: 0 | AW22: 0 | AX22: 0 | AY22: 0 | AZ22: 0 | BA22: 0 | BB22: 0 | BC22: 0 | BD22: 0 | BE22: 0 | BF22: 0 | BG22: 0 | BH22: 0 | BI22: 0 | BJ22: 0 | BK22: 0 | BL22: 0 | BM22: 0 | BN22: 0 | BO22: 0 | BP22: 0 | BQ22: 0 | BR22: 0 | BS22: 0 | BT22: 0 | BU22: 0 | BV22: 0 | BW22: 0 | BX22: 0 | BY22: 0 | BZ22: 0 | CA22: 0 | CB22: 0 | CC22: 0 | CD22: 0 | CE22: 0 | CF22: 0 | CG22: 0 | CH22: 0 | CI22: 0 | CJ22: 0 | CK22: 0 | CL22: 0 | CM22: 0 | CN22: 0 | CO22: 0 | CP22: 0 | CQ22: 0 | CR22: 0 | CS22: 0 | CT22: 0 | CU22: 0 | CV22: 0 | CW22: 0 | CX22: 0 | CY22: 0 | CZ22: 0 | DA22: 0 | DB22: 0 | DC22: 0 | DD22: 0 | DE22: 0 | DF22: 0 | DG22: 0 | DH22: 0 | DI22: 0 | DJ22: 0 | DK22: 0 | DL22: 0 | DM22: 0 | DN22: 0 | DO22: 0 | DP22: 0 | DQ22: 0 | DR22: 0 | DS22: 0 | DT22: 0 | DU22: 0 | DV22: 0 | DW22: 0 | DX22: 0 | DY22: 0 | DZ22: 0 | EA22: 0 | EB22: 0 | EC22: 0 | ED22: 0 | EE22: 0 | EF22: 0 | EG22: 0 | EH22: 0 | EI22: 0 | EJ22: 0 | EK22: 0 | EL22: 0 | EM22: 0 | EN22: 0 | EO22: 0 | EP22: 0 | EQ22: 0 | ER22: 0 | ES22: 0 | ET22: 0 | EU22: 0 | EV22: 0 | EW22: 0 | EX22: 0 | EY22: 0 | EZ22: 0 | FA22: 0 | FB22: 0 | FC22: 0 | FD22: 0 | FE22: 0 | FF22: 0 | FG22: 0 | FH22: 0 | FI22: 0 | FJ22: 0 | FK22: 0 | FL22: 0 | FM22: 0 | FN22: 0 | FO22: 0 | FP22: 0 | FQ22: 0 | FR22: 0 | FS22: 0 | FT22: 0 | FU22: 0 | FV22: 0 | FW22: 0 | FX22: 0 | FY22: 0 | FZ22: 0 | GA22: 0 | GB22: 0 | GC22: 0 | GD22: 0 | GE22: 0 | GF22: 0 | GG22: 0 | GH22: 0 | GI22: 0 | GJ22: 0 | GK22: 0 | GL22: 0 | GM22: 0 | GN22: 0 | GO22: 0 | GP22: 0 | GQ22: 0 | GR22: 0 | GS22: 0 | GT22: 0 | GU22: 0 | GV22: 0 | GW22: 0 | GX22: 0 | GY22: 0 | GZ22: 0 | HA22: 0 | HB22: 0 | HC22: 0 | HD22: 0 | HE22: 0 | HF22: 0 | HG22: 0 | HH22: 0 | HI22: 0 | HJ22: 0 | HK22: 0 | HL22: 0 | HM22: 0 | HN22: 0 | HO22: 0 | HP22: 0 | HQ22: 0 | HR22: 0 | HS22: 0 | HT22: 0 | HU22: 0 | HV22: 0 | HW22: 0 | HX22: 0 | HY22: 0 | HZ22: 0 | IA22: 0 | IB22: 0 | IC22: 0 | ID22: 0 | IE22: 0 | IF22: 0 | IG22: 0 | IH22: 0 | II22: 0 | IJ22: 0 | IK22: 0 | IL22: 0 | IM22: 0 | IN22: 0 | IO22: 0 | IP22: 0 | IQ22: 0 | IR22: 0 | IS22: 0 | IT22: 0 | IU22: 0 | IV22: 0 | IW22: 0 | IX22: 0 | IY22: 0 | IZ22: 0 | JA22: 0 | JB22: 0 | JC22: 0 | JD22: 0 | JE22: 0 | JF22: 0 | JG22: 0 | JH22: 0 | JI22: 0 | JJ22: 0 | JK22: 0 | JL22: 0 | JM22: 0 | JN22: 0 | JO22: 0 | JP22: 0 | JQ22: 0 | JR22: 0 | JS22: 0 | JT22: 0 | JU22: 0 | JV22: 0 | JW22: 0 | JX22: 0 | JY22: 0 | JZ22: 0 | KA22: 0 | KB22: 0 | KC22: 0 | KD22: 0 | KE22: 0 | KF22: 0 | KG22: 0 | KH22: 0 | KI22: 0 | KJ22: 0 | KK22: 0 | KL22: 0 | KM22: 0 | KN22: 0 | KO22: 0 | KP22: 0 | KQ22: 0 | KR22: 0 | KS22: 0 | KT22: 0 | KU22: 0 | KV22: 0 | KW22: 0 | KX22: 0 | KY22: 0 | KZ22: 0 | LA22: 0 | LB22: 0 | LC22: 0 | LD22: 0 | LE22: 0 | LF22: 0 | LG22: 0 | LH22: 0 | LI22: 0 | LJ22: 0 | LK22: 0 | LL22: 0 | LM22: 0 | LN22: 0 | LO22: 0 | LP22: 0 | LQ22: 0 | LR22: 0 | LS22: 0 | LT22: 0 | LU22: 0 | LV22: 0 | LW22: 0 | LX22: 0 | LY22: 0 | LZ22: 0 | MA22: 0 | MB22: 0 | MC22: 0 | MD22: 0 | ME22: 0 | MF22: 0 | MG22: 0 | MH22: 0 | MI22: 0 | MJ22: 0 | MK22: 0 | ML22: 0 | MM22: 0 | MN22: 0 | MO22: 0 | MP22: 0 | MQ22: 0 | MR22: 0 | MS22: 0 | MT22: 0 | MU22: 0 | MV22: 0 | MW22: 0 | MX22: 0 | MY22: 0 | MZ22: 0 | NA22: 0 | NB22: 0 | NC22: 0 | ND22: 0 | NE22: 0 | NF22: 0 | NG22: 0 | NH22: 0 | NI22: 0 | NJ22: 0 | NK22: 0 | NL22: 0 | NM22: 0 | NN22: 0 | NO22: 0 | NP22: 0 | NQ22: 0 | NR22: 0 | NS22: 0 | NT22: 0 | NU22: 0 | NV22: 0 | NW22: 0 | NX22: 0 | NY22: 0 | NZ22: 0 | OA22: 0 | OB22: 0 | OC22: 0 | OD22: 0 | OE22: 0 | OF22: 0 | OG22: 0 | OH22: 0 | OI22: 0 | OJ22: 0 | OK22: 0 | OL22: 0 | OM22: 0 | ON22: 0 | OO22: 0 | OP22: 0 | OQ22: 0 | OR22: 0 | OS22: 0 | OT22: 0 | OU22: 0 | OV22: 0 | OW22: 0 | OX22: 0 | OY22: 0 | OZ22: 0 | PA22: 0 | PB22: 0 | PC22: 0 | PD22: 0 | PE22: 0 | PF22: 0 | PG22: 0 | PH22: 0 | PI22: 0 | PJ22: 0 | PK22: 0 | PL22: 0 | PM22: 0 | PN22: 0 | PO22: 0 | PP22: 0 | PQ22: 0 | PR22: 0 | PS22: 0 | PT22: 0 | PU22: 0 | PV22: 0 | PW22: 0 | PX22: 0 | PY22: 0 | PZ22: 0 | QA22: 0 | QB22: 0 | QC22: 0 | QD22: 0 | QE22: 0 | QF22: 0 | QG22: 0 | QH22: 0 | QI22: 0 | QJ22: 0 | QK22: 0 | QL22: 0 | QM22: 0 | QN22: 0 | QO22: 0 | QP22: 0 | QQ22: 0 | QR22: 0 | QS22: 0 | QT22: 0 | QU22: 0 | QV22: 0 | QW22: 0 | QX22: 0 | QY22: 0 | QZ22: 0 | RA22: 0 | RB22: 0 | RC22: 0 | RD22: 0 | RE22: 0 | RF22: 0 | RG22: 0 | RH22: 0 | RI22: 0 | RJ22: 0 | RK22: 0 | RL22: 0 | RM22: 0 | RN22: 0 | RO22: 0 | RP22: 0 | RQ22: 0 | RR22: 0 | RS22: 0 | RT22: 0 | RU22: 0 | RV22: 0 | RW22: 0 | RX22: 0 | RY22: 0 | RZ22: 0 | SA22: 0 | SB22: 0 | SC22: 0 | SD22: 0 | SE22: 0 | SF22: 0 | SG22: 0 | SH22: 0 | SI22: 0 | SJ22: 0 | SK22: 0 | SL22: 0 | SM22: 0 | SN22: 0 | SO22: 0 | SP22: 0 | SQ22: 0 | SR22: 0 | SS22: 0 | ST22: 0 | SU22: 0 | SV22: 0 | SW22: 0 | SX22: 0 | SY22: 0 | SZ22: 0 | TA22: 0 | TB22: 0 | TC22: 0 | TD22: 0 | TE22: 0 | TF22: 0 | TG22: 0 | TH22: 0 | TI22: 0 | TJ22: 0 | TK22: 0 | TL22: 0 | TM22: 0 | TN22: 0 | TO22: 0 | TP22: 0 | TQ22: 0 | TR22: 0 | TS22: 0 | TT22: 0 | TU22: 0 | TV22: 0 | TW22: 0 | TX22: 0 | TY22: 0 | TZ22: 0 | UA22: 0 | UB22: 0 | UC22: 0 | UD22: 0 | UE22: 0 | UF22: 0 | UG22: 0 | UH22: 0 | UI22: 0 | UJ22: 0 | UK22: 0 | UL22: 0 | UM22: 0 | UN22: 0 | UO22: 0 | UP22: 0 | UQ22: 0 | UR22: 0 | US22: 0 | UT22: 0 | UU22: 0 | UV22: 0 | UW22: 0 | UX22: 0 | UY22: 0 | UZ22: 0 | VA22: 0 | VB22: 0 | VC22: 0 | VD22: 0 | VE22: 0 | VF22: 0 | VG22: 0 | VH22: 0 | VI22: 0 | VJ22: 0 | VK22: 0 | VL22: 0 | VM22: 0 | VN22: 0 | VO22: 0 | VP22: 0 | VQ22: 0 | VR22: 0 | VS22: 0 | VT22: 0 | VU22: 0 | VV22: 0 | VW22: 0 | VX22: 0 | VY22: 0 | VZ22: 0 | WA22: 0 | WB22: 0 | WC22: 0 | WD22: 0 | WE22: 0 | WF22: 0 | WG22: 0 | WH22: 0 | WI22: 0 | WJ22: 0 | WK22: 0 | WL22: 0 | WM22: 0 | WN22: 0 | WO22: 0 | WP22: 0 | WQ22: 0 | WR22: 0 | WS22: 0 | WT22: 0 | WU22: 0 | WV22: 0 | WW22: 0 | WX22: 0 | WY22: 0 | WZ22: 0 | XA22: 0 | XB22: 0 | XC22: 0 | XD22: 0 | XE22: 0 | XF22: 0 | XG22: 0 | XH22: 0 | XI22: 0 | XJ22: 0 | XK22: 0 | XL22: 0 | XM22: 0 | XN22: 0 | XO22: 0 | XP22: 0 | XQ22: 0 | XR22: 0 | XS22: 0 | XT22: 0 | XU22: 0 | XV22: 0 | XW22: 0 | XX22: 0 | XY22: 0 | XZ22: 0 | YA22: 0 | YB22: 0 | YC22: 0 | YD22: 0 | YE22: 0 | YF22: 0 | YG22: 0 | YH22: 0 | YI22: 0 | YJ22: 0 | YK22: 0 | YL22: 0 | YM22: 0 | YN22: 0 | YO22: 0 | YP22: 0 | YQ22: 0 | YR22: 0 | YS22: 0 | YT22: 0 | YU22: 0 | YV22: 0 | YW22: 0 | YX22: 0 | YY22: 0 | YZ22: 0 | ZA22: 0 | ZB22: 0 | ZC22: 0 | ZD22: 0 | ZE22: 0 | ZF22: 0 | ZG22: 0 | ZH22: 0 | ZI22: 0 | ZJ22: 0 | ZK22: 0 | ZL22: 0 | ZM22: 0 | ZN22: 0 | ZO22: 0 | ZP22: 0 | ZQ22: 0 | ZR22: 0 | ZS22: 0 | ZT22: 0 | ZU22: 0 | ZV22: 0 | ZW22: 0 | ZX22: 0 | ZY22: 0 | ZZ22: 0 | AAA22: 0 | AAB22: 0 | AAC22: 0 | AAD22: 0 | AAE22: 0 | AAF22: 0 | AAG22: 0 | AAH22: 0 | AAI22: 0 | AAJ22: 0 | AAK22: 0 | AAL22: 0 | AAM22: 0 | AAN22: 0 | AAO22: 0 | AAP22: 0 | AAQ22: 0 | AAR22: 0 | AAS22: 0 | AAT22: 0 | AAU22: 0 | AAV22: 0 | AAW22: 0 | AAX22: 0 | AAY22: 0 | AAZ22: 0 | ABA22: 0 | ABB22: 0 | ABC22: 0 | ABD22: 0 | ABE22: 0 | ABF22: 0 | ABG22: 0 | ABH22: 0 | ABI22: 0 | ABJ22: 0 | ABK22: 0 | ABL22: 0 | ABM22: 0 | ABN22: 0 | ABO22: 0 | ABP22: 0 | ABQ22: 0 | ABR22: 0 | ABS22: 0 | ABT22: 0 | ABU22: 0 | ABV22: 0 | ABW22: 0 | ABX22: 0 | ABY22: 0 | ABZ22: 0 | ACA22: 0 | ACB22: 0 | ACC22: 0 | ACD22: 0 | ACE22: 0 | ACF22: 0 | ACG22: 0 | ACH22: 0 | ACI22: 0 | ACJ22: 0 | ACK22: 0 | ACL22: 0 | ACM22: 0 | ACN22: 0 | ACO22: 0 | ACP22: 0 | ACQ22: 0 | ACR22: 0 | ACS22: 0 | ACT22: 0 | ACU22: 0 | ACV22: 0 | ACW22: 0 | ACX22: 0 | ACY22: 0 | ACZ22: 0 | ADA22: 0 | ADB22: 0 | ADC22: 0 | ADD22: 0 | ADE22: 0 | ADF22: 0 | ADG22: 0 | ADH22: 0 | ADI22: 0 | ADJ22: 0 | ADK22: 0 | ADL22: 0 | ADM22: 0 | ADN22: 0 | ADO22: 0 | ADP22: 0 | ADQ22: 0 | ADR22: 0 | ADS22: 0 | ADT22: 0 | ADU22: 0 | ADV22: 0 | ADW22: 0 | ADX22: 0 | ADY22: 0 | ADZ22: 0 | AEA22: 0 | AEB22: 0 | AEC22: 0 | AED22: 0 | AEE22: 0 | AEF22: 0 | AEG22: 0 | AEH22: 0 | AEI22: 0 | AEJ22: 0 | AEK22: 0 | AEL22: 0 | AEM22: 0 | AEN22: 0 | AEO22: 0 | AEP22: 0 | AEQ22: 0 | AER22: 0 | AES22: 0 | AET22: 0 | AEU22: 0 | AEV22: 0 | AEW22: 0 | AEX22: 0 | AEY22: 0 | AEZ22: 0 | AFA22: 0 | AFB22: 0 | AFC22: 0 | AFD22: 0 | AFE22: 0 | AFF22: 0 | AFG22: 0 | AFH22: 0 | AFI22: 0 | AFJ22: 0 | AFK22: 0 | AFL22: 0 | AFM22: 0 | AFN22: 0 | AFO22: 0 | AFP22: 0 | AFQ22: 0 | AFR22: 0 | AFS22: 0 | AFT22: 0 | AFU22: 0 | AFV22: 0 | AFW22: 0 | AFX22: 0 | AFY22: 0 | AFZ22: 0 | AGA22: 0 | AGB22: 0 | AGC22: 0 | AGD22: 0 | AGE22: 0 | AGF22: 0 | AGG22: 0 | AGH22: 0 | AGI22: 0 | AGJ22: 0 | AGK22: 0 | AGL22: 0 | AGM22: 0 | AGN22: 0 | AGO22: 0 | AGP22: 0 | AGQ22: 0 | AGR22: 0 | AGS22: 0 | AGT22: 0 | AGU22: 0 | AGV22: 0 | AGW22: 0 | AGX22: 0 | AGY22: 0 | AGZ22: 0 | AHA22: 0 | AHB22: 0 | AHC22: 0 | AHD22: 0 | AHE22: 0 | AHF22: 0 | AHG22: 0 | AHH22: 0 | AHI22: 0 | AHJ22: 0 | AHK22: 0 | AHL22: 0 | AHM22: 0 | AHN22: 0 | AHO22: 0 | AHP22: 0 | AHQ22: 0 | AHR22: 0 | AHS22: 0 | AHT22: 0 | AHU22: 0 | AHV22: 0 | AHW22: 0 | AHX22: 0 | AHY22: 0 | AHZ22: 0 | AIA22: 0 | AIB22: 0 | AIC22: 0 | AID22: 0 | AIE22: 0 | AIF22: 0 | AIG22: 0 | AIH22: 0 | AII22: 0 | AIJ22: 0 | AIK22: 0 | AIL22: 0 | AIM22: 0 | AIN22: 0 | AIO22: 0 | AIP22: 0 | AIQ22: 0 | AIR22: 0 | AIS22: 0 | AIT22: 0 | AIU22: 0 | AIV22: 0 | AIW22: 0 | AIX22: 0 | AIY22: 0 | AIZ22: 0 | AJA22: 0 | AJB22: 0 | AJC22: 0 | AJD22: 0 | AJE22: 0 | AJF22: 0 | AJG22: 0 | AJH22: 0 | AJI22: 0 | AJJ22: 0 | AJK22: 0 | AJL22: 0 | AJM22: 0 | AJN22: 0 | AJO22: 0 | AJP22: 0 | AJQ22: 0 | AJR22: 0 | AJS22: 0 | AJT22: 0 | AJU22: 0 | AJV22: 0
J23: 0 | K23: 0 | L23: 0 | M23: 0 | N23: 0 | O23: 0 | P23: 0 | Q23: 0 | R23: 0 | S23: 0 | T23: 0 | U23: 0 | V23: 0 | W23: 0 | X23: 0 | Y23: 0 | Z23: 0 | AA23: 0 | AB23: 0 | AC23: 0 | AD23: 0 | AE23: 0 | AF23: 0 | AG23: 0 | AH23: 0 | AI23: 0 | AJ23: 0 | AK23: 0 | AL23: 0 | AM23: 0 | AN23: 0 | AO23: 0 | AP23: 0 | AQ23: 0 | AR23: 0 | AS23: 0 | AT23: 0 | AU23: 0 | AV23: 0 | AW23: 0 | AX23: 0 | AY23: 0 | AZ23: 0 | BA23: 0 | BB23: 0 | BC23: 0 | BD23: 0 | BE23: 0 | BF23: 0 | BG23: 0 | BH23: 0 | BI23: 0 | BJ23: 0 | BK23: 0 | BL23: 0 | BM23: 0 | BN23: 0 | BO23: 0 | BP23: 0 | BQ23: 0 | BR23: 0 | BS23: 0 | BT23: 0 | BU23: 0 | BV23: 0 | BW23: 0 | BX23: 0 | BY23: 0 | BZ23: 0 | CA23: 0 | CB23: 0 | CC23: 0 | CD23: 0 | CE23: 0 | CF23: 0 | CG23: 0 | CH23: 0 | CI23: 0 | CJ23: 0 | CK23: 0 | CL23: 0 | CM23: 0 | CN23: 0 | CO23: 0 | CP23: 0 | CQ23: 0 | CR23: 0 | CS23: 0 | CT23: 0 | CU23: 0 | CV23: 0 | CW23: 0 | CX23: 0 | CY23: 0 | CZ23: 0 | DA23: 0 | DB23: 0 | DC23: 0 | DD23: 0 | DE23: 0 | DF23: 0 | DG23: 0 | DH23: 0 | DI23: 0 | DJ23: 0 | DK23: 0 | DL23: 0 | DM23: 0 | DN23: 0 | DO23: 0 | DP23: 0 | DQ23: 0 | DR23: 0 | DS23: 0 | DT23: 0 | DU23: 0 | DV23: 0 | DW23: 0 | DX23: 0 | DY23: 0 | DZ23: 0 | EA23: 0 | EB23: 0 | EC23: 0 | ED23: 0 | EE23: 0 | EF23: 0 | EG23: 0 | EH23: 0 | EI23: 0 | EJ23: 0 | EK23: 0 | EL23: 0 | EM23: 0 | EN23: 0 | EO23: 0 | EP23: 0 | EQ23: 0 | ER23: 0 | ES23: 0 | ET23: 0 | EU23: 0 | EV23: 0 | EW23: 0 | EX23: 0 | EY23: 0 | EZ23: 0 | FA23: 0 | FB23: 0 | FC23: 0 | FD23: 0 | FE23: 0 | FF23: 0 | FG23: 0 | FH23: 0 | FI23: 0 | FJ23: 0 | FK23: 0 | FL23: 0 | FM23: 0 | FN23: 0 | FO23: 0 | FP23: 0 | FQ23: 0 | FR23: 0 | FS23: 0 | FT23: 0 | FU23: 0 | FV23: 0 | FW23: 0 | FX23: 0 | FY23: 0 | FZ23: 0 | GA23: 0 | GB23: 0 | GC23: 0 | GD23: 0 | GE23: 0 | GF23: 0 | GG23: 0 | GH23: 0 | GI23: 0 | GJ23: 0 | GK23: 0 | GL23: 0 | GM23: 0 | GN23: 0 | GO23: 0 | GP23: 0 | GQ23: 0 | GR23: 0 | GS23: 0 | GT23: 0 | GU23: 0 | GV23: 0 | GW23: 0 | GX23: 0 | GY23: 0 | GZ23: 0 | HA23: 0 | HB23: 0 | HC23: 0 | HD23: 0 | HE23: 0 | HF23: 0 | HG23: 0 | HH23: 0 | HI23: 0 | HJ23: 0 | HK23: 0 | HL23: 0 | HM23: 0 | HN23: 0 | HO23: 0 | HP23: 0 | HQ23: 0 | HR23: 0 | HS23: 0 | HT23: 0 | HU23: 0 | HV23: 0 | HW23: 0 | HX23: 0 | HY23: 0 | HZ23: 0 | IA23: 0 | IB23: 0 | IC23: 0 | ID23: 0 | IE23: 0 | IF23: 0 | IG23: 0 | IH23: 0 | II23: 0 | IJ23: 0 | IK23: 0 | IL23: 0 | IM23: 0 | IN23: 0 | IO23: 0 | IP23: 0 | IQ23: 0 | IR23: 0 | IS23: 0 | IT23: 0 | IU23: 0 | IV23: 0 | IW23: 0 | IX23: 0 | IY23: 0 | IZ23: 0 | JA23: 0 | JB23: 0 | JC23: 0 | JD23: 0 | JE23: 0 | JF23: 0 | JG23: 0 | JH23: 0 | JI23: 0 | JJ23: 0 | JK23: 0 | JL23: 0 | JM23: 0 | JN23: 0 | JO23: 0 | JP23: 0 | JQ23: 0 | JR23: 0 | JS23: 0 | JT23: 0 | JU23: 0 | JV23: 0 | JW23: 0 | JX23: 0 | JY23: 0 | JZ23: 0 | KA23: 0 | KB23: 0 | KC23: 0 | KD23: 0 | KE23: 0 | KF23: 0 | KG23: 0 | KH23: 0 | KI23: 0 | KJ23: 0 | KK23: 0 | KL23: 0 | KM23: 0 | KN23: 0 | KO23: 0 | KP23: 0 | KQ23: 0 | KR23: 0 | KS23: 0 | KT23: 0 | KU23: 0 | KV23: 0 | KW23: 0 | KX23: 0 | KY23: 0 | KZ23: 0 | LA23: 0 | LB23: 0 | LC23: 0 | LD23: 0 | LE23: 0 | LF23: 0 | LG23: 0 | LH23: 0 | LI23: 0 | LJ23: 0 | LK23: 0 | LL23: 0 | LM23: 0 | LN23: 0 | LO23: 0 | LP23: 0 | LQ23: 0 | LR23: 0 | LS23: 0 | LT23: 0 | LU23: 0 | LV23: 0 | LW23: 0 | LX23: 0 | LY23: 0 | LZ23: 0 | MA23: 0 | MB23: 0 | MC23: 0 | MD23: 0 | ME23: 0 | MF23: 0 | MG23: 0 | MH23: 0 | MI23: 0 | MJ23: 0 | MK23: 0 | ML23: 0 | MM23: 0 | MN23: 0 | MO23: 0 | MP23: 0 | MQ23: 0 | MR23: 0 | MS23: 0 | MT23: 0 | MU23: 0 | MV23: 0 | MW23: 0 | MX23: 0 | MY23: 0 | MZ23: 0 | NA23: 0 | NB23: 0 | NC23: 0 | ND23: 0 | NE23: 0 | NF23: 0 | NG23: 0 | NH23: 0 | NI23: 0 | NJ23: 0 | NK23: 0 | NL23: 0 | NM23: 0 | NN23: 0 | NO23: 0 | NP23: 0 | NQ23: 0 | NR23: 0 | NS23: 0 | NT23: 0 | NU23: 0 | NV23: 0 | NW23: 0 | NX23: 0 | NY23: 0 | NZ23: 0 | OA23: 0 | OB23: 0 | OC23: 0 | OD23: 0 | OE23: 0 | OF23: 0 | OG23: 0 | OH23: 0 | OI23: 0 | OJ23: 0 | OK23: 0 | OL23: 0 | OM23: 0 | ON23: 0 | OO23: 0 | OP23: 0 | OQ23: 0 | OR23: 0 | OS23: 0 | OT23: 0 | OU23: 0 | OV23: 0 | OW23: 0 | OX23: 0 | OY23: 0 | OZ23: 0 | PA23: 0 | PB23: 0 | PC23: 0 | PD23: 0 | PE23: 0 | PF23: 0 | PG23: 0 | PH23: 0 | PI23: 0 | PJ23: 0 | PK23: 0 | PL23: 0 | PM23: 0 | PN23: 0 | PO23: 0 | PP23: 0 | PQ23: 0 | PR23: 0 | PS23: 0 | PT23: 0 | PU23: 0 | PV23: 0 | PW23: 0 | PX23: 0 | PY23: 0 | PZ23: 0 | QA23: 0 | QB23: 0 | QC23: 0 | QD23: 0 | QE23: 0 | QF23: 0 | QG23: 0 | QH23: 0 | QI23: 0 | QJ23: 0 | QK23: 0 | QL23: 0 | QM23: 0 | QN23: 0 | QO23: 0 | QP23: 0 | QQ23: 0 | QR23: 0 | QS23: 0 | QT23: 0 | QU23: 0 | QV23: 0 | QW23: 0 | QX23: 0 | QY23: 0 | QZ23: 0 | RA23: 0 | RB23: 0 | RC23: 0 | RD23: 0 | RE23: 0 | RF23: 0 | RG23: 0 | RH23: 0 | RI23: 0 | RJ23: 0 | RK23: 0 | RL23: 0 | RM23: 0 | RN23: 0 | RO23: 0 | RP23: 0 | RQ23: 0 | RR23: 0 | RS23: 0 | RT23: 0 | RU23: 0 | RV23: 0 | RW23: 0 | RX23: 0 | RY23: 0 | RZ23: 0 | SA23: 0 | SB23: 0 | SC23: 0 | SD23: 0 | SE23: 0 | SF23: 0 | SG23: 0 | SH23: 0 | SI23: 0 | SJ23: 0 | SK23: 0 | SL23: 0 | SM23: 0 | SN23: 0 | SO23: 0 | SP23: 0 | SQ23: 0 | SR23: 0 | SS23: 0 | ST23: 0 | SU23: 0 | SV23: 0 | SW23: 0 | SX23: 0 | SY23: 0 | SZ23: 0 | TA23: 0 | TB23: 0 | TC23: 0 | TD23: 0 | TE23: 0 | TF23: 0 | TG23: 0 | TH23: 0 | TI23: 0 | TJ23: 0 | TK23: 0 | TL23: 0 | TM23: 0 | TN23: 0 | TO23: 0 | TP23: 0 | TQ23: 0 | TR23: 0 | TS23: 0 | TT23: 0 | TU23: 0 | TV23: 0 | TW23: 0 | TX23: 0 | TY23: 0 | TZ23: 0 | UA23: 0 | UB23: 0 | UC23: 0 | UD23: 0 | UE23: 0 | UF23: 0 | UG23: 0 | UH23: 0 | UI23: 0 | UJ23: 0 | UK23: 0 | UL23: 0 | UM23: 0 | UN23: 0 | UO23: 0 | UP23: 0 | UQ23: 0 | UR23: 0 | US23: 0 | UT23: 0 | UU23: 0 | UV23: 0 | UW23: 0 | UX23: 0 | UY23: 0 | UZ23: 0 | VA23: 0 | VB23: 0 | VC23: 0 | VD23: 0 | VE23: 0 | VF23: 0 | VG23: 0 | VH23: 0 | VI23: 0 | VJ23: 0 | VK23: 0 | VL23: 0 | VM23: 0 | VN23: 0 | VO23: 0 | VP23: 0 | VQ23: 0 | VR23: 0 | VS23: 0 | VT23: 0 | VU23: 0 | VV23: 0 | VW23: 0 | VX23: 0 | VY23: 0 | VZ23: 0 | WA23: 0 | WB23: 0 | WC23: 0 | WD23: 0 | WE23: 0 | WF23: 0 | WG23: 0 | WH23: 0 | WI23: 0 | WJ23: 0 | WK23: 0 | WL23: 0 | WM23: 0 | WN23: 0 | WO23: 0 | WP23: 0 | WQ23: 0 | WR23: 0 | WS23: 0 | WT23: 0 | WU23: 0 | WV23: 0 | WW23: 0 | WX23: 0 | WY23: 0 | WZ23: 0 | XA23: 0 | XB23: 0 | XC23: 0 | XD23: 0 | XE23: 0 | XF23: 0 | XG23: 0 | XH23: 0 | XI23: 0 | XJ23: 0 | XK23: 0 | XL23: 0 | XM23: 0 | XN23: 0 | XO23: 0 | XP23: 0 | XQ23: 0 | XR23: 0 | XS23: 0 | XT23: 0 | XU23: 0 | XV23: 0 | XW23: 0 | XX23: 0 | XY23: 0 | XZ23: 0 | YA23: 0 | YB23: 0 | YC23: 0 | YD23: 0 | YE23: 0 | YF23: 0 | YG23: 0 | YH23: 0 | YI23: 0 | YJ23: 0 | YK23: 0 | YL23: 0 | YM23: 0 | YN23: 0 | YO23: 0 | YP23: 0 | YQ23: 0 | YR23: 0 | YS23: 0 | YT23: 0 | YU23: 0 | YV23: 0 | YW23: 0 | YX23: 0 | YY23: 0 | YZ23: 0 | ZA23: 0 | ZB23: 0 | ZC23: 0 | ZD23: 0 | ZE23: 0 | ZF23: 0 | ZG23: 0 | ZH23: 0 | ZI23: 0 | ZJ23: 0 | ZK23: 0 | ZL23: 0 | ZM23: 0 | ZN23: 0 | ZO23: 0 | ZP23: 0 | ZQ23: 0 | ZR23: 0 | ZS23: 0 | ZT23: 0 | ZU23: 0 | ZV23: 0 | ZW23: 0 | ZX23: 0 | ZY23: 0 | ZZ23: 0 | AAA23: 0 | AAB23: 0 | AAC23: 0 | AAD23: 0 | AAE23: 0 | AAF23: 0 | AAG23: 0 | AAH23: 0 | AAI23: 0 | AAJ23: 0 | AAK23: 0 | AAL23: 0 | AAM23: 0 | AAN23: 0 | AAO23: 0 | AAP23: 0 | AAQ23: 0 | AAR23: 0 | AAS23: 0 | AAT23: 0 | AAU23: 0 | AAV23: 0 | AAW23: 0 | AAX23: 0 | AAY23: 0 | AAZ23: 0 | ABA23: 0 | ABB23: 0 | ABC23: 0 | ABD23: 0 | ABE23: 0 | ABF23: 0 | ABG23: 0 | ABH23: 0 | ABI23: 0 | ABJ23: 0 | ABK23: 0 | ABL23: 0 | ABM23: 0 | ABN23: 0 | ABO23: 0 | ABP23: 0 | ABQ23: 0 | ABR23: 0 | ABS23: 0 | ABT23: 0 | ABU23: 0 | ABV23: 0 | ABW23: 0 | ABX23: 0 | ABY23: 0 | ABZ23: 0 | ACA23: 0 | ACB23: 0 | ACC23: 0 | ACD23: 0 | ACE23: 0 | ACF23: 0 | ACG23: 0 | ACH23: 0 | ACI23: 0 | ACJ23: 0 | ACK23: 0 | ACL23: 0 | ACM23: 0 | ACN23: 0 | ACO23: 0 | ACP23: 0 | ACQ23: 0 | ACR23: 0 | ACS23: 0 | ACT23: 0 | ACU23: 0 | ACV23: 0 | ACW23: 0 | ACX23: 0 | ACY23: 0 | ACZ23: 0 | ADA23: 0 | ADB23: 0 | ADC23: 0 | ADD23: 0 | ADE23: 0 | ADF23: 0 | ADG23: 0 | ADH23: 0 | ADI23: 0 | ADJ23: 0 | ADK23: 0 | ADL23: 0 | ADM23: 0 | ADN23: 0 | ADO23: 0 | ADP23: 0 | ADQ23: 0 | ADR23: 0 | ADS23: 0 | ADT23: 0 | ADU23: 0 | ADV23: 0 | ADW23: 0 | ADX23: 0 | ADY23: 0 | ADZ23: 0 | AEA23: 0 | AEB23: 0 | AEC23: 0 | AED23: 0 | AEE23: 0 | AEF23: 0 | AEG23: 0 | AEH23: 0 | AEI23: 0 | AEJ23: 0 | AEK23: 0 | AEL23: 0 | AEM23: 0 | AEN23: 0 | AEO23: 0 | AEP23: 0 | AEQ23: 0 | AER23: 0 | AES23: 0 | AET23: 0 | AEU23: 0 | AEV23: 0 | AEW23: 0 | AEX23: 0 | AEY23: 0 | AEZ23: 0 | AFA23: 0 | AFB23: 0 | AFC23: 0 | AFD23: 0 | AFE23: 0 | AFF23: 0 | AFG23: 0 | AFH23: 0 | AFI23: 0 | AFJ23: 0 | AFK23: 0 | AFL23: 0 | AFM23: 0 | AFN23: 0 | AFO23: 0 | AFP23: 0 | AFQ23: 0 | AFR23: 0 | AFS23: 0 | AFT23: 0 | AFU23: 0 | AFV23: 0 | AFW23: 0 | AFX23: 0 | AFY23: 0 | AFZ23: 0 | AGA23: 0 | AGB23: 0 | AGC23: 0 | AGD23: 0 | AGE23: 0 | AGF23: 0 | AGG23: 0 | AGH23: 0 | AGI23: 0 | AGJ23: 0 | AGK23: 0 | AGL23: 0 | AGM23: 0 | AGN23: 0 | AGO23: 0 | AGP23: 0 | AGQ23: 0 | AGR23: 0 | AGS23: 0 | AGT23: 0 | AGU23: 0 | AGV23: 0 | AGW23: 0 | AGX23: 0 | AGY23: 0 | AGZ23: 0 | AHA23: 0 | AHB23: 0 | AHC23: 0 | AHD23: 0 | AHE23: 0 | AHF23: 0 | AHG23: 0 | AHH23: 0 | AHI23: 0 | AHJ23: 0 | AHK23: 0 | AHL23: 0 | AHM23: 0 | AHN23: 0 | AHO23: 0 | AHP23: 0 | AHQ23: 0 | AHR23: 0 | AHS23: 0 | AHT23: 0 | AHU23: 0 | AHV23: 0 | AHW23: 0 | AHX23: 0 | AHY23: 0 | AHZ23: 0 | AIA23: 0 | AIB23: 0 | AIC23: 0 | AID23: 0 | AIE23: 0 | AIF23: 0 | AIG23: 0 | AIH23: 0 | AII23: 0 | AIJ23: 0 | AIK23: 0 | AIL23: 0 | AIM23: 0 | AIN23: 0 | AIO23: 0 | AIP23: 0 | AIQ23: 0 | AIR23: 0 | AIS23: 0 | AIT23: 0 | AIU23: 0 | AIV23: 0 | AIW23: 0 | AIX23: 0 | AIY23: 0 | AIZ23: 0 | AJA23: 0 | AJB23: 0 | AJC23: 0 | AJD23: 0 | AJE23: 0 | AJF23: 0 | AJG23: 0 | AJH23: 0 | AJI23: 0 | AJJ23: 0 | AJK23: 0 | AJL23: 0 | AJM23: 0 | AJN23: 0 | AJO23: 0 | AJP23: 0 | AJQ23: 0 | AJR23: 0 | AJS23: 0 | AJT23: 0 | AJU23: 0 | AJV23: 0
J24: 0 | K24: 0 | L24: 0 | M24: 0 | N24: 0 | O24: 0 | P24: 0 | Q24: 0 | R24: 0 | S24: 0 | T24: 0 | U24: 0 | V24: 0 | W24: 0 | X24: 0 | Y24: 0 | Z24: 0 | AA24: 0 | AB24: 0 | AC24: 0 | AD24: 0 | AE24: 0 | AF24: 0 | AG24: 0 | AH24: 0 | AI24: 0 | AJ24: 0 | AK24: 0 | AL24: 0 | AM24: 0 | AN24: 0 | AO24: 0 | AP24: 0 | AQ24: 0 | AR24: 0 | AS24: 0 | AT24: 0 | AU24: 0 | AV24: 0 | AW24: 0 | AX24: 0 | AY24: 0 | AZ24: 0 | BA24: 0 | BB24: 0 | BC24: 0 | BD24: 0 | BE24: 0 | BF24: 0 | BG24: 0 | BH24: 0 | BI24: 0 | BJ24: 0 | BK24: 0 | BL24: 0 | BM24: 0 | BN24: 0 | BO24: 0 | BP24: 0 | BQ24: 0 | BR24: 0 | BS24: 0 | BT24: 0 | BU24: 0 | BV24: 0 | BW24: 0 | BX24: 0 | BY24: 0 | BZ24: 0 | CA24: 0 | CB24: 0 | CC24: 0 | CD24: 0 | CE24: 0 | CF24: 0 | CG24: 0 | CH24: 0 | CI24: 0 | CJ24: 0 | CK24: 0 | CL24: 0 | CM24: 0 | CN24: 0 | CO24: 0 | CP24: 0 | CQ24: 0 | CR24: 0 | CS24: 0 | CT24: 0 | CU24: 0 | CV24: 0 | CW24: 0 | CX24: 0 | CY24: 0 | CZ24: 0 | DA24: 0 | DB24: 0 | DC24: 0 | DD24: 0 | DE24: 0 | DF24: 0 | DG24: 0 | DH24: 0 | DI24: 0 | DJ24: 0 | DK24: 0 | DL24: 0 | DM24: 0 | DN24: 0 | DO24: 0 | DP24: 0 | DQ24: 0 | DR24: 0 | DS24: 0 | DT24: 0 | DU24: 0 | DV24: 0 | DW24: 0 | DX24: 0 | DY24: 0 | DZ24: 0 | EA24: 0 | EB24: 0 | EC24: 0 | ED24: 0 | EE24: 0 | EF24: 0 | EG24: 0 | EH24: 0 | EI24: 0 | EJ24: 0 | EK24: 0 | EL24: 0 | EM24: 0 | EN24: 0 | EO24: 0 | EP24: 0 | EQ24: 0 | ER24: 0 | ES24: 0 | ET24: 0 | EU24: 0 | EV24: 0 | EW24: 0 | EX24: 0 | EY24: 0 | EZ24: 0 | FA24: 0 | FB24: 0 | FC24: 0 | FD24: 0 | FE24: 0 | FF24: 0 | FG24: 0 | FH24: 0 | FI24: 0 | FJ24: 0 | FK24: 0 | FL24: 0 | FM24: 0 | FN24: 0 | FO24: 0 | FP24: 0 | FQ24: 0 | FR24: 0 | FS24: 0 | FT24: 0 | FU24: 0 | FV24: 0 | FW24: 0 | FX24: 0 | FY24: 0 | FZ24: 0 | GA24: 0 | GB24: 0 | GC24: 0 | GD24: 0 | GE24: 0 | GF24: 0 | GG24: 0 | GH24: 0 | GI24: 0 | GJ24: 0 | GK24: 0 | GL24: 0 | GM24: 0 | GN24: 0 | GO24: 0 | GP24: 0 | GQ24: 0 | GR24: 0 | GS24: 0 | GT24: 0 | GU24: 0 | GV24: 0 | GW24: 0 | GX24: 0 | GY24: 0 | GZ24: 0 | HA24: 0 | HB24: 0 | HC24: 0 | HD24: 0 | HE24: 0 | HF24: 0 | HG24: 0 | HH24: 0 | HI24: 0 | HJ24: 0 | HK24: 0 | HL24: 0 | HM24: 0 | HN24: 0 | HO24: 0 | HP24: 0 | HQ24: 0 | HR24: 0 | HS24: 0 | HT24: 0 | HU24: 0 | HV24: 0 | HW24: 0 | HX24: 0 | HY24: 0 | HZ24: 0 | IA24: 0 | IB24: 0 | IC24: 0 | ID24: 0 | IE24: 0 | IF24: 0 | IG24: 0 | IH24: 0 | II24: 0 | IJ24: 0 | IK24: 0 | IL24: 0 | IM24: 0 | IN24: 0 | IO24: 0 | IP24: 0 | IQ24: 0 | IR24: 0 | IS24: 0 | IT24: 0 | IU24: 0 | IV24: 0 | IW24: 0 | IX24: 0 | IY24: 0 | IZ24: 0 | JA24: 0 | JB24: 0 | JC24: 0 | JD24: 0 | JE24: 0 | JF24: 0 | JG24: 0 | JH24: 0 | JI24: 0 | JJ24: 0 | JK24: 0 | JL24: 0 | JM24: 0 | JN24: 0 | JO24: 0 | JP24: 0 | JQ24: 0 | JR24: 0 | JS24: 0 | JT24: 0 | JU24: 0 | JV24: 0 | JW24: 0 | JX24: 0 | JY24: 0 | JZ24: 0 | KA24: 0 | KB24: 0 | KC24: 0 | KD24: 0 | KE24: 0 | KF24: 0 | KG24: 0 | KH24: 0 | KI24: 0 | KJ24: 0 | KK24: 0 | KL24: 0 | KM24: 0 | KN24: 0 | KO24: 0 | KP24: 0 | KQ24: 0 | KR24: 0 | KS24: 0 | KT24: 0 | KU24: 0 | KV24: 0 | KW24: 0 | KX24: 0 | KY24: 0 | KZ24: 0 | LA24: 0 | LB24: 0 | LC24: 0 | LD24: 0 | LE24: 0 | LF24: 0 | LG24: 0 | LH24: 0 | LI24: 0 | LJ24: 0 | LK24: 0 | LL24: 0 | LM24: 0 | LN24: 0 | LO24: 0 | LP24: 0 | LQ24: 0 | LR24: 0 | LS24: 0 | LT24: 0 | LU24: 0 | LV24: 0 | LW24: 0 | LX24: 0 | LY24: 0 | LZ24: 0 | MA24: 0 | MB24: 0 | MC24: 0 | MD24: 0 | ME24: 0 | MF24: 0 | MG24: 0 | MH24: 0 | MI24: 0 | MJ24: 0 | MK24: 0 | ML24: 0 | MM24: 0 | MN24: 0 | MO24: 0 | MP24: 0 | MQ24: 0 | MR24: 0 | MS24: 0 | MT24: 0 | MU24: 0 | MV24: 0 | MW24: 0 | MX24: 0 | MY24: 0 | MZ24: 0 | NA24: 0 | NB24: 0 | NC24: 0 | ND24: 0 | NE24: 0 | NF24: 0 | NG24: 0 | NH24: 0 | NI24: 0 | NJ24: 0 | NK24: 0 | NL24: 0 | NM24: 0 | NN24: 0 | NO24: 0 | NP24: 0 | NQ24: 0 | NR24: 0 | NS24: 0 | NT24: 0 | NU24: 0 | NV24: 0 | NW24: 0 | NX24: 0 | NY24: 0 | NZ24: 0 | OA24: 0 | OB24: 0 | OC24: 0 | OD24: 0 | OE24: 0 | OF24: 0 | OG24: 0 | OH24: 0 | OI24: 0 | OJ24: 0 | OK24: 0 | OL24: 0 | OM24: 0 | ON24: 0 | OO24: 0 | OP24: 0 | OQ24: 0 | OR24: 0 | OS24: 0 | OT24: 0 | OU24: 0 | OV24: 0 | OW24: 0 | OX24: 0 | OY24: 0 | OZ24: 0 | PA24: 0 | PB24: 0 | PC24: 0 | PD24: 0 | PE24: 0 | PF24: 0 | PG24: 0 | PH24: 0 | PI24: 0 | PJ24: 0 | PK24: 0 | PL24: 0 | PM24: 0 | PN24: 0 | PO24: 0 | PP24: 0 | PQ24: 0 | PR24: 0 | PS24: 0 | PT24: 0 | PU24: 0 | PV24: 0 | PW24: 0 | PX24: 0 | PY24: 0 | PZ24: 0 | QA24: 0 | QB24: 0 | QC24: 0 | QD24: 0 | QE24: 0 | QF24: 0 | QG24: 0 | QH24: 0 | QI24: 0 | QJ24: 0 | QK24: 0 | QL24: 0 | QM24: 0 | QN24: 0 | QO24: 0 | QP24: 0 | QQ24: 0 | QR24: 0 | QS24: 0 | QT24: 0 | QU24: 0 | QV24: 0 | QW24: 0 | QX24: 0 | QY24: 0 | QZ24: 0 | RA24: 0 | RB24: 0 | RC24: 0 | RD24: 0 | RE24: 0 | RF24: 0 | RG24: 0 | RH24: 0 | RI24: 0 | RJ24: 0 | RK24: 0 | RL24: 0 | RM24: 0 | RN24: 0 | RO24: 0 | RP24: 0 | RQ24: 0 | RR24: 0 | RS24: 0 | RT24: 0 | RU24: 0 | RV24: 0 | RW24: 0 | RX24: 0 | RY24: 0 | RZ24: 0 | SA24: 0 | SB24: 0 | SC24: 0 | SD24: 0 | SE24: 0 | SF24: 0 | SG24: 0 | SH24: 0 | SI24: 0 | SJ24: 0 | SK24: 0 | SL24: 0 | SM24: 0 | SN24: 0 | SO24: 0 | SP24: 0 | SQ24: 0 | SR24: 0 | SS24: 0 | ST24: 0 | SU24: 0 | SV24: 0 | SW24: 0 | SX24: 0 | SY24: 0 | SZ24: 0 | TA24: 0 | TB24: 0 | TC24: 0 | TD24: 0 | TE24: 0 | TF24: 0 | TG24: 0 | TH24: 0 | TI24: 0 | TJ24: 0 | TK24: 0 | TL24: 0 | TM24: 0 | TN24: 0 | TO24: 0 | TP24: 0 | TQ24: 0 | TR24: 0 | TS24: 0 | TT24: 0 | TU24: 0 | TV24: 0 | TW24: 0 | TX24: 0 | TY24: 0 | TZ24: 0 | UA24: 0 | UB24: 0 | UC24: 0 | UD24: 0 | UE24: 0 | UF24: 0 | UG24: 0 | UH24: 0 | UI24: 0 | UJ24: 0 | UK24: 0 | UL24: 0 | UM24: 0 | UN24: 0 | UO24: 0 | UP24: 0 | UQ24: 0 | UR24: 0 | US24: 0 | UT24: 0 | UU24: 0 | UV24: 0 | UW24: 0 | UX24: 0 | UY24: 0 | UZ24: 0 | VA24: 0 | VB24: 0 | VC24: 0 | VD24: 0 | VE24: 0 | VF24: 0 | VG24: 0 | VH24: 0 | VI24: 0 | VJ24: 0 | VK24: 0 | VL24: 0 | VM24: 0 | VN24: 0 | VO24: 0 | VP24: 0 | VQ24: 0 | VR24: 0 | VS24: 0 | VT24: 0 | VU24: 0 | VV24: 0 | VW24: 0 | VX24: 0 | VY24: 0 | VZ24: 0 | WA24: 0 | WB24: 0 | WC24: 0 | WD24: 0 | WE24: 0 | WF24: 0 | WG24: 0 | WH24: 0 | WI24: 0 | WJ24: 0 | WK24: 0 | WL24: 0 | WM24: 0 | WN24: 0 | WO24: 0 | WP24: 0 | WQ24: 0 | WR24: 0 | WS24: 0 | WT24: 0 | WU24: 0 | WV24: 0 | WW24: 0 | WX24: 0 | WY24: 0 | WZ24: 0 | XA24: 0 | XB24: 0 | XC24: 0 | XD24: 0 | XE24: 0 | XF24: 0 | XG24: 0 | XH24: 0 | XI24: 0 | XJ24: 0 | XK24: 0 | XL24: 0 | XM24: 0 | XN24: 0 | XO24: 0 | XP24: 0 | XQ24: 0 | XR24: 0 | XS24: 0 | XT24: 0 | XU24: 0 | XV24: 0 | XW24: 0 | XX24: 0 | XY24: 0 | XZ24: 0 | YA24: 0 | YB24: 0 | YC24: 0 | YD24: 0 | YE24: 0 | YF24: 0 | YG24: 0 | YH24: 0 | YI24: 0 | YJ24: 0 | YK24: 0 | YL24: 0 | YM24: 0 | YN24: 0 | YO24: 0 | YP24: 0 | YQ24: 0 | YR24: 0 | YS24: 0 | YT24: 0 | YU24: 0 | YV24: 0 | YW24: 0 | YX24: 0 | YY24: 0 | YZ24: 0 | ZA24: 0 | ZB24: 0 | ZC24: 0 | ZD24: 0 | ZE24: 0 | ZF24: 0 | ZG24: 0 | ZH24: 0 | ZI24: 0 | ZJ24: 0 | ZK24: 0 | ZL24: 0 | ZM24: 0 | ZN24: 0 | ZO24: 0 | ZP24: 0 | ZQ24: 0 | ZR24: 0 | ZS24: 0 | ZT24: 0 | ZU24: 0 | ZV24: 0 | ZW24: 0 | ZX24: 0 | ZY24: 0 | ZZ24: 0 | AAA24: 0 | AAB24: 0 | AAC24: 0 | AAD24: 0 | AAE24: 0 | AAF24: 0 | AAG24: 0 | AAH24: 0 | AAI24: 0 | AAJ24: 0 | AAK24: 0 | AAL24: 0 | AAM24: 0 | AAN24: 0 | AAO24: 0 | AAP24: 0 | AAQ24: 0 | AAR24: 0 | AAS24: 0 | AAT24: 0 | AAU24: 0 | AAV24: 0 | AAW24: 0 | AAX24: 0 | AAY24: 0 | AAZ24: 0 | ABA24: 0 | ABB24: 0 | ABC24: 0 | ABD24: 0 | ABE24: 0 | ABF24: 0 | ABG24: 0 | ABH24: 0 | ABI24: 0 | ABJ24: 0 | ABK24: 0 | ABL24: 0 | ABM24: 0 | ABN24: 0 | ABO24: 0 | ABP24: 0 | ABQ24: 0 | ABR24: 0 | ABS24: 0 | ABT24: 0 | ABU24: 0 | ABV24: 0 | ABW24: 0 | ABX24: 0 | ABY24: 0 | ABZ24: 0 | ACA24: 0 | ACB24: 0 | ACC24: 0 | ACD24: 0 | ACE24: 0 | ACF24: 0 | ACG24: 0 | ACH24: 0 | ACI24: 0 | ACJ24: 0 | ACK24: 0 | ACL24: 0 | ACM24: 0 | ACN24: 0 | ACO24: 0 | ACP24: 0 | ACQ24: 0 | ACR24: 0 | ACS24: 0 | ACT24: 0 | ACU24: 0 | ACV24: 0 | ACW24: 0 | ACX24: 0 | ACY24: 0 | ACZ24: 0 | ADA24: 0 | ADB24: 0 | ADC24: 0 | ADD24: 0 | ADE24: 0 | ADF24: 0 | ADG24: 0 | ADH24: 0 | ADI24: 0 | ADJ24: 0 | ADK24: 0 | ADL24: 0 | ADM24: 0 | ADN24: 0 | ADO24: 0 | ADP24: 0 | ADQ24: 0 | ADR24: 0 | ADS24: 0 | ADT24: 0 | ADU24: 0 | ADV24: 0 | ADW24: 0 | ADX24: 0 | ADY24: 0 | ADZ24: 0 | AEA24: 0 | AEB24: 0 | AEC24: 0 | AED24: 0 | AEE24: 0 | AEF24: 0 | AEG24: 0 | AEH24: 0 | AEI24: 0 | AEJ24: 0 | AEK24: 0 | AEL24: 0 | AEM24: 0 | AEN24: 0 | AEO24: 0 | AEP24: 0 | AEQ24: 0 | AER24: 0 | AES24: 0 | AET24: 0 | AEU24: 0 | AEV24: 0 | AEW24: 0 | AEX24: 0 | AEY24: 0 | AEZ24: 0 | AFA24: 0 | AFB24: 0 | AFC24: 0 | AFD24: 0 | AFE24: 0 | AFF24: 0 | AFG24: 0 | AFH24: 0 | AFI24: 0 | AFJ24: 0 | AFK24: 0 | AFL24: 0 | AFM24: 0 | AFN24: 0 | AFO24: 0 | AFP24: 0 | AFQ24: 0 | AFR24: 0 | AFS24: 0 | AFT24: 0 | AFU24: 0 | AFV24: 0 | AFW24: 0 | AFX24: 0 | AFY24: 0 | AFZ24: 0 | AGA24: 0 | AGB24: 0 | AGC24: 0 | AGD24: 0 | AGE24: 0 | AGF24: 0 | AGG24: 0 | AGH24: 0 | AGI24: 0 | AGJ24: 0 | AGK24: 0 | AGL24: 0 | AGM24: 0 | AGN24: 0 | AGO24: 0 | AGP24: 0 | AGQ24: 0 | AGR24: 0 | AGS24: 0 | AGT24: 0 | AGU24: 0 | AGV24: 0 | AGW24: 0 | AGX24: 0 | AGY24: 0 | AGZ24: 0 | AHA24: 0 | AHB24: 0 | AHC24: 0 | AHD24: 0 | AHE24: 0 | AHF24: 0 | AHG24: 0 | AHH24: 0 | AHI24: 0 | AHJ24: 0 | AHK24: 0 | AHL24: 0 | AHM24: 0 | AHN24: 0 | AHO24: 0 | AHP24: 0 | AHQ24: 0 | AHR24: 0 | AHS24: 0 | AHT24: 0 | AHU24: 0 | AHV24: 0 | AHW24: 0 | AHX24: 0 | AHY24: 0 | AHZ24: 0 | AIA24: 0 | AIB24: 0 | AIC24: 0 | AID24: 0 | AIE24: 0 | AIF24: 0 | AIG24: 0 | AIH24: 0 | AII24: 0 | AIJ24: 0 | AIK24: 0 | AIL24: 0 | AIM24: 0 | AIN24: 0 | AIO24: 0 | AIP24: 0 | AIQ24: 0 | AIR24: 0 | AIS24: 0 | AIT24: 0 | AIU24: 0 | AIV24: 0 | AIW24: 0 | AIX24: 0 | AIY24: 0 | AIZ24: 0 | AJA24: 0 | AJB24: 0 | AJC24: 0 | AJD24: 0 | AJE24: 0 | AJF24: 0 | AJG24: 0 | AJH24: 0 | AJI24: 0 | AJJ24: 0 | AJK24: 0 | AJL24: 0 | AJM24: 0 | AJN24: 0 | AJO24: 0 | AJP24: 0 | AJQ24: 0 | AJR24: 0 | AJS24: 0 | AJT24: 0 | AJU24: 0 | AJV24: 0
J25: 0 | K25: 0 | L25: 0 | M25: 0 | N25: 0 | O25: 0 | P25: 0 | Q25: 0 | R25: 0 | S25: 0 | T25: 0 | U25: 0 | V25: 0 | W25: 0 | X25: 0 | Y25: 0 | Z25: 0 | AA25: 0 | AB25: 0 | AC25: 0 | AD25: 0 | AE25: 0 | AF25: 0 | AG25: 0 | AH25: 0 | AI25: 0 | AJ25: 0 | AK25: 0 | AL25: 0 | AM25: 0 | AN25: 0 | AO25: 0 | AP25: 0 | AQ25: 0 | AR25: 0 | AS25: 0 | AT25: 0 | AU25: 0 | AV25: 0 | AW25: 0 | AX25: 0 | AY25: 0 | AZ25: 0 | BA25: 0 | BB25: 0 | BC25: 0 | BD25: 0 | BE25: 0 | BF25: 0 | BG25: 0 | BH25: 0 | BI25: 0 | BJ25: 0 | BK25: 0 | BL25: 0 | BM25: 0 | BN25: 0 | BO25: 0 | BP25: 0 | BQ25: 0 | BR25: 0 | BS25: 0 | BT25: 0 | BU25: 0 | BV25: 0 | BW25: 0 | BX25: 0 | BY25: 0 | BZ25: 0 | CA25: 0 | CB25: 0 | CC25: 0 | CD25: 0 | CE25: 0 | CF25: 0 | CG25: 0 | CH25: 0 | CI25: 0 | CJ25: 0 | CK25: 0 | CL25: 0 | CM25: 0 | CN25: 0 | CO25: 0 | CP25: 0 | CQ25: 0 | CR25: 0 | CS25: 0 | CT25: 0 | CU25: 0 | CV25: 0 | CW25: 0 | CX25: 0 | CY25: 0 | CZ25: 0 | DA25: 0 | DB25: 0 | DC25: 0 | DD25: 0 | DE25: 0 | DF25: 0 | DG25: 0 | DH25: 0 | DI25: 0 | DJ25: 0 | DK25: 0 | DL25: 0 | DM25: 0 | DN25: 0 | DO25: 0 | DP25: 0 | DQ25: 0 | DR25: 0 | DS25: 0 | DT25: 0 | DU25: 0 | DV25: 0 | DW25: 0 | DX25: 0 | DY25: 0 | DZ25: 0 | EA25: 0 | EB25: 0 | EC25: 0 | ED25: 0 | EE25: 0 | EF25: 0 | EG25: 0 | EH25: 0 | EI25: 0 | EJ25: 0 | EK25: 0 | EL25: 0 | EM25: 0 | EN25: 0 | EO25: 0 | EP25: 0 | EQ25: 0 | ER25: 0 | ES25: 0 | ET25: 0 | EU25: 0 | EV25: 0 | EW25: 0 | EX25: 0 | EY25: 0 | EZ25: 0 | FA25: 0 | FB25: 0 | FC25: 0 | FD25: 0 | FE25: 0 | FF25: 0 | FG25: 0 | FH25: 0 | FI25: 0 | FJ25: 0 | FK25: 0 | FL25: 0 | FM25: 0 | FN25: 0 | FO25: 0 | FP25: 0 | FQ25: 0 | FR25: 0 | FS25: 0 | FT25: 0 | FU25: 0 | FV25: 0 | FW25: 0 | FX25: 0 | FY25: 0 | FZ25: 0 | GA25: 0 | GB25: 0 | GC25: 0 | GD25: 0 | GE25: 0 | GF25: 0 | GG25: 0 | GH25: 0 | GI25: 0 | GJ25: 0 | GK25: 0 | GL25: 0 | GM25: 0 | GN25: 0 | GO25: 0 | GP25: 0 | GQ25: 0 | GR25: 0 | GS25: 0 | GT25: 0 | GU25: 0 | GV25: 0 | GW25: 0 | GX25: 0 | GY25: 0 | GZ25: 0 | HA25: 0 | HB25: 0 | HC25: 0 | HD25: 0 | HE25: 0 | HF25: 0 | HG25: 0 | HH25: 0 | HI25: 0 | HJ25: 0 | HK25: 0 | HL25: 0 | HM25: 0 | HN25: 0 | HO25: 0 | HP25: 0 | HQ25: 0 | HR25: 0 | HS25: 0 | HT25: 0 | HU25: 0 | HV25: 0 | HW25: 0 | HX25: 0 | HY25: 0 | HZ25: 0 | IA25: 0 | IB25: 0 | IC25: 0 | ID25: 0 | IE25: 0 | IF25: 0 | IG25: 0 | IH25: 0 | II25: 0 | IJ25: 0 | IK25: 0 | IL25: 0 | IM25: 0 | IN25: 0 | IO25: 0 | IP25: 0 | IQ25: 0 | IR25: 0 | IS25: 0 | IT25: 0 | IU25: 0 | IV25: 0 | IW25: 0 | IX25: 0 | IY25: 0 | IZ25: 0 | JA25: 0 | JB25: 0 | JC25: 0 | JD25: 0 | JE25: 0 | JF25: 0 | JG25: 0 | JH25: 0 | JI25: 0 | JJ25: 0 | JK25: 0 | JL25: 0 | JM25: 0 | JN25: 0 | JO25: 0 | JP25: 0 | JQ25: 0 | JR25: 0 | JS25: 0 | JT25: 0 | JU25: 0 | JV25: 0 | JW25: 0 | JX25: 0 | JY25: 0 | JZ25: 0 | KA25: 0 | KB25: 0 | KC25: 0 | KD25: 0 | KE25: 0 | KF25: 0 | KG25: 0 | KH25: 0 | KI25: 0 | KJ25: 0 | KK25: 0 | KL25: 0 | KM25: 0 | KN25: 0 | KO25: 0 | KP25: 0 | KQ25: 0 | KR25: 0 | KS25: 0 | KT25: 0 | KU25: 0 | KV25: 0 | KW25: 0 | KX25: 0 | KY25: 0 | KZ25: 0 | LA25: 0 | LB25: 0 | LC25: 0 | LD25: 0 | LE25: 0 | LF25: 0 | LG25: 0 | LH25: 0 | LI25: 0 | LJ25: 0 | LK25: 0 | LL25: 0 | LM25: 0 | LN25: 0 | LO25: 0 | LP25: 0 | LQ25: 0 | LR25: 0 | LS25: 0 | LT25: 0 | LU25: 0 | LV25: 0 | LW25: 0 | LX25: 0 | LY25: 0 | LZ25: 0 | MA25: 0 | MB25: 0 | MC25: 0 | MD25: 0 | ME25: 0 | MF25: 0 | MG25: 0 | MH25: 0 | MI25: 0 | MJ25: 0 | MK25: 0 | ML25: 0 | MM25: 0 | MN25: 0 | MO25: 0 | MP25: 0 | MQ25: 0 | MR25: 0 | MS25: 0 | MT25: 0 | MU25: 0 | MV25: 0 | MW25: 0 | MX25: 0 | MY25: 0 | MZ25: 0 | NA25: 0 | NB25: 0 | NC25: 0 | ND25: 0 | NE25: 0 | NF25: 0 | NG25: 0 | NH25: 0 | NI25: 0 | NJ25: 0 | NK25: 0 | NL25: 0 | NM25: 0 | NN25: 0 | NO25: 0 | NP25: 0 | NQ25: 0 | NR25: 0 | NS25: 0 | NT25: 0 | NU25: 0 | NV25: 0 | NW25: 0 | NX25: 0 | NY25: 0 | NZ25: 0 | OA25: 0 | OB25: 0 | OC25: 0 | OD25: 0 | OE25: 0 | OF25: 0 | OG25: 0 | OH25: 0 | OI25: 0 | OJ25: 0 | OK25: 0 | OL25: 0 | OM25: 0 | ON25: 0 | OO25: 0 | OP25: 0 | OQ25: 0 | OR25: 0 | OS25: 0 | OT25: 0 | OU25: 0 | OV25: 0 | OW25: 0 | OX25: 0 | OY25: 0 | OZ25: 0 | PA25: 0 | PB25: 0 | PC25: 0 | PD25: 0 | PE25: 0 | PF25: 0 | PG25: 0 | PH25: 0 | PI25: 0 | PJ25: 0 | PK25: 0 | PL25: 0 | PM25: 0 | PN25: 0 | PO25: 0 | PP25: 0 | PQ25: 0 | PR25: 0 | PS25: 0 | PT25: 0 | PU25: 0 | PV25: 0 | PW25: 0 | PX25: 0 | PY25: 0 | PZ25: 0 | QA25: 0 | QB25: 0 | QC25: 0 | QD25: 0 | QE25: 0 | QF25: 0 | QG25: 0 | QH25: 0 | QI25: 0 | QJ25: 0 | QK25: 0 | QL25: 0 | QM25: 0 | QN25: 0 | QO25: 0 | QP25: 0 | QQ25: 0 | QR25: 0 | QS25: 0 | QT25: 0 | QU25: 0 | QV25: 0 | QW25: 0 | QX25: 0 | QY25: 0 | QZ25: 0 | RA25: 0 | RB25: 0 | RC25: 0 | RD25: 0 | RE25: 0 | RF25: 0 | RG25: 0 | RH25: 0 | RI25: 0 | RJ25: 0 | RK25: 0 | RL25: 0 | RM25: 0 | RN25: 0 | RO25: 0 | RP25: 0 | RQ25: 0 | RR25: 0 | RS25: 0 | RT25: 0 | RU25: 0 | RV25: 0 | RW25: 0 | RX25: 0 | RY25: 0 | RZ25: 0 | SA25: 0 | SB25: 0 | SC25: 0 | SD25: 0 | SE25: 0 | SF25: 0 | SG25: 0 | SH25: 0 | SI25: 0 | SJ25: 0 | SK25: 0 | SL25: 0 | SM25: 0 | SN25: 0 | SO25: 0 | SP25: 0 | SQ25: 0 | SR25: 0 | SS25: 0 | ST25: 0 | SU25: 0 | SV25: 0 | SW25: 0 | SX25: 0 | SY25: 0 | SZ25: 0 | TA25: 0 | TB25: 0 | TC25: 0 | TD25: 0 | TE25: 0 | TF25: 0 | TG25: 0 | TH25: 0 | TI25: 0 | TJ25: 0 | TK25: 0 | TL25: 0 | TM25: 0 | TN25: 0 | TO25: 0 | TP25: 0 | TQ25: 0 | TR25: 0 | TS25: 0 | TT25: 0 | TU25: 0 | TV25: 0 | TW25: 0 | TX25: 0 | TY25: 0 | TZ25: 0 | UA25: 0 | UB25: 0 | UC25: 0 | UD25: 0 | UE25: 0 | UF25: 0 | UG25: 0 | UH25: 0 | UI25: 0 | UJ25: 0 | UK25: 0 | UL25: 0 | UM25: 0 | UN25: 0 | UO25: 0 | UP25: 0 | UQ25: 0 | UR25: 0 | US25: 0 | UT25: 0 | UU25: 0 | UV25: 0 | UW25: 0 | UX25: 0 | UY25: 0 | UZ25: 0 | VA25: 0 | VB25: 0 | VC25: 0 | VD25: 0 | VE25: 0 | VF25: 0 | VG25: 0 | VH25: 0 | VI25: 0 | VJ25: 0 | VK25: 0 | VL25: 0 | VM25: 0 | VN25: 0 | VO25: 0 | VP25: 0 | VQ25: 0 | VR25: 0 | VS25: 0 | VT25: 0 | VU25: 0 | VV25: 0 | VW25: 0 | VX25: 0 | VY25: 0 | VZ25: 0 | WA25: 0 | WB25: 0 | WC25: 0 | WD25: 0 | WE25: 0 | WF25: 0 | WG25: 0 | WH25: 0 | WI25: 0 | WJ25: 0 | WK25: 0 | WL25: 0 | WM25: 0 | WN25: 0 | WO25: 0 | WP25: 0 | WQ25: 0 | WR25: 0 | WS25: 0 | WT25: 0 | WU25: 0 | WV25: 0 | WW25: 0 | WX25: 0 | WY25: 0 | WZ25: 0 | XA25: 0 | XB25: 0 | XC25: 0 | XD25: 0 | XE25: 0 | XF25: 0 | XG25: 0 | XH25: 0 | XI25: 0 | XJ25: 0 | XK25: 0 | XL25: 0 | XM25: 0 | XN25: 0 | XO25: 0 | XP25: 0 | XQ25: 0 | XR25: 0 | XS25: 0 | XT25: 0 | XU25: 0 | XV25: 0 | XW25: 0 | XX25: 0 | XY25: 0 | XZ25: 0 | YA25: 0 | YB25: 0 | YC25: 0 | YD25: 0 | YE25: 0 | YF25: 0 | YG25: 0 | YH25: 0 | YI25: 0 | YJ25: 0 | YK25: 0 | YL25: 0 | YM25: 0 | YN25: 0 | YO25: 0 | YP25: 0 | YQ25: 0 | YR25: 0 | YS25: 0 | YT25: 0 | YU25: 0 | YV25: 0 | YW25: 0 | YX25: 0 | YY25: 0 | YZ25: 0 | ZA25: 0 | ZB25: 0 | ZC25: 0 | ZD25: 0 | ZE25: 0 | ZF25: 0 | ZG25: 0 | ZH25: 0 | ZI25: 0 | ZJ25: 0 | ZK25: 0 | ZL25: 0 | ZM25: 0 | ZN25: 0 | ZO25: 0 | ZP25: 0 | ZQ25: 0 | ZR25: 0 | ZS25: 0 | ZT25: 0 | ZU25: 0 | ZV25: 0 | ZW25: 0 | ZX25: 0 | ZY25: 0 | ZZ25: 0 | AAA25: 0 | AAB25: 0 | AAC25: 0 | AAD25: 0 | AAE25: 0 | AAF25: 0 | AAG25: 0 | AAH25: 0 | AAI25: 0 | AAJ25: 0 | AAK25: 0 | AAL25: 0 | AAM25: 0 | AAN25: 0 | AAO25: 0 | AAP25: 0 | AAQ25: 0 | AAR25: 0 | AAS25: 0 | AAT25: 0 | AAU25: 0 | AAV25: 0 | AAW25: 0 | AAX25: 0 | AAY25: 0 | AAZ25: 0 | ABA25: 0 | ABB25: 0 | ABC25: 0 | ABD25: 0 | ABE25: 0 | ABF25: 0 | ABG25: 0 | ABH25: 0 | ABI25: 0 | ABJ25: 0 | ABK25: 0 | ABL25: 0 | ABM25: 0 | ABN25: 0 | ABO25: 0 | ABP25: 0 | ABQ25: 0 | ABR25: 0 | ABS25: 0 | ABT25: 0 | ABU25: 0 | ABV25: 0 | ABW25: 0 | ABX25: 0 | ABY25: 0 | ABZ25: 0 | ACA25: 0 | ACB25: 0 | ACC25: 0 | ACD25: 0 | ACE25: 0 | ACF25: 0 | ACG25: 0 | ACH25: 0 | ACI25: 0 | ACJ25: 0 | ACK25: 0 | ACL25: 0 | ACM25: 0 | ACN25: 0 | ACO25: 0 | ACP25: 0 | ACQ25: 0 | ACR25: 0 | ACS25: 0 | ACT25: 0 | ACU25: 0 | ACV25: 0 | ACW25: 0 | ACX25: 0 | ACY25: 0 | ACZ25: 0 | ADA25: 0 | ADB25: 0 | ADC25: 0 | ADD25: 0 | ADE25: 0 | ADF25: 0 | ADG25: 0 | ADH25: 0 | ADI25: 0 | ADJ25: 0 | ADK25: 0 | ADL25: 0 | ADM25: 0 | ADN25: 0 | ADO25: 0 | ADP25: 0 | ADQ25: 0 | ADR25: 0 | ADS25: 0 | ADT25: 0 | ADU25: 0 | ADV25: 0 | ADW25: 0 | ADX25: 0 | ADY25: 0 | ADZ25: 0 | AEA25: 0 | AEB25: 0 | AEC25: 0 | AED25: 0 | AEE25: 0 | AEF25: 0 | AEG25: 0 | AEH25: 0 | AEI25: 0 | AEJ25: 0 | AEK25: 0 | AEL25: 0 | AEM25: 0 | AEN25: 0 | AEO25: 0 | AEP25: 0 | AEQ25: 0 | AER25: 0 | AES25: 0 | AET25: 0 | AEU25: 0 | AEV25: 0 | AEW25: 0 | AEX25: 0 | AEY25: 0 | AEZ25: 0 | AFA25: 0 | AFB25: 0 | AFC25: 0 | AFD25: 0 | AFE25: 0 | AFF25: 0 | AFG25: 0 | AFH25: 0 | AFI25: 0 | AFJ25: 0 | AFK25: 0 | AFL25: 0 | AFM25: 0 | AFN25: 0 | AFO25: 0 | AFP25: 0 | AFQ25: 0 | AFR25: 0 | AFS25: 0 | AFT25: 0 | AFU25: 0 | AFV25: 0 | AFW25: 0 | AFX25: 0 | AFY25: 0 | AFZ25: 0 | AGA25: 0 | AGB25: 0 | AGC25: 0 | AGD25: 0 | AGE25: 0 | AGF25: 0 | AGG25: 0 | AGH25: 0 | AGI25: 0 | AGJ25: 0 | AGK25: 0 | AGL25: 0 | AGM25: 0 | AGN25: 0 | AGO25: 0 | AGP25: 0 | AGQ25: 0 | AGR25: 0 | AGS25: 0 | AGT25: 0 | AGU25: 0 | AGV25: 0 | AGW25: 0 | AGX25: 0 | AGY25: 0 | AGZ25: 0 | AHA25: 0 | AHB25: 0 | AHC25: 0 | AHD25: 0 | AHE25: 0 | AHF25: 0 | AHG25: 0 | AHH25: 0 | AHI25: 0 | AHJ25: 0 | AHK25: 0 | AHL25: 0 | AHM25: 0 | AHN25: 0 | AHO25: 0 | AHP25: 0 | AHQ25: 0 | AHR25: 0 | AHS25: 0 | AHT25: 0 | AHU25: 0 | AHV25: 0 | AHW25: 0 | AHX25: 0 | AHY25: 0 | AHZ25: 0 | AIA25: 0 | AIB25: 0 | AIC25: 0 | AID25: 0 | AIE25: 0 | AIF25: 0 | AIG25: 0 | AIH25: 0 | AII25: 0 | AIJ25: 0 | AIK25: 0 | AIL25: 0 | AIM25: 0 | AIN25: 0 | AIO25: 0 | AIP25: 0 | AIQ25: 0 | AIR25: 0 | AIS25: 0 | AIT25: 0 | AIU25: 0 | AIV25: 0 | AIW25: 0 | AIX25: 0 | AIY25: 0 | AIZ25: 0 | AJA25: 0 | AJB25: 0 | AJC25: 0 | AJD25: 0 | AJE25: 0 | AJF25: 0 | AJG25: 0 | AJH25: 0 | AJI25: 0 | AJJ25: 0 | AJK25: 0 | AJL25: 0 | AJM25: 0 | AJN25: 0 | AJO25: 0 | AJP25: 0 | AJQ25: 0 | AJR25: 0 | AJS25: 0 | AJT25: 0 | AJU25: 0 | AJV25: 0
J26: 0 | K26: 0 | L26: 0 | M26: 0 | N26: 0 | O26: 0 | P26: 0 | Q26: 0 | R26: 0 | S26: 0 | T26: 0 | U26: 0 | V26: 0 | W26: 0 | X26: 0 | Y26: 0 | Z26: 0 | AA26: 0 | AB26: 0 | AC26: 0 | AD26: 0 | AE26: 0 | AF26: 0 | AG26: 0 | AH26: 0 | AI26: 0 | AJ26: 0 | AK26: 0 | AL26: 0 | AM26: 0 | AN26: 0 | AO26: 0 | AP26: 0 | AQ26: 0 | AR26: 0 | AS26: 0 | AT26: 0 | AU26: 0 | AV26: 0 | AW26: 0 | AX26: 0 | AY26: 0 | AZ26: 0 | BA26: 0 | BB26: 0 | BC26: 0 | BD26: 0 | BE26: 0 | BF26: 0 | BG26: 0 | BH26: 0 | BI26: 0 | BJ26: 0 | BK26: 0 | BL26: 0 | BM26: 0 | BN26: 0 | BO26: 0 | BP26: 0 | BQ26: 0 | BR26: 0 | BS26: 0 | BT26: 0 | BU26: 0 | BV26: 0 | BW26: 0 | BX26: 0 | BY26: 0 | BZ26: 0 | CA26: 0 | CB26: 0 | CC26: 0 | CD26: 0 | CE26: 0 | CF26: 0 | CG26: 0 | CH26: 0 | CI26: 0 | CJ26: 0 | CK26: 0 | CL26: 0 | CM26: 0 | CN26: 0 | CO26: 0 | CP26: 0 | CQ26: 0 | CR26: 0 | CS26: 0 | CT26: 0 | CU26: 0 | CV26: 0 | CW26: 0 | CX26: 0 | CY26: 0 | CZ26: 0 | DA26: 0 | DB26: 0 | DC26: 0 | DD26: 0 | DE26: 0 | DF26: 0 | DG26: 0 | DH26: 0 | DI26: 0 | DJ26: 0 | DK26: 0 | DL26: 0 | DM26: 0 | DN26: 0 | DO26: 0 | DP26: 0 | DQ26: 0 | DR26: 0 | DS26: 0 | DT26: 0 | DU26: 0 | DV26: 0 | DW26: 0 | DX26: 0 | DY26: 0 | DZ26: 0 | EA26: 0 | EB26: 0 | EC26: 0 | ED26: 0 | EE26: 0 | EF26: 0 | EG26: 0 | EH26: 0 | EI26: 0 | EJ26: 0 | EK26: 0 | EL26: 0 | EM26: 0 | EN26: 0 | EO26: 0 | EP26: 0 | EQ26: 0 | ER26: 0 | ES26: 0 | ET26: 0 | EU26: 0 | EV26: 0 | EW26: 0 | EX26: 0 | EY26: 0 | EZ26: 0 | FA26: 0 | FB26: 0 | FC26: 0 | FD26: 0 | FE26: 0 | FF26: 0 | FG26: 0 | FH26: 0 | FI26: 0 | FJ26: 0 | FK26: 0 | FL26: 0 | FM26: 0 | FN26: 0 | FO26: 0 | FP26: 0 | FQ26: 0 | FR26: 0 | FS26: 0 | FT26: 0 | FU26: 0 | FV26: 0 | FW26: 0 | FX26: 0 | FY26: 0 | FZ26: 0 | GA26: 0 | GB26: 0 | GC26: 0 | GD26: 0 | GE26: 0 | GF26: 0 | GG26: 0 | GH26: 0 | GI26: 0 | GJ26: 0 | GK26: 0 | GL26: 0 | GM26: 0 | GN26: 0 | GO26: 0 | GP26: 0 | GQ26: 0 | GR26: 0 | GS26: 0 | GT26: 0 | GU26: 0 | GV26: 0 | GW26: 0 | GX26: 0 | GY26: 0 | GZ26: 0 | HA26: 0 | HB26: 0 | HC26: 0 | HD26: 0 | HE26: 0 | HF26: 0 | HG26: 0 | HH26: 0 | HI26: 0 | HJ26: 0 | HK26: 0 | HL26: 0 | HM26: 0 | HN26: 0 | HO26: 0 | HP26: 0 | HQ26: 0 | HR26: 0 | HS26: 0 | HT26: 0 | HU26: 0 | HV26: 0 | HW26: 0 | HX26: 0 | HY26: 0 | HZ26: 0 | IA26: 0 | IB26: 0 | IC26: 0 | ID26: 0 | IE26: 0 | IF26: 0 | IG26: 0 | IH26: 0 | II26: 0 | IJ26: 0 | IK26: 0 | IL26: 0 | IM26: 0 | IN26: 0 | IO26: 0 | IP26: 0 | IQ26: 0 | IR26: 0 | IS26: 0 | IT26: 0 | IU26: 0 | IV26: 0 | IW26: 0 | IX26: 0 | IY26: 0 | IZ26: 0 | JA26: 0 | JB26: 0 | JC26: 0 | JD26: 0 | JE26: 0 | JF26: 0 | JG26: 0 | JH26: 0 | JI26: 0 | JJ26: 0 | JK26: 0 | JL26: 0 | JM26: 0 | JN26: 0 | JO26: 0 | JP26: 0 | JQ26: 0 | JR26: 0 | JS26: 0 | JT26: 0 | JU26: 0 | JV26: 0 | JW26: 0 | JX26: 0 | JY26: 0 | JZ26: 0 | KA26: 0 | KB26: 0 | KC26: 0 | KD26: 0 | KE26: 0 | KF26: 0 | KG26: 0 | KH26: 0 | KI26: 0 | KJ26: 0 | KK26: 0 | KL26: 0 | KM26: 0 | KN26: 0 | KO26: 0 | KP26: 0 | KQ26: 0 | KR26: 0 | KS26: 0 | KT26: 0 | KU26: 0 | KV26: 0 | KW26: 0 | KX26: 0 | KY26: 0 | KZ26: 0 | LA26: 0 | LB26: 0 | LC26: 0 | LD26: 0 | LE26: 0 | LF26: 0 | LG26: 0 | LH26: 0 | LI26: 0 | LJ26: 0 | LK26: 0 | LL26: 0 | LM26: 0 | LN26: 0 | LO26: 0 | LP26: 0 | LQ26: 0 | LR26: 0 | LS26: 0 | LT26: 0 | LU26: 0 | LV26: 0 | LW26: 0 | LX26: 0 | LY26: 0 | LZ26: 0 | MA26: 0 | MB26: 0 | MC26: 0 | MD26: 0 | ME26: 0 | MF26: 0 | MG26: 0 | MH26: 0 | MI26: 0 | MJ26: 0 | MK26: 0 | ML26: 0 | MM26: 0 | MN26: 0 | MO26: 0 | MP26: 0 | MQ26: 0 | MR26: 0 | MS26: 0 | MT26: 0 | MU26: 0 | MV26: 0 | MW26: 0 | MX26: 0 | MY26: 0 | MZ26: 0 | NA26: 0 | NB26: 0 | NC26: 0 | ND26: 0 | NE26: 0 | NF26: 0 | NG26: 0 | NH26: 0 | NI26: 0 | NJ26: 0 | NK26: 0 | NL26: 0 | NM26: 0 | NN26: 0 | NO26: 0 | NP26: 0 | NQ26: 0 | NR26: 0 | NS26: 0 | NT26: 0 | NU26: 0 | NV26: 0 | NW26: 0 | NX26: 0 | NY26: 0 | NZ26: 0 | OA26: 0 | OB26: 0 | OC26: 0 | OD26: 0 | OE26: 0 | OF26: 0 | OG26: 0 | OH26: 0 | OI26: 0 | OJ26: 0 | OK26: 0 | OL26: 0 | OM26: 0 | ON26: 0 | OO26: 0 | OP26: 0 | OQ26: 0 | OR26: 0 | OS26: 0 | OT26: 0 | OU26: 0 | OV26: 0 | OW26: 0 | OX26: 0 | OY26: 0 | OZ26: 0 | PA26: 0 | PB26: 0 | PC26: 0 | PD26: 0 | PE26: 0 | PF26: 0 | PG26: 0 | PH26: 0 | PI26: 0 | PJ26: 0 | PK26: 0 | PL26: 0 | PM26: 0 | PN26: 0 | PO26: 0 | PP26: 0 | PQ26: 0 | PR26: 0 | PS26: 0 | PT26: 0 | PU26: 0 | PV26: 0 | PW26: 0 | PX26: 0 | PY26: 0 | PZ26: 0 | QA26: 0 | QB26: 0 | QC26: 0 | QD26: 0 | QE26: 0 | QF26: 0 | QG26: 0 | QH26: 0 | QI26: 0 | QJ26: 0 | QK26: 0 | QL26: 0 | QM26: 0 | QN26: 0 | QO26: 0 | QP26: 0 | QQ26: 0 | QR26: 0 | QS26: 0 | QT26: 0 | QU26: 0 | QV26: 0 | QW26: 0 | QX26: 0 | QY26: 0 | QZ26: 0 | RA26: 0 | RB26: 0 | RC26: 0 | RD26: 0 | RE26: 0 | RF26: 0 | RG26: 0 | RH26: 0 | RI26: 0 | RJ26: 0 | RK26: 0 | RL26: 0 | RM26: 0 | RN26: 0 | RO26: 0 | RP26: 0 | RQ26: 0 | RR26: 0 | RS26: 0 | RT26: 0 | RU26: 0 | RV26: 0 | RW26: 0 | RX26: 0 | RY26: 0 | RZ26: 0 | SA26: 0 | SB26: 0 | SC26: 0 | SD26: 0 | SE26: 0 | SF26: 0 | SG26: 0 | SH26: 0 | SI26: 0 | SJ26: 0 | SK26: 0 | SL26: 0 | SM26: 0 | SN26: 0 | SO26: 0 | SP26: 0 | SQ26: 0 | SR26: 0 | SS26: 0 | ST26: 0 | SU26: 0 | SV26: 0 | SW26: 0 | SX26: 0 | SY26: 0 | SZ26: 0 | TA26: 0 | TB26: 0 | TC26: 0 | TD26: 0 | TE26: 0 | TF26: 0 | TG26: 0 | TH26: 0 | TI26: 0 | TJ26: 0 | TK26: 0 | TL26: 0 | TM26: 0 | TN26: 0 | TO26: 0 | TP26: 0 | TQ26: 0 | TR26: 0 | TS26: 0 | TT26: 0 | TU26: 0 | TV26: 0 | TW26: 0 | TX26: 0 | TY26: 0 | TZ26: 0 | UA26: 0 | UB26: 0 | UC26: 0 | UD26: 0 | UE26: 0 | UF26: 0 | UG26: 0 | UH26: 0 | UI26: 0 | UJ26: 0 | UK26: 0 | UL26: 0 | UM26: 0 | UN26: 0 | UO26: 0 | UP26: 0 | UQ26: 0 | UR26: 0 | US26: 0 | UT26: 0 | UU26: 0 | UV26: 0 | UW26: 0 | UX26: 0 | UY26: 0 | UZ26: 0 | VA26: 0 | VB26: 0 | VC26: 0 | VD26: 0 | VE26: 0 | VF26: 0 | VG26: 0 | VH26: 0 | VI26: 0 | VJ26: 0 | VK26: 0 | VL26: 0 | VM26: 0 | VN26: 0 | VO26: 0 | VP26: 0 | VQ26: 0 | VR26: 0 | VS26: 0 | VT26: 0 | VU26: 0 | VV26: 0 | VW26: 0 | VX26: 0 | VY26: 0 | VZ26: 0 | WA26: 0 | WB26: 0 | WC26: 0 | WD26: 0 | WE26: 0 | WF26: 0 | WG26: 0 | WH26: 0 | WI26: 0 | WJ26: 0 | WK26: 0 | WL26: 0 | WM26: 0 | WN26: 0 | WO26: 0 | WP26: 0 | WQ26: 0 | WR26: 0 | WS26: 0 | WT26: 0 | WU26: 0 | WV26: 0 | WW26: 0 | WX26: 0 | WY26: 0 | WZ26: 0 | XA26: 0 | XB26: 0 | XC26: 0 | XD26: 0 | XE26: 0 | XF26: 0 | XG26: 0 | XH26: 0 | XI26: 0 | XJ26: 0 | XK26: 0 | XL26: 0 | XM26: 0 | XN26: 0 | XO26: 0 | XP26: 0 | XQ26: 0 | XR26: 0 | XS26: 0 | XT26: 0 | XU26: 0 | XV26: 0 | XW26: 0 | XX26: 0 | XY26: 0 | XZ26: 0 | YA26: 0 | YB26: 0 | YC26: 0 | YD26: 0 | YE26: 0 | YF26: 0 | YG26: 0 | YH26: 0 | YI26: 0 | YJ26: 0 | YK26: 0 | YL26: 0 | YM26: 0 | YN26: 0 | YO26: 0 | YP26: 0 | YQ26: 0 | YR26: 0 | YS26: 0 | YT26: 0 | YU26: 0 | YV26: 0 | YW26: 0 | YX26: 0 | YY26: 0 | YZ26: 0 | ZA26: 0 | ZB26: 0 | ZC26: 0 | ZD26: 0 | ZE26: 0 | ZF26: 0 | ZG26: 0 | ZH26: 0 | ZI26: 0 | ZJ26: 0 | ZK26: 0 | ZL26: 0 | ZM26: 0 | ZN26: 0 | ZO26: 0 | ZP26: 0 | ZQ26: 0 | ZR26: 0 | ZS26: 0 | ZT26: 0 | ZU26: 0 | ZV26: 0 | ZW26: 0 | ZX26: 0 | ZY26: 0 | ZZ26: 0 | AAA26: 0 | AAB26: 0 | AAC26: 0 | AAD26: 0 | AAE26: 0 | AAF26: 0 | AAG26: 0 | AAH26: 0 | AAI26: 0 | AAJ26: 0 | AAK26: 0 | AAL26: 0 | AAM26: 0 | AAN26: 0 | AAO26: 0 | AAP26: 0 | AAQ26: 0 | AAR26: 0 | AAS26: 0 | AAT26: 0 | AAU26: 0 | AAV26: 0 | AAW26: 0 | AAX26: 0 | AAY26: 0 | AAZ26: 0 | ABA26: 0 | ABB26: 0 | ABC26: 0 | ABD26: 0 | ABE26: 0 | ABF26: 0 | ABG26: 0 | ABH26: 0 | ABI26: 0 | ABJ26: 0 | ABK26: 0 | ABL26: 0 | ABM26: 0 | ABN26: 0 | ABO26: 0 | ABP26: 0 | ABQ26: 0 | ABR26: 0 | ABS26: 0 | ABT26: 0 | ABU26: 0 | ABV26: 0 | ABW26: 0 | ABX26: 0 | ABY26: 0 | ABZ26: 0 | ACA26: 0 | ACB26: 0 | ACC26: 0 | ACD26: 0 | ACE26: 0 | ACF26: 0 | ACG26: 0 | ACH26: 0 | ACI26: 0 | ACJ26: 0 | ACK26: 0 | ACL26: 0 | ACM26: 0 | ACN26: 0 | ACO26: 0 | ACP26: 0 | ACQ26: 0 | ACR26: 0 | ACS26: 0 | ACT26: 0 | ACU26: 0 | ACV26: 0 | ACW26: 0 | ACX26: 0 | ACY26: 0 | ACZ26: 0 | ADA26: 0 | ADB26: 0 | ADC26: 0 | ADD26: 0 | ADE26: 0 | ADF26: 0 | ADG26: 0 | ADH26: 0 | ADI26: 0 | ADJ26: 0 | ADK26: 0 | ADL26: 0 | ADM26: 0 | ADN26: 0 | ADO26: 0 | ADP26: 0 | ADQ26: 0 | ADR26: 0 | ADS26: 0 | ADT26: 0 | ADU26: 0 | ADV26: 0 | ADW26: 0 | ADX26: 0 | ADY26: 0 | ADZ26: 0 | AEA26: 0 | AEB26: 0 | AEC26: 0 | AED26: 0 | AEE26: 0 | AEF26: 0 | AEG26: 0 | AEH26: 0 | AEI26: 0 | AEJ26: 0 | AEK26: 0 | AEL26: 0 | AEM26: 0 | AEN26: 0 | AEO26: 0 | AEP26: 0 | AEQ26: 0 | AER26: 0 | AES26: 0 | AET26: 0 | AEU26: 0 | AEV26: 0 | AEW26: 0 | AEX26: 0 | AEY26: 0 | AEZ26: 0 | AFA26: 0 | AFB26: 0 | AFC26: 0 | AFD26: 0 | AFE26: 0 | AFF26: 0 | AFG26: 0 | AFH26: 0 | AFI26: 0 | AFJ26: 0 | AFK26: 0 | AFL26: 0 | AFM26: 0 | AFN26: 0 | AFO26: 0 | AFP26: 0 | AFQ26: 0 | AFR26: 0 | AFS26: 0 | AFT26: 0 | AFU26: 0 | AFV26: 0 | AFW26: 0 | AFX26: 0 | AFY26: 0 | AFZ26: 0 | AGA26: 0 | AGB26: 0 | AGC26: 0 | AGD26: 0 | AGE26: 0 | AGF26: 0 | AGG26: 0 | AGH26: 0 | AGI26: 0 | AGJ26: 0 | AGK26: 0 | AGL26: 0 | AGM26: 0 | AGN26: 0 | AGO26: 0 | AGP26: 0 | AGQ26: 0 | AGR26: 0 | AGS26: 0 | AGT26: 0 | AGU26: 0 | AGV26: 0 | AGW26: 0 | AGX26: 0 | AGY26: 0 | AGZ26: 0 | AHA26: 0 | AHB26: 0 | AHC26: 0 | AHD26: 0 | AHE26: 0 | AHF26: 0 | AHG26: 0 | AHH26: 0 | AHI26: 0 | AHJ26: 0 | AHK26: 0 | AHL26: 0 | AHM26: 0 | AHN26: 0 | AHO26: 0 | AHP26: 0 | AHQ26: 0 | AHR26: 0 | AHS26: 0 | AHT26: 0 | AHU26: 0 | AHV26: 0 | AHW26: 0 | AHX26: 0 | AHY26: 0 | AHZ26: 0 | AIA26: 0 | AIB26: 0 | AIC26: 0 | AID26: 0 | AIE26: 0 | AIF26: 0 | AIG26: 0 | AIH26: 0 | AII26: 0 | AIJ26: 0 | AIK26: 0 | AIL26: 0 | AIM26: 0 | AIN26: 0 | AIO26: 0 | AIP26: 0 | AIQ26: 0 | AIR26: 0 | AIS26: 0 | AIT26: 0 | AIU26: 0 | AIV26: 0 | AIW26: 0 | AIX26: 0 | AIY26: 0 | AIZ26: 0 | AJA26: 0 | AJB26: 0 | AJC26: 0 | AJD26: 0 | AJE26: 0 | AJF26: 0 | AJG26: 0 | AJH26: 0 | AJI26: 0 | AJJ26: 0 | AJK26: 0 | AJL26: 0 | AJM26: 0 | AJN26: 0 | AJO26: 0 | AJP26: 0 | AJQ26: 0 | AJR26: 0 | AJS26: 0 | AJT26: 0 | AJU26: 0 | AJV26: 0
J27: 0 | K27: 0 | L27: 0 | M27: 0 | N27: 0 | O27: 0 | P27: 0 | Q27: 0 | R27: 0 | S27: 0 | T27: 0 | U27: 0 | V27: 0 | W27: 0 | X27: 0 | Y27: 0 | Z27: 0 | AA27: 0 | AB27: 0 | AC27: 0 | AD27: 0 | AE27: 0 | AF27: 0 | AG27: 0 | AH27: 0 | AI27: 0 | AJ27: 0 | AK27: 0 | AL27: 0 | AM27: 0 | AN27: 0 | AO27: 0 | AP27: 0 | AQ27: 0 | AR27: 0 | AS27: 0 | AT27: 0 | AU27: 0 | AV27: 0 | AW27: 0 | AX27: 0 | AY27: 0 | AZ27: 0 | BA27: 0 | BB27: 0 | BC27: 0 | BD27: 0 | BE27: 0 | BF27: 0 | BG27: 0 | BH27: 0 | BI27: 0 | BJ27: 0 | BK27: 0 | BL27: 0 | BM27: 0 | BN27: 0 | BO27: 0 | BP27: 0 | BQ27: 0 | BR27: 0 | BS27: 0 | BT27: 0 | BU27: 0 | BV27: 0 | BW27: 0 | BX27: 0 | BY27: 0 | BZ27: 0 | CA27: 0 | CB27: 0 | CC27: 0 | CD27: 0 | CE27: 0 | CF27: 0 | CG27: 0 | CH27: 0 | CI27: 0 | CJ27: 0 | CK27: 0 | CL27: 0 | CM27: 0 | CN27: 0 | CO27: 0 | CP27: 0 | CQ27: 0 | CR27: 0 | CS27: 0 | CT27: 0 | CU27: 0 | CV27: 0 | CW27: 0 | CX27: 0 | CY27: 0 | CZ27: 0 | DA27: 0 | DB27: 0 | DC27: 0 | DD27: 0 | DE27: 0 | DF27: 0 | DG27: 0 | DH27: 0 | DI27: 0 | DJ27: 0 | DK27: 0 | DL27: 0 | DM27: 0 | DN27: 0 | DO27: 0 | DP27: 0 | DQ27: 0 | DR27: 0 | DS27: 0 | DT27: 0 | DU27: 0 | DV27: 0 | DW27: 0 | DX27: 0 | DY27: 0 | DZ27: 0 | EA27: 0 | EB27: 0 | EC27: 0 | ED27: 0 | EE27: 0 | EF27: 0 | EG27: 0 | EH27: 0 | EI27: 0 | EJ27: 0 | EK27: 0 | EL27: 0 | EM27: 0 | EN27: 0 | EO27: 0 | EP27: 0 | EQ27: 0 | ER27: 0 | ES27: 0 | ET27: 0 | EU27: 0 | EV27: 0 | EW27: 0 | EX27: 0 | EY27: 0 | EZ27: 0 | FA27: 0 | FB27: 0 | FC27: 0 | FD27: 0 | FE27: 0 | FF27: 0 | FG27: 0 | FH27: 0 | FI27: 0 | FJ27: 0 | FK27: 0 | FL27: 0 | FM27: 0 | FN27: 0 | FO27: 0 | FP27: 0 | FQ27: 0 | FR27: 0 | FS27: 0 | FT27: 0 | FU27: 0 | FV27: 0 | FW27: 0 | FX27: 0 | FY27: 0 | FZ27: 0 | GA27: 0 | GB27: 0 | GC27: 0 | GD27: 0 | GE27: 0 | GF27: 0 | GG27: 0 | GH27: 0 | GI27: 0 | GJ27: 0 | GK27: 0 | GL27: 0 | GM27: 0 | GN27: 0 | GO27: 0 | GP27: 0 | GQ27: 0 | GR27: 0 | GS27: 0 | GT27: 0 | GU27: 0 | GV27: 0 | GW27: 0 | GX27: 0 | GY27: 0 | GZ27: 0 | HA27: 0 | HB27: 0 | HC27: 0 | HD27: 0 | HE27: 0 | HF27: 0 | HG27: 0 | HH27: 0 | HI27: 0 | HJ27: 0 | HK27: 0 | HL27: 0 | HM27: 0 | HN27: 0 | HO27: 0 | HP27: 0 | HQ27: 0 | HR27: 0 | HS27: 0 | HT27: 0 | HU27: 0 | HV27: 0 | HW27: 0 | HX27: 0 | HY27: 0 | HZ27: 0 | IA27: 0 | IB27: 0 | IC27: 0 | ID27: 0 | IE27: 0 | IF27: 0 | IG27: 0 | IH27: 0 | II27: 0 | IJ27: 0 | IK27: 0 | IL27: 0 | IM27: 0 | IN27: 0 | IO27: 0 | IP27: 0 | IQ27: 0 | IR27: 0 | IS27: 0 | IT27: 0 | IU27: 0 | IV27: 0 | IW27: 0 | IX27: 0 | IY27: 0 | IZ27: 0 | JA27: 0 | JB27: 0 | JC27: 0 | JD27: 0 | JE27: 0 | JF27: 0 | JG27: 0 | JH27: 0 | JI27: 0 | JJ27: 0 | JK27: 0 | JL27: 0 | JM27: 0 | JN27: 0 | JO27: 0 | JP27: 0 | JQ27: 0 | JR27: 0 | JS27: 0 | JT27: 0 | JU27: 0 | JV27: 0 | JW27: 0 | JX27: 0 | JY27: 0 | JZ27: 0 | KA27: 0 | KB27: 0 | KC27: 0 | KD27: 0 | KE27: 0 | KF27: 0 | KG27: 0 | KH27: 0 | KI27: 0 | KJ27: 0 | KK27: 0 | KL27: 0 | KM27: 0 | KN27: 0 | KO27: 0 | KP27: 0 | KQ27: 0 | KR27: 0 | KS27: 0 | KT27: 0 | KU27: 0 | KV27: 0 | KW27: 0 | KX27: 0 | KY27: 0 | KZ27: 0 | LA27: 0 | LB27: 0 | LC27: 0 | LD27: 0 | LE27: 0 | LF27: 0 | LG27: 0 | LH27: 0 | LI27: 0 | LJ27: 0 | LK27: 0 | LL27: 0 | LM27: 0 | LN27: 0 | LO27: 0 | LP27: 0 | LQ27: 0 | LR27: 0 | LS27: 0 | LT27: 0 | LU27: 0 | LV27: 0 | LW27: 0 | LX27: 0 | LY27: 0 | LZ27: 0 | MA27: 0 | MB27: 0 | MC27: 0 | MD27: 0 | ME27: 0 | MF27: 0 | MG27: 0 | MH27: 0 | MI27: 0 | MJ27: 0 | MK27: 0 | ML27: 0 | MM27: 0 | MN27: 0 | MO27: 0 | MP27: 0 | MQ27: 0 | MR27: 0 | MS27: 0 | MT27: 0 | MU27: 0 | MV27: 0 | MW27: 0 | MX27: 0 | MY27: 0 | MZ27: 0 | NA27: 0 | NB27: 0 | NC27: 0 | ND27: 0 | NE27: 0 | NF27: 0 | NG27: 0 | NH27: 0 | NI27: 0 | NJ27: 0 | NK27: 0 | NL27: 0 | NM27: 0 | NN27: 0 | NO27: 0 | NP27: 0 | NQ27: 0 | NR27: 0 | NS27: 0 | NT27: 0 | NU27: 0 | NV27: 0 | NW27: 0 | NX27: 0 | NY27: 0 | NZ27: 0 | OA27: 0 | OB27: 0 | OC27: 0 | OD27: 0 | OE27: 0 | OF27: 0 | OG27: 0 | OH27: 0 | OI27: 0 | OJ27: 0 | OK27: 0 | OL27: 0 | OM27: 0 | ON27: 0 | OO27: 0 | OP27: 0 | OQ27: 0 | OR27: 0 | OS27: 0 | OT27: 0 | OU27: 0 | OV27: 0 | OW27: 0 | OX27: 0 | OY27: 0 | OZ27: 0 | PA27: 0 | PB27: 0 | PC27: 0 | PD27: 0 | PE27: 0 | PF27: 0 | PG27: 0 | PH27: 0 | PI27: 0 | PJ27: 0 | PK27: 0 | PL27: 0 | PM27: 0 | PN27: 0 | PO27: 0 | PP27: 0 | PQ27: 0 | PR27: 0 | PS27: 0 | PT27: 0 | PU27: 0 | PV27: 0 | PW27: 0 | PX27: 0 | PY27: 0 | PZ27: 0 | QA27: 0 | QB27: 0 | QC27: 0 | QD27: 0 | QE27: 0 | QF27: 0 | QG27: 0 | QH27: 0 | QI27: 0 | QJ27: 0 | QK27: 0 | QL27: 0 | QM27: 0 | QN27: 0 | QO27: 0 | QP27: 0 | QQ27: 0 | QR27: 0 | QS27: 0 | QT27: 0 | QU27: 0 | QV27: 0 | QW27: 0 | QX27: 0 | QY27: 0 | QZ27: 0 | RA27: 0 | RB27: 0 | RC27: 0 | RD27: 0 | RE27: 0 | RF27: 0 | RG27: 0 | RH27: 0 | RI27: 0 | RJ27: 0 | RK27: 0 | RL27: 0 | RM27: 0 | RN27: 0 | RO27: 0 | RP27: 0 | RQ27: 0 | RR27: 0 | RS27: 0 | RT27: 0 | RU27: 0 | RV27: 0 | RW27: 0 | RX27: 0 | RY27: 0 | RZ27: 0 | SA27: 0 | SB27: 0 | SC27: 0 | SD27: 0 | SE27: 0 | SF27: 0 | SG27: 0 | SH27: 0 | SI27: 0 | SJ27: 0 | SK27: 0 | SL27: 0 | SM27: 0 | SN27: 0 | SO27: 0 | SP27: 0 | SQ27: 0 | SR27: 0 | SS27: 0 | ST27: 0 | SU27: 0 | SV27: 0 | SW27: 0 | SX27: 0 | SY27: 0 | SZ27: 0 | TA27: 0 | TB27: 0 | TC27: 0 | TD27: 0 | TE27: 0 | TF27: 0 | TG27: 0 | TH27: 0 | TI27: 0 | TJ27: 0 | TK27: 0 | TL27: 0 | TM27: 0 | TN27: 0 | TO27: 0 | TP27: 0 | TQ27: 0 | TR27: 0 | TS27: 0 | TT27: 0 | TU27: 0 | TV27: 0 | TW27: 0 | TX27: 0 | TY27: 0 | TZ27: 0 | UA27: 0 | UB27: 0 | UC27: 0 | UD27: 0 | UE27: 0 | UF27: 0 | UG27: 0 | UH27: 0 | UI27: 0 | UJ27: 0 | UK27: 0 | UL27: 0 | UM27: 0 | UN27: 0 | UO27: 0 | UP27: 0 | UQ27: 0 | UR27: 0 | US27: 0 | UT27: 0 | UU27: 0 | UV27: 0 | UW27: 0 | UX27: 0 | UY27: 0 | UZ27: 0 | VA27: 0 | VB27: 0 | VC27: 0 | VD27: 0 | VE27: 0 | VF27: 0 | VG27: 0 | VH27: 0 | VI27: 0 | VJ27: 0 | VK27: 0 | VL27: 0 | VM27: 0 | VN27: 0 | VO27: 0 | VP27: 0 | VQ27: 0 | VR27: 0 | VS27: 0 | VT27: 0 | VU27: 0 | VV27: 0 | VW27: 0 | VX27: 0 | VY27: 0 | VZ27: 0 | WA27: 0 | WB27: 0 | WC27: 0 | WD27: 0 | WE27: 0 | WF27: 0 | WG27: 0 | WH27: 0 | WI27: 0 | WJ27: 0 | WK27: 0 | WL27: 0 | WM27: 0 | WN27: 0 | WO27: 0 | WP27: 0 | WQ27: 0 | WR27: 0 | WS27: 0 | WT27: 0 | WU27: 0 | WV27: 0 | WW27: 0 | WX27: 0 | WY27: 0 | WZ27: 0 | XA27: 0 | XB27: 0 | XC27: 0 | XD27: 0 | XE27: 0 | XF27: 0 | XG27: 0 | XH27: 0 | XI27: 0 | XJ27: 0 | XK27: 0 | XL27: 0 | XM27: 0 | XN27: 0 | XO27: 0 | XP27: 0 | XQ27: 0 | XR27: 0 | XS27: 0 | XT27: 0 | XU27: 0 | XV27: 0 | XW27: 0 | XX27: 0 | XY27: 0 | XZ27: 0 | YA27: 0 | YB27: 0 | YC27: 0 | YD27: 0 | YE27: 0 | YF27: 0 | YG27: 0 | YH27: 0 | YI27: 0 | YJ27: 0 | YK27: 0 | YL27: 0 | YM27: 0 | YN27: 0 | YO27: 0 | YP27: 0 | YQ27: 0 | YR27: 0 | YS27: 0 | YT27: 0 | YU27: 0 | YV27: 0 | YW27: 0 | YX27: 0 | YY27: 0 | YZ27: 0 | ZA27: 0 | ZB27: 0 | ZC27: 0 | ZD27: 0 | ZE27: 0 | ZF27: 0 | ZG27: 0 | ZH27: 0 | ZI27: 0 | ZJ27: 0 | ZK27: 0 | ZL27: 0 | ZM27: 0 | ZN27: 0 | ZO27: 0 | ZP27: 0 | ZQ27: 0 | ZR27: 0 | ZS27: 0 | ZT27: 0 | ZU27: 0 | ZV27: 0 | ZW27: 0 | ZX27: 0 | ZY27: 0 | ZZ27: 0 | AAA27: 0 | AAB27: 0 | AAC27: 0 | AAD27: 0 | AAE27: 0 | AAF27: 0 | AAG27: 0 | AAH27: 0 | AAI27: 0 | AAJ27: 0 | AAK27: 0 | AAL27: 0 | AAM27: 0 | AAN27: 0 | AAO27: 0 | AAP27: 0 | AAQ27: 0 | AAR27: 0 | AAS27: 0 | AAT27: 0 | AAU27: 0 | AAV27: 0 | AAW27: 0 | AAX27: 0 | AAY27: 0 | AAZ27: 0 | ABA27: 0 | ABB27: 0 | ABC27: 0 | ABD27: 0 | ABE27: 0 | ABF27: 0 | ABG27: 0 | ABH27: 0 | ABI27: 0 | ABJ27: 0 | ABK27: 0 | ABL27: 0 | ABM27: 0 | ABN27: 0 | ABO27: 0 | ABP27: 0 | ABQ27: 0 | ABR27: 0 | ABS27: 0 | ABT27: 0 | ABU27: 0 | ABV27: 0 | ABW27: 0 | ABX27: 0 | ABY27: 0 | ABZ27: 0 | ACA27: 0 | ACB27: 0 | ACC27: 0 | ACD27: 0 | ACE27: 0 | ACF27: 0 | ACG27: 0 | ACH27: 0 | ACI27: 0 | ACJ27: 0 | ACK27: 0 | ACL27: 0 | ACM27: 0 | ACN27: 0 | ACO27: 0 | ACP27: 0 | ACQ27: 0 | ACR27: 0 | ACS27: 0 | ACT27: 0 | ACU27: 0 | ACV27: 0 | ACW27: 0 | ACX27: 0 | ACY27: 0 | ACZ27: 0 | ADA27: 0 | ADB27: 0 | ADC27: 0 | ADD27: 0 | ADE27: 0 | ADF27: 0 | ADG27: 0 | ADH27: 0 | ADI27: 0 | ADJ27: 0 | ADK27: 0 | ADL27: 0 | ADM27: 0 | ADN27: 0 | ADO27: 0 | ADP27: 0 | ADQ27: 0 | ADR27: 0 | ADS27: 0 | ADT27: 0 | ADU27: 0 | ADV27: 0 | ADW27: 0 | ADX27: 0 | ADY27: 0 | ADZ27: 0 | AEA27: 0 | AEB27: 0 | AEC27: 0 | AED27: 0 | AEE27: 0 | AEF27: 0 | AEG27: 0 | AEH27: 0 | AEI27: 0 | AEJ27: 0 | AEK27: 0 | AEL27: 0 | AEM27: 0 | AEN27: 0 | AEO27: 0 | AEP27: 0 | AEQ27: 0 | AER27: 0 | AES27: 0 | AET27: 0 | AEU27: 0 | AEV27: 0 | AEW27: 0 | AEX27: 0 | AEY27: 0 | AEZ27: 0 | AFA27: 0 | AFB27: 0 | AFC27: 0 | AFD27: 0 | AFE27: 0 | AFF27: 0 | AFG27: 0 | AFH27: 0 | AFI27: 0 | AFJ27: 0 | AFK27: 0 | AFL27: 0 | AFM27: 0 | AFN27: 0 | AFO27: 0 | AFP27: 0 | AFQ27: 0 | AFR27: 0 | AFS27: 0 | AFT27: 0 | AFU27: 0 | AFV27: 0 | AFW27: 0 | AFX27: 0 | AFY27: 0 | AFZ27: 0 | AGA27: 0 | AGB27: 0 | AGC27: 0 | AGD27: 0 | AGE27: 0 | AGF27: 0 | AGG27: 0 | AGH27: 0 | AGI27: 0 | AGJ27: 0 | AGK27: 0 | AGL27: 0 | AGM27: 0 | AGN27: 0 | AGO27: 0 | AGP27: 0 | AGQ27: 0 | AGR27: 0 | AGS27: 0 | AGT27: 0 | AGU27: 0 | AGV27: 0 | AGW27: 0 | AGX27: 0 | AGY27: 0 | AGZ27: 0 | AHA27: 0 | AHB27: 0 | AHC27: 0 | AHD27: 0 | AHE27: 0 | AHF27: 0 | AHG27: 0 | AHH27: 0 | AHI27: 0 | AHJ27: 0 | AHK27: 0 | AHL27: 0 | AHM27: 0 | AHN27: 0 | AHO27: 0 | AHP27: 0 | AHQ27: 0 | AHR27: 0 | AHS27: 0 | AHT27: 0 | AHU27: 0 | AHV27: 0 | AHW27: 0 | AHX27: 0 | AHY27: 0 | AHZ27: 0 | AIA27: 0 | AIB27: 0 | AIC27: 0 | AID27: 0 | AIE27: 0 | AIF27: 0 | AIG27: 0 | AIH27: 0 | AII27: 0 | AIJ27: 0 | AIK27: 0 | AIL27: 0 | AIM27: 0 | AIN27: 0 | AIO27: 0 | AIP27: 0 | AIQ27: 0 | AIR27: 0 | AIS27: 0 | AIT27: 0 | AIU27: 0 | AIV27: 0 | AIW27: 0 | AIX27: 0 | AIY27: 0 | AIZ27: 0 | AJA27: 0 | AJB27: 0 | AJC27: 0 | AJD27: 0 | AJE27: 0 | AJF27: 0 | AJG27: 0 | AJH27: 0 | AJI27: 0 | AJJ27: 0 | AJK27: 0 | AJL27: 0 | AJM27: 0 | AJN27: 0 | AJO27: 0 | AJP27: 0 | AJQ27: 0 | AJR27: 0 | AJS27: 0 | AJT27: 0 | AJU27: 0 | AJV27: 0
B31: Labor Expenses:
H32: Capital Labor Direct (Annual): | I32: 0 | J32: 0 | K32: 0 | L32: 0 | M32: 0 | N32: 0 | O32: 0 | P32: 0 | Q32: 0 | R32: 0 | S32: 0 | T32: 0 | U32: 0 | V32: 0 | W32: 0 | X32: 0 | Y32: 0 | Z32: 0 | AA32: 0 | AB32: 0 | AC32: 0 | AD32: 0 | AE32: 0 | AF32: 0 | AG32: 0 | AH32: 0 | AI32: 0 | AJ32: 0 | AK32: 0 | AL32: 0 | AM32: 0 | AN32: 0 | AO32: 0 | AP32: 0 | AQ32: 0 | AR32: 0 | AS32: 0 | AT32: 0 | AU32: 0 | AV32: 0 | AW32: 0 | AX32: 0 | AY32: 0 | AZ32: 0 | BA32: 0 | BB32: 0 | BC32: 0 | BD32: 0 | BE32: 0 | BF32: 0 | BG32: 0 | BH32: 0 | BI32: 0 | BJ32: 0 | BK32: 0 | BL32: 0 | BM32: 0 | BN32: 0 | BO32: 0 | BP32: 0 | BQ32: 0 | BR32: 0 | BS32: 0 | BT32: 0 | BU32: 0 | BV32: 0 | BW32: 0 | BX32: 0 | BY32: 0 | BZ32: 0 | CA32: 0 | CB32: 0 | CC32: 0 | CD32: 0 | CE32: 0 | CF32: 0 | CG32: 0 | CH32: 0 | CI32: 0 | CJ32: 0 | CK32: 0
H33: Capital Labor Direct (Monthly): | I33: 0 | J33: 0 | K33: 0 | L33: 0 | M33: 0 | N33: 0 | O33: 0 | P33: 0 | Q33: 0 | R33: 0 | S33: 0 | T33: 0 | U33: 0 | V33: 0 | W33: 0 | X33: 0 | Y33: 0 | Z33: 0 | AA33: 0 | AB33: 0 | AC33: 0 | AD33: 0 | AE33: 0 | AF33: 0 | AG33: 0 | AH33: 0 | AI33: 0 | AJ33: 0 | AK33: 0 | AL33: 0 | AM33: 0 | AN33: 0 | AO33: 0 | AP33: 0 | AQ33: 0 | AR33: 0 | AS33: 0 | AT33: 0 | AU33: 0 | AV33: 0 | AW33: 0 | AX33: 0 | AY33: 0 | AZ33: 0 | BA33: 0 | BB33: 0 | BC33: 0 | BD33: 0 | BE33: 0 | BF33: 0 | BG33: 0 | BH33: 0 | BI33: 0 | BJ33: 0 | BK33: 0 | BL33: 0 | BM33: 0 | BN33: 0 | BO33: 0 | BP33: 0 | BQ33: 0 | BR33: 0 | BS33: 0 | BT33: 0 | BU33: 0 | BV33: 0 | BW33: 0 | BX33: 0 | BY33: 0 | BZ33: 0 | CA33: 0 | CB33: 0 | CC33: 0 | CD33: 0 | CE33: 0 | CF33: 0 | CG33: 0 | CH33: 0 | CI33: 0 | CJ33: 0 | CK33: 0 | CL33: 0 | CM33: 0 | CN33: 0 | CO33: 0 | CP33: 0 | CQ33: 0 | CR33: 0 | CS33: 0 | CT33: 0 | CU33: 0 | CV33: 0 | CW33: 0 | CX33: 0 | CY33: 0 | CZ33: 0 | DA33: 0 | DB33: 0 | DC33: 0 | DD33: 0 | DE33: 0 | DF33: 0 | DG33: 0 | DH33: 0 | DI33: 0 | DJ33: 0 | DK33: 0 | DL33: 0 | DM33: 0 | DN33: 0 | DO33: 0 | DP33: 0 | DQ33: 0 | DR33: 0 | DS33: 0 | DT33: 0 | DU33: 0 | DV33: 0 | DW33: 0 | DX33: 0 | DY33: 0 | DZ33: 0 | EA33: 0 | EB33: 0 | EC33: 0 | ED33: 0 | EE33: 0 | EF33: 0 | EG33: 0 | EH33: 0 | EI33: 0 | EJ33: 0 | EK33: 0 | EL33: 0 | EM33: 0 | EN33: 0 | EO33: 0 | EP33: 0 | EQ33: 0 | ER33: 0 | ES33: 0 | ET33: 0 | EU33: 0 | EV33: 0 | EW33: 0 | EX33: 0 | EY33: 0 | EZ33: 0 | FA33: 0 | FB33: 0 | FC33: 0 | FD33: 0 | FE33: 0 | FF33: 0 | FG33: 0 | FH33: 0 | FI33: 0 | FJ33: 0 | FK33: 0 | FL33: 0 | FM33: 0 | FN33: 0 | FO33: 0 | FP33: 0 | FQ33: 0 | FR33: 0 | FS33: 0 | FT33: 0 | FU33: 0 | FV33: 0 | FW33: 0 | FX33: 0 | FY33: 0 | FZ33: 0 | GA33: 0 | GB33: 0 | GC33: 0 | GD33: 0 | GE33: 0 | GF33: 0 | GG33: 0 | GH33: 0 | GI33: 0 | GJ33: 0 | GK33: 0 | GL33: 0 | GM33: 0 | GN33: 0 | GO33: 0 | GP33: 0 | GQ33: 0 | GR33: 0 | GS33: 0 | GT33: 0 | GU33: 0 | GV33: 0 | GW33: 0 | GX33: 0 | GY33: 0 | GZ33: 0 | HA33: 0 | HB33: 0 | HC33: 0 | HD33: 0 | HE33: 0 | HF33: 0 | HG33: 0 | HH33: 0 | HI33: 0 | HJ33: 0 | HK33: 0 | HL33: 0 | HM33: 0 | HN33: 0 | HO33: 0 | HP33: 0 | HQ33: 0 | HR33: 0 | HS33: 0 | HT33: 0 | HU33: 0 | HV33: 0 | HW33: 0 | HX33: 0 | HY33: 0 | HZ33: 0 | IA33: 0 | IB33: 0 | IC33: 0 | ID33: 0 | IE33: 0 | IF33: 0 | IG33: 0 | IH33: 0 | II33: 0 | IJ33: 0 | IK33: 0 | IL33: 0 | IM33: 0 | IN33: 0 | IO33: 0 | IP33: 0 | IQ33: 0 | IR33: 0 | IS33: 0 | IT33: 0 | IU33: 0 | IV33: 0 | IW33: 0 | IX33: 0 | IY33: 0 | IZ33: 0 | JA33: 0 | JB33: 0 | JC33: 0 | JD33: 0 | JE33: 0 | JF33: 0 | JG33: 0 | JH33: 0 | JI33: 0 | JJ33: 0 | JK33: 0 | JL33: 0 | JM33: 0 | JN33: 0 | JO33: 0 | JP33: 0 | JQ33: 0 | JR33: 0 | JS33: 0 | JT33: 0 | JU33: 0 | JV33: 0 | JW33: 0 | JX33: 0 | JY33: 0 | JZ33: 0 | KA33: 0 | KB33: 0 | KC33: 0 | KD33: 0 | KE33: 0 | KF33: 0 | KG33: 0 | KH33: 0 | KI33: 0 | KJ33: 0 | KK33: 0 | KL33: 0 | KM33: 0 | KN33: 0 | KO33: 0 | KP33: 0 | KQ33: 0 | KR33: 0 | KS33: 0 | KT33: 0 | KU33: 0 | KV33: 0 | KW33: 0 | KX33: 0 | KY33: 0 | KZ33: 0 | LA33: 0 | LB33: 0 | LC33: 0 | LD33: 0 | LE33: 0 | LF33: 0 | LG33: 0 | LH33: 0 | LI33: 0 | LJ33: 0 | LK33: 0 | LL33: 0 | LM33: 0 | LN33: 0 | LO33: 0 | LP33: 0 | LQ33: 0 | LR33: 0 | LS33: 0 | LT33: 0 | LU33: 0 | LV33: 0 | LW33: 0 | LX33: 0 | LY33: 0 | LZ33: 0 | MA33: 0 | MB33: 0 | MC33: 0 | MD33: 0 | ME33: 0 | MF33: 0 | MG33: 0 | MH33: 0 | MI33: 0 | MJ33: 0 | MK33: 0 | ML33: 0 | MM33: 0 | MN33: 0 | MO33: 0 | MP33: 0 | MQ33: 0 | MR33: 0 | MS33: 0 | MT33: 0 | MU33: 0 | MV33: 0 | MW33: 0 | MX33: 0 | MY33: 0 | MZ33: 0 | NA33: 0 | NB33: 0 | NC33: 0 | ND33: 0 | NE33: 0 | NF33: 0 | NG33: 0 | NH33: 0 | NI33: 0 | NJ33: 0 | NK33: 0 | NL33: 0 | NM33: 0 | NN33: 0 | NO33: 0 | NP33: 0 | NQ33: 0 | NR33: 0 | NS33: 0 | NT33: 0 | NU33: 0 | NV33: 0 | NW33: 0 | NX33: 0 | NY33: 0 | NZ33: 0 | OA33: 0 | OB33: 0 | OC33: 0 | OD33: 0 | OE33: 0 | OF33: 0 | OG33: 0 | OH33: 0 | OI33: 0 | OJ33: 0 | OK33: 0 | OL33: 0 | OM33: 0 | ON33: 0 | OO33: 0 | OP33: 0 | OQ33: 0 | OR33: 0 | OS33: 0 | OT33: 0 | OU33: 0 | OV33: 0 | OW33: 0 | OX33: 0 | OY33: 0 | OZ33: 0 | PA33: 0 | PB33: 0 | PC33: 0 | PD33: 0 | PE33: 0 | PF33: 0 | PG33: 0 | PH33: 0 | PI33: 0 | PJ33: 0 | PK33: 0 | PL33: 0 | PM33: 0 | PN33: 0 | PO33: 0 | PP33: 0 | PQ33: 0 | PR33: 0 | PS33: 0 | PT33: 0 | PU33: 0 | PV33: 0 | PW33: 0 | PX33: 0 | PY33: 0 | PZ33: 0 | QA33: 0 | QB33: 0 | QC33: 0 | QD33: 0 | QE33: 0 | QF33: 0 | QG33: 0 | QH33: 0 | QI33: 0 | QJ33: 0 | QK33: 0 | QL33: 0 | QM33: 0 | QN33: 0 | QO33: 0 | QP33: 0 | QQ33: 0 | QR33: 0 | QS33: 0 | QT33: 0 | QU33: 0 | QV33: 0 | QW33: 0 | QX33: 0 | QY33: 0 | QZ33: 0 | RA33: 0 | RB33: 0 | RC33: 0 | RD33: 0 | RE33: 0 | RF33: 0 | RG33: 0 | RH33: 0 | RI33: 0 | RJ33: 0 | RK33: 0 | RL33: 0 | RM33: 0 | RN33: 0 | RO33: 0 | RP33: 0 | RQ33: 0 | RR33: 0 | RS33: 0 | RT33: 0 | RU33: 0 | RV33: 0 | RW33: 0 | RX33: 0 | RY33: 0 | RZ33: 0 | SA33: 0 | SB33: 0 | SC33: 0 | SD33: 0 | SE33: 0 | SF33: 0 | SG33: 0 | SH33: 0 | SI33: 0 | SJ33: 0 | SK33: 0 | SL33: 0 | SM33: 0 | SN33: 0 | SO33: 0 | SP33: 0 | SQ33: 0 | SR33: 0 | SS33: 0 | ST33: 0 | SU33: 0 | SV33: 0 | SW33: 0 | SX33: 0 | SY33: 0 | SZ33: 0 | TA33: 0 | TB33: 0 | TC33: 0 | TD33: 0 | TE33: 0 | TF33: 0 | TG33: 0 | TH33: 0 | TI33: 0 | TJ33: 0 | TK33: 0 | TL33: 0 | TM33: 0 | TN33: 0 | TO33: 0 | TP33: 0 | TQ33: 0 | TR33: 0 | TS33: 0 | TT33: 0 | TU33: 0 | TV33: 0 | TW33: 0 | TX33: 0 | TY33: 0 | TZ33: 0 | UA33: 0 | UB33: 0 | UC33: 0 | UD33: 0 | UE33: 0 | UF33: 0 | UG33: 0 | UH33: 0 | UI33: 0 | UJ33: 0 | UK33: 0 | UL33: 0 | UM33: 0 | UN33: 0 | UO33: 0 | UP33: 0 | UQ33: 0 | UR33: 0 | US33: 0 | UT33: 0 | UU33: 0 | UV33: 0 | UW33: 0 | UX33: 0 | UY33: 0 | UZ33: 0 | VA33: 0 | VB33: 0 | VC33: 0 | VD33: 0 | VE33: 0 | VF33: 0 | VG33: 0 | VH33: 0 | VI33: 0 | VJ33: 0 | VK33: 0 | VL33: 0 | VM33: 0 | VN33: 0 | VO33: 0 | VP33: 0 | VQ33: 0 | VR33: 0 | VS33: 0 | VT33: 0 | VU33: 0 | VV33: 0 | VW33: 0 | VX33: 0 | VY33: 0 | VZ33: 0 | WA33: 0 | WB33: 0 | WC33: 0 | WD33: 0 | WE33: 0 | WF33: 0 | WG33: 0 | WH33: 0 | WI33: 0 | WJ33: 0 | WK33: 0 | WL33: 0 | WM33: 0 | WN33: 0 | WO33: 0 | WP33: 0 | WQ33: 0 | WR33: 0 | WS33: 0 | WT33: 0 | WU33: 0 | WV33: 0 | WW33: 0 | WX33: 0 | WY33: 0 | WZ33: 0 | XA33: 0 | XB33: 0 | XC33: 0 | XD33: 0 | XE33: 0 | XF33: 0 | XG33: 0 | XH33: 0 | XI33: 0 | XJ33: 0 | XK33: 0 | XL33: 0 | XM33: 0 | XN33: 0 | XO33: 0 | XP33: 0 | XQ33: 0 | XR33: 0 | XS33: 0 | XT33: 0 | XU33: 0 | XV33: 0 | XW33: 0 | XX33: 0 | XY33: 0 | XZ33: 0 | YA33: 0 | YB33: 0 | YC33: 0 | YD33: 0 | YE33: 0 | YF33: 0 | YG33: 0 | YH33: 0 | YI33: 0 | YJ33: 0 | YK33: 0 | YL33: 0 | YM33: 0 | YN33: 0 | YO33: 0 | YP33: 0 | YQ33: 0 | YR33: 0 | YS33: 0 | YT33: 0 | YU33: 0 | YV33: 0 | YW33: 0 | YX33: 0 | YY33: 0 | YZ33: 0 | ZA33: 0 | ZB33: 0 | ZC33: 0 | ZD33: 0 | ZE33: 0 | ZF33: 0 | ZG33: 0 | ZH33: 0 | ZI33: 0 | ZJ33: 0 | ZK33: 0 | ZL33: 0 | ZM33: 0 | ZN33: 0 | ZO33: 0 | ZP33: 0 | ZQ33: 0 | ZR33: 0 | ZS33: 0 | ZT33: 0 | ZU33: 0 | ZV33: 0 | ZW33: 0 | ZX33: 0 | ZY33: 0 | ZZ33: 0 | AAA33: 0 | AAB33: 0 | AAC33: 0 | AAD33: 0 | AAE33: 0 | AAF33: 0 | AAG33: 0 | AAH33: 0 | AAI33: 0 | AAJ33: 0 | AAK33: 0 | AAL33: 0 | AAM33: 0 | AAN33: 0 | AAO33: 0 | AAP33: 0 | AAQ33: 0 | AAR33: 0 | AAS33: 0 | AAT33: 0 | AAU33: 0 | AAV33: 0 | AAW33: 0 | AAX33: 0 | AAY33: 0 | AAZ33: 0 | ABA33: 0 | ABB33: 0 | ABC33: 0 | ABD33: 0 | ABE33: 0 | ABF33: 0 | ABG33: 0 | ABH33: 0 | ABI33: 0 | ABJ33: 0 | ABK33: 0 | ABL33: 0 | ABM33: 0 | ABN33: 0 | ABO33: 0 | ABP33: 0 | ABQ33: 0 | ABR33: 0 | ABS33: 0 | ABT33: 0 | ABU33: 0 | ABV33: 0 | ABW33: 0 | ABX33: 0 | ABY33: 0 | ABZ33: 0 | ACA33: 0 | ACB33: 0 | ACC33: 0 | ACD33: 0 | ACE33: 0 | ACF33: 0 | ACG33: 0 | ACH33: 0 | ACI33: 0 | ACJ33: 0 | ACK33: 0 | ACL33: 0 | ACM33: 0 | ACN33: 0 | ACO33: 0 | ACP33: 0 | ACQ33: 0 | ACR33: 0 | ACS33: 0 | ACT33: 0 | ACU33: 0 | ACV33: 0 | ACW33: 0 | ACX33: 0 | ACY33: 0 | ACZ33: 0 | ADA33: 0 | ADB33: 0 | ADC33: 0 | ADD33: 0 | ADE33: 0 | ADF33: 0 | ADG33: 0 | ADH33: 0 | ADI33: 0 | ADJ33: 0 | ADK33: 0 | ADL33: 0 | ADM33: 0 | ADN33: 0 | ADO33: 0 | ADP33: 0 | ADQ33: 0 | ADR33: 0 | ADS33: 0 | ADT33: 0 | ADU33: 0 | ADV33: 0 | ADW33: 0 | ADX33: 0 | ADY33: 0 | ADZ33: 0 | AEA33: 0 | AEB33: 0 | AEC33: 0 | AED33: 0 | AEE33: 0 | AEF33: 0 | AEG33: 0 | AEH33: 0 | AEI33: 0 | AEJ33: 0 | AEK33: 0 | AEL33: 0 | AEM33: 0 | AEN33: 0 | AEO33: 0 | AEP33: 0 | AEQ33: 0 | AER33: 0 | AES33: 0 | AET33: 0 | AEU33: 0 | AEV33: 0 | AEW33: 0 | AEX33: 0 | AEY33: 0 | AEZ33: 0 | AFA33: 0 | AFB33: 0 | AFC33: 0 | AFD33: 0 | AFE33: 0 | AFF33: 0 | AFG33: 0 | AFH33: 0 | AFI33: 0 | AFJ33: 0 | AFK33: 0 | AFL33: 0 | AFM33: 0 | AFN33: 0 | AFO33: 0 | AFP33: 0 | AFQ33: 0 | AFR33: 0 | AFS33: 0 | AFT33: 0 | AFU33: 0 | AFV33: 0 | AFW33: 0 | AFX33: 0 | AFY33: 0 | AFZ33: 0 | AGA33: 0 | AGB33: 0 | AGC33: 0 | AGD33: 0 | AGE33: 0 | AGF33: 0 | AGG33: 0 | AGH33: 0 | AGI33: 0 | AGJ33: 0 | AGK33: 0 | AGL33: 0 | AGM33: 0 | AGN33: 0 | AGO33: 0 | AGP33: 0 | AGQ33: 0 | AGR33: 0 | AGS33: 0 | AGT33: 0 | AGU33: 0 | AGV33: 0 | AGW33: 0 | AGX33: 0 | AGY33: 0 | AGZ33: 0 | AHA33: 0 | AHB33: 0 | AHC33: 0 | AHD33: 0 | AHE33: 0 | AHF33: 0 | AHG33: 0 | AHH33: 0 | AHI33: 0 | AHJ33: 0 | AHK33: 0 | AHL33: 0 | AHM33: 0 | AHN33: 0 | AHO33: 0 | AHP33: 0 | AHQ33: 0 | AHR33: 0 | AHS33: 0 | AHT33: 0 | AHU33: 0 | AHV33: 0 | AHW33: 0 | AHX33: 0 | AHY33: 0 | AHZ33: 0 | AIA33: 0 | AIB33: 0 | AIC33: 0 | AID33: 0 | AIE33: 0 | AIF33: 0 | AIG33: 0 | AIH33: 0 | AII33: 0 | AIJ33: 0 | AIK33: 0 | AIL33: 0 | AIM33: 0 | AIN33: 0 | AIO33: 0 | AIP33: 0 | AIQ33: 0 | AIR33: 0 | AIS33: 0 | AIT33: 0 | AIU33: 0 | AIV33: 0 | AIW33: 0 | AIX33: 0 | AIY33: 0 | AIZ33: 0 | AJA33: 0 | AJB33: 0 | AJC33: 0 | AJD33: 0 | AJE33: 0 | AJF33: 0 | AJG33: 0 | AJH33: 0 | AJI33: 0 | AJJ33: 0 | AJK33: 0 | AJL33: 0 | AJM33: 0 | AJN33: 0 | AJO33: 0 | AJP33: 0 | AJQ33: 0 | AJR33: 0 | AJS33: 0 | AJT33: 0 | AJU33: 0 | AJV33: 0
H34: Cost Type
J35: 0 | K35: 0 | L35: 0 | M35: 0 | N35: 0 | O35: 0 | P35: 0 | Q35: 0 | R35: 0 | S35: 0 | T35: 0 | U35: 0 | V35: 0 | W35: 0 | X35: 0 | Y35: 0 | Z35: 0 | AA35: 0 | AB35: 0 | AC35: 0 | AD35: 0 | AE35: 0 | AF35: 0 | AG35: 0 | AH35: 0 | AI35: 0 | AJ35: 0 | AK35: 0 | AL35: 0 | AM35: 0 | AN35: 0 | AO35: 0 | AP35: 0 | AQ35: 0 | AR35: 0 | AS35: 0 | AT35: 0 | AU35: 0 | AV35: 0 | AW35: 0 | AX35: 0 | AY35: 0 | AZ35: 0 | BA35: 0 | BB35: 0 | BC35: 0 | BD35: 0 | BE35: 0 | BF35: 0 | BG35: 0 | BH35: 0 | BI35: 0 | BJ35: 0 | BK35: 0 | BL35: 0 | BM35: 0 | BN35: 0 | BO35: 0 | BP35: 0 | BQ35: 0 | BR35: 0 | BS35: 0 | BT35: 0 | BU35: 0 | BV35: 0 | BW35: 0 | BX35: 0 | BY35: 0 | BZ35: 0 | CA35: 0 | CB35: 0 | CC35: 0 | CD35: 0 | CE35: 0 | CF35: 0 | CG35: 0 | CH35: 0 | CI35: 0 | CJ35: 0 | CK35: 0 | CL35: 0 | CM35: 0 | CN35: 0 | CO35: 0 | CP35: 0 | CQ35: 0 | CR35: 0 | CS35: 0 | CT35: 0 | CU35: 0 | CV35: 0 | CW35: 0 | CX35: 0 | CY35: 0 | CZ35: 0 | DA35: 0 | DB35: 0 | DC35: 0 | DD35: 0 | DE35: 0 | DF35: 0 | DG35: 0 | DH35: 0 | DI35: 0 | DJ35: 0 | DK35: 0 | DL35: 0 | DM35: 0 | DN35: 0 | DO35: 0 | DP35: 0 | DQ35: 0 | DR35: 0 | DS35: 0 | DT35: 0 | DU35: 0 | DV35: 0 | DW35: 0 | DX35: 0 | DY35: 0 | DZ35: 0 | EA35: 0 | EB35: 0 | EC35: 0 | ED35: 0 | EE35: 0 | EF35: 0 | EG35: 0 | EH35: 0 | EI35: 0 | EJ35: 0 | EK35: 0 | EL35: 0 | EM35: 0 | EN35: 0 | EO35: 0 | EP35: 0 | EQ35: 0 | ER35: 0 | ES35: 0 | ET35: 0 | EU35: 0 | EV35: 0 | EW35: 0 | EX35: 0 | EY35: 0 | EZ35: 0 | FA35: 0 | FB35: 0 | FC35: 0 | FD35: 0 | FE35: 0 | FF35: 0 | FG35: 0 | FH35: 0 | FI35: 0 | FJ35: 0 | FK35: 0 | FL35: 0 | FM35: 0 | FN35: 0 | FO35: 0 | FP35: 0 | FQ35: 0 | FR35: 0 | FS35: 0 | FT35: 0 | FU35: 0 | FV35: 0 | FW35: 0 | FX35: 0 | FY35: 0 | FZ35: 0 | GA35: 0 | GB35: 0 | GC35: 0 | GD35: 0 | GE35: 0 | GF35: 0 | GG35: 0 | GH35: 0 | GI35: 0 | GJ35: 0 | GK35: 0 | GL35: 0 | GM35: 0 | GN35: 0 | GO35: 0 | GP35: 0 | GQ35: 0 | GR35: 0 | GS35: 0 | GT35: 0 | GU35: 0 | GV35: 0 | GW35: 0 | GX35: 0 | GY35: 0 | GZ35: 0 | HA35: 0 | HB35: 0 | HC35: 0 | HD35: 0 | HE35: 0 | HF35: 0 | HG35: 0 | HH35: 0 | HI35: 0 | HJ35: 0 | HK35: 0 | HL35: 0 | HM35: 0 | HN35: 0 | HO35: 0 | HP35: 0 | HQ35: 0 | HR35: 0 | HS35: 0 | HT35: 0 | HU35: 0 | HV35: 0 | HW35: 0 | HX35: 0 | HY35: 0 | HZ35: 0 | IA35: 0 | IB35: 0 | IC35: 0 | ID35: 0 | IE35: 0 | IF35: 0 | IG35: 0 | IH35: 0 | II35: 0 | IJ35: 0 | IK35: 0 | IL35: 0 | IM35: 0 | IN35: 0 | IO35: 0 | IP35: 0 | IQ35: 0 | IR35: 0 | IS35: 0 | IT35: 0 | IU35: 0 | IV35: 0 | IW35: 0 | IX35: 0 | IY35: 0 | IZ35: 0 | JA35: 0 | JB35: 0 | JC35: 0 | JD35: 0 | JE35: 0 | JF35: 0 | JG35: 0 | JH35: 0 | JI35: 0 | JJ35: 0 | JK35: 0 | JL35: 0 | JM35: 0 | JN35: 0 | JO35: 0 | JP35: 0 | JQ35: 0 | JR35: 0 | JS35: 0 | JT35: 0 | JU35: 0 | JV35: 0 | JW35: 0 | JX35: 0 | JY35: 0 | JZ35: 0 | KA35: 0 | KB35: 0 | KC35: 0 | KD35: 0 | KE35: 0 | KF35: 0 | KG35: 0 | KH35: 0 | KI35: 0 | KJ35: 0 | KK35: 0 | KL35: 0 | KM35: 0 | KN35: 0 | KO35: 0 | KP35: 0 | KQ35: 0 | KR35: 0 | KS35: 0 | KT35: 0 | KU35: 0 | KV35: 0 | KW35: 0 | KX35: 0 | KY35: 0 | KZ35: 0 | LA35: 0 | LB35: 0 | LC35: 0 | LD35: 0 | LE35: 0 | LF35: 0 | LG35: 0 | LH35: 0 | LI35: 0 | LJ35: 0 | LK35: 0 | LL35: 0 | LM35: 0 | LN35: 0 | LO35: 0 | LP35: 0 | LQ35: 0 | LR35: 0 | LS35: 0 | LT35: 0 | LU35: 0 | LV35: 0 | LW35: 0 | LX35: 0 | LY35: 0 | LZ35: 0 | MA35: 0 | MB35: 0 | MC35: 0 | MD35: 0 | ME35: 0 | MF35: 0 | MG35: 0 | MH35: 0 | MI35: 0 | MJ35: 0 | MK35: 0 | ML35: 0 | MM35: 0 | MN35: 0 | MO35: 0 | MP35: 0 | MQ35: 0 | MR35: 0 | MS35: 0 | MT35: 0 | MU35: 0 | MV35: 0 | MW35: 0 | MX35: 0 | MY35: 0 | MZ35: 0 | NA35: 0 | NB35: 0 | NC35: 0 | ND35: 0 | NE35: 0 | NF35: 0 | NG35: 0 | NH35: 0 | NI35: 0 | NJ35: 0 | NK35: 0 | NL35: 0 | NM35: 0 | NN35: 0 | NO35: 0 | NP35: 0 | NQ35: 0 | NR35: 0 | NS35: 0 | NT35: 0 | NU35: 0 | NV35: 0 | NW35: 0 | NX35: 0 | NY35: 0 | NZ35: 0 | OA35: 0 | OB35: 0 | OC35: 0 | OD35: 0 | OE35: 0 | OF35: 0 | OG35: 0 | OH35: 0 | OI35: 0 | OJ35: 0 | OK35: 0 | OL35: 0 | OM35: 0 | ON35: 0 | OO35: 0 | OP35: 0 | OQ35: 0 | OR35: 0 | OS35: 0 | OT35: 0 | OU35: 0 | OV35: 0 | OW35: 0 | OX35: 0 | OY35: 0 | OZ35: 0 | PA35: 0 | PB35: 0 | PC35: 0 | PD35: 0 | PE35: 0 | PF35: 0 | PG35: 0 | PH35: 0 | PI35: 0 | PJ35: 0 | PK35: 0 | PL35: 0 | PM35: 0 | PN35: 0 | PO35: 0 | PP35: 0 | PQ35: 0 | PR35: 0 | PS35: 0 | PT35: 0 | PU35: 0 | PV35: 0 | PW35: 0 | PX35: 0 | PY35: 0 | PZ35: 0 | QA35: 0 | QB35: 0 | QC35: 0 | QD35: 0 | QE35: 0 | QF35: 0 | QG35: 0 | QH35: 0 | QI35: 0 | QJ35: 0 | QK35: 0 | QL35: 0 | QM35: 0 | QN35: 0 | QO35: 0 | QP35: 0 | QQ35: 0 | QR35: 0 | QS35: 0 | QT35: 0 | QU35: 0 | QV35: 0 | QW35: 0 | QX35: 0 | QY35: 0 | QZ35: 0 | RA35: 0 | RB35: 0 | RC35: 0 | RD35: 0 | RE35: 0 | RF35: 0 | RG35: 0 | RH35: 0 | RI35: 0 | RJ35: 0 | RK35: 0 | RL35: 0 | RM35: 0 | RN35: 0 | RO35: 0 | RP35: 0 | RQ35: 0 | RR35: 0 | RS35: 0 | RT35: 0 | RU35: 0 | RV35: 0 | RW35: 0 | RX35: 0 | RY35: 0 | RZ35: 0 | SA35: 0 | SB35: 0 | SC35: 0 | SD35: 0 | SE35: 0 | SF35: 0 | SG35: 0 | SH35: 0 | SI35: 0 | SJ35: 0 | SK35: 0 | SL35: 0 | SM35: 0 | SN35: 0 | SO35: 0 | SP35: 0 | SQ35: 0 | SR35: 0 | SS35: 0 | ST35: 0 | SU35: 0 | SV35: 0 | SW35: 0 | SX35: 0 | SY35: 0 | SZ35: 0 | TA35: 0 | TB35: 0 | TC35: 0 | TD35: 0 | TE35: 0 | TF35: 0 | TG35: 0 | TH35: 0 | TI35: 0 | TJ35: 0 | TK35: 0 | TL35: 0 | TM35: 0 | TN35: 0 | TO35: 0 | TP35: 0 | TQ35: 0 | TR35: 0 | TS35: 0 | TT35: 0 | TU35: 0 | TV35: 0 | TW35: 0 | TX35: 0 | TY35: 0 | TZ35: 0 | UA35: 0 | UB35: 0 | UC35: 0 | UD35: 0 | UE35: 0 | UF35: 0 | UG35: 0 | UH35: 0 | UI35: 0 | UJ35: 0 | UK35: 0 | UL35: 0 | UM35: 0 | UN35: 0 | UO35: 0 | UP35: 0 | UQ35: 0 | UR35: 0 | US35: 0 | UT35: 0 | UU35: 0 | UV35: 0 | UW35: 0 | UX35: 0 | UY35: 0 | UZ35: 0 | VA35: 0 | VB35: 0 | VC35: 0 | VD35: 0 | VE35: 0 | VF35: 0 | VG35: 0 | VH35: 0 | VI35: 0 | VJ35: 0 | VK35: 0 | VL35: 0 | VM35: 0 | VN35: 0 | VO35: 0 | VP35: 0 | VQ35: 0 | VR35: 0 | VS35: 0 | VT35: 0 | VU35: 0 | VV35: 0 | VW35: 0 | VX35: 0 | VY35: 0 | VZ35: 0 | WA35: 0 | WB35: 0 | WC35: 0 | WD35: 0 | WE35: 0 | WF35: 0 | WG35: 0 | WH35: 0 | WI35: 0 | WJ35: 0 | WK35: 0 | WL35: 0 | WM35: 0 | WN35: 0 | WO35: 0 | WP35: 0 | WQ35: 0 | WR35: 0 | WS35: 0 | WT35: 0 | WU35: 0 | WV35: 0 | WW35: 0 | WX35: 0 | WY35: 0 | WZ35: 0 | XA35: 0 | XB35: 0 | XC35: 0 | XD35: 0 | XE35: 0 | XF35: 0 | XG35: 0 | XH35: 0 | XI35: 0 | XJ35: 0 | XK35: 0 | XL35: 0 | XM35: 0 | XN35: 0 | XO35: 0 | XP35: 0 | XQ35: 0 | XR35: 0 | XS35: 0 | XT35: 0 | XU35: 0 | XV35: 0 | XW35: 0 | XX35: 0 | XY35: 0 | XZ35: 0 | YA35: 0 | YB35: 0 | YC35: 0 | YD35: 0 | YE35: 0 | YF35: 0 | YG35: 0 | YH35: 0 | YI35: 0 | YJ35: 0 | YK35: 0 | YL35: 0 | YM35: 0 | YN35: 0 | YO35: 0 | YP35: 0 | YQ35: 0 | YR35: 0 | YS35: 0 | YT35: 0 | YU35: 0 | YV35: 0 | YW35: 0 | YX35: 0 | YY35: 0 | YZ35: 0 | ZA35: 0 | ZB35: 0 | ZC35: 0 | ZD35: 0 | ZE35: 0 | ZF35: 0 | ZG35: 0 | ZH35: 0 | ZI35: 0 | ZJ35: 0 | ZK35: 0 | ZL35: 0 | ZM35: 0 | ZN35: 0 | ZO35: 0 | ZP35: 0 | ZQ35: 0 | ZR35: 0 | ZS35: 0 | ZT35: 0 | ZU35: 0 | ZV35: 0 | ZW35: 0 | ZX35: 0 | ZY35: 0 | ZZ35: 0 | AAA35: 0 | AAB35: 0 | AAC35: 0 | AAD35: 0 | AAE35: 0 | AAF35: 0 | AAG35: 0 | AAH35: 0 | AAI35: 0 | AAJ35: 0 | AAK35: 0 | AAL35: 0 | AAM35: 0 | AAN35: 0 | AAO35: 0 | AAP35: 0 | AAQ35: 0 | AAR35: 0 | AAS35: 0 | AAT35: 0 | AAU35: 0 | AAV35: 0 | AAW35: 0 | AAX35: 0 | AAY35: 0 | AAZ35: 0 | ABA35: 0 | ABB35: 0 | ABC35: 0 | ABD35: 0 | ABE35: 0 | ABF35: 0 | ABG35: 0 | ABH35: 0 | ABI35: 0 | ABJ35: 0 | ABK35: 0 | ABL35: 0 | ABM35: 0 | ABN35: 0 | ABO35: 0 | ABP35: 0 | ABQ35: 0 | ABR35: 0 | ABS35: 0 | ABT35: 0 | ABU35: 0 | ABV35: 0 | ABW35: 0 | ABX35: 0 | ABY35: 0 | ABZ35: 0 | ACA35: 0 | ACB35: 0 | ACC35: 0 | ACD35: 0 | ACE35: 0 | ACF35: 0 | ACG35: 0 | ACH35: 0 | ACI35: 0 | ACJ35: 0 | ACK35: 0 | ACL35: 0 | ACM35: 0 | ACN35: 0 | ACO35: 0 | ACP35: 0 | ACQ35: 0 | ACR35: 0 | ACS35: 0 | ACT35: 0 | ACU35: 0 | ACV35: 0 | ACW35: 0 | ACX35: 0 | ACY35: 0 | ACZ35: 0 | ADA35: 0 | ADB35: 0 | ADC35: 0 | ADD35: 0 | ADE35: 0 | ADF35: 0 | ADG35: 0 | ADH35: 0 | ADI35: 0 | ADJ35: 0 | ADK35: 0 | ADL35: 0 | ADM35: 0 | ADN35: 0 | ADO35: 0 | ADP35: 0 | ADQ35: 0 | ADR35: 0 | ADS35: 0 | ADT35: 0 | ADU35: 0 | ADV35: 0 | ADW35: 0 | ADX35: 0 | ADY35: 0 | ADZ35: 0 | AEA35: 0 | AEB35: 0 | AEC35: 0 | AED35: 0 | AEE35: 0 | AEF35: 0 | AEG35: 0 | AEH35: 0 | AEI35: 0 | AEJ35: 0 | AEK35: 0 | AEL35: 0 | AEM35: 0 | AEN35: 0 | AEO35: 0 | AEP35: 0 | AEQ35: 0 | AER35: 0 | AES35: 0 | AET35: 0 | AEU35: 0 | AEV35: 0 | AEW35: 0 | AEX35: 0 | AEY35: 0 | AEZ35: 0 | AFA35: 0 | AFB35: 0 | AFC35: 0 | AFD35: 0 | AFE35: 0 | AFF35: 0 | AFG35: 0 | AFH35: 0 | AFI35: 0 | AFJ35: 0 | AFK35: 0 | AFL35: 0 | AFM35: 0 | AFN35: 0 | AFO35: 0 | AFP35: 0 | AFQ35: 0 | AFR35: 0 | AFS35: 0 | AFT35: 0 | AFU35: 0 | AFV35: 0 | AFW35: 0 | AFX35: 0 | AFY35: 0 | AFZ35: 0 | AGA35: 0 | AGB35: 0 | AGC35: 0 | AGD35: 0 | AGE35: 0 | AGF35: 0 | AGG35: 0 | AGH35: 0 | AGI35: 0 | AGJ35: 0 | AGK35: 0 | AGL35: 0 | AGM35: 0 | AGN35: 0 | AGO35: 0 | AGP35: 0 | AGQ35: 0 | AGR35: 0 | AGS35: 0 | AGT35: 0 | AGU35: 0 | AGV35: 0 | AGW35: 0 | AGX35: 0 | AGY35: 0 | AGZ35: 0 | AHA35: 0 | AHB35: 0 | AHC35: 0 | AHD35: 0 | AHE35: 0 | AHF35: 0 | AHG35: 0 | AHH35: 0 | AHI35: 0 | AHJ35: 0 | AHK35: 0 | AHL35: 0 | AHM35: 0 | AHN35: 0 | AHO35: 0 | AHP35: 0 | AHQ35: 0 | AHR35: 0 | AHS35: 0 | AHT35: 0 | AHU35: 0 | AHV35: 0 | AHW35: 0 | AHX35: 0 | AHY35: 0 | AHZ35: 0 | AIA35: 0 | AIB35: 0 | AIC35: 0 | AID35: 0 | AIE35: 0 | AIF35: 0 | AIG35: 0 | AIH35: 0 | AII35: 0 | AIJ35: 0 | AIK35: 0 | AIL35: 0 | AIM35: 0 | AIN35: 0 | AIO35: 0 | AIP35: 0 | AIQ35: 0 | AIR35: 0 | AIS35: 0 | AIT35: 0 | AIU35: 0 | AIV35: 0 | AIW35: 0 | AIX35: 0 | AIY35: 0 | AIZ35: 0 | AJA35: 0 | AJB35: 0 | AJC35: 0 | AJD35: 0 | AJE35: 0 | AJF35: 0 | AJG35: 0 | AJH35: 0 | AJI35: 0 | AJJ35: 0 | AJK35: 0 | AJL35: 0 | AJM35: 0 | AJN35: 0 | AJO35: 0 | AJP35: 0 | AJQ35: 0 | AJR35: 0 | AJS35: 0 | AJT35: 0 | AJU35: 0 | AJV35: 0
J36: 0 | K36: 0 | L36: 0 | M36: 0 | N36: 0 | O36: 0 | P36: 0 | Q36: 0 | R36: 0 | S36: 0 | T36: 0 | U36: 0 | V36: 0 | W36: 0 | X36: 0 | Y36: 0 | Z36: 0 | AA36: 0 | AB36: 0 | AC36: 0 | AD36: 0 | AE36: 0 | AF36: 0 | AG36: 0 | AH36: 0 | AI36: 0 | AJ36: 0 | AK36: 0 | AL36: 0 | AM36: 0 | AN36: 0 | AO36: 0 | AP36: 0 | AQ36: 0 | AR36: 0 | AS36: 0 | AT36: 0 | AU36: 0 | AV36: 0 | AW36: 0 | AX36: 0 | AY36: 0 | AZ36: 0 | BA36: 0 | BB36: 0 | BC36: 0 | BD36: 0 | BE36: 0 | BF36: 0 | BG36: 0 | BH36: 0 | BI36: 0 | BJ36: 0 | BK36: 0 | BL36: 0 | BM36: 0 | BN36: 0 | BO36: 0 | BP36: 0 | BQ36: 0 | BR36: 0 | BS36: 0 | BT36: 0 | BU36: 0 | BV36: 0 | BW36: 0 | BX36: 0 | BY36: 0 | BZ36: 0 | CA36: 0 | CB36: 0 | CC36: 0 | CD36: 0 | CE36: 0 | CF36: 0 | CG36: 0 | CH36: 0 | CI36: 0 | CJ36: 0 | CK36: 0 | CL36: 0 | CM36: 0 | CN36: 0 | CO36: 0 | CP36: 0 | CQ36: 0 | CR36: 0 | CS36: 0 | CT36: 0 | CU36: 0 | CV36: 0 | CW36: 0 | CX36: 0 | CY36: 0 | CZ36: 0 | DA36: 0 | DB36: 0 | DC36: 0 | DD36: 0 | DE36: 0 | DF36: 0 | DG36: 0 | DH36: 0 | DI36: 0 | DJ36: 0 | DK36: 0 | DL36: 0 | DM36: 0 | DN36: 0 | DO36: 0 | DP36: 0 | DQ36: 0 | DR36: 0 | DS36: 0 | DT36: 0 | DU36: 0 | DV36: 0 | DW36: 0 | DX36: 0 | DY36: 0 | DZ36: 0 | EA36: 0 | EB36: 0 | EC36: 0 | ED36: 0 | EE36: 0 | EF36: 0 | EG36: 0 | EH36: 0 | EI36: 0 | EJ36: 0 | EK36: 0 | EL36: 0 | EM36: 0 | EN36: 0 | EO36: 0 | EP36: 0 | EQ36: 0 | ER36: 0 | ES36: 0 | ET36: 0 | EU36: 0 | EV36: 0 | EW36: 0 | EX36: 0 | EY36: 0 | EZ36: 0 | FA36: 0 | FB36: 0 | FC36: 0 | FD36: 0 | FE36: 0 | FF36: 0 | FG36: 0 | FH36: 0 | FI36: 0 | FJ36: 0 | FK36: 0 | FL36: 0 | FM36: 0 | FN36: 0 | FO36: 0 | FP36: 0 | FQ36: 0 | FR36: 0 | FS36: 0 | FT36: 0 | FU36: 0 | FV36: 0 | FW36: 0 | FX36: 0 | FY36: 0 | FZ36: 0 | GA36: 0 | GB36: 0 | GC36: 0 | GD36: 0 | GE36: 0 | GF36: 0 | GG36: 0 | GH36: 0 | GI36: 0 | GJ36: 0 | GK36: 0 | GL36: 0 | GM36: 0 | GN36: 0 | GO36: 0 | GP36: 0 | GQ36: 0 | GR36: 0 | GS36: 0 | GT36: 0 | GU36: 0 | GV36: 0 | GW36: 0 | GX36: 0 | GY36: 0 | GZ36: 0 | HA36: 0 | HB36: 0 | HC36: 0 | HD36: 0 | HE36: 0 | HF36: 0 | HG36: 0 | HH36: 0 | HI36: 0 | HJ36: 0 | HK36: 0 | HL36: 0 | HM36: 0 | HN36: 0 | HO36: 0 | HP36: 0 | HQ36: 0 | HR36: 0 | HS36: 0 | HT36: 0 | HU36: 0 | HV36: 0 | HW36: 0 | HX36: 0 | HY36: 0 | HZ36: 0 | IA36: 0 | IB36: 0 | IC36: 0 | ID36: 0 | IE36: 0 | IF36: 0 | IG36: 0 | IH36: 0 | II36: 0 | IJ36: 0 | IK36: 0 | IL36: 0 | IM36: 0 | IN36: 0 | IO36: 0 | IP36: 0 | IQ36: 0 | IR36: 0 | IS36: 0 | IT36: 0 | IU36: 0 | IV36: 0 | IW36: 0 | IX36: 0 | IY36: 0 | IZ36: 0 | JA36: 0 | JB36: 0 | JC36: 0 | JD36: 0 | JE36: 0 | JF36: 0 | JG36: 0 | JH36: 0 | JI36: 0 | JJ36: 0 | JK36: 0 | JL36: 0 | JM36: 0 | JN36: 0 | JO36: 0 | JP36: 0 | JQ36: 0 | JR36: 0 | JS36: 0 | JT36: 0 | JU36: 0 | JV36: 0 | JW36: 0 | JX36: 0 | JY36: 0 | JZ36: 0 | KA36: 0 | KB36: 0 | KC36: 0 | KD36: 0 | KE36: 0 | KF36: 0 | KG36: 0 | KH36: 0 | KI36: 0 | KJ36: 0 | KK36: 0 | KL36: 0 | KM36: 0 | KN36: 0 | KO36: 0 | KP36: 0 | KQ36: 0 | KR36: 0 | KS36: 0 | KT36: 0 | KU36: 0 | KV36: 0 | KW36: 0 | KX36: 0 | KY36: 0 | KZ36: 0 | LA36: 0 | LB36: 0 | LC36: 0 | LD36: 0 | LE36: 0 | LF36: 0 | LG36: 0 | LH36: 0 | LI36: 0 | LJ36: 0 | LK36: 0 | LL36: 0 | LM36: 0 | LN36: 0 | LO36: 0 | LP36: 0 | LQ36: 0 | LR36: 0 | LS36: 0 | LT36: 0 | LU36: 0 | LV36: 0 | LW36: 0 | LX36: 0 | LY36: 0 | LZ36: 0 | MA36: 0 | MB36: 0 | MC36: 0 | MD36: 0 | ME36: 0 | MF36: 0 | MG36: 0 | MH36: 0 | MI36: 0 | MJ36: 0 | MK36: 0 | ML36: 0 | MM36: 0 | MN36: 0 | MO36: 0 | MP36: 0 | MQ36: 0 | MR36: 0 | MS36: 0 | MT36: 0 | MU36: 0 | MV36: 0 | MW36: 0 | MX36: 0 | MY36: 0 | MZ36: 0 | NA36: 0 | NB36: 0 | NC36: 0 | ND36: 0 | NE36: 0 | NF36: 0 | NG36: 0 | NH36: 0 | NI36: 0 | NJ36: 0 | NK36: 0 | NL36: 0 | NM36: 0 | NN36: 0 | NO36: 0 | NP36: 0 | NQ36: 0 | NR36: 0 | NS36: 0 | NT36: 0 | NU36: 0 | NV36: 0 | NW36: 0 | NX36: 0 | NY36: 0 | NZ36: 0 | OA36: 0 | OB36: 0 | OC36: 0 | OD36: 0 | OE36: 0 | OF36: 0 | OG36: 0 | OH36: 0 | OI36: 0 | OJ36: 0 | OK36: 0 | OL36: 0 | OM36: 0 | ON36: 0 | OO36: 0 | OP36: 0 | OQ36: 0 | OR36: 0 | OS36: 0 | OT36: 0 | OU36: 0 | OV36: 0 | OW36: 0 | OX36: 0 | OY36: 0 | OZ36: 0 | PA36: 0 | PB36: 0 | PC36: 0 | PD36: 0 | PE36: 0 | PF36: 0 | PG36: 0 | PH36: 0 | PI36: 0 | PJ36: 0 | PK36: 0 | PL36: 0 | PM36: 0 | PN36: 0 | PO36: 0 | PP36: 0 | PQ36: 0 | PR36: 0 | PS36: 0 | PT36: 0 | PU36: 0 | PV36: 0 | PW36: 0 | PX36: 0 | PY36: 0 | PZ36: 0 | QA36: 0 | QB36: 0 | QC36: 0 | QD36: 0 | QE36: 0 | QF36: 0 | QG36: 0 | QH36: 0 | QI36: 0 | QJ36: 0 | QK36: 0 | QL36: 0 | QM36: 0 | QN36: 0 | QO36: 0 | QP36: 0 | QQ36: 0 | QR36: 0 | QS36: 0 | QT36: 0 | QU36: 0 | QV36: 0 | QW36: 0 | QX36: 0 | QY36: 0 | QZ36: 0 | RA36: 0 | RB36: 0 | RC36: 0 | RD36: 0 | RE36: 0 | RF36: 0 | RG36: 0 | RH36: 0 | RI36: 0 | RJ36: 0 | RK36: 0 | RL36: 0 | RM36: 0 | RN36: 0 | RO36: 0 | RP36: 0 | RQ36: 0 | RR36: 0 | RS36: 0 | RT36: 0 | RU36: 0 | RV36: 0 | RW36: 0 | RX36: 0 | RY36: 0 | RZ36: 0 | SA36: 0 | SB36: 0 | SC36: 0 | SD36: 0 | SE36: 0 | SF36: 0 | SG36: 0 | SH36: 0 | SI36: 0 | SJ36: 0 | SK36: 0 | SL36: 0 | SM36: 0 | SN36: 0 | SO36: 0 | SP36: 0 | SQ36: 0 | SR36: 0 | SS36: 0 | ST36: 0 | SU36: 0 | SV36: 0 | SW36: 0 | SX36: 0 | SY36: 0 | SZ36: 0 | TA36: 0 | TB36: 0 | TC36: 0 | TD36: 0 | TE36: 0 | TF36: 0 | TG36: 0 | TH36: 0 | TI36: 0 | TJ36: 0 | TK36: 0 | TL36: 0 | TM36: 0 | TN36: 0 | TO36: 0 | TP36: 0 | TQ36: 0 | TR36: 0 | TS36: 0 | TT36: 0 | TU36: 0 | TV36: 0 | TW36: 0 | TX36: 0 | TY36: 0 | TZ36: 0 | UA36: 0 | UB36: 0 | UC36: 0 | UD36: 0 | UE36: 0 | UF36: 0 | UG36: 0 | UH36: 0 | UI36: 0 | UJ36: 0 | UK36: 0 | UL36: 0 | UM36: 0 | UN36: 0 | UO36: 0 | UP36: 0 | UQ36: 0 | UR36: 0 | US36: 0 | UT36: 0 | UU36: 0 | UV36: 0 | UW36: 0 | UX36: 0 | UY36: 0 | UZ36: 0 | VA36: 0 | VB36: 0 | VC36: 0 | VD36: 0 | VE36: 0 | VF36: 0 | VG36: 0 | VH36: 0 | VI36: 0 | VJ36: 0 | VK36: 0 | VL36: 0 | VM36: 0 | VN36: 0 | VO36: 0 | VP36: 0 | VQ36: 0 | VR36: 0 | VS36: 0 | VT36: 0 | VU36: 0 | VV36: 0 | VW36: 0 | VX36: 0 | VY36: 0 | VZ36: 0 | WA36: 0 | WB36: 0 | WC36: 0 | WD36: 0 | WE36: 0 | WF36: 0 | WG36: 0 | WH36: 0 | WI36: 0 | WJ36: 0 | WK36: 0 | WL36: 0 | WM36: 0 | WN36: 0 | WO36: 0 | WP36: 0 | WQ36: 0 | WR36: 0 | WS36: 0 | WT36: 0 | WU36: 0 | WV36: 0 | WW36: 0 | WX36: 0 | WY36: 0 | WZ36: 0 | XA36: 0 | XB36: 0 | XC36: 0 | XD36: 0 | XE36: 0 | XF36: 0 | XG36: 0 | XH36: 0 | XI36: 0 | XJ36: 0 | XK36: 0 | XL36: 0 | XM36: 0 | XN36: 0 | XO36: 0 | XP36: 0 | XQ36: 0 | XR36: 0 | XS36: 0 | XT36: 0 | XU36: 0 | XV36: 0 | XW36: 0 | XX36: 0 | XY36: 0 | XZ36: 0 | YA36: 0 | YB36: 0 | YC36: 0 | YD36: 0 | YE36: 0 | YF36: 0 | YG36: 0 | YH36: 0 | YI36: 0 | YJ36: 0 | YK36: 0 | YL36: 0 | YM36: 0 | YN36: 0 | YO36: 0 | YP36: 0 | YQ36: 0 | YR36: 0 | YS36: 0 | YT36: 0 | YU36: 0 | YV36: 0 | YW36: 0 | YX36: 0 | YY36: 0 | YZ36: 0 | ZA36: 0 | ZB36: 0 | ZC36: 0 | ZD36: 0 | ZE36: 0 | ZF36: 0 | ZG36: 0 | ZH36: 0 | ZI36: 0 | ZJ36: 0 | ZK36: 0 | ZL36: 0 | ZM36: 0 | ZN36: 0 | ZO36: 0 | ZP36: 0 | ZQ36: 0 | ZR36: 0 | ZS36: 0 | ZT36: 0 | ZU36: 0 | ZV36: 0 | ZW36: 0 | ZX36: 0 | ZY36: 0 | ZZ36: 0 | AAA36: 0 | AAB36: 0 | AAC36: 0 | AAD36: 0 | AAE36: 0 | AAF36: 0 | AAG36: 0 | AAH36: 0 | AAI36: 0 | AAJ36: 0 | AAK36: 0 | AAL36: 0 | AAM36: 0 | AAN36: 0 | AAO36: 0 | AAP36: 0 | AAQ36: 0 | AAR36: 0 | AAS36: 0 | AAT36: 0 | AAU36: 0 | AAV36: 0 | AAW36: 0 | AAX36: 0 | AAY36: 0 | AAZ36: 0 | ABA36: 0 | ABB36: 0 | ABC36: 0 | ABD36: 0 | ABE36: 0 | ABF36: 0 | ABG36: 0 | ABH36: 0 | ABI36: 0 | ABJ36: 0 | ABK36: 0 | ABL36: 0 | ABM36: 0 | ABN36: 0 | ABO36: 0 | ABP36: 0 | ABQ36: 0 | ABR36: 0 | ABS36: 0 | ABT36: 0 | ABU36: 0 | ABV36: 0 | ABW36: 0 | ABX36: 0 | ABY36: 0 | ABZ36: 0 | ACA36: 0 | ACB36: 0 | ACC36: 0 | ACD36: 0 | ACE36: 0 | ACF36: 0 | ACG36: 0 | ACH36: 0 | ACI36: 0 | ACJ36: 0 | ACK36: 0 | ACL36: 0 | ACM36: 0 | ACN36: 0 | ACO36: 0 | ACP36: 0 | ACQ36: 0 | ACR36: 0 | ACS36: 0 | ACT36: 0 | ACU36: 0 | ACV36: 0 | ACW36: 0 | ACX36: 0 | ACY36: 0 | ACZ36: 0 | ADA36: 0 | ADB36: 0 | ADC36: 0 | ADD36: 0 | ADE36: 0 | ADF36: 0 | ADG36: 0 | ADH36: 0 | ADI36: 0 | ADJ36: 0 | ADK36: 0 | ADL36: 0 | ADM36: 0 | ADN36: 0 | ADO36: 0 | ADP36: 0 | ADQ36: 0 | ADR36: 0 | ADS36: 0 | ADT36: 0 | ADU36: 0 | ADV36: 0 | ADW36: 0 | ADX36: 0 | ADY36: 0 | ADZ36: 0 | AEA36: 0 | AEB36: 0 | AEC36: 0 | AED36: 0 | AEE36: 0 | AEF36: 0 | AEG36: 0 | AEH36: 0 | AEI36: 0 | AEJ36: 0 | AEK36: 0 | AEL36: 0 | AEM36: 0 | AEN36: 0 | AEO36: 0 | AEP36: 0 | AEQ36: 0 | AER36: 0 | AES36: 0 | AET36: 0 | AEU36: 0 | AEV36: 0 | AEW36: 0 | AEX36: 0 | AEY36: 0 | AEZ36: 0 | AFA36: 0 | AFB36: 0 | AFC36: 0 | AFD36: 0 | AFE36: 0 | AFF36: 0 | AFG36: 0 | AFH36: 0 | AFI36: 0 | AFJ36: 0 | AFK36: 0 | AFL36: 0 | AFM36: 0 | AFN36: 0 | AFO36: 0 | AFP36: 0 | AFQ36: 0 | AFR36: 0 | AFS36: 0 | AFT36: 0 | AFU36: 0 | AFV36: 0 | AFW36: 0 | AFX36: 0 | AFY36: 0 | AFZ36: 0 | AGA36: 0 | AGB36: 0 | AGC36: 0 | AGD36: 0 | AGE36: 0 | AGF36: 0 | AGG36: 0 | AGH36: 0 | AGI36: 0 | AGJ36: 0 | AGK36: 0 | AGL36: 0 | AGM36: 0 | AGN36: 0 | AGO36: 0 | AGP36: 0 | AGQ36: 0 | AGR36: 0 | AGS36: 0 | AGT36: 0 | AGU36: 0 | AGV36: 0 | AGW36: 0 | AGX36: 0 | AGY36: 0 | AGZ36: 0 | AHA36: 0 | AHB36: 0 | AHC36: 0 | AHD36: 0 | AHE36: 0 | AHF36: 0 | AHG36: 0 | AHH36: 0 | AHI36: 0 | AHJ36: 0 | AHK36: 0 | AHL36: 0 | AHM36: 0 | AHN36: 0 | AHO36: 0 | AHP36: 0 | AHQ36: 0 | AHR36: 0 | AHS36: 0 | AHT36: 0 | AHU36: 0 | AHV36: 0 | AHW36: 0 | AHX36: 0 | AHY36: 0 | AHZ36: 0 | AIA36: 0 | AIB36: 0 | AIC36: 0 | AID36: 0 | AIE36: 0 | AIF36: 0 | AIG36: 0 | AIH36: 0 | AII36: 0 | AIJ36: 0 | AIK36: 0 | AIL36: 0 | AIM36: 0 | AIN36: 0 | AIO36: 0 | AIP36: 0 | AIQ36: 0 | AIR36: 0 | AIS36: 0 | AIT36: 0 | AIU36: 0 | AIV36: 0 | AIW36: 0 | AIX36: 0 | AIY36: 0 | AIZ36: 0 | AJA36: 0 | AJB36: 0 | AJC36: 0 | AJD36: 0 | AJE36: 0 | AJF36: 0 | AJG36: 0 | AJH36: 0 | AJI36: 0 | AJJ36: 0 | AJK36: 0 | AJL36: 0 | AJM36: 0 | AJN36: 0 | AJO36: 0 | AJP36: 0 | AJQ36: 0 | AJR36: 0 | AJS36: 0 | AJT36: 0 | AJU36: 0 | AJV36: 0
J37: 0 | K37: 0 | L37: 0 | M37: 0 | N37: 0 | O37: 0 | P37: 0 | Q37: 0 | R37: 0 | S37: 0 | T37: 0 | U37: 0 | V37: 0 | W37: 0 | X37: 0 | Y37: 0 | Z37: 0 | AA37: 0 | AB37: 0 | AC37: 0 | AD37: 0 | AE37: 0 | AF37: 0 | AG37: 0 | AH37: 0 | AI37: 0 | AJ37: 0 | AK37: 0 | AL37: 0 | AM37: 0 | AN37: 0 | AO37: 0 | AP37: 0 | AQ37: 0 | AR37: 0 | AS37: 0 | AT37: 0 | AU37: 0 | AV37: 0 | AW37: 0 | AX37: 0 | AY37: 0 | AZ37: 0 | BA37: 0 | BB37: 0 | BC37: 0 | BD37: 0 | BE37: 0 | BF37: 0 | BG37: 0 | BH37: 0 | BI37: 0 | BJ37: 0 | BK37: 0 | BL37: 0 | BM37: 0 | BN37: 0 | BO37: 0 | BP37: 0 | BQ37: 0 | BR37: 0 | BS37: 0 | BT37: 0 | BU37: 0 | BV37: 0 | BW37: 0 | BX37: 0 | BY37: 0 | BZ37: 0 | CA37: 0 | CB37: 0 | CC37: 0 | CD37: 0 | CE37: 0 | CF37: 0 | CG37: 0 | CH37: 0 | CI37: 0 | CJ37: 0 | CK37: 0 | CL37: 0 | CM37: 0 | CN37: 0 | CO37: 0 | CP37: 0 | CQ37: 0 | CR37: 0 | CS37: 0 | CT37: 0 | CU37: 0 | CV37: 0 | CW37: 0 | CX37: 0 | CY37: 0 | CZ37: 0 | DA37: 0 | DB37: 0 | DC37: 0 | DD37: 0 | DE37: 0 | DF37: 0 | DG37: 0 | DH37: 0 | DI37: 0 | DJ37: 0 | DK37: 0 | DL37: 0 | DM37: 0 | DN37: 0 | DO37: 0 | DP37: 0 | DQ37: 0 | DR37: 0 | DS37: 0 | DT37: 0 | DU37: 0 | DV37: 0 | DW37: 0 | DX37: 0 | DY37: 0 | DZ37: 0 | EA37: 0 | EB37: 0 | EC37: 0 | ED37: 0 | EE37: 0 | EF37: 0 | EG37: 0 | EH37: 0 | EI37: 0 | EJ37: 0 | EK37: 0 | EL37: 0 | EM37: 0 | EN37: 0 | EO37: 0 | EP37: 0 | EQ37: 0 | ER37: 0 | ES37: 0 | ET37: 0 | EU37: 0 | EV37: 0 | EW37: 0 | EX37: 0 | EY37: 0 | EZ37: 0 | FA37: 0 | FB37: 0 | FC37: 0 | FD37: 0 | FE37: 0 | FF37: 0 | FG37: 0 | FH37: 0 | FI37: 0 | FJ37: 0 | FK37: 0 | FL37: 0 | FM37: 0 | FN37: 0 | FO37: 0 | FP37: 0 | FQ37: 0 | FR37: 0 | FS37: 0 | FT37: 0 | FU37: 0 | FV37: 0 | FW37: 0 | FX37: 0 | FY37: 0 | FZ37: 0 | GA37: 0 | GB37: 0 | GC37: 0 | GD37: 0 | GE37: 0 | GF37: 0 | GG37: 0 | GH37: 0 | GI37: 0 | GJ37: 0 | GK37: 0 | GL37: 0 | GM37: 0 | GN37: 0 | GO37: 0 | GP37: 0 | GQ37: 0 | GR37: 0 | GS37: 0 | GT37: 0 | GU37: 0 | GV37: 0 | GW37: 0 | GX37: 0 | GY37: 0 | GZ37: 0 | HA37: 0 | HB37: 0 | HC37: 0 | HD37: 0 | HE37: 0 | HF37: 0 | HG37: 0 | HH37: 0 | HI37: 0 | HJ37: 0 | HK37: 0 | HL37: 0 | HM37: 0 | HN37: 0 | HO37: 0 | HP37: 0 | HQ37: 0 | HR37: 0 | HS37: 0 | HT37: 0 | HU37: 0 | HV37: 0 | HW37: 0 | HX37: 0 | HY37: 0 | HZ37: 0 | IA37: 0 | IB37: 0 | IC37: 0 | ID37: 0 | IE37: 0 | IF37: 0 | IG37: 0 | IH37: 0 | II37: 0 | IJ37: 0 | IK37: 0 | IL37: 0 | IM37: 0 | IN37: 0 | IO37: 0 | IP37: 0 | IQ37: 0 | IR37: 0 | IS37: 0 | IT37: 0 | IU37: 0 | IV37: 0 | IW37: 0 | IX37: 0 | IY37: 0 | IZ37: 0 | JA37: 0 | JB37: 0 | JC37: 0 | JD37: 0 | JE37: 0 | JF37: 0 | JG37: 0 | JH37: 0 | JI37: 0 | JJ37: 0 | JK37: 0 | JL37: 0 | JM37: 0 | JN37: 0 | JO37: 0 | JP37: 0 | JQ37: 0 | JR37: 0 | JS37: 0 | JT37: 0 | JU37: 0 | JV37: 0 | JW37: 0 | JX37: 0 | JY37: 0 | JZ37: 0 | KA37: 0 | KB37: 0 | KC37: 0 | KD37: 0 | KE37: 0 | KF37: 0 | KG37: 0 | KH37: 0 | KI37: 0 | KJ37: 0 | KK37: 0 | KL37: 0 | KM37: 0 | KN37: 0 | KO37: 0 | KP37: 0 | KQ37: 0 | KR37: 0 | KS37: 0 | KT37: 0 | KU37: 0 | KV37: 0 | KW37: 0 | KX37: 0 | KY37: 0 | KZ37: 0 | LA37: 0 | LB37: 0 | LC37: 0 | LD37: 0 | LE37: 0 | LF37: 0 | LG37: 0 | LH37: 0 | LI37: 0 | LJ37: 0 | LK37: 0 | LL37: 0 | LM37: 0 | LN37: 0 | LO37: 0 | LP37: 0 | LQ37: 0 | LR37: 0 | LS37: 0 | LT37: 0 | LU37: 0 | LV37: 0 | LW37: 0 | LX37: 0 | LY37: 0 | LZ37: 0 | MA37: 0 | MB37: 0 | MC37: 0 | MD37: 0 | ME37: 0 | MF37: 0 | MG37: 0 | MH37: 0 | MI37: 0 | MJ37: 0 | MK37: 0 | ML37: 0 | MM37: 0 | MN37: 0 | MO37: 0 | MP37: 0 | MQ37: 0 | MR37: 0 | MS37: 0 | MT37: 0 | MU37: 0 | MV37: 0 | MW37: 0 | MX37: 0 | MY37: 0 | MZ37: 0 | NA37: 0 | NB37: 0 | NC37: 0 | ND37: 0 | NE37: 0 | NF37: 0 | NG37: 0 | NH37: 0 | NI37: 0 | NJ37: 0 | NK37: 0 | NL37: 0 | NM37: 0 | NN37: 0 | NO37: 0 | NP37: 0 | NQ37: 0 | NR37: 0 | NS37: 0 | NT37: 0 | NU37: 0 | NV37: 0 | NW37: 0 | NX37: 0 | NY37: 0 | NZ37: 0 | OA37: 0 | OB37: 0 | OC37: 0 | OD37: 0 | OE37: 0 | OF37: 0 | OG37: 0 | OH37: 0 | OI37: 0 | OJ37: 0 | OK37: 0 | OL37: 0 | OM37: 0 | ON37: 0 | OO37: 0 | OP37: 0 | OQ37: 0 | OR37: 0 | OS37: 0 | OT37: 0 | OU37: 0 | OV37: 0 | OW37: 0 | OX37: 0 | OY37: 0 | OZ37: 0 | PA37: 0 | PB37: 0 | PC37: 0 | PD37: 0 | PE37: 0 | PF37: 0 | PG37: 0 | PH37: 0 | PI37: 0 | PJ37: 0 | PK37: 0 | PL37: 0 | PM37: 0 | PN37: 0 | PO37: 0 | PP37: 0 | PQ37: 0 | PR37: 0 | PS37: 0 | PT37: 0 | PU37: 0 | PV37: 0 | PW37: 0 | PX37: 0 | PY37: 0 | PZ37: 0 | QA37: 0 | QB37: 0 | QC37: 0 | QD37: 0 | QE37: 0 | QF37: 0 | QG37: 0 | QH37: 0 | QI37: 0 | QJ37: 0 | QK37: 0 | QL37: 0 | QM37: 0 | QN37: 0 | QO37: 0 | QP37: 0 | QQ37: 0 | QR37: 0 | QS37: 0 | QT37: 0 | QU37: 0 | QV37: 0 | QW37: 0 | QX37: 0 | QY37: 0 | QZ37: 0 | RA37: 0 | RB37: 0 | RC37: 0 | RD37: 0 | RE37: 0 | RF37: 0 | RG37: 0 | RH37: 0 | RI37: 0 | RJ37: 0 | RK37: 0 | RL37: 0 | RM37: 0 | RN37: 0 | RO37: 0 | RP37: 0 | RQ37: 0 | RR37: 0 | RS37: 0 | RT37: 0 | RU37: 0 | RV37: 0 | RW37: 0 | RX37: 0 | RY37: 0 | RZ37: 0 | SA37: 0 | SB37: 0 | SC37: 0 | SD37: 0 | SE37: 0 | SF37: 0 | SG37: 0 | SH37: 0 | SI37: 0 | SJ37: 0 | SK37: 0 | SL37: 0 | SM37: 0 | SN37: 0 | SO37: 0 | SP37: 0 | SQ37: 0 | SR37: 0 | SS37: 0 | ST37: 0 | SU37: 0 | SV37: 0 | SW37: 0 | SX37: 0 | SY37: 0 | SZ37: 0 | TA37: 0 | TB37: 0 | TC37: 0 | TD37: 0 | TE37: 0 | TF37: 0 | TG37: 0 | TH37: 0 | TI37: 0 | TJ37: 0 | TK37: 0 | TL37: 0 | TM37: 0 | TN37: 0 | TO37: 0 | TP37: 0 | TQ37: 0 | TR37: 0 | TS37: 0 | TT37: 0 | TU37: 0 | TV37: 0 | TW37: 0 | TX37: 0 | TY37: 0 | TZ37: 0 | UA37: 0 | UB37: 0 | UC37: 0 | UD37: 0 | UE37: 0 | UF37: 0 | UG37: 0 | UH37: 0 | UI37: 0 | UJ37: 0 | UK37: 0 | UL37: 0 | UM37: 0 | UN37: 0 | UO37: 0 | UP37: 0 | UQ37: 0 | UR37: 0 | US37: 0 | UT37: 0 | UU37: 0 | UV37: 0 | UW37: 0 | UX37: 0 | UY37: 0 | UZ37: 0 | VA37: 0 | VB37: 0 | VC37: 0 | VD37: 0 | VE37: 0 | VF37: 0 | VG37: 0 | VH37: 0 | VI37: 0 | VJ37: 0 | VK37: 0 | VL37: 0 | VM37: 0 | VN37: 0 | VO37: 0 | VP37: 0 | VQ37: 0 | VR37: 0 | VS37: 0 | VT37: 0 | VU37: 0 | VV37: 0 | VW37: 0 | VX37: 0 | VY37: 0 | VZ37: 0 | WA37: 0 | WB37: 0 | WC37: 0 | WD37: 0 | WE37: 0 | WF37: 0 | WG37: 0 | WH37: 0 | WI37: 0 | WJ37: 0 | WK37: 0 | WL37: 0 | WM37: 0 | WN37: 0 | WO37: 0 | WP37: 0 | WQ37: 0 | WR37: 0 | WS37: 0 | WT37: 0 | WU37: 0 | WV37: 0 | WW37: 0 | WX37: 0 | WY37: 0 | WZ37: 0 | XA37: 0 | XB37: 0 | XC37: 0 | XD37: 0 | XE37: 0 | XF37: 0 | XG37: 0 | XH37: 0 | XI37: 0 | XJ37: 0 | XK37: 0 | XL37: 0 | XM37: 0 | XN37: 0 | XO37: 0 | XP37: 0 | XQ37: 0 | XR37: 0 | XS37: 0 | XT37: 0 | XU37: 0 | XV37: 0 | XW37: 0 | XX37: 0 | XY37: 0 | XZ37: 0 | YA37: 0 | YB37: 0 | YC37: 0 | YD37: 0 | YE37: 0 | YF37: 0 | YG37: 0 | YH37: 0 | YI37: 0 | YJ37: 0 | YK37: 0 | YL37: 0 | YM37: 0 | YN37: 0 | YO37: 0 | YP37: 0 | YQ37: 0 | YR37: 0 | YS37: 0 | YT37: 0 | YU37: 0 | YV37: 0 | YW37: 0 | YX37: 0 | YY37: 0 | YZ37: 0 | ZA37: 0 | ZB37: 0 | ZC37: 0 | ZD37: 0 | ZE37: 0 | ZF37: 0 | ZG37: 0 | ZH37: 0 | ZI37: 0 | ZJ37: 0 | ZK37: 0 | ZL37: 0 | ZM37: 0 | ZN37: 0 | ZO37: 0 | ZP37: 0 | ZQ37: 0 | ZR37: 0 | ZS37: 0 | ZT37: 0 | ZU37: 0 | ZV37: 0 | ZW37: 0 | ZX37: 0 | ZY37: 0 | ZZ37: 0 | AAA37: 0 | AAB37: 0 | AAC37: 0 | AAD37: 0 | AAE37: 0 | AAF37: 0 | AAG37: 0 | AAH37: 0 | AAI37: 0 | AAJ37: 0 | AAK37: 0 | AAL37: 0 | AAM37: 0 | AAN37: 0 | AAO37: 0 | AAP37: 0 | AAQ37: 0 | AAR37: 0 | AAS37: 0 | AAT37: 0 | AAU37: 0 | AAV37: 0 | AAW37: 0 | AAX37: 0 | AAY37: 0 | AAZ37: 0 | ABA37: 0 | ABB37: 0 | ABC37: 0 | ABD37: 0 | ABE37: 0 | ABF37: 0 | ABG37: 0 | ABH37: 0 | ABI37: 0 | ABJ37: 0 | ABK37: 0 | ABL37: 0 | ABM37: 0 | ABN37: 0 | ABO37: 0 | ABP37: 0 | ABQ37: 0 | ABR37: 0 | ABS37: 0 | ABT37: 0 | ABU37: 0 | ABV37: 0 | ABW37: 0 | ABX37: 0 | ABY37: 0 | ABZ37: 0 | ACA37: 0 | ACB37: 0 | ACC37: 0 | ACD37: 0 | ACE37: 0 | ACF37: 0 | ACG37: 0 | ACH37: 0 | ACI37: 0 | ACJ37: 0 | ACK37: 0 | ACL37: 0 | ACM37: 0 | ACN37: 0 | ACO37: 0 | ACP37: 0 | ACQ37: 0 | ACR37: 0 | ACS37: 0 | ACT37: 0 | ACU37: 0 | ACV37: 0 | ACW37: 0 | ACX37: 0 | ACY37: 0 | ACZ37: 0 | ADA37: 0 | ADB37: 0 | ADC37: 0 | ADD37: 0 | ADE37: 0 | ADF37: 0 | ADG37: 0 | ADH37: 0 | ADI37: 0 | ADJ37: 0 | ADK37: 0 | ADL37: 0 | ADM37: 0 | ADN37: 0 | ADO37: 0 | ADP37: 0 | ADQ37: 0 | ADR37: 0 | ADS37: 0 | ADT37: 0 | ADU37: 0 | ADV37: 0 | ADW37: 0 | ADX37: 0 | ADY37: 0 | ADZ37: 0 | AEA37: 0 | AEB37: 0 | AEC37: 0 | AED37: 0 | AEE37: 0 | AEF37: 0 | AEG37: 0 | AEH37: 0 | AEI37: 0 | AEJ37: 0 | AEK37: 0 | AEL37: 0 | AEM37: 0 | AEN37: 0 | AEO37: 0 | AEP37: 0 | AEQ37: 0 | AER37: 0 | AES37: 0 | AET37: 0 | AEU37: 0 | AEV37: 0 | AEW37: 0 | AEX37: 0 | AEY37: 0 | AEZ37: 0 | AFA37: 0 | AFB37: 0 | AFC37: 0 | AFD37: 0 | AFE37: 0 | AFF37: 0 | AFG37: 0 | AFH37: 0 | AFI37: 0 | AFJ37: 0 | AFK37: 0 | AFL37: 0 | AFM37: 0 | AFN37: 0 | AFO37: 0 | AFP37: 0 | AFQ37: 0 | AFR37: 0 | AFS37: 0 | AFT37: 0 | AFU37: 0 | AFV37: 0 | AFW37: 0 | AFX37: 0 | AFY37: 0 | AFZ37: 0 | AGA37: 0 | AGB37: 0 | AGC37: 0 | AGD37: 0 | AGE37: 0 | AGF37: 0 | AGG37: 0 | AGH37: 0 | AGI37: 0 | AGJ37: 0 | AGK37: 0 | AGL37: 0 | AGM37: 0 | AGN37: 0 | AGO37: 0 | AGP37: 0 | AGQ37: 0 | AGR37: 0 | AGS37: 0 | AGT37: 0 | AGU37: 0 | AGV37: 0 | AGW37: 0 | AGX37: 0 | AGY37: 0 | AGZ37: 0 | AHA37: 0 | AHB37: 0 | AHC37: 0 | AHD37: 0 | AHE37: 0 | AHF37: 0 | AHG37: 0 | AHH37: 0 | AHI37: 0 | AHJ37: 0 | AHK37: 0 | AHL37: 0 | AHM37: 0 | AHN37: 0 | AHO37: 0 | AHP37: 0 | AHQ37: 0 | AHR37: 0 | AHS37: 0 | AHT37: 0 | AHU37: 0 | AHV37: 0 | AHW37: 0 | AHX37: 0 | AHY37: 0 | AHZ37: 0 | AIA37: 0 | AIB37: 0 | AIC37: 0 | AID37: 0 | AIE37: 0 | AIF37: 0 | AIG37: 0 | AIH37: 0 | AII37: 0 | AIJ37: 0 | AIK37: 0 | AIL37: 0 | AIM37: 0 | AIN37: 0 | AIO37: 0 | AIP37: 0 | AIQ37: 0 | AIR37: 0 | AIS37: 0 | AIT37: 0 | AIU37: 0 | AIV37: 0 | AIW37: 0 | AIX37: 0 | AIY37: 0 | AIZ37: 0 | AJA37: 0 | AJB37: 0 | AJC37: 0 | AJD37: 0 | AJE37: 0 | AJF37: 0 | AJG37: 0 | AJH37: 0 | AJI37: 0 | AJJ37: 0 | AJK37: 0 | AJL37: 0 | AJM37: 0 | AJN37: 0 | AJO37: 0 | AJP37: 0 | AJQ37: 0 | AJR37: 0 | AJS37: 0 | AJT37: 0 | AJU37: 0 | AJV37: 0
J38: 0 | K38: 0 | L38: 0 | M38: 0 | N38: 0 | O38: 0 | P38: 0 | Q38: 0 | R38: 0 | S38: 0 | T38: 0 | U38: 0 | V38: 0 | W38: 0 | X38: 0 | Y38: 0 | Z38: 0 | AA38: 0 | AB38: 0 | AC38: 0 | AD38: 0 | AE38: 0 | AF38: 0 | AG38: 0 | AH38: 0 | AI38: 0 | AJ38: 0 | AK38: 0 | AL38: 0 | AM38: 0 | AN38: 0 | AO38: 0 | AP38: 0 | AQ38: 0 | AR38: 0 | AS38: 0 | AT38: 0 | AU38: 0 | AV38: 0 | AW38: 0 | AX38: 0 | AY38: 0 | AZ38: 0 | BA38: 0 | BB38: 0 | BC38: 0 | BD38: 0 | BE38: 0 | BF38: 0 | BG38: 0 | BH38: 0 | BI38: 0 | BJ38: 0 | BK38: 0 | BL38: 0 | BM38: 0 | BN38: 0 | BO38: 0 | BP38: 0 | BQ38: 0 | BR38: 0 | BS38: 0 | BT38: 0 | BU38: 0 | BV38: 0 | BW38: 0 | BX38: 0 | BY38: 0 | BZ38: 0 | CA38: 0 | CB38: 0 | CC38: 0 | CD38: 0 | CE38: 0 | CF38: 0 | CG38: 0 | CH38: 0 | CI38: 0 | CJ38: 0 | CK38: 0 | CL38: 0 | CM38: 0 | CN38: 0 | CO38: 0 | CP38: 0 | CQ38: 0 | CR38: 0 | CS38: 0 | CT38: 0 | CU38: 0 | CV38: 0 | CW38: 0 | CX38: 0 | CY38: 0 | CZ38: 0 | DA38: 0 | DB38: 0 | DC38: 0 | DD38: 0 | DE38: 0 | DF38: 0 | DG38: 0 | DH38: 0 | DI38: 0 | DJ38: 0 | DK38: 0 | DL38: 0 | DM38: 0 | DN38: 0 | DO38: 0 | DP38: 0 | DQ38: 0 | DR38: 0 | DS38: 0 | DT38: 0 | DU38: 0 | DV38: 0 | DW38: 0 | DX38: 0 | DY38: 0 | DZ38: 0 | EA38: 0 | EB38: 0 | EC38: 0 | ED38: 0 | EE38: 0 | EF38: 0 | EG38: 0 | EH38: 0 | EI38: 0 | EJ38: 0 | EK38: 0 | EL38: 0 | EM38: 0 | EN38: 0 | EO38: 0 | EP38: 0 | EQ38: 0 | ER38: 0 | ES38: 0 | ET38: 0 | EU38: 0 | EV38: 0 | EW38: 0 | EX38: 0 | EY38: 0 | EZ38: 0 | FA38: 0 | FB38: 0 | FC38: 0 | FD38: 0 | FE38: 0 | FF38: 0 | FG38: 0 | FH38: 0 | FI38: 0 | FJ38: 0 | FK38: 0 | FL38: 0 | FM38: 0 | FN38: 0 | FO38: 0 | FP38: 0 | FQ38: 0 | FR38: 0 | FS38: 0 | FT38: 0 | FU38: 0 | FV38: 0 | FW38: 0 | FX38: 0 | FY38: 0 | FZ38: 0 | GA38: 0 | GB38: 0 | GC38: 0 | GD38: 0 | GE38: 0 | GF38: 0 | GG38: 0 | GH38: 0 | GI38: 0 | GJ38: 0 | GK38: 0 | GL38: 0 | GM38: 0 | GN38: 0 | GO38: 0 | GP38: 0 | GQ38: 0 | GR38: 0 | GS38: 0 | GT38: 0 | GU38: 0 | GV38: 0 | GW38: 0 | GX38: 0 | GY38: 0 | GZ38: 0 | HA38: 0 | HB38: 0 | HC38: 0 | HD38: 0 | HE38: 0 | HF38: 0 | HG38: 0 | HH38: 0 | HI38: 0 | HJ38: 0 | HK38: 0 | HL38: 0 | HM38: 0 | HN38: 0 | HO38: 0 | HP38: 0 | HQ38: 0 | HR38: 0 | HS38: 0 | HT38: 0 | HU38: 0 | HV38: 0 | HW38: 0 | HX38: 0 | HY38: 0 | HZ38: 0 | IA38: 0 | IB38: 0 | IC38: 0 | ID38: 0 | IE38: 0 | IF38: 0 | IG38: 0 | IH38: 0 | II38: 0 | IJ38: 0 | IK38: 0 | IL38: 0 | IM38: 0 | IN38: 0 | IO38: 0 | IP38: 0 | IQ38: 0 | IR38: 0 | IS38: 0 | IT38: 0 | IU38: 0 | IV38: 0 | IW38: 0 | IX38: 0 | IY38: 0 | IZ38: 0 | JA38: 0 | JB38: 0 | JC38: 0 | JD38: 0 | JE38: 0 | JF38: 0 | JG38: 0 | JH38: 0 | JI38: 0 | JJ38: 0 | JK38: 0 | JL38: 0 | JM38: 0 | JN38: 0 | JO38: 0 | JP38: 0 | JQ38: 0 | JR38: 0 | JS38: 0 | JT38: 0 | JU38: 0 | JV38: 0 | JW38: 0 | JX38: 0 | JY38: 0 | JZ38: 0 | KA38: 0 | KB38: 0 | KC38: 0 | KD38: 0 | KE38: 0 | KF38: 0 | KG38: 0 | KH38: 0 | KI38: 0 | KJ38: 0 | KK38: 0 | KL38: 0 | KM38: 0 | KN38: 0 | KO38: 0 | KP38: 0 | KQ38: 0 | KR38: 0 | KS38: 0 | KT38: 0 | KU38: 0 | KV38: 0 | KW38: 0 | KX38: 0 | KY38: 0 | KZ38: 0 | LA38: 0 | LB38: 0 | LC38: 0 | LD38: 0 | LE38: 0 | LF38: 0 | LG38: 0 | LH38: 0 | LI38: 0 | LJ38: 0 | LK38: 0 | LL38: 0 | LM38: 0 | LN38: 0 | LO38: 0 | LP38: 0 | LQ38: 0 | LR38: 0 | LS38: 0 | LT38: 0 | LU38: 0 | LV38: 0 | LW38: 0 | LX38: 0 | LY38: 0 | LZ38: 0 | MA38: 0 | MB38: 0 | MC38: 0 | MD38: 0 | ME38: 0 | MF38: 0 | MG38: 0 | MH38: 0 | MI38: 0 | MJ38: 0 | MK38: 0 | ML38: 0 | MM38: 0 | MN38: 0 | MO38: 0 | MP38: 0 | MQ38: 0 | MR38: 0 | MS38: 0 | MT38: 0 | MU38: 0 | MV38: 0 | MW38: 0 | MX38: 0 | MY38: 0 | MZ38: 0 | NA38: 0 | NB38: 0 | NC38: 0 | ND38: 0 | NE38: 0 | NF38: 0 | NG38: 0 | NH38: 0 | NI38: 0 | NJ38: 0 | NK38: 0 | NL38: 0 | NM38: 0 | NN38: 0 | NO38: 0 | NP38: 0 | NQ38: 0 | NR38: 0 | NS38: 0 | NT38: 0 | NU38: 0 | NV38: 0 | NW38: 0 | NX38: 0 | NY38: 0 | NZ38: 0 | OA38: 0 | OB38: 0 | OC38: 0 | OD38: 0 | OE38: 0 | OF38: 0 | OG38: 0 | OH38: 0 | OI38: 0 | OJ38: 0 | OK38: 0 | OL38: 0 | OM38: 0 | ON38: 0 | OO38: 0 | OP38: 0 | OQ38: 0 | OR38: 0 | OS38: 0 | OT38: 0 | OU38: 0 | OV38: 0 | OW38: 0 | OX38: 0 | OY38: 0 | OZ38: 0 | PA38: 0 | PB38: 0 | PC38: 0 | PD38: 0 | PE38: 0 | PF38: 0 | PG38: 0 | PH38: 0 | PI38: 0 | PJ38: 0 | PK38: 0 | PL38: 0 | PM38: 0 | PN38: 0 | PO38: 0 | PP38: 0 | PQ38: 0 | PR38: 0 | PS38: 0 | PT38: 0 | PU38: 0 | PV38: 0 | PW38: 0 | PX38: 0 | PY38: 0 | PZ38: 0 | QA38: 0 | QB38: 0 | QC38: 0 | QD38: 0 | QE38: 0 | QF38: 0 | QG38: 0 | QH38: 0 | QI38: 0 | QJ38: 0 | QK38: 0 | QL38: 0 | QM38: 0 | QN38: 0 | QO38: 0 | QP38: 0 | QQ38: 0 | QR38: 0 | QS38: 0 | QT38: 0 | QU38: 0 | QV38: 0 | QW38: 0 | QX38: 0 | QY38: 0 | QZ38: 0 | RA38: 0 | RB38: 0 | RC38: 0 | RD38: 0 | RE38: 0 | RF38: 0 | RG38: 0 | RH38: 0 | RI38: 0 | RJ38: 0 | RK38: 0 | RL38: 0 | RM38: 0 | RN38: 0 | RO38: 0 | RP38: 0 | RQ38: 0 | RR38: 0 | RS38: 0 | RT38: 0 | RU38: 0 | RV38: 0 | RW38: 0 | RX38: 0 | RY38: 0 | RZ38: 0 | SA38: 0 | SB38: 0 | SC38: 0 | SD38: 0 | SE38: 0 | SF38: 0 | SG38: 0 | SH38: 0 | SI38: 0 | SJ38: 0 | SK38: 0 | SL38: 0 | SM38: 0 | SN38: 0 | SO38: 0 | SP38: 0 | SQ38: 0 | SR38: 0 | SS38: 0 | ST38: 0 | SU38: 0 | SV38: 0 | SW38: 0 | SX38: 0 | SY38: 0 | SZ38: 0 | TA38: 0 | TB38: 0 | TC38: 0 | TD38: 0 | TE38: 0 | TF38: 0 | TG38: 0 | TH38: 0 | TI38: 0 | TJ38: 0 | TK38: 0 | TL38: 0 | TM38: 0 | TN38: 0 | TO38: 0 | TP38: 0 | TQ38: 0 | TR38: 0 | TS38: 0 | TT38: 0 | TU38: 0 | TV38: 0 | TW38: 0 | TX38: 0 | TY38: 0 | TZ38: 0 | UA38: 0 | UB38: 0 | UC38: 0 | UD38: 0 | UE38: 0 | UF38: 0 | UG38: 0 | UH38: 0 | UI38: 0 | UJ38: 0 | UK38: 0 | UL38: 0 | UM38: 0 | UN38: 0 | UO38: 0 | UP38: 0 | UQ38: 0 | UR38: 0 | US38: 0 | UT38: 0 | UU38: 0 | UV38: 0 | UW38: 0 | UX38: 0 | UY38: 0 | UZ38: 0 | VA38: 0 | VB38: 0 | VC38: 0 | VD38: 0 | VE38: 0 | VF38: 0 | VG38: 0 | VH38: 0 | VI38: 0 | VJ38: 0 | VK38: 0 | VL38: 0 | VM38: 0 | VN38: 0 | VO38: 0 | VP38: 0 | VQ38: 0 | VR38: 0 | VS38: 0 | VT38: 0 | VU38: 0 | VV38: 0 | VW38: 0 | VX38: 0 | VY38: 0 | VZ38: 0 | WA38: 0 | WB38: 0 | WC38: 0 | WD38: 0 | WE38: 0 | WF38: 0 | WG38: 0 | WH38: 0 | WI38: 0 | WJ38: 0 | WK38: 0 | WL38: 0 | WM38: 0 | WN38: 0 | WO38: 0 | WP38: 0 | WQ38: 0 | WR38: 0 | WS38: 0 | WT38: 0 | WU38: 0 | WV38: 0 | WW38: 0 | WX38: 0 | WY38: 0 | WZ38: 0 | XA38: 0 | XB38: 0 | XC38: 0 | XD38: 0 | XE38: 0 | XF38: 0 | XG38: 0 | XH38: 0 | XI38: 0 | XJ38: 0 | XK38: 0 | XL38: 0 | XM38: 0 | XN38: 0 | XO38: 0 | XP38: 0 | XQ38: 0 | XR38: 0 | XS38: 0 | XT38: 0 | XU38: 0 | XV38: 0 | XW38: 0 | XX38: 0 | XY38: 0 | XZ38: 0 | YA38: 0 | YB38: 0 | YC38: 0 | YD38: 0 | YE38: 0 | YF38: 0 | YG38: 0 | YH38: 0 | YI38: 0 | YJ38: 0 | YK38: 0 | YL38: 0 | YM38: 0 | YN38: 0 | YO38: 0 | YP38: 0 | YQ38: 0 | YR38: 0 | YS38: 0 | YT38: 0 | YU38: 0 | YV38: 0 | YW38: 0 | YX38: 0 | YY38: 0 | YZ38: 0 | ZA38: 0 | ZB38: 0 | ZC38: 0 | ZD38: 0 | ZE38: 0 | ZF38: 0 | ZG38: 0 | ZH38: 0 | ZI38: 0 | ZJ38: 0 | ZK38: 0 | ZL38: 0 | ZM38: 0 | ZN38: 0 | ZO38: 0 | ZP38: 0 | ZQ38: 0 | ZR38: 0 | ZS38: 0 | ZT38: 0 | ZU38: 0 | ZV38: 0 | ZW38: 0 | ZX38: 0 | ZY38: 0 | ZZ38: 0 | AAA38: 0 | AAB38: 0 | AAC38: 0 | AAD38: 0 | AAE38: 0 | AAF38: 0 | AAG38: 0 | AAH38: 0 | AAI38: 0 | AAJ38: 0 | AAK38: 0 | AAL38: 0 | AAM38: 0 | AAN38: 0 | AAO38: 0 | AAP38: 0 | AAQ38: 0 | AAR38: 0 | AAS38: 0 | AAT38: 0 | AAU38: 0 | AAV38: 0 | AAW38: 0 | AAX38: 0 | AAY38: 0 | AAZ38: 0 | ABA38: 0 | ABB38: 0 | ABC38: 0 | ABD38: 0 | ABE38: 0 | ABF38: 0 | ABG38: 0 | ABH38: 0 | ABI38: 0 | ABJ38: 0 | ABK38: 0 | ABL38: 0 | ABM38: 0 | ABN38: 0 | ABO38: 0 | ABP38: 0 | ABQ38: 0 | ABR38: 0 | ABS38: 0 | ABT38: 0 | ABU38: 0 | ABV38: 0 | ABW38: 0 | ABX38: 0 | ABY38: 0 | ABZ38: 0 | ACA38: 0 | ACB38: 0 | ACC38: 0 | ACD38: 0 | ACE38: 0 | ACF38: 0 | ACG38: 0 | ACH38: 0 | ACI38: 0 | ACJ38: 0 | ACK38: 0 | ACL38: 0 | ACM38: 0 | ACN38: 0 | ACO38: 0 | ACP38: 0 | ACQ38: 0 | ACR38: 0 | ACS38: 0 | ACT38: 0 | ACU38: 0 | ACV38: 0 | ACW38: 0 | ACX38: 0 | ACY38: 0 | ACZ38: 0 | ADA38: 0 | ADB38: 0 | ADC38: 0 | ADD38: 0 | ADE38: 0 | ADF38: 0 | ADG38: 0 | ADH38: 0 | ADI38: 0 | ADJ38: 0 | ADK38: 0 | ADL38: 0 | ADM38: 0 | ADN38: 0 | ADO38: 0 | ADP38: 0 | ADQ38: 0 | ADR38: 0 | ADS38: 0 | ADT38: 0 | ADU38: 0 | ADV38: 0 | ADW38: 0 | ADX38: 0 | ADY38: 0 | ADZ38: 0 | AEA38: 0 | AEB38: 0 | AEC38: 0 | AED38: 0 | AEE38: 0 | AEF38: 0 | AEG38: 0 | AEH38: 0 | AEI38: 0 | AEJ38: 0 | AEK38: 0 | AEL38: 0 | AEM38: 0 | AEN38: 0 | AEO38: 0 | AEP38: 0 | AEQ38: 0 | AER38: 0 | AES38: 0 | AET38: 0 | AEU38: 0 | AEV38: 0 | AEW38: 0 | AEX38: 0 | AEY38: 0 | AEZ38: 0 | AFA38: 0 | AFB38: 0 | AFC38: 0 | AFD38: 0 | AFE38: 0 | AFF38: 0 | AFG38: 0 | AFH38: 0 | AFI38: 0 | AFJ38: 0 | AFK38: 0 | AFL38: 0 | AFM38: 0 | AFN38: 0 | AFO38: 0 | AFP38: 0 | AFQ38: 0 | AFR38: 0 | AFS38: 0 | AFT38: 0 | AFU38: 0 | AFV38: 0 | AFW38: 0 | AFX38: 0 | AFY38: 0 | AFZ38: 0 | AGA38: 0 | AGB38: 0 | AGC38: 0 | AGD38: 0 | AGE38: 0 | AGF38: 0 | AGG38: 0 | AGH38: 0 | AGI38: 0 | AGJ38: 0 | AGK38: 0 | AGL38: 0 | AGM38: 0 | AGN38: 0 | AGO38: 0 | AGP38: 0 | AGQ38: 0 | AGR38: 0 | AGS38: 0 | AGT38: 0 | AGU38: 0 | AGV38: 0 | AGW38: 0 | AGX38: 0 | AGY38: 0 | AGZ38: 0 | AHA38: 0 | AHB38: 0 | AHC38: 0 | AHD38: 0 | AHE38: 0 | AHF38: 0 | AHG38: 0 | AHH38: 0 | AHI38: 0 | AHJ38: 0 | AHK38: 0 | AHL38: 0 | AHM38: 0 | AHN38: 0 | AHO38: 0 | AHP38: 0 | AHQ38: 0 | AHR38: 0 | AHS38: 0 | AHT38: 0 | AHU38: 0 | AHV38: 0 | AHW38: 0 | AHX38: 0 | AHY38: 0 | AHZ38: 0 | AIA38: 0 | AIB38: 0 | AIC38: 0 | AID38: 0 | AIE38: 0 | AIF38: 0 | AIG38: 0 | AIH38: 0 | AII38: 0 | AIJ38: 0 | AIK38: 0 | AIL38: 0 | AIM38: 0 | AIN38: 0 | AIO38: 0 | AIP38: 0 | AIQ38: 0 | AIR38: 0 | AIS38: 0 | AIT38: 0 | AIU38: 0 | AIV38: 0 | AIW38: 0 | AIX38: 0 | AIY38: 0 | AIZ38: 0 | AJA38: 0 | AJB38: 0 | AJC38: 0 | AJD38: 0 | AJE38: 0 | AJF38: 0 | AJG38: 0 | AJH38: 0 | AJI38: 0 | AJJ38: 0 | AJK38: 0 | AJL38: 0 | AJM38: 0 | AJN38: 0 | AJO38: 0 | AJP38: 0 | AJQ38: 0 | AJR38: 0 | AJS38: 0 | AJT38: 0 | AJU38: 0 | AJV38: 0
J39: 0 | K39: 0 | L39: 0 | M39: 0 | N39: 0 | O39: 0 | P39: 0 | Q39: 0 | R39: 0 | S39: 0 | T39: 0 | U39: 0 | V39: 0 | W39: 0 | X39: 0 | Y39: 0 | Z39: 0 | AA39: 0 | AB39: 0 | AC39: 0 | AD39: 0 | AE39: 0 | AF39: 0 | AG39: 0 | AH39: 0 | AI39: 0 | AJ39: 0 | AK39: 0 | AL39: 0 | AM39: 0 | AN39: 0 | AO39: 0 | AP39: 0 | AQ39: 0 | AR39: 0 | AS39: 0 | AT39: 0 | AU39: 0 | AV39: 0 | AW39: 0 | AX39: 0 | AY39: 0 | AZ39: 0 | BA39: 0 | BB39: 0 | BC39: 0 | BD39: 0 | BE39: 0 | BF39: 0 | BG39: 0 | BH39: 0 | BI39: 0 | BJ39: 0 | BK39: 0 | BL39: 0 | BM39: 0 | BN39: 0 | BO39: 0 | BP39: 0 | BQ39: 0 | BR39: 0 | BS39: 0 | BT39: 0 | BU39: 0 | BV39: 0 | BW39: 0 | BX39: 0 | BY39: 0 | BZ39: 0 | CA39: 0 | CB39: 0 | CC39: 0 | CD39: 0 | CE39: 0 | CF39: 0 | CG39: 0 | CH39: 0 | CI39: 0 | CJ39: 0 | CK39: 0 | CL39: 0 | CM39: 0 | CN39: 0 | CO39: 0 | CP39: 0 | CQ39: 0 | CR39: 0 | CS39: 0 | CT39: 0 | CU39: 0 | CV39: 0 | CW39: 0 | CX39: 0 | CY39: 0 | CZ39: 0 | DA39: 0 | DB39: 0 | DC39: 0 | DD39: 0 | DE39: 0 | DF39: 0 | DG39: 0 | DH39: 0 | DI39: 0 | DJ39: 0 | DK39: 0 | DL39: 0 | DM39: 0 | DN39: 0 | DO39: 0 | DP39: 0 | DQ39: 0 | DR39: 0 | DS39: 0 | DT39: 0 | DU39: 0 | DV39: 0 | DW39: 0 | DX39: 0 | DY39: 0 | DZ39: 0 | EA39: 0 | EB39: 0 | EC39: 0 | ED39: 0 | EE39: 0 | EF39: 0 | EG39: 0 | EH39: 0 | EI39: 0 | EJ39: 0 | EK39: 0 | EL39: 0 | EM39: 0 | EN39: 0 | EO39: 0 | EP39: 0 | EQ39: 0 | ER39: 0 | ES39: 0 | ET39: 0 | EU39: 0 | EV39: 0 | EW39: 0 | EX39: 0 | EY39: 0 | EZ39: 0 | FA39: 0 | FB39: 0 | FC39: 0 | FD39: 0 | FE39: 0 | FF39: 0 | FG39: 0 | FH39: 0 | FI39: 0 | FJ39: 0 | FK39: 0 | FL39: 0 | FM39: 0 | FN39: 0 | FO39: 0 | FP39: 0 | FQ39: 0 | FR39: 0 | FS39: 0 | FT39: 0 | FU39: 0 | FV39: 0 | FW39: 0 | FX39: 0 | FY39: 0 | FZ39: 0 | GA39: 0 | GB39: 0 | GC39: 0 | GD39: 0 | GE39: 0 | GF39: 0 | GG39: 0 | GH39: 0 | GI39: 0 | GJ39: 0 | GK39: 0 | GL39: 0 | GM39: 0 | GN39: 0 | GO39: 0 | GP39: 0 | GQ39: 0 | GR39: 0 | GS39: 0 | GT39: 0 | GU39: 0 | GV39: 0 | GW39: 0 | GX39: 0 | GY39: 0 | GZ39: 0 | HA39: 0 | HB39: 0 | HC39: 0 | HD39: 0 | HE39: 0 | HF39: 0 | HG39: 0 | HH39: 0 | HI39: 0 | HJ39: 0 | HK39: 0 | HL39: 0 | HM39: 0 | HN39: 0 | HO39: 0 | HP39: 0 | HQ39: 0 | HR39: 0 | HS39: 0 | HT39: 0 | HU39: 0 | HV39: 0 | HW39: 0 | HX39: 0 | HY39: 0 | HZ39: 0 | IA39: 0 | IB39: 0 | IC39: 0 | ID39: 0 | IE39: 0 | IF39: 0 | IG39: 0 | IH39: 0 | II39: 0 | IJ39: 0 | IK39: 0 | IL39: 0 | IM39: 0 | IN39: 0 | IO39: 0 | IP39: 0 | IQ39: 0 | IR39: 0 | IS39: 0 | IT39: 0 | IU39: 0 | IV39: 0 | IW39: 0 | IX39: 0 | IY39: 0 | IZ39: 0 | JA39: 0 | JB39: 0 | JC39: 0 | JD39: 0 | JE39: 0 | JF39: 0 | JG39: 0 | JH39: 0 | JI39: 0 | JJ39: 0 | JK39: 0 | JL39: 0 | JM39: 0 | JN39: 0 | JO39: 0 | JP39: 0 | JQ39: 0 | JR39: 0 | JS39: 0 | JT39: 0 | JU39: 0 | JV39: 0 | JW39: 0 | JX39: 0 | JY39: 0 | JZ39: 0 | KA39: 0 | KB39: 0 | KC39: 0 | KD39: 0 | KE39: 0 | KF39: 0 | KG39: 0 | KH39: 0 | KI39: 0 | KJ39: 0 | KK39: 0 | KL39: 0 | KM39: 0 | KN39: 0 | KO39: 0 | KP39: 0 | KQ39: 0 | KR39: 0 | KS39: 0 | KT39: 0 | KU39: 0 | KV39: 0 | KW39: 0 | KX39: 0 | KY39: 0 | KZ39: 0 | LA39: 0 | LB39: 0 | LC39: 0 | LD39: 0 | LE39: 0 | LF39: 0 | LG39: 0 | LH39: 0 | LI39: 0 | LJ39: 0 | LK39: 0 | LL39: 0 | LM39: 0 | LN39: 0 | LO39: 0 | LP39: 0 | LQ39: 0 | LR39: 0 | LS39: 0 | LT39: 0 | LU39: 0 | LV39: 0 | LW39: 0 | LX39: 0 | LY39: 0 | LZ39: 0 | MA39: 0 | MB39: 0 | MC39: 0 | MD39: 0 | ME39: 0 | MF39: 0 | MG39: 0 | MH39: 0 | MI39: 0 | MJ39: 0 | MK39: 0 | ML39: 0 | MM39: 0 | MN39: 0 | MO39: 0 | MP39: 0 | MQ39: 0 | MR39: 0 | MS39: 0 | MT39: 0 | MU39: 0 | MV39: 0 | MW39: 0 | MX39: 0 | MY39: 0 | MZ39: 0 | NA39: 0 | NB39: 0 | NC39: 0 | ND39: 0 | NE39: 0 | NF39: 0 | NG39: 0 | NH39: 0 | NI39: 0 | NJ39: 0 | NK39: 0 | NL39: 0 | NM39: 0 | NN39: 0 | NO39: 0 | NP39: 0 | NQ39: 0 | NR39: 0 | NS39: 0 | NT39: 0 | NU39: 0 | NV39: 0 | NW39: 0 | NX39: 0 | NY39: 0 | NZ39: 0 | OA39: 0 | OB39: 0 | OC39: 0 | OD39: 0 | OE39: 0 | OF39: 0 | OG39: 0 | OH39: 0 | OI39: 0 | OJ39: 0 | OK39: 0 | OL39: 0 | OM39: 0 | ON39: 0 | OO39: 0 | OP39: 0 | OQ39: 0 | OR39: 0 | OS39: 0 | OT39: 0 | OU39: 0 | OV39: 0 | OW39: 0 | OX39: 0 | OY39: 0 | OZ39: 0 | PA39: 0 | PB39: 0 | PC39: 0 | PD39: 0 | PE39: 0 | PF39: 0 | PG39: 0 | PH39: 0 | PI39: 0 | PJ39: 0 | PK39: 0 | PL39: 0 | PM39: 0 | PN39: 0 | PO39: 0 | PP39: 0 | PQ39: 0 | PR39: 0 | PS39: 0 | PT39: 0 | PU39: 0 | PV39: 0 | PW39: 0 | PX39: 0 | PY39: 0 | PZ39: 0 | QA39: 0 | QB39: 0 | QC39: 0 | QD39: 0 | QE39: 0 | QF39: 0 | QG39: 0 | QH39: 0 | QI39: 0 | QJ39: 0 | QK39: 0 | QL39: 0 | QM39: 0 | QN39: 0 | QO39: 0 | QP39: 0 | QQ39: 0 | QR39: 0 | QS39: 0 | QT39: 0 | QU39: 0 | QV39: 0 | QW39: 0 | QX39: 0 | QY39: 0 | QZ39: 0 | RA39: 0 | RB39: 0 | RC39: 0 | RD39: 0 | RE39: 0 | RF39: 0 | RG39: 0 | RH39: 0 | RI39: 0 | RJ39: 0 | RK39: 0 | RL39: 0 | RM39: 0 | RN39: 0 | RO39: 0 | RP39: 0 | RQ39: 0 | RR39: 0 | RS39: 0 | RT39: 0 | RU39: 0 | RV39: 0 | RW39: 0 | RX39: 0 | RY39: 0 | RZ39: 0 | SA39: 0 | SB39: 0 | SC39: 0 | SD39: 0 | SE39: 0 | SF39: 0 | SG39: 0 | SH39: 0 | SI39: 0 | SJ39: 0 | SK39: 0 | SL39: 0 | SM39: 0 | SN39: 0 | SO39: 0 | SP39: 0 | SQ39: 0 | SR39: 0 | SS39: 0 | ST39: 0 | SU39: 0 | SV39: 0 | SW39: 0 | SX39: 0 | SY39: 0 | SZ39: 0 | TA39: 0 | TB39: 0 | TC39: 0 | TD39: 0 | TE39: 0 | TF39: 0 | TG39: 0 | TH39: 0 | TI39: 0 | TJ39: 0 | TK39: 0 | TL39: 0 | TM39: 0 | TN39: 0 | TO39: 0 | TP39: 0 | TQ39: 0 | TR39: 0 | TS39: 0 | TT39: 0 | TU39: 0 | TV39: 0 | TW39: 0 | TX39: 0 | TY39: 0 | TZ39: 0 | UA39: 0 | UB39: 0 | UC39: 0 | UD39: 0 | UE39: 0 | UF39: 0 | UG39: 0 | UH39: 0 | UI39: 0 | UJ39: 0 | UK39: 0 | UL39: 0 | UM39: 0 | UN39: 0 | UO39: 0 | UP39: 0 | UQ39: 0 | UR39: 0 | US39: 0 | UT39: 0 | UU39: 0 | UV39: 0 | UW39: 0 | UX39: 0 | UY39: 0 | UZ39: 0 | VA39: 0 | VB39: 0 | VC39: 0 | VD39: 0 | VE39: 0 | VF39: 0 | VG39: 0 | VH39: 0 | VI39: 0 | VJ39: 0 | VK39: 0 | VL39: 0 | VM39: 0 | VN39: 0 | VO39: 0 | VP39: 0 | VQ39: 0 | VR39: 0 | VS39: 0 | VT39: 0 | VU39: 0 | VV39: 0 | VW39: 0 | VX39: 0 | VY39: 0 | VZ39: 0 | WA39: 0 | WB39: 0 | WC39: 0 | WD39: 0 | WE39: 0 | WF39: 0 | WG39: 0 | WH39: 0 | WI39: 0 | WJ39: 0 | WK39: 0 | WL39: 0 | WM39: 0 | WN39: 0 | WO39: 0 | WP39: 0 | WQ39: 0 | WR39: 0 | WS39: 0 | WT39: 0 | WU39: 0 | WV39: 0 | WW39: 0 | WX39: 0 | WY39: 0 | WZ39: 0 | XA39: 0 | XB39: 0 | XC39: 0 | XD39: 0 | XE39: 0 | XF39: 0 | XG39: 0 | XH39: 0 | XI39: 0 | XJ39: 0 | XK39: 0 | XL39: 0 | XM39: 0 | XN39: 0 | XO39: 0 | XP39: 0 | XQ39: 0 | XR39: 0 | XS39: 0 | XT39: 0 | XU39: 0 | XV39: 0 | XW39: 0 | XX39: 0 | XY39: 0 | XZ39: 0 | YA39: 0 | YB39: 0 | YC39: 0 | YD39: 0 | YE39: 0 | YF39: 0 | YG39: 0 | YH39: 0 | YI39: 0 | YJ39: 0 | YK39: 0 | YL39: 0 | YM39: 0 | YN39: 0 | YO39: 0 | YP39: 0 | YQ39: 0 | YR39: 0 | YS39: 0 | YT39: 0 | YU39: 0 | YV39: 0 | YW39: 0 | YX39: 0 | YY39: 0 | YZ39: 0 | ZA39: 0 | ZB39: 0 | ZC39: 0 | ZD39: 0 | ZE39: 0 | ZF39: 0 | ZG39: 0 | ZH39: 0 | ZI39: 0 | ZJ39: 0 | ZK39: 0 | ZL39: 0 | ZM39: 0 | ZN39: 0 | ZO39: 0 | ZP39: 0 | ZQ39: 0 | ZR39: 0 | ZS39: 0 | ZT39: 0 | ZU39: 0 | ZV39: 0 | ZW39: 0 | ZX39: 0 | ZY39: 0 | ZZ39: 0 | AAA39: 0 | AAB39: 0 | AAC39: 0 | AAD39: 0 | AAE39: 0 | AAF39: 0 | AAG39: 0 | AAH39: 0 | AAI39: 0 | AAJ39: 0 | AAK39: 0 | AAL39: 0 | AAM39: 0 | AAN39: 0 | AAO39: 0 | AAP39: 0 | AAQ39: 0 | AAR39: 0 | AAS39: 0 | AAT39: 0 | AAU39: 0 | AAV39: 0 | AAW39: 0 | AAX39: 0 | AAY39: 0 | AAZ39: 0 | ABA39: 0 | ABB39: 0 | ABC39: 0 | ABD39: 0 | ABE39: 0 | ABF39: 0 | ABG39: 0 | ABH39: 0 | ABI39: 0 | ABJ39: 0 | ABK39: 0 | ABL39: 0 | ABM39: 0 | ABN39: 0 | ABO39: 0 | ABP39: 0 | ABQ39: 0 | ABR39: 0 | ABS39: 0 | ABT39: 0 | ABU39: 0 | ABV39: 0 | ABW39: 0 | ABX39: 0 | ABY39: 0 | ABZ39: 0 | ACA39: 0 | ACB39: 0 | ACC39: 0 | ACD39: 0 | ACE39: 0 | ACF39: 0 | ACG39: 0 | ACH39: 0 | ACI39: 0 | ACJ39: 0 | ACK39: 0 | ACL39: 0 | ACM39: 0 | ACN39: 0 | ACO39: 0 | ACP39: 0 | ACQ39: 0 | ACR39: 0 | ACS39: 0 | ACT39: 0 | ACU39: 0 | ACV39: 0 | ACW39: 0 | ACX39: 0 | ACY39: 0 | ACZ39: 0 | ADA39: 0 | ADB39: 0 | ADC39: 0 | ADD39: 0 | ADE39: 0 | ADF39: 0 | ADG39: 0 | ADH39: 0 | ADI39: 0 | ADJ39: 0 | ADK39: 0 | ADL39: 0 | ADM39: 0 | ADN39: 0 | ADO39: 0 | ADP39: 0 | ADQ39: 0 | ADR39: 0 | ADS39: 0 | ADT39: 0 | ADU39: 0 | ADV39: 0 | ADW39: 0 | ADX39: 0 | ADY39: 0 | ADZ39: 0 | AEA39: 0 | AEB39: 0 | AEC39: 0 | AED39: 0 | AEE39: 0 | AEF39: 0 | AEG39: 0 | AEH39: 0 | AEI39: 0 | AEJ39: 0 | AEK39: 0 | AEL39: 0 | AEM39: 0 | AEN39: 0 | AEO39: 0 | AEP39: 0 | AEQ39: 0 | AER39: 0 | AES39: 0 | AET39: 0 | AEU39: 0 | AEV39: 0 | AEW39: 0 | AEX39: 0 | AEY39: 0 | AEZ39: 0 | AFA39: 0 | AFB39: 0 | AFC39: 0 | AFD39: 0 | AFE39: 0 | AFF39: 0 | AFG39: 0 | AFH39: 0 | AFI39: 0 | AFJ39: 0 | AFK39: 0 | AFL39: 0 | AFM39: 0 | AFN39: 0 | AFO39: 0 | AFP39: 0 | AFQ39: 0 | AFR39: 0 | AFS39: 0 | AFT39: 0 | AFU39: 0 | AFV39: 0 | AFW39: 0 | AFX39: 0 | AFY39: 0 | AFZ39: 0 | AGA39: 0 | AGB39: 0 | AGC39: 0 | AGD39: 0 | AGE39: 0 | AGF39: 0 | AGG39: 0 | AGH39: 0 | AGI39: 0 | AGJ39: 0 | AGK39: 0 | AGL39: 0 | AGM39: 0 | AGN39: 0 | AGO39: 0 | AGP39: 0 | AGQ39: 0 | AGR39: 0 | AGS39: 0 | AGT39: 0 | AGU39: 0 | AGV39: 0 | AGW39: 0 | AGX39: 0 | AGY39: 0 | AGZ39: 0 | AHA39: 0 | AHB39: 0 | AHC39: 0 | AHD39: 0 | AHE39: 0 | AHF39: 0 | AHG39: 0 | AHH39: 0 | AHI39: 0 | AHJ39: 0 | AHK39: 0 | AHL39: 0 | AHM39: 0 | AHN39: 0 | AHO39: 0 | AHP39: 0 | AHQ39: 0 | AHR39: 0 | AHS39: 0 | AHT39: 0 | AHU39: 0 | AHV39: 0 | AHW39: 0 | AHX39: 0 | AHY39: 0 | AHZ39: 0 | AIA39: 0 | AIB39: 0 | AIC39: 0 | AID39: 0 | AIE39: 0 | AIF39: 0 | AIG39: 0 | AIH39: 0 | AII39: 0 | AIJ39: 0 | AIK39: 0 | AIL39: 0 | AIM39: 0 | AIN39: 0 | AIO39: 0 | AIP39: 0 | AIQ39: 0 | AIR39: 0 | AIS39: 0 | AIT39: 0 | AIU39: 0 | AIV39: 0 | AIW39: 0 | AIX39: 0 | AIY39: 0 | AIZ39: 0 | AJA39: 0 | AJB39: 0 | AJC39: 0 | AJD39: 0 | AJE39: 0 | AJF39: 0 | AJG39: 0 | AJH39: 0 | AJI39: 0 | AJJ39: 0 | AJK39: 0 | AJL39: 0 | AJM39: 0 | AJN39: 0 | AJO39: 0 | AJP39: 0 | AJQ39: 0 | AJR39: 0 | AJS39: 0 | AJT39: 0 | AJU39: 0 | AJV39: 0
H42: Total Capital Direct (Annual): | I42: 56014961.49 | J42: 0 | K42: 0 | L42: 5219699.764 | M42: 10696713.13 | N42: 11031709.62 | O42: 11367347.07 | P42: 11711854.3 | Q42: 5987637.618 | R42: 0 | S42: 0 | T42: 0 | U42: 0 | V42: 0 | W42: 0 | X42: 0 | Y42: 0 | Z42: 0 | AA42: 0 | AB42: 0 | AC42: 0 | AD42: 0 | AE42: 0 | AF42: 0 | AG42: 0 | AH42: 0 | AI42: 0 | AJ42: 0 | AK42: 0 | AL42: 0 | AM42: 0 | AN42: 0 | AO42: 0 | AP42: 0 | AQ42: 0 | AR42: 0 | AS42: 0 | AT42: 0 | AU42: 0 | AV42: 0 | AW42: 0 | AX42: 0 | AY42: 0 | AZ42: 0 | BA42: 0 | BB42: 0 | BC42: 0 | BD42: 0 | BE42: 0 | BF42: 0 | BG42: 0 | BH42: 0 | BI42: 0 | BJ42: 0 | BK42: 0 | BL42: 0 | BM42: 0 | BN42: 0 | BO42: 0 | BP42: 0 | BQ42: 0 | BR42: 0 | BS42: 0 | BT42: 0 | BU42: 0 | BV42: 0 | BW42: 0 | BX42: 0 | BY42: 0 | BZ42: 0 | CA42: 0 | CB42: 0 | CC42: 0 | CD42: 0 | CE42: 0 | CF42: 0 | CG42: 0 | CH42: 0 | CI42: 0 | CJ42: 0 | CK42: 0
H43: Total Capital Direct (Monthly): | I43: 56014961.49 | J43: 0 | K43: 0 | L43: 0 | M43: 0 | N43: 0 | O43: 0 | P43: 0 | Q43: 0 | R43: 0 | S43: 0 | T43: 0 | U43: 0 | V43: 0 | W43: 0 | X43: 0 | Y43: 0 | Z43: 0 | AA43: 0 | AB43: 0 | AC43: 863828.9153 | AD43: 866268.1304 | AE43: 868714.2332 | AF43: 871167.2431 | AG43: 873627.1796 | AH43: 876094.0623 | AI43: 878567.9108 | AJ43: 880879.3112 | AK43: 883196.7925 | AL43: 885520.3709 | AM43: 887850.0623 | AN43: 890185.8828 | AO43: 892527.8485 | AP43: 894875.9757 | AQ43: 897230.2805 | AR43: 899590.7792 | AS43: 901957.488 | AT43: 904330.4234 | AU43: 906709.6016 | AV43: 908981.3457 | AW43: 911258.7816 | AX43: 913541.9236 | AY43: 915830.786 | AZ43: 918125.383 | BA43: 920425.7292 | BB43: 922731.8388 | BC43: 925043.7263 | BD43: 927361.4062 | BE43: 929684.893 | BF43: 932014.2013 | BG43: 934349.3456 | BH43: 936680.6785 | BI43: 939017.8284 | BJ43: 941360.8098 | BK43: 943709.6373 | BL43: 946064.3255 | BM43: 948424.8889 | BN43: 950791.3423 | BO43: 953163.7003 | BP43: 955541.9776 | BQ43: 957926.1891 | BR43: 960316.3496 | BS43: 962712.4738 | BT43: 965106.2286 | BU43: 967505.9354 | BV43: 969911.609 | BW43: 972323.2642 | BX43: 974740.9159 | BY43: 977164.5791 | BZ43: 979594.2686 | CA43: 982029.9994 | CB43: 984471.7867 | CC43: 986919.6453 | CD43: 989373.5905 | CE43: 991833.6373 | CF43: 994268.0421 | CG43: 996708.422 | CH43: 999154.7917 | CI43: 1001607.166 | CJ43: 1004065.559 | CK43: 0 | CL43: 0 | CM43: 0 | CN43: 0 | CO43: 0 | CP43: 0 | CQ43: 0 | CR43: 0 | CS43: 0 | CT43: 0 | CU43: 0 | CV43: 0 | CW43: 0 | CX43: 0 | CY43: 0 | CZ43: 0 | DA43: 0 | DB43: 0 | DC43: 0 | DD43: 0 | DE43: 0 | DF43: 0 | DG43: 0 | DH43: 0 | DI43: 0 | DJ43: 0 | DK43: 0 | DL43: 0 | DM43: 0 | DN43: 0 | DO43: 0 | DP43: 0 | DQ43: 0 | DR43: 0 | DS43: 0 | DT43: 0 | DU43: 0 | DV43: 0 | DW43: 0 | DX43: 0 | DY43: 0 | DZ43: 0 | EA43: 0 | EB43: 0 | EC43: 0 | ED43: 0 | EE43: 0 | EF43: 0 | EG43: 0 | EH43: 0 | EI43: 0 | EJ43: 0 | EK43: 0 | EL43: 0 | EM43: 0 | EN43: 0 | EO43: 0 | EP43: 0 | EQ43: 0 | ER43: 0 | ES43: 0 | ET43: 0 | EU43: 0 | EV43: 0 | EW43: 0 | EX43: 0 | EY43: 0 | EZ43: 0 | FA43: 0 | FB43: 0 | FC43: 0 | FD43: 0 | FE43: 0 | FF43: 0 | FG43: 0 | FH43: 0 | FI43: 0 | FJ43: 0 | FK43: 0 | FL43: 0 | FM43: 0 | FN43: 0 | FO43: 0 | FP43: 0 | FQ43: 0 | FR43: 0 | FS43: 0 | FT43: 0 | FU43: 0 | FV43: 0 | FW43: 0 | FX43: 0 | FY43: 0 | FZ43: 0 | GA43: 0 | GB43: 0 | GC43: 0 | GD43: 0 | GE43: 0 | GF43: 0 | GG43: 0 | GH43: 0 | GI43: 0 | GJ43: 0 | GK43: 0 | GL43: 0 | GM43: 0 | GN43: 0 | GO43: 0 | GP43: 0 | GQ43: 0 | GR43: 0 | GS43: 0 | GT43: 0 | GU43: 0 | GV43: 0 | GW43: 0 | GX43: 0 | GY43: 0 | GZ43: 0 | HA43: 0 | HB43: 0 | HC43: 0 | HD43: 0 | HE43: 0 | HF43: 0 | HG43: 0 | HH43: 0 | HI43: 0 | HJ43: 0 | HK43: 0 | HL43: 0 | HM43: 0 | HN43: 0 | HO43: 0 | HP43: 0 | HQ43: 0 | HR43: 0 | HS43: 0 | HT43: 0 | HU43: 0 | HV43: 0 | HW43: 0 | HX43: 0 | HY43: 0 | HZ43: 0 | IA43: 0 | IB43: 0 | IC43: 0 | ID43: 0 | IE43: 0 | IF43: 0 | IG43: 0 | IH43: 0 | II43: 0 | IJ43: 0 | IK43: 0 | IL43: 0 | IM43: 0 | IN43: 0 | IO43: 0 | IP43: 0 | IQ43: 0 | IR43: 0 | IS43: 0 | IT43: 0 | IU43: 0 | IV43: 0 | IW43: 0 | IX43: 0 | IY43: 0 | IZ43: 0 | JA43: 0 | JB43: 0 | JC43: 0 | JD43: 0 | JE43: 0 | JF43: 0 | JG43: 0 | JH43: 0 | JI43: 0 | JJ43: 0 | JK43: 0 | JL43: 0 | JM43: 0 | JN43: 0 | JO43: 0 | JP43: 0 | JQ43: 0 | JR43: 0 | JS43: 0 | JT43: 0 | JU43: 0 | JV43: 0 | JW43: 0 | JX43: 0 | JY43: 0 | JZ43: 0 | KA43: 0 | KB43: 0 | KC43: 0 | KD43: 0 | KE43: 0 | KF43: 0 | KG43: 0 | KH43: 0 | KI43: 0 | KJ43: 0 | KK43: 0 | KL43: 0 | KM43: 0 | KN43: 0 | KO43: 0 | KP43: 0 | KQ43: 0 | KR43: 0 | KS43: 0 | KT43: 0 | KU43: 0 | KV43: 0 | KW43: 0 | KX43: 0 | KY43: 0 | KZ43: 0 | LA43: 0 | LB43: 0 | LC43: 0 | LD43: 0 | LE43: 0 | LF43: 0 | LG43: 0 | LH43: 0 | LI43: 0 | LJ43: 0 | LK43: 0 | LL43: 0 | LM43: 0 | LN43: 0 | LO43: 0 | LP43: 0 | LQ43: 0 | LR43: 0 | LS43: 0 | LT43: 0 | LU43: 0 | LV43: 0 | LW43: 0 | LX43: 0 | LY43: 0 | LZ43: 0 | MA43: 0 | MB43: 0 | MC43: 0 | MD43: 0 | ME43: 0 | MF43: 0 | MG43: 0 | MH43: 0 | MI43: 0 | MJ43: 0 | MK43: 0 | ML43: 0 | MM43: 0 | MN43: 0 | MO43: 0 | MP43: 0 | MQ43: 0 | MR43: 0 | MS43: 0 | MT43: 0 | MU43: 0 | MV43: 0 | MW43: 0 | MX43: 0 | MY43: 0 | MZ43: 0 | NA43: 0 | NB43: 0 | NC43: 0 | ND43: 0 | NE43: 0 | NF43: 0 | NG43: 0 | NH43: 0 | NI43: 0 | NJ43: 0 | NK43: 0 | NL43: 0 | NM43: 0 | NN43: 0 | NO43: 0 | NP43: 0 | NQ43: 0 | NR43: 0 | NS43: 0 | NT43: 0 | NU43: 0 | NV43: 0 | NW43: 0 | NX43: 0 | NY43: 0 | NZ43: 0 | OA43: 0 | OB43: 0 | OC43: 0 | OD43: 0 | OE43: 0 | OF43: 0 | OG43: 0 | OH43: 0 | OI43: 0 | OJ43: 0 | OK43: 0 | OL43: 0 | OM43: 0 | ON43: 0 | OO43: 0 | OP43: 0 | OQ43: 0 | OR43: 0 | OS43: 0 | OT43: 0 | OU43: 0 | OV43: 0 | OW43: 0 | OX43: 0 | OY43: 0 | OZ43: 0 | PA43: 0 | PB43: 0 | PC43: 0 | PD43: 0 | PE43: 0 | PF43: 0 | PG43: 0 | PH43: 0 | PI43: 0 | PJ43: 0 | PK43: 0 | PL43: 0 | PM43: 0 | PN43: 0 | PO43: 0 | PP43: 0 | PQ43: 0 | PR43: 0 | PS43: 0 | PT43: 0 | PU43: 0 | PV43: 0 | PW43: 0 | PX43: 0 | PY43: 0 | PZ43: 0 | QA43: 0 | QB43: 0 | QC43: 0 | QD43: 0 | QE43: 0 | QF43: 0 | QG43: 0 | QH43: 0 | QI43: 0 | QJ43: 0 | QK43: 0 | QL43: 0 | QM43: 0 | QN43: 0 | QO43: 0 | QP43: 0 | QQ43: 0 | QR43: 0 | QS43: 0 | QT43: 0 | QU43: 0 | QV43: 0 | QW43: 0 | QX43: 0 | QY43: 0 | QZ43: 0 | RA43: 0 | RB43: 0 | RC43: 0 | RD43: 0 | RE43: 0 | RF43: 0 | RG43: 0 | RH43: 0 | RI43: 0 | RJ43: 0 | RK43: 0 | RL43: 0 | RM43: 0 | RN43: 0 | RO43: 0 | RP43: 0 | RQ43: 0 | RR43: 0 | RS43: 0 | RT43: 0 | RU43: 0 | RV43: 0 | RW43: 0 | RX43: 0 | RY43: 0 | RZ43: 0 | SA43: 0 | SB43: 0 | SC43: 0 | SD43: 0 | SE43: 0 | SF43: 0 | SG43: 0 | SH43: 0 | SI43: 0 | SJ43: 0 | SK43: 0 | SL43: 0 | SM43: 0 | SN43: 0 | SO43: 0 | SP43: 0 | SQ43: 0 | SR43: 0 | SS43: 0 | ST43: 0 | SU43: 0 | SV43: 0 | SW43: 0 | SX43: 0 | SY43: 0 | SZ43: 0 | TA43: 0 | TB43: 0 | TC43: 0 | TD43: 0 | TE43: 0 | TF43: 0 | TG43: 0 | TH43: 0 | TI43: 0 | TJ43: 0 | TK43: 0 | TL43: 0 | TM43: 0 | TN43: 0 | TO43: 0 | TP43: 0 | TQ43: 0 | TR43: 0 | TS43: 0 | TT43: 0 | TU43: 0 | TV43: 0 | TW43: 0 | TX43: 0 | TY43: 0 | TZ43: 0 | UA43: 0 | UB43: 0 | UC43: 0 | UD43: 0 | UE43: 0 | UF43: 0 | UG43: 0 | UH43: 0 | UI43: 0 | UJ43: 0 | UK43: 0 | UL43: 0 | UM43: 0 | UN43: 0 | UO43: 0 | UP43: 0 | UQ43: 0 | UR43: 0 | US43: 0 | UT43: 0 | UU43: 0 | UV43: 0 | UW43: 0 | UX43: 0 | UY43: 0 | UZ43: 0 | VA43: 0 | VB43: 0 | VC43: 0 | VD43: 0 | VE43: 0 | VF43: 0 | VG43: 0 | VH43: 0 | VI43: 0 | VJ43: 0 | VK43: 0 | VL43: 0 | VM43: 0 | VN43: 0 | VO43: 0 | VP43: 0 | VQ43: 0 | VR43: 0 | VS43: 0 | VT43: 0 | VU43: 0 | VV43: 0 | VW43: 0 | VX43: 0 | VY43: 0 | VZ43: 0 | WA43: 0 | WB43: 0 | WC43: 0 | WD43: 0 | WE43: 0 | WF43: 0 | WG43: 0 | WH43: 0 | WI43: 0 | WJ43: 0 | WK43: 0 | WL43: 0 | WM43: 0 | WN43: 0 | WO43: 0 | WP43: 0 | WQ43: 0 | WR43: 0 | WS43: 0 | WT43: 0 | WU43: 0 | WV43: 0 | WW43: 0 | WX43: 0 | WY43: 0 | WZ43: 0 | XA43: 0 | XB43: 0 | XC43: 0 | XD43: 0 | XE43: 0 | XF43: 0 | XG43: 0 | XH43: 0 | XI43: 0 | XJ43: 0 | XK43: 0 | XL43: 0 | XM43: 0 | XN43: 0 | XO43: 0 | XP43: 0 | XQ43: 0 | XR43: 0 | XS43: 0 | XT43: 0 | XU43: 0 | XV43: 0 | XW43: 0 | XX43: 0 | XY43: 0 | XZ43: 0 | YA43: 0 | YB43: 0 | YC43: 0 | YD43: 0 | YE43: 0 | YF43: 0 | YG43: 0 | YH43: 0 | YI43: 0 | YJ43: 0 | YK43: 0 | YL43: 0 | YM43: 0 | YN43: 0 | YO43: 0 | YP43: 0 | YQ43: 0 | YR43: 0 | YS43: 0 | YT43: 0 | YU43: 0 | YV43: 0 | YW43: 0 | YX43: 0 | YY43: 0 | YZ43: 0 | ZA43: 0 | ZB43: 0 | ZC43: 0 | ZD43: 0 | ZE43: 0 | ZF43: 0 | ZG43: 0 | ZH43: 0 | ZI43: 0 | ZJ43: 0 | ZK43: 0 | ZL43: 0 | ZM43: 0 | ZN43: 0 | ZO43: 0 | ZP43: 0 | ZQ43: 0 | ZR43: 0 | ZS43: 0 | ZT43: 0 | ZU43: 0 | ZV43: 0 | ZW43: 0 | ZX43: 0 | ZY43: 0 | ZZ43: 0 | AAA43: 0 | AAB43: 0 | AAC43: 0 | AAD43: 0 | AAE43: 0 | AAF43: 0 | AAG43: 0 | AAH43: 0 | AAI43: 0 | AAJ43: 0 | AAK43: 0 | AAL43: 0 | AAM43: 0 | AAN43: 0 | AAO43: 0 | AAP43: 0 | AAQ43: 0 | AAR43: 0 | AAS43: 0 | AAT43: 0 | AAU43: 0 | AAV43: 0 | AAW43: 0 | AAX43: 0 | AAY43: 0 | AAZ43: 0 | ABA43: 0 | ABB43: 0 | ABC43: 0 | ABD43: 0 | ABE43: 0 | ABF43: 0 | ABG43: 0 | ABH43: 0 | ABI43: 0 | ABJ43: 0 | ABK43: 0 | ABL43: 0 | ABM43: 0 | ABN43: 0 | ABO43: 0 | ABP43: 0 | ABQ43: 0 | ABR43: 0 | ABS43: 0 | ABT43: 0 | ABU43: 0 | ABV43: 0 | ABW43: 0 | ABX43: 0 | ABY43: 0 | ABZ43: 0 | ACA43: 0 | ACB43: 0 | ACC43: 0 | ACD43: 0 | ACE43: 0 | ACF43: 0 | ACG43: 0 | ACH43: 0 | ACI43: 0 | ACJ43: 0 | ACK43: 0 | ACL43: 0 | ACM43: 0 | ACN43: 0 | ACO43: 0 | ACP43: 0 | ACQ43: 0 | ACR43: 0 | ACS43: 0 | ACT43: 0 | ACU43: 0 | ACV43: 0 | ACW43: 0 | ACX43: 0 | ACY43: 0 | ACZ43: 0 | ADA43: 0 | ADB43: 0 | ADC43: 0 | ADD43: 0 | ADE43: 0 | ADF43: 0 | ADG43: 0 | ADH43: 0 | ADI43: 0 | ADJ43: 0 | ADK43: 0 | ADL43: 0 | ADM43: 0 | ADN43: 0 | ADO43: 0 | ADP43: 0 | ADQ43: 0 | ADR43: 0 | ADS43: 0 | ADT43: 0 | ADU43: 0 | ADV43: 0 | ADW43: 0 | ADX43: 0 | ADY43: 0 | ADZ43: 0 | AEA43: 0 | AEB43: 0 | AEC43: 0 | AED43: 0 | AEE43: 0 | AEF43: 0 | AEG43: 0 | AEH43: 0 | AEI43: 0 | AEJ43: 0 | AEK43: 0 | AEL43: 0 | AEM43: 0 | AEN43: 0 | AEO43: 0 | AEP43: 0 | AEQ43: 0 | AER43: 0 | AES43: 0 | AET43: 0 | AEU43: 0 | AEV43: 0 | AEW43: 0 | AEX43: 0 | AEY43: 0 | AEZ43: 0 | AFA43: 0 | AFB43: 0 | AFC43: 0 | AFD43: 0 | AFE43: 0 | AFF43: 0 | AFG43: 0 | AFH43: 0 | AFI43: 0 | AFJ43: 0 | AFK43: 0 | AFL43: 0 | AFM43: 0 | AFN43: 0 | AFO43: 0 | AFP43: 0 | AFQ43: 0 | AFR43: 0 | AFS43: 0 | AFT43: 0 | AFU43: 0 | AFV43: 0 | AFW43: 0 | AFX43: 0 | AFY43: 0 | AFZ43: 0 | AGA43: 0 | AGB43: 0 | AGC43: 0 | AGD43: 0 | AGE43: 0 | AGF43: 0 | AGG43: 0 | AGH43: 0 | AGI43: 0 | AGJ43: 0 | AGK43: 0 | AGL43: 0 | AGM43: 0 | AGN43: 0 | AGO43: 0 | AGP43: 0 | AGQ43: 0 | AGR43: 0 | AGS43: 0 | AGT43: 0 | AGU43: 0 | AGV43: 0 | AGW43: 0 | AGX43: 0 | AGY43: 0 | AGZ43: 0 | AHA43: 0 | AHB43: 0 | AHC43: 0 | AHD43: 0 | AHE43: 0 | AHF43: 0 | AHG43: 0 | AHH43: 0 | AHI43: 0 | AHJ43: 0 | AHK43: 0 | AHL43: 0 | AHM43: 0 | AHN43: 0 | AHO43: 0 | AHP43: 0 | AHQ43: 0 | AHR43: 0 | AHS43: 0 | AHT43: 0 | AHU43: 0 | AHV43: 0 | AHW43: 0 | AHX43: 0 | AHY43: 0 | AHZ43: 0 | AIA43: 0 | AIB43: 0 | AIC43: 0 | AID43: 0 | AIE43: 0 | AIF43: 0 | AIG43: 0 | AIH43: 0 | AII43: 0 | AIJ43: 0 | AIK43: 0 | AIL43: 0 | AIM43: 0 | AIN43: 0 | AIO43: 0 | AIP43: 0 | AIQ43: 0 | AIR43: 0 | AIS43: 0 | AIT43: 0 | AIU43: 0 | AIV43: 0 | AIW43: 0 | AIX43: 0 | AIY43: 0 | AIZ43: 0 | AJA43: 0 | AJB43: 0 | AJC43: 0 | AJD43: 0 | AJE43: 0 | AJF43: 0 | AJG43: 0 | AJH43: 0 | AJI43: 0 | AJJ43: 0 | AJK43: 0 | AJL43: 0 | AJM43: 0 | AJN43: 0 | AJO43: 0 | AJP43: 0 | AJQ43: 0 | AJR43: 0 | AJS43: 0 | AJT43: 0 | AJU43: 0 | AJV43: 0
H44: Total Capital In-Service (Annual): | I44: 56014961.49 | J44: 0 | K44: 0 | L44: 0 | M44: 10525900.09 | N44: 10864960.62 | O44: 11198444.42 | P44: 11538464.87 | Q44: 11887191.49 | R44: 0 | S44: 0 | T44: 0 | U44: 0 | V44: 0 | W44: 0 | X44: 0 | Y44: 0 | Z44: 0 | AA44: 0 | AB44: 0 | AC44: 0 | AD44: 0 | AE44: 0 | AF44: 0 | AG44: 0 | AH44: 0 | AI44: 0 | AJ44: 0 | AK44: 0 | AL44: 0 | AM44: 0 | AN44: 0 | AO44: 0 | AP44: 0 | AQ44: 0 | AR44: 0 | AS44: 0 | AT44: 0 | AU44: 0 | AV44: 0 | AW44: 0 | AX44: 0 | AY44: 0 | AZ44: 0 | BA44: 0 | BB44: 0 | BC44: 0 | BD44: 0 | BE44: 0 | BF44: 0 | BG44: 0 | BH44: 0 | BI44: 0 | BJ44: 0 | BK44: 0 | BL44: 0 | BM44: 0 | BN44: 0 | BO44: 0 | BP44: 0 | BQ44: 0 | BR44: 0 | BS44: 0 | BT44: 0 | BU44: 0 | BV44: 0 | BW44: 0 | BX44: 0 | BY44: 0 | BZ44: 0 | CA44: 0 | CB44: 0 | CC44: 0 | CD44: 0 | CE44: 0 | CF44: 0 | CG44: 0 | CH44: 0 | CI44: 0 | CJ44: 0 | CK44: 0
H45: Total Capital In-Service (Monthly): | I45: 56014961.49 | J45: 0 | K45: 0 | L45: 0 | M45: 0 | N45: 0 | O45: 0 | P45: 0 | Q45: 0 | R45: 0 | S45: 0 | T45: 0 | U45: 0 | V45: 0 | W45: 0 | X45: 0 | Y45: 0 | Z45: 0 | AA45: 0 | AB45: 0 | AC45: 0 | AD45: 0 | AE45: 0 | AF45: 0 | AG45: 0 | AH45: 0 | AI45: 0 | AJ45: 0 | AK45: 0 | AL45: 0 | AM45: 0 | AN45: 0 | AO45: 10525900.09 | AP45: 0 | AQ45: 0 | AR45: 0 | AS45: 0 | AT45: 0 | AU45: 0 | AV45: 0 | AW45: 0 | AX45: 0 | AY45: 0 | AZ45: 0 | BA45: 10864960.62 | BB45: 0 | BC45: 0 | BD45: 0 | BE45: 0 | BF45: 0 | BG45: 0 | BH45: 0 | BI45: 0 | BJ45: 0 | BK45: 0 | BL45: 0 | BM45: 11198444.42 | BN45: 0 | BO45: 0 | BP45: 0 | BQ45: 0 | BR45: 0 | BS45: 0 | BT45: 0 | BU45: 0 | BV45: 0 | BW45: 0 | BX45: 0 | BY45: 11538464.87 | BZ45: 0 | CA45: 0 | CB45: 0 | CC45: 0 | CD45: 0 | CE45: 0 | CF45: 0 | CG45: 0 | CH45: 0 | CI45: 0 | CJ45: 0 | CK45: 11887191.49 | CL45: 0 | CM45: 0 | CN45: 0 | CO45: 0 | CP45: 0 | CQ45: 0 | CR45: 0 | CS45: 0 | CT45: 0 | CU45: 0 | CV45: 0 | CW45: 0 | CX45: 0 | CY45: 0 | CZ45: 0 | DA45: 0 | DB45: 0 | DC45: 0 | DD45: 0 | DE45: 0 | DF45: 0 | DG45: 0 | DH45: 0 | DI45: 0 | DJ45: 0 | DK45: 0 | DL45: 0 | DM45: 0 | DN45: 0 | DO45: 0 | DP45: 0 | DQ45: 0 | DR45: 0 | DS45: 0 | DT45: 0 | DU45: 0 | DV45: 0 | DW45: 0 | DX45: 0 | DY45: 0 | DZ45: 0 | EA45: 0 | EB45: 0 | EC45: 0 | ED45: 0 | EE45: 0 | EF45: 0 | EG45: 0 | EH45: 0 | EI45: 0 | EJ45: 0 | EK45: 0 | EL45: 0 | EM45: 0 | EN45: 0 | EO45: 0 | EP45: 0 | EQ45: 0 | ER45: 0 | ES45: 0 | ET45: 0 | EU45: 0 | EV45: 0 | EW45: 0 | EX45: 0 | EY45: 0 | EZ45: 0 | FA45: 0 | FB45: 0 | FC45: 0 | FD45: 0 | FE45: 0 | FF45: 0 | FG45: 0 | FH45: 0 | FI45: 0 | FJ45: 0 | FK45: 0 | FL45: 0 | FM45: 0 | FN45: 0 | FO45: 0 | FP45: 0 | FQ45: 0 | FR45: 0 | FS45: 0 | FT45: 0 | FU45: 0 | FV45: 0 | FW45: 0 | FX45: 0 | FY45: 0 | FZ45: 0 | GA45: 0 | GB45: 0 | GC45: 0 | GD45: 0 | GE45: 0 | GF45: 0 | GG45: 0 | GH45: 0 | GI45: 0 | GJ45: 0 | GK45: 0 | GL45: 0 | GM45: 0 | GN45: 0 | GO45: 0 | GP45: 0 | GQ45: 0 | GR45: 0 | GS45: 0 | GT45: 0 | GU45: 0 | GV45: 0 | GW45: 0 | GX45: 0 | GY45: 0 | GZ45: 0 | HA45: 0 | HB45: 0 | HC45: 0 | HD45: 0 | HE45: 0 | HF45: 0 | HG45: 0 | HH45: 0 | HI45: 0 | HJ45: 0 | HK45: 0 | HL45: 0 | HM45: 0 | HN45: 0 | HO45: 0 | HP45: 0 | HQ45: 0 | HR45: 0 | HS45: 0 | HT45: 0 | HU45: 0 | HV45: 0 | HW45: 0 | HX45: 0 | HY45: 0 | HZ45: 0 | IA45: 0 | IB45: 0 | IC45: 0 | ID45: 0 | IE45: 0 | IF45: 0 | IG45: 0 | IH45: 0 | II45: 0 | IJ45: 0 | IK45: 0 | IL45: 0 | IM45: 0 | IN45: 0 | IO45: 0 | IP45: 0 | IQ45: 0 | IR45: 0 | IS45: 0 | IT45: 0 | IU45: 0 | IV45: 0 | IW45: 0 | IX45: 0 | IY45: 0 | IZ45: 0 | JA45: 0 | JB45: 0 | JC45: 0 | JD45: 0 | JE45: 0 | JF45: 0 | JG45: 0 | JH45: 0 | JI45: 0 | JJ45: 0 | JK45: 0 | JL45: 0 | JM45: 0 | JN45: 0 | JO45: 0 | JP45: 0 | JQ45: 0 | JR45: 0 | JS45: 0 | JT45: 0 | JU45: 0 | JV45: 0 | JW45: 0 | JX45: 0 | JY45: 0 | JZ45: 0 | KA45: 0 | KB45: 0 | KC45: 0 | KD45: 0 | KE45: 0 | KF45: 0 | KG45: 0 | KH45: 0 | KI45: 0 | KJ45: 0 | KK45: 0 | KL45: 0 | KM45: 0 | KN45: 0 | KO45: 0 | KP45: 0 | KQ45: 0 | KR45: 0 | KS45: 0 | KT45: 0 | KU45: 0 | KV45: 0 | KW45: 0 | KX45: 0 | KY45: 0 | KZ45: 0 | LA45: 0 | LB45: 0 | LC45: 0 | LD45: 0 | LE45: 0 | LF45: 0 | LG45: 0 | LH45: 0 | LI45: 0 | LJ45: 0 | LK45: 0 | LL45: 0 | LM45: 0 | LN45: 0 | LO45: 0 | LP45: 0 | LQ45: 0 | LR45: 0 | LS45: 0 | LT45: 0 | LU45: 0 | LV45: 0 | LW45: 0 | LX45: 0 | LY45: 0 | LZ45: 0 | MA45: 0 | MB45: 0 | MC45: 0 | MD45: 0 | ME45: 0 | MF45: 0 | MG45: 0 | MH45: 0 | MI45: 0 | MJ45: 0 | MK45: 0 | ML45: 0 | MM45: 0 | MN45: 0 | MO45: 0 | MP45: 0 | MQ45: 0 | MR45: 0 | MS45: 0 | MT45: 0 | MU45: 0 | MV45: 0 | MW45: 0 | MX45: 0 | MY45: 0 | MZ45: 0 | NA45: 0 | NB45: 0 | NC45: 0 | ND45: 0 | NE45: 0 | NF45: 0 | NG45: 0 | NH45: 0 | NI45: 0 | NJ45: 0 | NK45: 0 | NL45: 0 | NM45: 0 | NN45: 0 | NO45: 0 | NP45: 0 | NQ45: 0 | NR45: 0 | NS45: 0 | NT45: 0 | NU45: 0 | NV45: 0 | NW45: 0 | NX45: 0 | NY45: 0 | NZ45: 0 | OA45: 0 | OB45: 0 | OC45: 0 | OD45: 0 | OE45: 0 | OF45: 0 | OG45: 0 | OH45: 0 | OI45: 0 | OJ45: 0 | OK45: 0 | OL45: 0 | OM45: 0 | ON45: 0 | OO45: 0 | OP45: 0 | OQ45: 0 | OR45: 0 | OS45: 0 | OT45: 0 | OU45: 0 | OV45: 0 | OW45: 0 | OX45: 0 | OY45: 0 | OZ45: 0 | PA45: 0 | PB45: 0 | PC45: 0 | PD45: 0 | PE45: 0 | PF45: 0 | PG45: 0 | PH45: 0 | PI45: 0 | PJ45: 0 | PK45: 0 | PL45: 0 | PM45: 0 | PN45: 0 | PO45: 0 | PP45: 0 | PQ45: 0 | PR45: 0 | PS45: 0 | PT45: 0 | PU45: 0 | PV45: 0 | PW45: 0 | PX45: 0 | PY45: 0 | PZ45: 0 | QA45: 0 | QB45: 0 | QC45: 0 | QD45: 0 | QE45: 0 | QF45: 0 | QG45: 0 | QH45: 0 | QI45: 0 | QJ45: 0 | QK45: 0 | QL45: 0 | QM45: 0 | QN45: 0 | QO45: 0 | QP45: 0 | QQ45: 0 | QR45: 0 | QS45: 0 | QT45: 0 | QU45: 0 | QV45: 0 | QW45: 0 | QX45: 0 | QY45: 0 | QZ45: 0 | RA45: 0 | RB45: 0 | RC45: 0 | RD45: 0 | RE45: 0 | RF45: 0 | RG45: 0 | RH45: 0 | RI45: 0 | RJ45: 0 | RK45: 0 | RL45: 0 | RM45: 0 | RN45: 0 | RO45: 0 | RP45: 0 | RQ45: 0 | RR45: 0 | RS45: 0 | RT45: 0 | RU45: 0 | RV45: 0 | RW45: 0 | RX45: 0 | RY45: 0 | RZ45: 0 | SA45: 0 | SB45: 0 | SC45: 0 | SD45: 0 | SE45: 0 | SF45: 0 | SG45: 0 | SH45: 0 | SI45: 0 | SJ45: 0 | SK45: 0 | SL45: 0 | SM45: 0 | SN45: 0 | SO45: 0 | SP45: 0 | SQ45: 0 | SR45: 0 | SS45: 0 | ST45: 0 | SU45: 0 | SV45: 0 | SW45: 0 | SX45: 0 | SY45: 0 | SZ45: 0 | TA45: 0 | TB45: 0 | TC45: 0 | TD45: 0 | TE45: 0 | TF45: 0 | TG45: 0 | TH45: 0 | TI45: 0 | TJ45: 0 | TK45: 0 | TL45: 0 | TM45: 0 | TN45: 0 | TO45: 0 | TP45: 0 | TQ45: 0 | TR45: 0 | TS45: 0 | TT45: 0 | TU45: 0 | TV45: 0 | TW45: 0 | TX45: 0 | TY45: 0 | TZ45: 0 | UA45: 0 | UB45: 0 | UC45: 0 | UD45: 0 | UE45: 0 | UF45: 0 | UG45: 0 | UH45: 0 | UI45: 0 | UJ45: 0 | UK45: 0 | UL45: 0 | UM45: 0 | UN45: 0 | UO45: 0 | UP45: 0 | UQ45: 0 | UR45: 0 | US45: 0 | UT45: 0 | UU45: 0 | UV45: 0 | UW45: 0 | UX45: 0 | UY45: 0 | UZ45: 0 | VA45: 0 | VB45: 0 | VC45: 0 | VD45: 0 | VE45: 0 | VF45: 0 | VG45: 0 | VH45: 0 | VI45: 0 | VJ45: 0 | VK45: 0 | VL45: 0 | VM45: 0 | VN45: 0 | VO45: 0 | VP45: 0 | VQ45: 0 | VR45: 0 | VS45: 0 | VT45: 0 | VU45: 0 | VV45: 0 | VW45: 0 | VX45: 0 | VY45: 0 | VZ45: 0 | WA45: 0 | WB45: 0 | WC45: 0 | WD45: 0 | WE45: 0 | WF45: 0 | WG45: 0 | WH45: 0 | WI45: 0 | WJ45: 0 | WK45: 0 | WL45: 0 | WM45: 0 | WN45: 0 | WO45: 0 | WP45: 0 | WQ45: 0 | WR45: 0 | WS45: 0 | WT45: 0 | WU45: 0 | WV45: 0 | WW45: 0 | WX45: 0 | WY45: 0 | WZ45: 0 | XA45: 0 | XB45: 0 | XC45: 0 | XD45: 0 | XE45: 0 | XF45: 0 | XG45: 0 | XH45: 0 | XI45: 0 | XJ45: 0 | XK45: 0 | XL45: 0 | XM45: 0 | XN45: 0 | XO45: 0 | XP45: 0 | XQ45: 0 | XR45: 0 | XS45: 0 | XT45: 0 | XU45: 0 | XV45: 0 | XW45: 0 | XX45: 0 | XY45: 0 | XZ45: 0 | YA45: 0 | YB45: 0 | YC45: 0 | YD45: 0 | YE45: 0 | YF45: 0 | YG45: 0 | YH45: 0 | YI45: 0 | YJ45: 0 | YK45: 0 | YL45: 0 | YM45: 0 | YN45: 0 | YO45: 0 | YP45: 0 | YQ45: 0 | YR45: 0 | YS45: 0 | YT45: 0 | YU45: 0 | YV45: 0 | YW45: 0 | YX45: 0 | YY45: 0 | YZ45: 0 | ZA45: 0 | ZB45: 0 | ZC45: 0 | ZD45: 0 | ZE45: 0 | ZF45: 0 | ZG45: 0 | ZH45: 0 | ZI45: 0 | ZJ45: 0 | ZK45: 0 | ZL45: 0 | ZM45: 0 | ZN45: 0 | ZO45: 0 | ZP45: 0 | ZQ45: 0 | ZR45: 0 | ZS45: 0 | ZT45: 0 | ZU45: 0 | ZV45: 0 | ZW45: 0 | ZX45: 0 | ZY45: 0 | ZZ45: 0 | AAA45: 0 | AAB45: 0 | AAC45: 0 | AAD45: 0 | AAE45: 0 | AAF45: 0 | AAG45: 0 | AAH45: 0 | AAI45: 0 | AAJ45: 0 | AAK45: 0 | AAL45: 0 | AAM45: 0 | AAN45: 0 | AAO45: 0 | AAP45: 0 | AAQ45: 0 | AAR45: 0 | AAS45: 0 | AAT45: 0 | AAU45: 0 | AAV45: 0 | AAW45: 0 | AAX45: 0 | AAY45: 0 | AAZ45: 0 | ABA45: 0 | ABB45: 0 | ABC45: 0 | ABD45: 0 | ABE45: 0 | ABF45: 0 | ABG45: 0 | ABH45: 0 | ABI45: 0 | ABJ45: 0 | ABK45: 0 | ABL45: 0 | ABM45: 0 | ABN45: 0 | ABO45: 0 | ABP45: 0 | ABQ45: 0 | ABR45: 0 | ABS45: 0 | ABT45: 0 | ABU45: 0 | ABV45: 0 | ABW45: 0 | ABX45: 0 | ABY45: 0 | ABZ45: 0 | ACA45: 0 | ACB45: 0 | ACC45: 0 | ACD45: 0 | ACE45: 0 | ACF45: 0 | ACG45: 0 | ACH45: 0 | ACI45: 0 | ACJ45: 0 | ACK45: 0 | ACL45: 0 | ACM45: 0 | ACN45: 0 | ACO45: 0 | ACP45: 0 | ACQ45: 0 | ACR45: 0 | ACS45: 0 | ACT45: 0 | ACU45: 0 | ACV45: 0 | ACW45: 0 | ACX45: 0 | ACY45: 0 | ACZ45: 0 | ADA45: 0 | ADB45: 0 | ADC45: 0 | ADD45: 0 | ADE45: 0 | ADF45: 0 | ADG45: 0 | ADH45: 0 | ADI45: 0 | ADJ45: 0 | ADK45: 0 | ADL45: 0 | ADM45: 0 | ADN45: 0 | ADO45: 0 | ADP45: 0 | ADQ45: 0 | ADR45: 0 | ADS45: 0 | ADT45: 0 | ADU45: 0 | ADV45: 0 | ADW45: 0 | ADX45: 0 | ADY45: 0 | ADZ45: 0 | AEA45: 0 | AEB45: 0 | AEC45: 0 | AED45: 0 | AEE45: 0 | AEF45: 0 | AEG45: 0 | AEH45: 0 | AEI45: 0 | AEJ45: 0 | AEK45: 0 | AEL45: 0 | AEM45: 0 | AEN45: 0 | AEO45: 0 | AEP45: 0 | AEQ45: 0 | AER45: 0 | AES45: 0 | AET45: 0 | AEU45: 0 | AEV45: 0 | AEW45: 0 | AEX45: 0 | AEY45: 0 | AEZ45: 0 | AFA45: 0 | AFB45: 0 | AFC45: 0 | AFD45: 0 | AFE45: 0 | AFF45: 0 | AFG45: 0 | AFH45: 0 | AFI45: 0 | AFJ45: 0 | AFK45: 0 | AFL45: 0 | AFM45: 0 | AFN45: 0 | AFO45: 0 | AFP45: 0 | AFQ45: 0 | AFR45: 0 | AFS45: 0 | AFT45: 0 | AFU45: 0 | AFV45: 0 | AFW45: 0 | AFX45: 0 | AFY45: 0 | AFZ45: 0 | AGA45: 0 | AGB45: 0 | AGC45: 0 | AGD45: 0 | AGE45: 0 | AGF45: 0 | AGG45: 0 | AGH45: 0 | AGI45: 0 | AGJ45: 0 | AGK45: 0 | AGL45: 0 | AGM45: 0 | AGN45: 0 | AGO45: 0 | AGP45: 0 | AGQ45: 0 | AGR45: 0 | AGS45: 0 | AGT45: 0 | AGU45: 0 | AGV45: 0 | AGW45: 0 | AGX45: 0 | AGY45: 0 | AGZ45: 0 | AHA45: 0 | AHB45: 0 | AHC45: 0 | AHD45: 0 | AHE45: 0 | AHF45: 0 | AHG45: 0 | AHH45: 0 | AHI45: 0 | AHJ45: 0 | AHK45: 0 | AHL45: 0 | AHM45: 0 | AHN45: 0 | AHO45: 0 | AHP45: 0 | AHQ45: 0 | AHR45: 0 | AHS45: 0 | AHT45: 0 | AHU45: 0 | AHV45: 0 | AHW45: 0 | AHX45: 0 | AHY45: 0 | AHZ45: 0 | AIA45: 0 | AIB45: 0 | AIC45: 0 | AID45: 0 | AIE45: 0 | AIF45: 0 | AIG45: 0 | AIH45: 0 | AII45: 0 | AIJ45: 0 | AIK45: 0 | AIL45: 0 | AIM45: 0 | AIN45: 0 | AIO45: 0 | AIP45: 0 | AIQ45: 0 | AIR45: 0 | AIS45: 0 | AIT45: 0 | AIU45: 0 | AIV45: 0 | AIW45: 0 | AIX45: 0 | AIY45: 0 | AIZ45: 0 | AJA45: 0 | AJB45: 0 | AJC45: 0 | AJD45: 0 | AJE45: 0 | AJF45: 0 | AJG45: 0 | AJH45: 0 | AJI45: 0 | AJJ45: 0 | AJK45: 0 | AJL45: 0 | AJM45: 0 | AJN45: 0 | AJO45: 0 | AJP45: 0 | AJQ45: 0 | AJR45: 0 | AJS45: 0 | AJT45: 0 | AJU45: 0 | AJV45: 0
A48: O&M Inputs
B49: Non-Labor Expenses: | H49: O&M Non-Labor Direct (Annual): | I49: 2466997.226 | J49: 0 | K49: 0 | L49: 246018.5858 | M49: 494088.4654 | N49: 492082.4972 | O49: 489551.044 | P49: 486152.7233 | Q49: 248753.5065 | R49: 10350.40398 | S49: 0 | T49: 0 | U49: 0 | V49: 0 | W49: 0 | X49: 0 | Y49: 0 | Z49: 0 | AA49: 0 | AB49: 0 | AC49: 0 | AD49: 0 | AE49: 0 | AF49: 0 | AG49: 0 | AH49: 0 | AI49: 0 | AJ49: 0 | AK49: 0 | AL49: 0 | AM49: 0 | AN49: 0 | AO49: 0 | AP49: 0 | AQ49: 0 | AR49: 0 | AS49: 0 | AT49: 0 | AU49: 0 | AV49: 0 | AW49: 0 | AX49: 0 | AY49: 0 | AZ49: 0 | BA49: 0 | BB49: 0 | BC49: 0 | BD49: 0 | BE49: 0 | BF49: 0 | BG49: 0 | BH49: 0 | BI49: 0 | BJ49: 0 | BK49: 0 | BL49: 0 | BM49: 0 | BN49: 0 | BO49: 0 | BP49: 0 | BQ49: 0 | BR49: 0 | BS49: 0 | BT49: 0 | BU49: 0 | BV49: 0 | BW49: 0 | BX49: 0 | BY49: 0 | BZ49: 0 | CA49: 0 | CB49: 0 | CC49: 0 | CD49: 0 | CE49: 0 | CF49: 0 | CG49: 0 | CH49: 0 | CI49: 0 | CJ49: 0 | CK49: 0
H50: O&M Non-Labor Direct (Monthly): | I50: 2466997.226 | J50: 0 | K50: 0 | L50: 0 | M50: 0 | N50: 0 | O50: 0 | P50: 0 | Q50: 0 | R50: 0 | S50: 0 | T50: 0 | U50: 0 | V50: 0 | W50: 0 | X50: 0 | Y50: 0 | Z50: 0 | AA50: 0 | AB50: 0 | AC50: 40792.99649 | AD50: 40876.79865 | AE50: 40960.77924 | AF50: 41044.93865 | AG50: 41129.27727 | AH50: 41213.7955 | AI50: 41298.49373 | AJ50: 41390.75206 | AK50: 41483.2176 | AL50: 41575.89081 | AM50: 41668.77216 | AN50: 41761.86212 | AO50: 40590.36092 | AP50: 40681.24179 | AQ50: 40772.32724 | AR50: 40863.61771 | AS50: 40955.11368 | AT50: 41046.81562 | AU50: 41138.72397 | AV50: 41232.57901 | AW50: 41326.64913 | AX50: 41420.93484 | AY50: 41515.43663 | AZ50: 41610.155 | BA50: 40407.98632 | BB50: 40500.37629 | BC50: 40592.97845 | BD50: 40685.7933 | BE50: 40778.82131 | BF50: 40872.06299 | BG50: 40965.51883 | BH50: 41055.45481 | BI50: 41145.59039 | BJ50: 41235.926 | BK50: 41326.4621 | BL50: 41417.19914 | BM50: 40178.82614 | BN50: 40267.35852 | BO50: 40356.08808 | BP50: 40445.01525 | BQ50: 40534.1405 | BR50: 40623.46425 | BS50: 40712.98696 | BT50: 40800.17477 | BU50: 40887.55199 | BV50: 40975.11902 | BW50: 41062.8763 | BX50: 41150.82424 | BY50: 39878.77057 | BZ50: 39964.55837 | CA50: 40050.53334 | CB50: 40136.69589 | CC50: 40223.04644 | CD50: 40309.58541 | CE50: 40396.3132 | CF50: 40481.44603 | CG50: 40566.76084 | CH50: 40652.25803 | CI50: 40737.938 | CJ50: 40823.80114 | CK50: 845.2892541 | CL50: 846.8357235 | CM50: 848.3850221 | CN50: 849.9371553 | CO50: 851.4921281 | CP50: 853.0499457 | CQ50: 854.6106134 | CR50: 856.0431338 | CS50: 857.4780554 | CT50: 858.9153823 | CU50: 860.3551185 | CV50: 861.797268 | CW50: 863.2418349 | CX50: 864.6888232 | CY50: 866.1382369 | CZ50: 867.5900802 | DA50: 869.0443572 | DB50: 870.5010718 | DC50: 0 | DD50: 0 | DE50: 0 | DF50: 0 | DG50: 0 | DH50: 0 | DI50: 0 | DJ50: 0 | DK50: 0 | DL50: 0 | DM50: 0 | DN50: 0 | DO50: 0 | DP50: 0 | DQ50: 0 | DR50: 0 | DS50: 0 | DT50: 0 | DU50: 0 | DV50: 0 | DW50: 0 | DX50: 0 | DY50: 0 | DZ50: 0 | EA50: 0 | EB50: 0 | EC50: 0 | ED50: 0 | EE50: 0 | EF50: 0 | EG50: 0 | EH50: 0 | EI50: 0 | EJ50: 0 | EK50: 0 | EL50: 0 | EM50: 0 | EN50: 0 | EO50: 0 | EP50: 0 | EQ50: 0 | ER50: 0 | ES50: 0 | ET50: 0 | EU50: 0 | EV50: 0 | EW50: 0 | EX50: 0 | EY50: 0 | EZ50: 0 | FA50: 0 | FB50: 0 | FC50: 0 | FD50: 0 | FE50: 0 | FF50: 0 | FG50: 0 | FH50: 0 | FI50: 0 | FJ50: 0 | FK50: 0 | FL50: 0 | FM50: 0 | FN50: 0 | FO50: 0 | FP50: 0 | FQ50: 0 | FR50: 0 | FS50: 0 | FT50: 0 | FU50: 0 | FV50: 0 | FW50: 0 | FX50: 0 | FY50: 0 | FZ50: 0 | GA50: 0 | GB50: 0 | GC50: 0 | GD50: 0 | GE50: 0 | GF50: 0 | GG50: 0 | GH50: 0 | GI50: 0 | GJ50: 0 | GK50: 0 | GL50: 0 | GM50: 0 | GN50: 0 | GO50: 0 | GP50: 0 | GQ50: 0 | GR50: 0 | GS50: 0 | GT50: 0 | GU50: 0 | GV50: 0 | GW50: 0 | GX50: 0 | GY50: 0 | GZ50: 0 | HA50: 0 | HB50: 0 | HC50: 0 | HD50: 0 | HE50: 0 | HF50: 0 | HG50: 0 | HH50: 0 | HI50: 0 | HJ50: 0 | HK50: 0 | HL50: 0 | HM50: 0 | HN50: 0 | HO50: 0 | HP50: 0 | HQ50: 0 | HR50: 0 | HS50: 0 | HT50: 0 | HU50: 0 | HV50: 0 | HW50: 0 | HX50: 0 | HY50: 0 | HZ50: 0 | IA50: 0 | IB50: 0 | IC50: 0 | ID50: 0 | IE50: 0 | IF50: 0 | IG50: 0 | IH50: 0 | II50: 0 | IJ50: 0 | IK50: 0 | IL50: 0 | IM50: 0 | IN50: 0 | IO50: 0 | IP50: 0 | IQ50: 0 | IR50: 0 | IS50: 0 | IT50: 0 | IU50: 0 | IV50: 0 | IW50: 0 | IX50: 0 | IY50: 0 | IZ50: 0 | JA50: 0 | JB50: 0 | JC50: 0 | JD50: 0 | JE50: 0 | JF50: 0 | JG50: 0 | JH50: 0 | JI50: 0 | JJ50: 0 | JK50: 0 | JL50: 0 | JM50: 0 | JN50: 0 | JO50: 0 | JP50: 0 | JQ50: 0 | JR50: 0 | JS50: 0 | JT50: 0 | JU50: 0 | JV50: 0 | JW50: 0 | JX50: 0 | JY50: 0 | JZ50: 0 | KA50: 0 | KB50: 0 | KC50: 0 | KD50: 0 | KE50: 0 | KF50: 0 | KG50: 0 | KH50: 0 | KI50: 0 | KJ50: 0 | KK50: 0 | KL50: 0 | KM50: 0 | KN50: 0 | KO50: 0 | KP50: 0 | KQ50: 0 | KR50: 0 | KS50: 0 | KT50: 0 | KU50: 0 | KV50: 0 | KW50: 0 | KX50: 0 | KY50: 0 | KZ50: 0 | LA50: 0 | LB50: 0 | LC50: 0 | LD50: 0 | LE50: 0 | LF50: 0 | LG50: 0 | LH50: 0 | LI50: 0 | LJ50: 0 | LK50: 0 | LL50: 0 | LM50: 0 | LN50: 0 | LO50: 0 | LP50: 0 | LQ50: 0 | LR50: 0 | LS50: 0 | LT50: 0 | LU50: 0 | LV50: 0 | LW50: 0 | LX50: 0 | LY50: 0 | LZ50: 0 | MA50: 0 | MB50: 0 | MC50: 0 | MD50: 0 | ME50: 0 | MF50: 0 | MG50: 0 | MH50: 0 | MI50: 0 | MJ50: 0 | MK50: 0 | ML50: 0 | MM50: 0 | MN50: 0 | MO50: 0 | MP50: 0 | MQ50: 0 | MR50: 0 | MS50: 0 | MT50: 0 | MU50: 0 | MV50: 0 | MW50: 0 | MX50: 0 | MY50: 0 | MZ50: 0 | NA50: 0 | NB50: 0 | NC50: 0 | ND50: 0 | NE50: 0 | NF50: 0 | NG50: 0 | NH50: 0 | NI50: 0 | NJ50: 0 | NK50: 0 | NL50: 0 | NM50: 0 | NN50: 0 | NO50: 0 | NP50: 0 | NQ50: 0 | NR50: 0 | NS50: 0 | NT50: 0 | NU50: 0 | NV50: 0 | NW50: 0 | NX50: 0 | NY50: 0 | NZ50: 0 | OA50: 0 | OB50: 0 | OC50: 0 | OD50: 0 | OE50: 0 | OF50: 0 | OG50: 0 | OH50: 0 | OI50: 0 | OJ50: 0 | OK50: 0 | OL50: 0 | OM50: 0 | ON50: 0 | OO50: 0 | OP50: 0 | OQ50: 0 | OR50: 0 | OS50: 0 | OT50: 0 | OU50: 0 | OV50: 0 | OW50: 0 | OX50: 0 | OY50: 0 | OZ50: 0 | PA50: 0 | PB50: 0 | PC50: 0 | PD50: 0 | PE50: 0 | PF50: 0 | PG50: 0 | PH50: 0 | PI50: 0 | PJ50: 0 | PK50: 0 | PL50: 0 | PM50: 0 | PN50: 0 | PO50: 0 | PP50: 0 | PQ50: 0 | PR50: 0 | PS50: 0 | PT50: 0 | PU50: 0 | PV50: 0 | PW50: 0 | PX50: 0 | PY50: 0 | PZ50: 0 | QA50: 0 | QB50: 0 | QC50: 0 | QD50: 0 | QE50: 0 | QF50: 0 | QG50: 0 | QH50: 0 | QI50: 0 | QJ50: 0 | QK50: 0 | QL50: 0 | QM50: 0 | QN50: 0 | QO50: 0 | QP50: 0 | QQ50: 0 | QR50: 0 | QS50: 0 | QT50: 0 | QU50: 0 | QV50: 0 | QW50: 0 | QX50: 0 | QY50: 0 | QZ50: 0 | RA50: 0 | RB50: 0 | RC50: 0 | RD50: 0 | RE50: 0 | RF50: 0 | RG50: 0 | RH50: 0 | RI50: 0 | RJ50: 0 | RK50: 0 | RL50: 0 | RM50: 0 | RN50: 0 | RO50: 0 | RP50: 0 | RQ50: 0 | RR50: 0 | RS50: 0 | RT50: 0 | RU50: 0 | RV50: 0 | RW50: 0 | RX50: 0 | RY50: 0 | RZ50: 0 | SA50: 0 | SB50: 0 | SC50: 0 | SD50: 0 | SE50: 0 | SF50: 0 | SG50: 0 | SH50: 0 | SI50: 0 | SJ50: 0 | SK50: 0 | SL50: 0 | SM50: 0 | SN50: 0 | SO50: 0 | SP50: 0 | SQ50: 0 | SR50: 0 | SS50: 0 | ST50: 0 | SU50: 0 | SV50: 0 | SW50: 0 | SX50: 0 | SY50: 0 | SZ50: 0 | TA50: 0 | TB50: 0 | TC50: 0 | TD50: 0 | TE50: 0 | TF50: 0 | TG50: 0 | TH50: 0 | TI50: 0 | TJ50: 0 | TK50: 0 | TL50: 0 | TM50: 0 | TN50: 0 | TO50: 0 | TP50: 0 | TQ50: 0 | TR50: 0 | TS50: 0 | TT50: 0 | TU50: 0 | TV50: 0 | TW50: 0 | TX50: 0 | TY50: 0 | TZ50: 0 | UA50: 0 | UB50: 0 | UC50: 0 | UD50: 0 | UE50: 0 | UF50: 0 | UG50: 0 | UH50: 0 | UI50: 0 | UJ50: 0 | UK50: 0 | UL50: 0 | UM50: 0 | UN50: 0 | UO50: 0 | UP50: 0 | UQ50: 0 | UR50: 0 | US50: 0 | UT50: 0 | UU50: 0 | UV50: 0 | UW50: 0 | UX50: 0 | UY50: 0 | UZ50: 0 | VA50: 0 | VB50: 0 | VC50: 0 | VD50: 0 | VE50: 0 | VF50: 0 | VG50: 0 | VH50: 0 | VI50: 0 | VJ50: 0 | VK50: 0 | VL50: 0 | VM50: 0 | VN50: 0 | VO50: 0 | VP50: 0 | VQ50: 0 | VR50: 0 | VS50: 0 | VT50: 0 | VU50: 0 | VV50: 0 | VW50: 0 | VX50: 0 | VY50: 0 | VZ50: 0 | WA50: 0 | WB50: 0 | WC50: 0 | WD50: 0 | WE50: 0 | WF50: 0 | WG50: 0 | WH50: 0 | WI50: 0 | WJ50: 0 | WK50: 0 | WL50: 0 | WM50: 0 | WN50: 0 | WO50: 0 | WP50: 0 | WQ50: 0 | WR50: 0 | WS50: 0 | WT50: 0 | WU50: 0 | WV50: 0 | WW50: 0 | WX50: 0 | WY50: 0 | WZ50: 0 | XA50: 0 | XB50: 0 | XC50: 0 | XD50: 0 | XE50: 0 | XF50: 0 | XG50: 0 | XH50: 0 | XI50: 0 | XJ50: 0 | XK50: 0 | XL50: 0 | XM50: 0 | XN50: 0 | XO50: 0 | XP50: 0 | XQ50: 0 | XR50: 0 | XS50: 0 | XT50: 0 | XU50: 0 | XV50: 0 | XW50: 0 | XX50: 0 | XY50: 0 | XZ50: 0 | YA50: 0 | YB50: 0 | YC50: 0 | YD50: 0 | YE50: 0 | YF50: 0 | YG50: 0 | YH50: 0 | YI50: 0 | YJ50: 0 | YK50: 0 | YL50: 0 | YM50: 0 | YN50: 0 | YO50: 0 | YP50: 0 | YQ50: 0 | YR50: 0 | YS50: 0 | YT50: 0 | YU50: 0 | YV50: 0 | YW50: 0 | YX50: 0 | YY50: 0 | YZ50: 0 | ZA50: 0 | ZB50: 0 | ZC50: 0 | ZD50: 0 | ZE50: 0 | ZF50: 0 | ZG50: 0 | ZH50: 0 | ZI50: 0 | ZJ50: 0 | ZK50: 0 | ZL50: 0 | ZM50: 0 | ZN50: 0 | ZO50: 0 | ZP50: 0 | ZQ50: 0 | ZR50: 0 | ZS50: 0 | ZT50: 0 | ZU50: 0 | ZV50: 0 | ZW50: 0 | ZX50: 0 | ZY50: 0 | ZZ50: 0 | AAA50: 0 | AAB50: 0 | AAC50: 0 | AAD50: 0 | AAE50: 0 | AAF50: 0 | AAG50: 0 | AAH50: 0 | AAI50: 0 | AAJ50: 0 | AAK50: 0 | AAL50: 0 | AAM50: 0 | AAN50: 0 | AAO50: 0 | AAP50: 0 | AAQ50: 0 | AAR50: 0 | AAS50: 0 | AAT50: 0 | AAU50: 0 | AAV50: 0 | AAW50: 0 | AAX50: 0 | AAY50: 0 | AAZ50: 0 | ABA50: 0 | ABB50: 0 | ABC50: 0 | ABD50: 0 | ABE50: 0 | ABF50: 0 | ABG50: 0 | ABH50: 0 | ABI50: 0 | ABJ50: 0 | ABK50: 0 | ABL50: 0 | ABM50: 0 | ABN50: 0 | ABO50: 0 | ABP50: 0 | ABQ50: 0 | ABR50: 0 | ABS50: 0 | ABT50: 0 | ABU50: 0 | ABV50: 0 | ABW50: 0 | ABX50: 0 | ABY50: 0 | ABZ50: 0 | ACA50: 0 | ACB50: 0 | ACC50: 0 | ACD50: 0 | ACE50: 0 | ACF50: 0 | ACG50: 0 | ACH50: 0 | ACI50: 0 | ACJ50: 0 | ACK50: 0 | ACL50: 0 | ACM50: 0 | ACN50: 0 | ACO50: 0 | ACP50: 0 | ACQ50: 0 | ACR50: 0 | ACS50: 0 | ACT50: 0 | ACU50: 0 | ACV50: 0 | ACW50: 0 | ACX50: 0 | ACY50: 0 | ACZ50: 0 | ADA50: 0 | ADB50: 0 | ADC50: 0 | ADD50: 0 | ADE50: 0 | ADF50: 0 | ADG50: 0 | ADH50: 0 | ADI50: 0 | ADJ50: 0 | ADK50: 0 | ADL50: 0 | ADM50: 0 | ADN50: 0 | ADO50: 0 | ADP50: 0 | ADQ50: 0 | ADR50: 0 | ADS50: 0 | ADT50: 0 | ADU50: 0 | ADV50: 0 | ADW50: 0 | ADX50: 0 | ADY50: 0 | ADZ50: 0 | AEA50: 0 | AEB50: 0 | AEC50: 0 | AED50: 0 | AEE50: 0 | AEF50: 0 | AEG50: 0 | AEH50: 0 | AEI50: 0 | AEJ50: 0 | AEK50: 0 | AEL50: 0 | AEM50: 0 | AEN50: 0 | AEO50: 0 | AEP50: 0 | AEQ50: 0 | AER50: 0 | AES50: 0 | AET50: 0 | AEU50: 0 | AEV50: 0 | AEW50: 0 | AEX50: 0 | AEY50: 0 | AEZ50: 0 | AFA50: 0 | AFB50: 0 | AFC50: 0 | AFD50: 0 | AFE50: 0 | AFF50: 0 | AFG50: 0 | AFH50: 0 | AFI50: 0 | AFJ50: 0 | AFK50: 0 | AFL50: 0 | AFM50: 0 | AFN50: 0 | AFO50: 0 | AFP50: 0 | AFQ50: 0 | AFR50: 0 | AFS50: 0 | AFT50: 0 | AFU50: 0 | AFV50: 0 | AFW50: 0 | AFX50: 0 | AFY50: 0 | AFZ50: 0 | AGA50: 0 | AGB50: 0 | AGC50: 0 | AGD50: 0 | AGE50: 0 | AGF50: 0 | AGG50: 0 | AGH50: 0 | AGI50: 0 | AGJ50: 0 | AGK50: 0 | AGL50: 0 | AGM50: 0 | AGN50: 0 | AGO50: 0 | AGP50: 0 | AGQ50: 0 | AGR50: 0 | AGS50: 0 | AGT50: 0 | AGU50: 0 | AGV50: 0 | AGW50: 0 | AGX50: 0 | AGY50: 0 | AGZ50: 0 | AHA50: 0 | AHB50: 0 | AHC50: 0 | AHD50: 0 | AHE50: 0 | AHF50: 0 | AHG50: 0 | AHH50: 0 | AHI50: 0 | AHJ50: 0 | AHK50: 0 | AHL50: 0 | AHM50: 0 | AHN50: 0 | AHO50: 0 | AHP50: 0 | AHQ50: 0 | AHR50: 0 | AHS50: 0 | AHT50: 0 | AHU50: 0 | AHV50: 0 | AHW50: 0 | AHX50: 0 | AHY50: 0 | AHZ50: 0 | AIA50: 0 | AIB50: 0 | AIC50: 0 | AID50: 0 | AIE50: 0 | AIF50: 0 | AIG50: 0 | AIH50: 0 | AII50: 0 | AIJ50: 0 | AIK50: 0 | AIL50: 0 | AIM50: 0 | AIN50: 0 | AIO50: 0 | AIP50: 0 | AIQ50: 0 | AIR50: 0 | AIS50: 0 | AIT50: 0 | AIU50: 0 | AIV50: 0 | AIW50: 0 | AIX50: 0 | AIY50: 0 | AIZ50: 0 | AJA50: 0 | AJB50: 0 | AJC50: 0 | AJD50: 0 | AJE50: 0 | AJF50: 0 | AJG50: 0 | AJH50: 0 | AJI50: 0 | AJJ50: 0 | AJK50: 0 | AJL50: 0 | AJM50: 0 | AJN50: 0 | AJO50: 0 | AJP50: 0 | AJQ50: 0 | AJR50: 0 | AJS50: 0 | AJT50: 0 | AJU50: 0 | AJV50: 0
H51: Cost Type
J52: 0 | K52: 0 | L52: 0 | M52: 0 | N52: 0 | O52: 0 | P52: 0 | Q52: 0 | R52: 0 | S52: 0 | T52: 0 | U52: 0 | V52: 0 | W52: 0 | X52: 0 | Y52: 0 | Z52: 0 | AA52: 0 | AB52: 0 | AC52: 0 | AD52: 0 | AE52: 0 | AF52: 0 | AG52: 0 | AH52: 0 | AI52: 0 | AJ52: 0 | AK52: 0 | AL52: 0 | AM52: 0 | AN52: 0 | AO52: 0 | AP52: 0 | AQ52: 0 | AR52: 0 | AS52: 0 | AT52: 0 | AU52: 0 | AV52: 0 | AW52: 0 | AX52: 0 | AY52: 0 | AZ52: 0 | BA52: 0 | BB52: 0 | BC52: 0 | BD52: 0 | BE52: 0 | BF52: 0 | BG52: 0 | BH52: 0 | BI52: 0 | BJ52: 0 | BK52: 0 | BL52: 0 | BM52: 0 | BN52: 0 | BO52: 0 | BP52: 0 | BQ52: 0 | BR52: 0 | BS52: 0 | BT52: 0 | BU52: 0 | BV52: 0 | BW52: 0 | BX52: 0 | BY52: 0 | BZ52: 0 | CA52: 0 | CB52: 0 | CC52: 0 | CD52: 0 | CE52: 0 | CF52: 0 | CG52: 0 | CH52: 0 | CI52: 0 | CJ52: 0 | CK52: 0 | CL52: 0 | CM52: 0 | CN52: 0 | CO52: 0 | CP52: 0 | CQ52: 0 | CR52: 0 | CS52: 0 | CT52: 0 | CU52: 0 | CV52: 0 | CW52: 0 | CX52: 0 | CY52: 0 | CZ52: 0 | DA52: 0 | DB52: 0 | DC52: 0 | DD52: 0 | DE52: 0 | DF52: 0 | DG52: 0 | DH52: 0 | DI52: 0 | DJ52: 0 | DK52: 0 | DL52: 0 | DM52: 0 | DN52: 0 | DO52: 0 | DP52: 0 | DQ52: 0 | DR52: 0 | DS52: 0 | DT52: 0 | DU52: 0 | DV52: 0 | DW52: 0 | DX52: 0 | DY52: 0 | DZ52: 0 | EA52: 0 | EB52: 0 | EC52: 0 | ED52: 0 | EE52: 0 | EF52: 0 | EG52: 0 | EH52: 0 | EI52: 0 | EJ52: 0 | EK52: 0 | EL52: 0 | EM52: 0 | EN52: 0 | EO52: 0 | EP52: 0 | EQ52: 0 | ER52: 0 | ES52: 0 | ET52: 0 | EU52: 0 | EV52: 0 | EW52: 0 | EX52: 0 | EY52: 0 | EZ52: 0 | FA52: 0 | FB52: 0 | FC52: 0 | FD52: 0 | FE52: 0 | FF52: 0 | FG52: 0 | FH52: 0 | FI52: 0 | FJ52: 0 | FK52: 0 | FL52: 0 | FM52: 0 | FN52: 0 | FO52: 0 | FP52: 0 | FQ52: 0 | FR52: 0 | FS52: 0 | FT52: 0 | FU52: 0 | FV52: 0 | FW52: 0 | FX52: 0 | FY52: 0 | FZ52: 0 | GA52: 0 | GB52: 0 | GC52: 0 | GD52: 0 | GE52: 0 | GF52: 0 | GG52: 0 | GH52: 0 | GI52: 0 | GJ52: 0 | GK52: 0 | GL52: 0 | GM52: 0 | GN52: 0 | GO52: 0 | GP52: 0 | GQ52: 0 | GR52: 0 | GS52: 0 | GT52: 0 | GU52: 0 | GV52: 0 | GW52: 0 | GX52: 0 | GY52: 0 | GZ52: 0 | HA52: 0 | HB52: 0 | HC52: 0 | HD52: 0 | HE52: 0 | HF52: 0 | HG52: 0 | HH52: 0 | HI52: 0 | HJ52: 0 | HK52: 0 | HL52: 0 | HM52: 0 | HN52: 0 | HO52: 0 | HP52: 0 | HQ52: 0 | HR52: 0 | HS52: 0 | HT52: 0 | HU52: 0 | HV52: 0 | HW52: 0 | HX52: 0 | HY52: 0 | HZ52: 0 | IA52: 0 | IB52: 0 | IC52: 0 | ID52: 0 | IE52: 0 | IF52: 0 | IG52: 0 | IH52: 0 | II52: 0 | IJ52: 0 | IK52: 0 | IL52: 0 | IM52: 0 | IN52: 0 | IO52: 0 | IP52: 0 | IQ52: 0 | IR52: 0 | IS52: 0 | IT52: 0 | IU52: 0 | IV52: 0 | IW52: 0 | IX52: 0 | IY52: 0 | IZ52: 0 | JA52: 0 | JB52: 0 | JC52: 0 | JD52: 0 | JE52: 0 | JF52: 0 | JG52: 0 | JH52: 0 | JI52: 0 | JJ52: 0 | JK52: 0 | JL52: 0 | JM52: 0 | JN52: 0 | JO52: 0 | JP52: 0 | JQ52: 0 | JR52: 0 | JS52: 0 | JT52: 0 | JU52: 0 | JV52: 0 | JW52: 0 | JX52: 0 | JY52: 0 | JZ52: 0 | KA52: 0 | KB52: 0 | KC52: 0 | KD52: 0 | KE52: 0 | KF52: 0 | KG52: 0 | KH52: 0 | KI52: 0 | KJ52: 0 | KK52: 0 | KL52: 0 | KM52: 0 | KN52: 0 | KO52: 0 | KP52: 0 | KQ52: 0 | KR52: 0 | KS52: 0 | KT52: 0 | KU52: 0 | KV52: 0 | KW52: 0 | KX52: 0 | KY52: 0 | KZ52: 0 | LA52: 0 | LB52: 0 | LC52: 0 | LD52: 0 | LE52: 0 | LF52: 0 | LG52: 0 | LH52: 0 | LI52: 0 | LJ52: 0 | LK52: 0 | LL52: 0 | LM52: 0 | LN52: 0 | LO52: 0 | LP52: 0 | LQ52: 0 | LR52: 0 | LS52: 0 | LT52: 0 | LU52: 0 | LV52: 0 | LW52: 0 | LX52: 0 | LY52: 0 | LZ52: 0 | MA52: 0 | MB52: 0 | MC52: 0 | MD52: 0 | ME52: 0 | MF52: 0 | MG52: 0 | MH52: 0 | MI52: 0 | MJ52: 0 | MK52: 0 | ML52: 0 | MM52: 0 | MN52: 0 | MO52: 0 | MP52: 0 | MQ52: 0 | MR52: 0 | MS52: 0 | MT52: 0 | MU52: 0 | MV52: 0 | MW52: 0 | MX52: 0 | MY52: 0 | MZ52: 0 | NA52: 0 | NB52: 0 | NC52: 0 | ND52: 0 | NE52: 0 | NF52: 0 | NG52: 0 | NH52: 0 | NI52: 0 | NJ52: 0 | NK52: 0 | NL52: 0 | NM52: 0 | NN52: 0 | NO52: 0 | NP52: 0 | NQ52: 0 | NR52: 0 | NS52: 0 | NT52: 0 | NU52: 0 | NV52: 0 | NW52: 0 | NX52: 0 | NY52: 0 | NZ52: 0 | OA52: 0 | OB52: 0 | OC52: 0 | OD52: 0 | OE52: 0 | OF52: 0 | OG52: 0 | OH52: 0 | OI52: 0 | OJ52: 0 | OK52: 0 | OL52: 0 | OM52: 0 | ON52: 0 | OO52: 0 | OP52: 0 | OQ52: 0 | OR52: 0 | OS52: 0 | OT52: 0 | OU52: 0 | OV52: 0 | OW52: 0 | OX52: 0 | OY52: 0 | OZ52: 0 | PA52: 0 | PB52: 0 | PC52: 0 | PD52: 0 | PE52: 0 | PF52: 0 | PG52: 0 | PH52: 0 | PI52: 0 | PJ52: 0 | PK52: 0 | PL52: 0 | PM52: 0 | PN52: 0 | PO52: 0 | PP52: 0 | PQ52: 0 | PR52: 0 | PS52: 0 | PT52: 0 | PU52: 0 | PV52: 0 | PW52: 0 | PX52: 0 | PY52: 0 | PZ52: 0 | QA52: 0 | QB52: 0 | QC52: 0 | QD52: 0 | QE52: 0 | QF52: 0 | QG52: 0 | QH52: 0 | QI52: 0 | QJ52: 0 | QK52: 0 | QL52: 0 | QM52: 0 | QN52: 0 | QO52: 0 | QP52: 0 | QQ52: 0 | QR52: 0 | QS52: 0 | QT52: 0 | QU52: 0 | QV52: 0 | QW52: 0 | QX52: 0 | QY52: 0 | QZ52: 0 | RA52: 0 | RB52: 0 | RC52: 0 | RD52: 0 | RE52: 0 | RF52: 0 | RG52: 0 | RH52: 0 | RI52: 0 | RJ52: 0 | RK52: 0 | RL52: 0 | RM52: 0 | RN52: 0 | RO52: 0 | RP52: 0 | RQ52: 0 | RR52: 0 | RS52: 0 | RT52: 0 | RU52: 0 | RV52: 0 | RW52: 0 | RX52: 0 | RY52: 0 | RZ52: 0 | SA52: 0 | SB52: 0 | SC52: 0 | SD52: 0 | SE52: 0 | SF52: 0 | SG52: 0 | SH52: 0 | SI52: 0 | SJ52: 0 | SK52: 0 | SL52: 0 | SM52: 0 | SN52: 0 | SO52: 0 | SP52: 0 | SQ52: 0 | SR52: 0 | SS52: 0 | ST52: 0 | SU52: 0 | SV52: 0 | SW52: 0 | SX52: 0 | SY52: 0 | SZ52: 0 | TA52: 0 | TB52: 0 | TC52: 0 | TD52: 0 | TE52: 0 | TF52: 0 | TG52: 0 | TH52: 0 | TI52: 0 | TJ52: 0 | TK52: 0 | TL52: 0 | TM52: 0 | TN52: 0 | TO52: 0 | TP52: 0 | TQ52: 0 | TR52: 0 | TS52: 0 | TT52: 0 | TU52: 0 | TV52: 0 | TW52: 0 | TX52: 0 | TY52: 0 | TZ52: 0 | UA52: 0 | UB52: 0 | UC52: 0 | UD52: 0 | UE52: 0 | UF52: 0 | UG52: 0 | UH52: 0 | UI52: 0 | UJ52: 0 | UK52: 0 | UL52: 0 | UM52: 0 | UN52: 0 | UO52: 0 | UP52: 0 | UQ52: 0 | UR52: 0 | US52: 0 | UT52: 0 | UU52: 0 | UV52: 0 | UW52: 0 | UX52: 0 | UY52: 0 | UZ52: 0 | VA52: 0 | VB52: 0 | VC52: 0 | VD52: 0 | VE52: 0 | VF52: 0 | VG52: 0 | VH52: 0 | VI52: 0 | VJ52: 0 | VK52: 0 | VL52: 0 | VM52: 0 | VN52: 0 | VO52: 0 | VP52: 0 | VQ52: 0 | VR52: 0 | VS52: 0 | VT52: 0 | VU52: 0 | VV52: 0 | VW52: 0 | VX52: 0 | VY52: 0 | VZ52: 0 | WA52: 0 | WB52: 0 | WC52: 0 | WD52: 0 | WE52: 0 | WF52: 0 | WG52: 0 | WH52: 0 | WI52: 0 | WJ52: 0 | WK52: 0 | WL52: 0 | WM52: 0 | WN52: 0 | WO52: 0 | WP52: 0 | WQ52: 0 | WR52: 0 | WS52: 0 | WT52: 0 | WU52: 0 | WV52: 0 | WW52: 0 | WX52: 0 | WY52: 0 | WZ52: 0 | XA52: 0 | XB52: 0 | XC52: 0 | XD52: 0 | XE52: 0 | XF52: 0 | XG52: 0 | XH52: 0 | XI52: 0 | XJ52: 0 | XK52: 0 | XL52: 0 | XM52: 0 | XN52: 0 | XO52: 0 | XP52: 0 | XQ52: 0 | XR52: 0 | XS52: 0 | XT52: 0 | XU52: 0 | XV52: 0 | XW52: 0 | XX52: 0 | XY52: 0 | XZ52: 0 | YA52: 0 | YB52: 0 | YC52: 0 | YD52: 0 | YE52: 0 | YF52: 0 | YG52: 0 | YH52: 0 | YI52: 0 | YJ52: 0 | YK52: 0 | YL52: 0 | YM52: 0 | YN52: 0 | YO52: 0 | YP52: 0 | YQ52: 0 | YR52: 0 | YS52: 0 | YT52: 0 | YU52: 0 | YV52: 0 | YW52: 0 | YX52: 0 | YY52: 0 | YZ52: 0 | ZA52: 0 | ZB52: 0 | ZC52: 0 | ZD52: 0 | ZE52: 0 | ZF52: 0 | ZG52: 0 | ZH52: 0 | ZI52: 0 | ZJ52: 0 | ZK52: 0 | ZL52: 0 | ZM52: 0 | ZN52: 0 | ZO52: 0 | ZP52: 0 | ZQ52: 0 | ZR52: 0 | ZS52: 0 | ZT52: 0 | ZU52: 0 | ZV52: 0 | ZW52: 0 | ZX52: 0 | ZY52: 0 | ZZ52: 0 | AAA52: 0 | AAB52: 0 | AAC52: 0 | AAD52: 0 | AAE52: 0 | AAF52: 0 | AAG52: 0 | AAH52: 0 | AAI52: 0 | AAJ52: 0 | AAK52: 0 | AAL52: 0 | AAM52: 0 | AAN52: 0 | AAO52: 0 | AAP52: 0 | AAQ52: 0 | AAR52: 0 | AAS52: 0 | AAT52: 0 | AAU52: 0 | AAV52: 0 | AAW52: 0 | AAX52: 0 | AAY52: 0 | AAZ52: 0 | ABA52: 0 | ABB52: 0 | ABC52: 0 | ABD52: 0 | ABE52: 0 | ABF52: 0 | ABG52: 0 | ABH52: 0 | ABI52: 0 | ABJ52: 0 | ABK52: 0 | ABL52: 0 | ABM52: 0 | ABN52: 0 | ABO52: 0 | ABP52: 0 | ABQ52: 0 | ABR52: 0 | ABS52: 0 | ABT52: 0 | ABU52: 0 | ABV52: 0 | ABW52: 0 | ABX52: 0 | ABY52: 0 | ABZ52: 0 | ACA52: 0 | ACB52: 0 | ACC52: 0 | ACD52: 0 | ACE52: 0 | ACF52: 0 | ACG52: 0 | ACH52: 0 | ACI52: 0 | ACJ52: 0 | ACK52: 0 | ACL52: 0 | ACM52: 0 | ACN52: 0 | ACO52: 0 | ACP52: 0 | ACQ52: 0 | ACR52: 0 | ACS52: 0 | ACT52: 0 | ACU52: 0 | ACV52: 0 | ACW52: 0 | ACX52: 0 | ACY52: 0 | ACZ52: 0 | ADA52: 0 | ADB52: 0 | ADC52: 0 | ADD52: 0 | ADE52: 0 | ADF52: 0 | ADG52: 0 | ADH52: 0 | ADI52: 0 | ADJ52: 0 | ADK52: 0 | ADL52: 0 | ADM52: 0 | ADN52: 0 | ADO52: 0 | ADP52: 0 | ADQ52: 0 | ADR52: 0 | ADS52: 0 | ADT52: 0 | ADU52: 0 | ADV52: 0 | ADW52: 0 | ADX52: 0 | ADY52: 0 | ADZ52: 0 | AEA52: 0 | AEB52: 0 | AEC52: 0 | AED52: 0 | AEE52: 0 | AEF52: 0 | AEG52: 0 | AEH52: 0 | AEI52: 0 | AEJ52: 0 | AEK52: 0 | AEL52: 0 | AEM52: 0 | AEN52: 0 | AEO52: 0 | AEP52: 0 | AEQ52: 0 | AER52: 0 | AES52: 0 | AET52: 0 | AEU52: 0 | AEV52: 0 | AEW52: 0 | AEX52: 0 | AEY52: 0 | AEZ52: 0 | AFA52: 0 | AFB52: 0 | AFC52: 0 | AFD52: 0 | AFE52: 0 | AFF52: 0 | AFG52: 0 | AFH52: 0 | AFI52: 0 | AFJ52: 0 | AFK52: 0 | AFL52: 0 | AFM52: 0 | AFN52: 0 | AFO52: 0 | AFP52: 0 | AFQ52: 0 | AFR52: 0 | AFS52: 0 | AFT52: 0 | AFU52: 0 | AFV52: 0 | AFW52: 0 | AFX52: 0 | AFY52: 0 | AFZ52: 0 | AGA52: 0 | AGB52: 0 | AGC52: 0 | AGD52: 0 | AGE52: 0 | AGF52: 0 | AGG52: 0 | AGH52: 0 | AGI52: 0 | AGJ52: 0 | AGK52: 0 | AGL52: 0 | AGM52: 0 | AGN52: 0 | AGO52: 0 | AGP52: 0 | AGQ52: 0 | AGR52: 0 | AGS52: 0 | AGT52: 0 | AGU52: 0 | AGV52: 0 | AGW52: 0 | AGX52: 0 | AGY52: 0 | AGZ52: 0 | AHA52: 0 | AHB52: 0 | AHC52: 0 | AHD52: 0 | AHE52: 0 | AHF52: 0 | AHG52: 0 | AHH52: 0 | AHI52: 0 | AHJ52: 0 | AHK52: 0 | AHL52: 0 | AHM52: 0 | AHN52: 0 | AHO52: 0 | AHP52: 0 | AHQ52: 0 | AHR52: 0 | AHS52: 0 | AHT52: 0 | AHU52: 0 | AHV52: 0 | AHW52: 0 | AHX52: 0 | AHY52: 0 | AHZ52: 0 | AIA52: 0 | AIB52: 0 | AIC52: 0 | AID52: 0 | AIE52: 0 | AIF52: 0 | AIG52: 0 | AIH52: 0 | AII52: 0 | AIJ52: 0 | AIK52: 0 | AIL52: 0 | AIM52: 0 | AIN52: 0 | AIO52: 0 | AIP52: 0 | AIQ52: 0 | AIR52: 0 | AIS52: 0 | AIT52: 0 | AIU52: 0 | AIV52: 0 | AIW52: 0 | AIX52: 0 | AIY52: 0 | AIZ52: 0 | AJA52: 0 | AJB52: 0 | AJC52: 0 | AJD52: 0 | AJE52: 0 | AJF52: 0 | AJG52: 0 | AJH52: 0 | AJI52: 0 | AJJ52: 0 | AJK52: 0 | AJL52: 0 | AJM52: 0 | AJN52: 0 | AJO52: 0 | AJP52: 0 | AJQ52: 0 | AJR52: 0 | AJS52: 0 | AJT52: 0 | AJU52: 0 | AJV52: 0
J53: 0 | K53: 0 | L53: 0 | M53: 0 | N53: 0 | O53: 0 | P53: 0 | Q53: 0 | R53: 0 | S53: 0 | T53: 0 | U53: 0 | V53: 0 | W53: 0 | X53: 0 | Y53: 0 | Z53: 0 | AA53: 0 | AB53: 0 | AC53: 0 | AD53: 0 | AE53: 0 | AF53: 0 | AG53: 0 | AH53: 0 | AI53: 0 | AJ53: 0 | AK53: 0 | AL53: 0 | AM53: 0 | AN53: 0 | AO53: 0 | AP53: 0 | AQ53: 0 | AR53: 0 | AS53: 0 | AT53: 0 | AU53: 0 | AV53: 0 | AW53: 0 | AX53: 0 | AY53: 0 | AZ53: 0 | BA53: 0 | BB53: 0 | BC53: 0 | BD53: 0 | BE53: 0 | BF53: 0 | BG53: 0 | BH53: 0 | BI53: 0 | BJ53: 0 | BK53: 0 | BL53: 0 | BM53: 0 | BN53: 0 | BO53: 0 | BP53: 0 | BQ53: 0 | BR53: 0 | BS53: 0 | BT53: 0 | BU53: 0 | BV53: 0 | BW53: 0 | BX53: 0 | BY53: 0 | BZ53: 0 | CA53: 0 | CB53: 0 | CC53: 0 | CD53: 0 | CE53: 0 | CF53: 0 | CG53: 0 | CH53: 0 | CI53: 0 | CJ53: 0 | CK53: 0 | CL53: 0 | CM53: 0 | CN53: 0 | CO53: 0 | CP53: 0 | CQ53: 0 | CR53: 0 | CS53: 0 | CT53: 0 | CU53: 0 | CV53: 0 | CW53: 0 | CX53: 0 | CY53: 0 | CZ53: 0 | DA53: 0 | DB53: 0 | DC53: 0 | DD53: 0 | DE53: 0 | DF53: 0 | DG53: 0 | DH53: 0 | DI53: 0 | DJ53: 0 | DK53: 0 | DL53: 0 | DM53: 0 | DN53: 0 | DO53: 0 | DP53: 0 | DQ53: 0 | DR53: 0 | DS53: 0 | DT53: 0 | DU53: 0 | DV53: 0 | DW53: 0 | DX53: 0 | DY53: 0 | DZ53: 0 | EA53: 0 | EB53: 0 | EC53: 0 | ED53: 0 | EE53: 0 | EF53: 0 | EG53: 0 | EH53: 0 | EI53: 0 | EJ53: 0 | EK53: 0 | EL53: 0 | EM53: 0 | EN53: 0 | EO53: 0 | EP53: 0 | EQ53: 0 | ER53: 0 | ES53: 0 | ET53: 0 | EU53: 0 | EV53: 0 | EW53: 0 | EX53: 0 | EY53: 0 | EZ53: 0 | FA53: 0 | FB53: 0 | FC53: 0 | FD53: 0 | FE53: 0 | FF53: 0 | FG53: 0 | FH53: 0 | FI53: 0 | FJ53: 0 | FK53: 0 | FL53: 0 | FM53: 0 | FN53: 0 | FO53: 0 | FP53: 0 | FQ53: 0 | FR53: 0 | FS53: 0 | FT53: 0 | FU53: 0 | FV53: 0 | FW53: 0 | FX53: 0 | FY53: 0 | FZ53: 0 | GA53: 0 | GB53: 0 | GC53: 0 | GD53: 0 | GE53: 0 | GF53: 0 | GG53: 0 | GH53: 0 | GI53: 0 | GJ53: 0 | GK53: 0 | GL53: 0 | GM53: 0 | GN53: 0 | GO53: 0 | GP53: 0 | GQ53: 0 | GR53: 0 | GS53: 0 | GT53: 0 | GU53: 0 | GV53: 0 | GW53: 0 | GX53: 0 | GY53: 0 | GZ53: 0 | HA53: 0 | HB53: 0 | HC53: 0 | HD53: 0 | HE53: 0 | HF53: 0 | HG53: 0 | HH53: 0 | HI53: 0 | HJ53: 0 | HK53: 0 | HL53: 0 | HM53: 0 | HN53: 0 | HO53: 0 | HP53: 0 | HQ53: 0 | HR53: 0 | HS53: 0 | HT53: 0 | HU53: 0 | HV53: 0 | HW53: 0 | HX53: 0 | HY53: 0 | HZ53: 0 | IA53: 0 | IB53: 0 | IC53: 0 | ID53: 0 | IE53: 0 | IF53: 0 | IG53: 0 | IH53: 0 | II53: 0 | IJ53: 0 | IK53: 0 | IL53: 0 | IM53: 0 | IN53: 0 | IO53: 0 | IP53: 0 | IQ53: 0 | IR53: 0 | IS53: 0 | IT53: 0 | IU53: 0 | IV53: 0 | IW53: 0 | IX53: 0 | IY53: 0 | IZ53: 0 | JA53: 0 | JB53: 0 | JC53: 0 | JD53: 0 | JE53: 0 | JF53: 0 | JG53: 0 | JH53: 0 | JI53: 0 | JJ53: 0 | JK53: 0 | JL53: 0 | JM53: 0 | JN53: 0 | JO53: 0 | JP53: 0 | JQ53: 0 | JR53: 0 | JS53: 0 | JT53: 0 | JU53: 0 | JV53: 0 | JW53: 0 | JX53: 0 | JY53: 0 | JZ53: 0 | KA53: 0 | KB53: 0 | KC53: 0 | KD53: 0 | KE53: 0 | KF53: 0 | KG53: 0 | KH53: 0 | KI53: 0 | KJ53: 0 | KK53: 0 | KL53: 0 | KM53: 0 | KN53: 0 | KO53: 0 | KP53: 0 | KQ53: 0 | KR53: 0 | KS53: 0 | KT53: 0 | KU53: 0 | KV53: 0 | KW53: 0 | KX53: 0 | KY53: 0 | KZ53: 0 | LA53: 0 | LB53: 0 | LC53: 0 | LD53: 0 | LE53: 0 | LF53: 0 | LG53: 0 | LH53: 0 | LI53: 0 | LJ53: 0 | LK53: 0 | LL53: 0 | LM53: 0 | LN53: 0 | LO53: 0 | LP53: 0 | LQ53: 0 | LR53: 0 | LS53: 0 | LT53: 0 | LU53: 0 | LV53: 0 | LW53: 0 | LX53: 0 | LY53: 0 | LZ53: 0 | MA53: 0 | MB53: 0 | MC53: 0 | MD53: 0 | ME53: 0 | MF53: 0 | MG53: 0 | MH53: 0 | MI53: 0 | MJ53: 0 | MK53: 0 | ML53: 0 | MM53: 0 | MN53: 0 | MO53: 0 | MP53: 0 | MQ53: 0 | MR53: 0 | MS53: 0 | MT53: 0 | MU53: 0 | MV53: 0 | MW53: 0 | MX53: 0 | MY53: 0 | MZ53: 0 | NA53: 0 | NB53: 0 | NC53: 0 | ND53: 0 | NE53: 0 | NF53: 0 | NG53: 0 | NH53: 0 | NI53: 0 | NJ53: 0 | NK53: 0 | NL53: 0 | NM53: 0 | NN53: 0 | NO53: 0 | NP53: 0 | NQ53: 0 | NR53: 0 | NS53: 0 | NT53: 0 | NU53: 0 | NV53: 0 | NW53: 0 | NX53: 0 | NY53: 0 | NZ53: 0 | OA53: 0 | OB53: 0 | OC53: 0 | OD53: 0 | OE53: 0 | OF53: 0 | OG53: 0 | OH53: 0 | OI53: 0 | OJ53: 0 | OK53: 0 | OL53: 0 | OM53: 0 | ON53: 0 | OO53: 0 | OP53: 0 | OQ53: 0 | OR53: 0 | OS53: 0 | OT53: 0 | OU53: 0 | OV53: 0 | OW53: 0 | OX53: 0 | OY53: 0 | OZ53: 0 | PA53: 0 | PB53: 0 | PC53: 0 | PD53: 0 | PE53: 0 | PF53: 0 | PG53: 0 | PH53: 0 | PI53: 0 | PJ53: 0 | PK53: 0 | PL53: 0 | PM53: 0 | PN53: 0 | PO53: 0 | PP53: 0 | PQ53: 0 | PR53: 0 | PS53: 0 | PT53: 0 | PU53: 0 | PV53: 0 | PW53: 0 | PX53: 0 | PY53: 0 | PZ53: 0 | QA53: 0 | QB53: 0 | QC53: 0 | QD53: 0 | QE53: 0 | QF53: 0 | QG53: 0 | QH53: 0 | QI53: 0 | QJ53: 0 | QK53: 0 | QL53: 0 | QM53: 0 | QN53: 0 | QO53: 0 | QP53: 0 | QQ53: 0 | QR53: 0 | QS53: 0 | QT53: 0 | QU53: 0 | QV53: 0 | QW53: 0 | QX53: 0 | QY53: 0 | QZ53: 0 | RA53: 0 | RB53: 0 | RC53: 0 | RD53: 0 | RE53: 0 | RF53: 0 | RG53: 0 | RH53: 0 | RI53: 0 | RJ53: 0 | RK53: 0 | RL53: 0 | RM53: 0 | RN53: 0 | RO53: 0 | RP53: 0 | RQ53: 0 | RR53: 0 | RS53: 0 | RT53: 0 | RU53: 0 | RV53: 0 | RW53: 0 | RX53: 0 | RY53: 0 | RZ53: 0 | SA53: 0 | SB53: 0 | SC53: 0 | SD53: 0 | SE53: 0 | SF53: 0 | SG53: 0 | SH53: 0 | SI53: 0 | SJ53: 0 | SK53: 0 | SL53: 0 | SM53: 0 | SN53: 0 | SO53: 0 | SP53: 0 | SQ53: 0 | SR53: 0 | SS53: 0 | ST53: 0 | SU53: 0 | SV53: 0 | SW53: 0 | SX53: 0 | SY53: 0 | SZ53: 0 | TA53: 0 | TB53: 0 | TC53: 0 | TD53: 0 | TE53: 0 | TF53: 0 | TG53: 0 | TH53: 0 | TI53: 0 | TJ53: 0 | TK53: 0 | TL53: 0 | TM53: 0 | TN53: 0 | TO53: 0 | TP53: 0 | TQ53: 0 | TR53: 0 | TS53: 0 | TT53: 0 | TU53: 0 | TV53: 0 | TW53: 0 | TX53: 0 | TY53: 0 | TZ53: 0 | UA53: 0 | UB53: 0 | UC53: 0 | UD53: 0 | UE53: 0 | UF53: 0 | UG53: 0 | UH53: 0 | UI53: 0 | UJ53: 0 | UK53: 0 | UL53: 0 | UM53: 0 | UN53: 0 | UO53: 0 | UP53: 0 | UQ53: 0 | UR53: 0 | US53: 0 | UT53: 0 | UU53: 0 | UV53: 0 | UW53: 0 | UX53: 0 | UY53: 0 | UZ53: 0 | VA53: 0 | VB53: 0 | VC53: 0 | VD53: 0 | VE53: 0 | VF53: 0 | VG53: 0 | VH53: 0 | VI53: 0 | VJ53: 0 | VK53: 0 | VL53: 0 | VM53: 0 | VN53: 0 | VO53: 0 | VP53: 0 | VQ53: 0 | VR53: 0 | VS53: 0 | VT53: 0 | VU53: 0 | VV53: 0 | VW53: 0 | VX53: 0 | VY53: 0 | VZ53: 0 | WA53: 0 | WB53: 0 | WC53: 0 | WD53: 0 | WE53: 0 | WF53: 0 | WG53: 0 | WH53: 0 | WI53: 0 | WJ53: 0 | WK53: 0 | WL53: 0 | WM53: 0 | WN53: 0 | WO53: 0 | WP53: 0 | WQ53: 0 | WR53: 0 | WS53: 0 | WT53: 0 | WU53: 0 | WV53: 0 | WW53: 0 | WX53: 0 | WY53: 0 | WZ53: 0 | XA53: 0 | XB53: 0 | XC53: 0 | XD53: 0 | XE53: 0 | XF53: 0 | XG53: 0 | XH53: 0 | XI53: 0 | XJ53: 0 | XK53: 0 | XL53: 0 | XM53: 0 | XN53: 0 | XO53: 0 | XP53: 0 | XQ53: 0 | XR53: 0 | XS53: 0 | XT53: 0 | XU53: 0 | XV53: 0 | XW53: 0 | XX53: 0 | XY53: 0 | XZ53: 0 | YA53: 0 | YB53: 0 | YC53: 0 | YD53: 0 | YE53: 0 | YF53: 0 | YG53: 0 | YH53: 0 | YI53: 0 | YJ53: 0 | YK53: 0 | YL53: 0 | YM53: 0 | YN53: 0 | YO53: 0 | YP53: 0 | YQ53: 0 | YR53: 0 | YS53: 0 | YT53: 0 | YU53: 0 | YV53: 0 | YW53: 0 | YX53: 0 | YY53: 0 | YZ53: 0 | ZA53: 0 | ZB53: 0 | ZC53: 0 | ZD53: 0 | ZE53: 0 | ZF53: 0 | ZG53: 0 | ZH53: 0 | ZI53: 0 | ZJ53: 0 | ZK53: 0 | ZL53: 0 | ZM53: 0 | ZN53: 0 | ZO53: 0 | ZP53: 0 | ZQ53: 0 | ZR53: 0 | ZS53: 0 | ZT53: 0 | ZU53: 0 | ZV53: 0 | ZW53: 0 | ZX53: 0 | ZY53: 0 | ZZ53: 0 | AAA53: 0 | AAB53: 0 | AAC53: 0 | AAD53: 0 | AAE53: 0 | AAF53: 0 | AAG53: 0 | AAH53: 0 | AAI53: 0 | AAJ53: 0 | AAK53: 0 | AAL53: 0 | AAM53: 0 | AAN53: 0 | AAO53: 0 | AAP53: 0 | AAQ53: 0 | AAR53: 0 | AAS53: 0 | AAT53: 0 | AAU53: 0 | AAV53: 0 | AAW53: 0 | AAX53: 0 | AAY53: 0 | AAZ53: 0 | ABA53: 0 | ABB53: 0 | ABC53: 0 | ABD53: 0 | ABE53: 0 | ABF53: 0 | ABG53: 0 | ABH53: 0 | ABI53: 0 | ABJ53: 0 | ABK53: 0 | ABL53: 0 | ABM53: 0 | ABN53: 0 | ABO53: 0 | ABP53: 0 | ABQ53: 0 | ABR53: 0 | ABS53: 0 | ABT53: 0 | ABU53: 0 | ABV53: 0 | ABW53: 0 | ABX53: 0 | ABY53: 0 | ABZ53: 0 | ACA53: 0 | ACB53: 0 | ACC53: 0 | ACD53: 0 | ACE53: 0 | ACF53: 0 | ACG53: 0 | ACH53: 0 | ACI53: 0 | ACJ53: 0 | ACK53: 0 | ACL53: 0 | ACM53: 0 | ACN53: 0 | ACO53: 0 | ACP53: 0 | ACQ53: 0 | ACR53: 0 | ACS53: 0 | ACT53: 0 | ACU53: 0 | ACV53: 0 | ACW53: 0 | ACX53: 0 | ACY53: 0 | ACZ53: 0 | ADA53: 0 | ADB53: 0 | ADC53: 0 | ADD53: 0 | ADE53: 0 | ADF53: 0 | ADG53: 0 | ADH53: 0 | ADI53: 0 | ADJ53: 0 | ADK53: 0 | ADL53: 0 | ADM53: 0 | ADN53: 0 | ADO53: 0 | ADP53: 0 | ADQ53: 0 | ADR53: 0 | ADS53: 0 | ADT53: 0 | ADU53: 0 | ADV53: 0 | ADW53: 0 | ADX53: 0 | ADY53: 0 | ADZ53: 0 | AEA53: 0 | AEB53: 0 | AEC53: 0 | AED53: 0 | AEE53: 0 | AEF53: 0 | AEG53: 0 | AEH53: 0 | AEI53: 0 | AEJ53: 0 | AEK53: 0 | AEL53: 0 | AEM53: 0 | AEN53: 0 | AEO53: 0 | AEP53: 0 | AEQ53: 0 | AER53: 0 | AES53: 0 | AET53: 0 | AEU53: 0 | AEV53: 0 | AEW53: 0 | AEX53: 0 | AEY53: 0 | AEZ53: 0 | AFA53: 0 | AFB53: 0 | AFC53: 0 | AFD53: 0 | AFE53: 0 | AFF53: 0 | AFG53: 0 | AFH53: 0 | AFI53: 0 | AFJ53: 0 | AFK53: 0 | AFL53: 0 | AFM53: 0 | AFN53: 0 | AFO53: 0 | AFP53: 0 | AFQ53: 0 | AFR53: 0 | AFS53: 0 | AFT53: 0 | AFU53: 0 | AFV53: 0 | AFW53: 0 | AFX53: 0 | AFY53: 0 | AFZ53: 0 | AGA53: 0 | AGB53: 0 | AGC53: 0 | AGD53: 0 | AGE53: 0 | AGF53: 0 | AGG53: 0 | AGH53: 0 | AGI53: 0 | AGJ53: 0 | AGK53: 0 | AGL53: 0 | AGM53: 0 | AGN53: 0 | AGO53: 0 | AGP53: 0 | AGQ53: 0 | AGR53: 0 | AGS53: 0 | AGT53: 0 | AGU53: 0 | AGV53: 0 | AGW53: 0 | AGX53: 0 | AGY53: 0 | AGZ53: 0 | AHA53: 0 | AHB53: 0 | AHC53: 0 | AHD53: 0 | AHE53: 0 | AHF53: 0 | AHG53: 0 | AHH53: 0 | AHI53: 0 | AHJ53: 0 | AHK53: 0 | AHL53: 0 | AHM53: 0 | AHN53: 0 | AHO53: 0 | AHP53: 0 | AHQ53: 0 | AHR53: 0 | AHS53: 0 | AHT53: 0 | AHU53: 0 | AHV53: 0 | AHW53: 0 | AHX53: 0 | AHY53: 0 | AHZ53: 0 | AIA53: 0 | AIB53: 0 | AIC53: 0 | AID53: 0 | AIE53: 0 | AIF53: 0 | AIG53: 0 | AIH53: 0 | AII53: 0 | AIJ53: 0 | AIK53: 0 | AIL53: 0 | AIM53: 0 | AIN53: 0 | AIO53: 0 | AIP53: 0 | AIQ53: 0 | AIR53: 0 | AIS53: 0 | AIT53: 0 | AIU53: 0 | AIV53: 0 | AIW53: 0 | AIX53: 0 | AIY53: 0 | AIZ53: 0 | AJA53: 0 | AJB53: 0 | AJC53: 0 | AJD53: 0 | AJE53: 0 | AJF53: 0 | AJG53: 0 | AJH53: 0 | AJI53: 0 | AJJ53: 0 | AJK53: 0 | AJL53: 0 | AJM53: 0 | AJN53: 0 | AJO53: 0 | AJP53: 0 | AJQ53: 0 | AJR53: 0 | AJS53: 0 | AJT53: 0 | AJU53: 0 | AJV53: 0
J54: 0 | K54: 0 | L54: 0 | M54: 0 | N54: 0 | O54: 0 | P54: 0 | Q54: 0 | R54: 0 | S54: 0 | T54: 0 | U54: 0 | V54: 0 | W54: 0 | X54: 0 | Y54: 0 | Z54: 0 | AA54: 0 | AB54: 0 | AC54: 0 | AD54: 0 | AE54: 0 | AF54: 0 | AG54: 0 | AH54: 0 | AI54: 0 | AJ54: 0 | AK54: 0 | AL54: 0 | AM54: 0 | AN54: 0 | AO54: 0 | AP54: 0 | AQ54: 0 | AR54: 0 | AS54: 0 | AT54: 0 | AU54: 0 | AV54: 0 | AW54: 0 | AX54: 0 | AY54: 0 | AZ54: 0 | BA54: 0 | BB54: 0 | BC54: 0 | BD54: 0 | BE54: 0 | BF54: 0 | BG54: 0 | BH54: 0 | BI54: 0 | BJ54: 0 | BK54: 0 | BL54: 0 | BM54: 0 | BN54: 0 | BO54: 0 | BP54: 0 | BQ54: 0 | BR54: 0 | BS54: 0 | BT54: 0 | BU54: 0 | BV54: 0 | BW54: 0 | BX54: 0 | BY54: 0 | BZ54: 0 | CA54: 0 | CB54: 0 | CC54: 0 | CD54: 0 | CE54: 0 | CF54: 0 | CG54: 0 | CH54: 0 | CI54: 0 | CJ54: 0 | CK54: 0 | CL54: 0 | CM54: 0 | CN54: 0 | CO54: 0 | CP54: 0 | CQ54: 0 | CR54: 0 | CS54: 0 | CT54: 0 | CU54: 0 | CV54: 0 | CW54: 0 | CX54: 0 | CY54: 0 | CZ54: 0 | DA54: 0 | DB54: 0 | DC54: 0 | DD54: 0 | DE54: 0 | DF54: 0 | DG54: 0 | DH54: 0 | DI54: 0 | DJ54: 0 | DK54: 0 | DL54: 0 | DM54: 0 | DN54: 0 | DO54: 0 | DP54: 0 | DQ54: 0 | DR54: 0 | DS54: 0 | DT54: 0 | DU54: 0 | DV54: 0 | DW54: 0 | DX54: 0 | DY54: 0 | DZ54: 0 | EA54: 0 | EB54: 0 | EC54: 0 | ED54: 0 | EE54: 0 | EF54: 0 | EG54: 0 | EH54: 0 | EI54: 0 | EJ54: 0 | EK54: 0 | EL54: 0 | EM54: 0 | EN54: 0 | EO54: 0 | EP54: 0 | EQ54: 0 | ER54: 0 | ES54: 0 | ET54: 0 | EU54: 0 | EV54: 0 | EW54: 0 | EX54: 0 | EY54: 0 | EZ54: 0 | FA54: 0 | FB54: 0 | FC54: 0 | FD54: 0 | FE54: 0 | FF54: 0 | FG54: 0 | FH54: 0 | FI54: 0 | FJ54: 0 | FK54: 0 | FL54: 0 | FM54: 0 | FN54: 0 | FO54: 0 | FP54: 0 | FQ54: 0 | FR54: 0 | FS54: 0 | FT54: 0 | FU54: 0 | FV54: 0 | FW54: 0 | FX54: 0 | FY54: 0 | FZ54: 0 | GA54: 0 | GB54: 0 | GC54: 0 | GD54: 0 | GE54: 0 | GF54: 0 | GG54: 0 | GH54: 0 | GI54: 0 | GJ54: 0 | GK54: 0 | GL54: 0 | GM54: 0 | GN54: 0 | GO54: 0 | GP54: 0 | GQ54: 0 | GR54: 0 | GS54: 0 | GT54: 0 | GU54: 0 | GV54: 0 | GW54: 0 | GX54: 0 | GY54: 0 | GZ54: 0 | HA54: 0 | HB54: 0 | HC54: 0 | HD54: 0 | HE54: 0 | HF54: 0 | HG54: 0 | HH54: 0 | HI54: 0 | HJ54: 0 | HK54: 0 | HL54: 0 | HM54: 0 | HN54: 0 | HO54: 0 | HP54: 0 | HQ54: 0 | HR54: 0 | HS54: 0 | HT54: 0 | HU54: 0 | HV54: 0 | HW54: 0 | HX54: 0 | HY54: 0 | HZ54: 0 | IA54: 0 | IB54: 0 | IC54: 0 | ID54: 0 | IE54: 0 | IF54: 0 | IG54: 0 | IH54: 0 | II54: 0 | IJ54: 0 | IK54: 0 | IL54: 0 | IM54: 0 | IN54: 0 | IO54: 0 | IP54: 0 | IQ54: 0 | IR54: 0 | IS54: 0 | IT54: 0 | IU54: 0 | IV54: 0 | IW54: 0 | IX54: 0 | IY54: 0 | IZ54: 0 | JA54: 0 | JB54: 0 | JC54: 0 | JD54: 0 | JE54: 0 | JF54: 0 | JG54: 0 | JH54: 0 | JI54: 0 | JJ54: 0 | JK54: 0 | JL54: 0 | JM54: 0 | JN54: 0 | JO54: 0 | JP54: 0 | JQ54: 0 | JR54: 0 | JS54: 0 | JT54: 0 | JU54: 0 | JV54: 0 | JW54: 0 | JX54: 0 | JY54: 0 | JZ54: 0 | KA54: 0 | KB54: 0 | KC54: 0 | KD54: 0 | KE54: 0 | KF54: 0 | KG54: 0 | KH54: 0 | KI54: 0 | KJ54: 0 | KK54: 0 | KL54: 0 | KM54: 0 | KN54: 0 | KO54: 0 | KP54: 0 | KQ54: 0 | KR54: 0 | KS54: 0 | KT54: 0 | KU54: 0 | KV54: 0 | KW54: 0 | KX54: 0 | KY54: 0 | KZ54: 0 | LA54: 0 | LB54: 0 | LC54: 0 | LD54: 0 | LE54: 0 | LF54: 0 | LG54: 0 | LH54: 0 | LI54: 0 | LJ54: 0 | LK54: 0 | LL54: 0 | LM54: 0 | LN54: 0 | LO54: 0 | LP54: 0 | LQ54: 0 | LR54: 0 | LS54: 0 | LT54: 0 | LU54: 0 | LV54: 0 | LW54: 0 | LX54: 0 | LY54: 0 | LZ54: 0 | MA54: 0 | MB54: 0 | MC54: 0 | MD54: 0 | ME54: 0 | MF54: 0 | MG54: 0 | MH54: 0 | MI54: 0 | MJ54: 0 | MK54: 0 | ML54: 0 | MM54: 0 | MN54: 0 | MO54: 0 | MP54: 0 | MQ54: 0 | MR54: 0 | MS54: 0 | MT54: 0 | MU54: 0 | MV54: 0 | MW54: 0 | MX54: 0 | MY54: 0 | MZ54: 0 | NA54: 0 | NB54: 0 | NC54: 0 | ND54: 0 | NE54: 0 | NF54: 0 | NG54: 0 | NH54: 0 | NI54: 0 | NJ54: 0 | NK54: 0 | NL54: 0 | NM54: 0 | NN54: 0 | NO54: 0 | NP54: 0 | NQ54: 0 | NR54: 0 | NS54: 0 | NT54: 0 | NU54: 0 | NV54: 0 | NW54: 0 | NX54: 0 | NY54: 0 | NZ54: 0 | OA54: 0 | OB54: 0 | OC54: 0 | OD54: 0 | OE54: 0 | OF54: 0 | OG54: 0 | OH54: 0 | OI54: 0 | OJ54: 0 | OK54: 0 | OL54: 0 | OM54: 0 | ON54: 0 | OO54: 0 | OP54: 0 | OQ54: 0 | OR54: 0 | OS54: 0 | OT54: 0 | OU54: 0 | OV54: 0 | OW54: 0 | OX54: 0 | OY54: 0 | OZ54: 0 | PA54: 0 | PB54: 0 | PC54: 0 | PD54: 0 | PE54: 0 | PF54: 0 | PG54: 0 | PH54: 0 | PI54: 0 | PJ54: 0 | PK54: 0 | PL54: 0 | PM54: 0 | PN54: 0 | PO54: 0 | PP54: 0 | PQ54: 0 | PR54: 0 | PS54: 0 | PT54: 0 | PU54: 0 | PV54: 0 | PW54: 0 | PX54: 0 | PY54: 0 | PZ54: 0 | QA54: 0 | QB54: 0 | QC54: 0 | QD54: 0 | QE54: 0 | QF54: 0 | QG54: 0 | QH54: 0 | QI54: 0 | QJ54: 0 | QK54: 0 | QL54: 0 | QM54: 0 | QN54: 0 | QO54: 0 | QP54: 0 | QQ54: 0 | QR54: 0 | QS54: 0 | QT54: 0 | QU54: 0 | QV54: 0 | QW54: 0 | QX54: 0 | QY54: 0 | QZ54: 0 | RA54: 0 | RB54: 0 | RC54: 0 | RD54: 0 | RE54: 0 | RF54: 0 | RG54: 0 | RH54: 0 | RI54: 0 | RJ54: 0 | RK54: 0 | RL54: 0 | RM54: 0 | RN54: 0 | RO54: 0 | RP54: 0 | RQ54: 0 | RR54: 0 | RS54: 0 | RT54: 0 | RU54: 0 | RV54: 0 | RW54: 0 | RX54: 0 | RY54: 0 | RZ54: 0 | SA54: 0 | SB54: 0 | SC54: 0 | SD54: 0 | SE54: 0 | SF54: 0 | SG54: 0 | SH54: 0 | SI54: 0 | SJ54: 0 | SK54: 0 | SL54: 0 | SM54: 0 | SN54: 0 | SO54: 0 | SP54: 0 | SQ54: 0 | SR54: 0 | SS54: 0 | ST54: 0 | SU54: 0 | SV54: 0 | SW54: 0 | SX54: 0 | SY54: 0 | SZ54: 0 | TA54: 0 | TB54: 0 | TC54: 0 | TD54: 0 | TE54: 0 | TF54: 0 | TG54: 0 | TH54: 0 | TI54: 0 | TJ54: 0 | TK54: 0 | TL54: 0 | TM54: 0 | TN54: 0 | TO54: 0 | TP54: 0 | TQ54: 0 | TR54: 0 | TS54: 0 | TT54: 0 | TU54: 0 | TV54: 0 | TW54: 0 | TX54: 0 | TY54: 0 | TZ54: 0 | UA54: 0 | UB54: 0 | UC54: 0 | UD54: 0 | UE54: 0 | UF54: 0 | UG54: 0 | UH54: 0 | UI54: 0 | UJ54: 0 | UK54: 0 | UL54: 0 | UM54: 0 | UN54: 0 | UO54: 0 | UP54: 0 | UQ54: 0 | UR54: 0 | US54: 0 | UT54: 0 | UU54: 0 | UV54: 0 | UW54: 0 | UX54: 0 | UY54: 0 | UZ54: 0 | VA54: 0 | VB54: 0 | VC54: 0 | VD54: 0 | VE54: 0 | VF54: 0 | VG54: 0 | VH54: 0 | VI54: 0 | VJ54: 0 | VK54: 0 | VL54: 0 | VM54: 0 | VN54: 0 | VO54: 0 | VP54: 0 | VQ54: 0 | VR54: 0 | VS54: 0 | VT54: 0 | VU54: 0 | VV54: 0 | VW54: 0 | VX54: 0 | VY54: 0 | VZ54: 0 | WA54: 0 | WB54: 0 | WC54: 0 | WD54: 0 | WE54: 0 | WF54: 0 | WG54: 0 | WH54: 0 | WI54: 0 | WJ54: 0 | WK54: 0 | WL54: 0 | WM54: 0 | WN54: 0 | WO54: 0 | WP54: 0 | WQ54: 0 | WR54: 0 | WS54: 0 | WT54: 0 | WU54: 0 | WV54: 0 | WW54: 0 | WX54: 0 | WY54: 0 | WZ54: 0 | XA54: 0 | XB54: 0 | XC54: 0 | XD54: 0 | XE54: 0 | XF54: 0 | XG54: 0 | XH54: 0 | XI54: 0 | XJ54: 0 | XK54: 0 | XL54: 0 | XM54: 0 | XN54: 0 | XO54: 0 | XP54: 0 | XQ54: 0 | XR54: 0 | XS54: 0 | XT54: 0 | XU54: 0 | XV54: 0 | XW54: 0 | XX54: 0 | XY54: 0 | XZ54: 0 | YA54: 0 | YB54: 0 | YC54: 0 | YD54: 0 | YE54: 0 | YF54: 0 | YG54: 0 | YH54: 0 | YI54: 0 | YJ54: 0 | YK54: 0 | YL54: 0 | YM54: 0 | YN54: 0 | YO54: 0 | YP54: 0 | YQ54: 0 | YR54: 0 | YS54: 0 | YT54: 0 | YU54: 0 | YV54: 0 | YW54: 0 | YX54: 0 | YY54: 0 | YZ54: 0 | ZA54: 0 | ZB54: 0 | ZC54: 0 | ZD54: 0 | ZE54: 0 | ZF54: 0 | ZG54: 0 | ZH54: 0 | ZI54: 0 | ZJ54: 0 | ZK54: 0 | ZL54: 0 | ZM54: 0 | ZN54: 0 | ZO54: 0 | ZP54: 0 | ZQ54: 0 | ZR54: 0 | ZS54: 0 | ZT54: 0 | ZU54: 0 | ZV54: 0 | ZW54: 0 | ZX54: 0 | ZY54: 0 | ZZ54: 0 | AAA54: 0 | AAB54: 0 | AAC54: 0 | AAD54: 0 | AAE54: 0 | AAF54: 0 | AAG54: 0 | AAH54: 0 | AAI54: 0 | AAJ54: 0 | AAK54: 0 | AAL54: 0 | AAM54: 0 | AAN54: 0 | AAO54: 0 | AAP54: 0 | AAQ54: 0 | AAR54: 0 | AAS54: 0 | AAT54: 0 | AAU54: 0 | AAV54: 0 | AAW54: 0 | AAX54: 0 | AAY54: 0 | AAZ54: 0 | ABA54: 0 | ABB54: 0 | ABC54: 0 | ABD54: 0 | ABE54: 0 | ABF54: 0 | ABG54: 0 | ABH54: 0 | ABI54: 0 | ABJ54: 0 | ABK54: 0 | ABL54: 0 | ABM54: 0 | ABN54: 0 | ABO54: 0 | ABP54: 0 | ABQ54: 0 | ABR54: 0 | ABS54: 0 | ABT54: 0 | ABU54: 0 | ABV54: 0 | ABW54: 0 | ABX54: 0 | ABY54: 0 | ABZ54: 0 | ACA54: 0 | ACB54: 0 | ACC54: 0 | ACD54: 0 | ACE54: 0 | ACF54: 0 | ACG54: 0 | ACH54: 0 | ACI54: 0 | ACJ54: 0 | ACK54: 0 | ACL54: 0 | ACM54: 0 | ACN54: 0 | ACO54: 0 | ACP54: 0 | ACQ54: 0 | ACR54: 0 | ACS54: 0 | ACT54: 0 | ACU54: 0 | ACV54: 0 | ACW54: 0 | ACX54: 0 | ACY54: 0 | ACZ54: 0 | ADA54: 0 | ADB54: 0 | ADC54: 0 | ADD54: 0 | ADE54: 0 | ADF54: 0 | ADG54: 0 | ADH54: 0 | ADI54: 0 | ADJ54: 0 | ADK54: 0 | ADL54: 0 | ADM54: 0 | ADN54: 0 | ADO54: 0 | ADP54: 0 | ADQ54: 0 | ADR54: 0 | ADS54: 0 | ADT54: 0 | ADU54: 0 | ADV54: 0 | ADW54: 0 | ADX54: 0 | ADY54: 0 | ADZ54: 0 | AEA54: 0 | AEB54: 0 | AEC54: 0 | AED54: 0 | AEE54: 0 | AEF54: 0 | AEG54: 0 | AEH54: 0 | AEI54: 0 | AEJ54: 0 | AEK54: 0 | AEL54: 0 | AEM54: 0 | AEN54: 0 | AEO54: 0 | AEP54: 0 | AEQ54: 0 | AER54: 0 | AES54: 0 | AET54: 0 | AEU54: 0 | AEV54: 0 | AEW54: 0 | AEX54: 0 | AEY54: 0 | AEZ54: 0 | AFA54: 0 | AFB54: 0 | AFC54: 0 | AFD54: 0 | AFE54: 0 | AFF54: 0 | AFG54: 0 | AFH54: 0 | AFI54: 0 | AFJ54: 0 | AFK54: 0 | AFL54: 0 | AFM54: 0 | AFN54: 0 | AFO54: 0 | AFP54: 0 | AFQ54: 0 | AFR54: 0 | AFS54: 0 | AFT54: 0 | AFU54: 0 | AFV54: 0 | AFW54: 0 | AFX54: 0 | AFY54: 0 | AFZ54: 0 | AGA54: 0 | AGB54: 0 | AGC54: 0 | AGD54: 0 | AGE54: 0 | AGF54: 0 | AGG54: 0 | AGH54: 0 | AGI54: 0 | AGJ54: 0 | AGK54: 0 | AGL54: 0 | AGM54: 0 | AGN54: 0 | AGO54: 0 | AGP54: 0 | AGQ54: 0 | AGR54: 0 | AGS54: 0 | AGT54: 0 | AGU54: 0 | AGV54: 0 | AGW54: 0 | AGX54: 0 | AGY54: 0 | AGZ54: 0 | AHA54: 0 | AHB54: 0 | AHC54: 0 | AHD54: 0 | AHE54: 0 | AHF54: 0 | AHG54: 0 | AHH54: 0 | AHI54: 0 | AHJ54: 0 | AHK54: 0 | AHL54: 0 | AHM54: 0 | AHN54: 0 | AHO54: 0 | AHP54: 0 | AHQ54: 0 | AHR54: 0 | AHS54: 0 | AHT54: 0 | AHU54: 0 | AHV54: 0 | AHW54: 0 | AHX54: 0 | AHY54: 0 | AHZ54: 0 | AIA54: 0 | AIB54: 0 | AIC54: 0 | AID54: 0 | AIE54: 0 | AIF54: 0 | AIG54: 0 | AIH54: 0 | AII54: 0 | AIJ54: 0 | AIK54: 0 | AIL54: 0 | AIM54: 0 | AIN54: 0 | AIO54: 0 | AIP54: 0 | AIQ54: 0 | AIR54: 0 | AIS54: 0 | AIT54: 0 | AIU54: 0 | AIV54: 0 | AIW54: 0 | AIX54: 0 | AIY54: 0 | AIZ54: 0 | AJA54: 0 | AJB54: 0 | AJC54: 0 | AJD54: 0 | AJE54: 0 | AJF54: 0 | AJG54: 0 | AJH54: 0 | AJI54: 0 | AJJ54: 0 | AJK54: 0 | AJL54: 0 | AJM54: 0 | AJN54: 0 | AJO54: 0 | AJP54: 0 | AJQ54: 0 | AJR54: 0 | AJS54: 0 | AJT54: 0 | AJU54: 0 | AJV54: 0
J55: 0 | K55: 0 | L55: 0 | M55: 0 | N55: 0 | O55: 0 | P55: 0 | Q55: 0 | R55: 0 | S55: 0 | T55: 0 | U55: 0 | V55: 0 | W55: 0 | X55: 0 | Y55: 0 | Z55: 0 | AA55: 0 | AB55: 0 | AC55: 0 | AD55: 0 | AE55: 0 | AF55: 0 | AG55: 0 | AH55: 0 | AI55: 0 | AJ55: 0 | AK55: 0 | AL55: 0 | AM55: 0 | AN55: 0 | AO55: 0 | AP55: 0 | AQ55: 0 | AR55: 0 | AS55: 0 | AT55: 0 | AU55: 0 | AV55: 0 | AW55: 0 | AX55: 0 | AY55: 0 | AZ55: 0 | BA55: 0 | BB55: 0 | BC55: 0 | BD55: 0 | BE55: 0 | BF55: 0 | BG55: 0 | BH55: 0 | BI55: 0 | BJ55: 0 | BK55: 0 | BL55: 0 | BM55: 0 | BN55: 0 | BO55: 0 | BP55: 0 | BQ55: 0 | BR55: 0 | BS55: 0 | BT55: 0 | BU55: 0 | BV55: 0 | BW55: 0 | BX55: 0 | BY55: 0 | BZ55: 0 | CA55: 0 | CB55: 0 | CC55: 0 | CD55: 0 | CE55: 0 | CF55: 0 | CG55: 0 | CH55: 0 | CI55: 0 | CJ55: 0 | CK55: 0 | CL55: 0 | CM55: 0 | CN55: 0 | CO55: 0 | CP55: 0 | CQ55: 0 | CR55: 0 | CS55: 0 | CT55: 0 | CU55: 0 | CV55: 0 | CW55: 0 | CX55: 0 | CY55: 0 | CZ55: 0 | DA55: 0 | DB55: 0 | DC55: 0 | DD55: 0 | DE55: 0 | DF55: 0 | DG55: 0 | DH55: 0 | DI55: 0 | DJ55: 0 | DK55: 0 | DL55: 0 | DM55: 0 | DN55: 0 | DO55: 0 | DP55: 0 | DQ55: 0 | DR55: 0 | DS55: 0 | DT55: 0 | DU55: 0 | DV55: 0 | DW55: 0 | DX55: 0 | DY55: 0 | DZ55: 0 | EA55: 0 | EB55: 0 | EC55: 0 | ED55: 0 | EE55: 0 | EF55: 0 | EG55: 0 | EH55: 0 | EI55: 0 | EJ55: 0 | EK55: 0 | EL55: 0 | EM55: 0 | EN55: 0 | EO55: 0 | EP55: 0 | EQ55: 0 | ER55: 0 | ES55: 0 | ET55: 0 | EU55: 0 | EV55: 0 | EW55: 0 | EX55: 0 | EY55: 0 | EZ55: 0 | FA55: 0 | FB55: 0 | FC55: 0 | FD55: 0 | FE55: 0 | FF55: 0 | FG55: 0 | FH55: 0 | FI55: 0 | FJ55: 0 | FK55: 0 | FL55: 0 | FM55: 0 | FN55: 0 | FO55: 0 | FP55: 0 | FQ55: 0 | FR55: 0 | FS55: 0 | FT55: 0 | FU55: 0 | FV55: 0 | FW55: 0 | FX55: 0 | FY55: 0 | FZ55: 0 | GA55: 0 | GB55: 0 | GC55: 0 | GD55: 0 | GE55: 0 | GF55: 0 | GG55: 0 | GH55: 0 | GI55: 0 | GJ55: 0 | GK55: 0 | GL55: 0 | GM55: 0 | GN55: 0 | GO55: 0 | GP55: 0 | GQ55: 0 | GR55: 0 | GS55: 0 | GT55: 0 | GU55: 0 | GV55: 0 | GW55: 0 | GX55: 0 | GY55: 0 | GZ55: 0 | HA55: 0 | HB55: 0 | HC55: 0 | HD55: 0 | HE55: 0 | HF55: 0 | HG55: 0 | HH55: 0 | HI55: 0 | HJ55: 0 | HK55: 0 | HL55: 0 | HM55: 0 | HN55: 0 | HO55: 0 | HP55: 0 | HQ55: 0 | HR55: 0 | HS55: 0 | HT55: 0 | HU55: 0 | HV55: 0 | HW55: 0 | HX55: 0 | HY55: 0 | HZ55: 0 | IA55: 0 | IB55: 0 | IC55: 0 | ID55: 0 | IE55: 0 | IF55: 0 | IG55: 0 | IH55: 0 | II55: 0 | IJ55: 0 | IK55: 0 | IL55: 0 | IM55: 0 | IN55: 0 | IO55: 0 | IP55: 0 | IQ55: 0 | IR55: 0 | IS55: 0 | IT55: 0 | IU55: 0 | IV55: 0 | IW55: 0 | IX55: 0 | IY55: 0 | IZ55: 0 | JA55: 0 | JB55: 0 | JC55: 0 | JD55: 0 | JE55: 0 | JF55: 0 | JG55: 0 | JH55: 0 | JI55: 0 | JJ55: 0 | JK55: 0 | JL55: 0 | JM55: 0 | JN55: 0 | JO55: 0 | JP55: 0 | JQ55: 0 | JR55: 0 | JS55: 0 | JT55: 0 | JU55: 0 | JV55: 0 | JW55: 0 | JX55: 0 | JY55: 0 | JZ55: 0 | KA55: 0 | KB55: 0 | KC55: 0 | KD55: 0 | KE55: 0 | KF55: 0 | KG55: 0 | KH55: 0 | KI55: 0 | KJ55: 0 | KK55: 0 | KL55: 0 | KM55: 0 | KN55: 0 | KO55: 0 | KP55: 0 | KQ55: 0 | KR55: 0 | KS55: 0 | KT55: 0 | KU55: 0 | KV55: 0 | KW55: 0 | KX55: 0 | KY55: 0 | KZ55: 0 | LA55: 0 | LB55: 0 | LC55: 0 | LD55: 0 | LE55: 0 | LF55: 0 | LG55: 0 | LH55: 0 | LI55: 0 | LJ55: 0 | LK55: 0 | LL55: 0 | LM55: 0 | LN55: 0 | LO55: 0 | LP55: 0 | LQ55: 0 | LR55: 0 | LS55: 0 | LT55: 0 | LU55: 0 | LV55: 0 | LW55: 0 | LX55: 0 | LY55: 0 | LZ55: 0 | MA55: 0 | MB55: 0 | MC55: 0 | MD55: 0 | ME55: 0 | MF55: 0 | MG55: 0 | MH55: 0 | MI55: 0 | MJ55: 0 | MK55: 0 | ML55: 0 | MM55: 0 | MN55: 0 | MO55: 0 | MP55: 0 | MQ55: 0 | MR55: 0 | MS55: 0 | MT55: 0 | MU55: 0 | MV55: 0 | MW55: 0 | MX55: 0 | MY55: 0 | MZ55: 0 | NA55: 0 | NB55: 0 | NC55: 0 | ND55: 0 | NE55: 0 | NF55: 0 | NG55: 0 | NH55: 0 | NI55: 0 | NJ55: 0 | NK55: 0 | NL55: 0 | NM55: 0 | NN55: 0 | NO55: 0 | NP55: 0 | NQ55: 0 | NR55: 0 | NS55: 0 | NT55: 0 | NU55: 0 | NV55: 0 | NW55: 0 | NX55: 0 | NY55: 0 | NZ55: 0 | OA55: 0 | OB55: 0 | OC55: 0 | OD55: 0 | OE55: 0 | OF55: 0 | OG55: 0 | OH55: 0 | OI55: 0 | OJ55: 0 | OK55: 0 | OL55: 0 | OM55: 0 | ON55: 0 | OO55: 0 | OP55: 0 | OQ55: 0 | OR55: 0 | OS55: 0 | OT55: 0 | OU55: 0 | OV55: 0 | OW55: 0 | OX55: 0 | OY55: 0 | OZ55: 0 | PA55: 0 | PB55: 0 | PC55: 0 | PD55: 0 | PE55: 0 | PF55: 0 | PG55: 0 | PH55: 0 | PI55: 0 | PJ55: 0 | PK55: 0 | PL55: 0 | PM55: 0 | PN55: 0 | PO55: 0 | PP55: 0 | PQ55: 0 | PR55: 0 | PS55: 0 | PT55: 0 | PU55: 0 | PV55: 0 | PW55: 0 | PX55: 0 | PY55: 0 | PZ55: 0 | QA55: 0 | QB55: 0 | QC55: 0 | QD55: 0 | QE55: 0 | QF55: 0 | QG55: 0 | QH55: 0 | QI55: 0 | QJ55: 0 | QK55: 0 | QL55: 0 | QM55: 0 | QN55: 0 | QO55: 0 | QP55: 0 | QQ55: 0 | QR55: 0 | QS55: 0 | QT55: 0 | QU55: 0 | QV55: 0 | QW55: 0 | QX55: 0 | QY55: 0 | QZ55: 0 | RA55: 0 | RB55: 0 | RC55: 0 | RD55: 0 | RE55: 0 | RF55: 0 | RG55: 0 | RH55: 0 | RI55: 0 | RJ55: 0 | RK55: 0 | RL55: 0 | RM55: 0 | RN55: 0 | RO55: 0 | RP55: 0 | RQ55: 0 | RR55: 0 | RS55: 0 | RT55: 0 | RU55: 0 | RV55: 0 | RW55: 0 | RX55: 0 | RY55: 0 | RZ55: 0 | SA55: 0 | SB55: 0 | SC55: 0 | SD55: 0 | SE55: 0 | SF55: 0 | SG55: 0 | SH55: 0 | SI55: 0 | SJ55: 0 | SK55: 0 | SL55: 0 | SM55: 0 | SN55: 0 | SO55: 0 | SP55: 0 | SQ55: 0 | SR55: 0 | SS55: 0 | ST55: 0 | SU55: 0 | SV55: 0 | SW55: 0 | SX55: 0 | SY55: 0 | SZ55: 0 | TA55: 0 | TB55: 0 | TC55: 0 | TD55: 0 | TE55: 0 | TF55: 0 | TG55: 0 | TH55: 0 | TI55: 0 | TJ55: 0 | TK55: 0 | TL55: 0 | TM55: 0 | TN55: 0 | TO55: 0 | TP55: 0 | TQ55: 0 | TR55: 0 | TS55: 0 | TT55: 0 | TU55: 0 | TV55: 0 | TW55: 0 | TX55: 0 | TY55: 0 | TZ55: 0 | UA55: 0 | UB55: 0 | UC55: 0 | UD55: 0 | UE55: 0 | UF55: 0 | UG55: 0 | UH55: 0 | UI55: 0 | UJ55: 0 | UK55: 0 | UL55: 0 | UM55: 0 | UN55: 0 | UO55: 0 | UP55: 0 | UQ55: 0 | UR55: 0 | US55: 0 | UT55: 0 | UU55: 0 | UV55: 0 | UW55: 0 | UX55: 0 | UY55: 0 | UZ55: 0 | VA55: 0 | VB55: 0 | VC55: 0 | VD55: 0 | VE55: 0 | VF55: 0 | VG55: 0 | VH55: 0 | VI55: 0 | VJ55: 0 | VK55: 0 | VL55: 0 | VM55: 0 | VN55: 0 | VO55: 0 | VP55: 0 | VQ55: 0 | VR55: 0 | VS55: 0 | VT55: 0 | VU55: 0 | VV55: 0 | VW55: 0 | VX55: 0 | VY55: 0 | VZ55: 0 | WA55: 0 | WB55: 0 | WC55: 0 | WD55: 0 | WE55: 0 | WF55: 0 | WG55: 0 | WH55: 0 | WI55: 0 | WJ55: 0 | WK55: 0 | WL55: 0 | WM55: 0 | WN55: 0 | WO55: 0 | WP55: 0 | WQ55: 0 | WR55: 0 | WS55: 0 | WT55: 0 | WU55: 0 | WV55: 0 | WW55: 0 | WX55: 0 | WY55: 0 | WZ55: 0 | XA55: 0 | XB55: 0 | XC55: 0 | XD55: 0 | XE55: 0 | XF55: 0 | XG55: 0 | XH55: 0 | XI55: 0 | XJ55: 0 | XK55: 0 | XL55: 0 | XM55: 0 | XN55: 0 | XO55: 0 | XP55: 0 | XQ55: 0 | XR55: 0 | XS55: 0 | XT55: 0 | XU55: 0 | XV55: 0 | XW55: 0 | XX55: 0 | XY55: 0 | XZ55: 0 | YA55: 0 | YB55: 0 | YC55: 0 | YD55: 0 | YE55: 0 | YF55: 0 | YG55: 0 | YH55: 0 | YI55: 0 | YJ55: 0 | YK55: 0 | YL55: 0 | YM55: 0 | YN55: 0 | YO55: 0 | YP55: 0 | YQ55: 0 | YR55: 0 | YS55: 0 | YT55: 0 | YU55: 0 | YV55: 0 | YW55: 0 | YX55: 0 | YY55: 0 | YZ55: 0 | ZA55: 0 | ZB55: 0 | ZC55: 0 | ZD55: 0 | ZE55: 0 | ZF55: 0 | ZG55: 0 | ZH55: 0 | ZI55: 0 | ZJ55: 0 | ZK55: 0 | ZL55: 0 | ZM55: 0 | ZN55: 0 | ZO55: 0 | ZP55: 0 | ZQ55: 0 | ZR55: 0 | ZS55: 0 | ZT55: 0 | ZU55: 0 | ZV55: 0 | ZW55: 0 | ZX55: 0 | ZY55: 0 | ZZ55: 0 | AAA55: 0 | AAB55: 0 | AAC55: 0 | AAD55: 0 | AAE55: 0 | AAF55: 0 | AAG55: 0 | AAH55: 0 | AAI55: 0 | AAJ55: 0 | AAK55: 0 | AAL55: 0 | AAM55: 0 | AAN55: 0 | AAO55: 0 | AAP55: 0 | AAQ55: 0 | AAR55: 0 | AAS55: 0 | AAT55: 0 | AAU55: 0 | AAV55: 0 | AAW55: 0 | AAX55: 0 | AAY55: 0 | AAZ55: 0 | ABA55: 0 | ABB55: 0 | ABC55: 0 | ABD55: 0 | ABE55: 0 | ABF55: 0 | ABG55: 0 | ABH55: 0 | ABI55: 0 | ABJ55: 0 | ABK55: 0 | ABL55: 0 | ABM55: 0 | ABN55: 0 | ABO55: 0 | ABP55: 0 | ABQ55: 0 | ABR55: 0 | ABS55: 0 | ABT55: 0 | ABU55: 0 | ABV55: 0 | ABW55: 0 | ABX55: 0 | ABY55: 0 | ABZ55: 0 | ACA55: 0 | ACB55: 0 | ACC55: 0 | ACD55: 0 | ACE55: 0 | ACF55: 0 | ACG55: 0 | ACH55: 0 | ACI55: 0 | ACJ55: 0 | ACK55: 0 | ACL55: 0 | ACM55: 0 | ACN55: 0 | ACO55: 0 | ACP55: 0 | ACQ55: 0 | ACR55: 0 | ACS55: 0 | ACT55: 0 | ACU55: 0 | ACV55: 0 | ACW55: 0 | ACX55: 0 | ACY55: 0 | ACZ55: 0 | ADA55: 0 | ADB55: 0 | ADC55: 0 | ADD55: 0 | ADE55: 0 | ADF55: 0 | ADG55: 0 | ADH55: 0 | ADI55: 0 | ADJ55: 0 | ADK55: 0 | ADL55: 0 | ADM55: 0 | ADN55: 0 | ADO55: 0 | ADP55: 0 | ADQ55: 0 | ADR55: 0 | ADS55: 0 | ADT55: 0 | ADU55: 0 | ADV55: 0 | ADW55: 0 | ADX55: 0 | ADY55: 0 | ADZ55: 0 | AEA55: 0 | AEB55: 0 | AEC55: 0 | AED55: 0 | AEE55: 0 | AEF55: 0 | AEG55: 0 | AEH55: 0 | AEI55: 0 | AEJ55: 0 | AEK55: 0 | AEL55: 0 | AEM55: 0 | AEN55: 0 | AEO55: 0 | AEP55: 0 | AEQ55: 0 | AER55: 0 | AES55: 0 | AET55: 0 | AEU55: 0 | AEV55: 0 | AEW55: 0 | AEX55: 0 | AEY55: 0 | AEZ55: 0 | AFA55: 0 | AFB55: 0 | AFC55: 0 | AFD55: 0 | AFE55: 0 | AFF55: 0 | AFG55: 0 | AFH55: 0 | AFI55: 0 | AFJ55: 0 | AFK55: 0 | AFL55: 0 | AFM55: 0 | AFN55: 0 | AFO55: 0 | AFP55: 0 | AFQ55: 0 | AFR55: 0 | AFS55: 0 | AFT55: 0 | AFU55: 0 | AFV55: 0 | AFW55: 0 | AFX55: 0 | AFY55: 0 | AFZ55: 0 | AGA55: 0 | AGB55: 0 | AGC55: 0 | AGD55: 0 | AGE55: 0 | AGF55: 0 | AGG55: 0 | AGH55: 0 | AGI55: 0 | AGJ55: 0 | AGK55: 0 | AGL55: 0 | AGM55: 0 | AGN55: 0 | AGO55: 0 | AGP55: 0 | AGQ55: 0 | AGR55: 0 | AGS55: 0 | AGT55: 0 | AGU55: 0 | AGV55: 0 | AGW55: 0 | AGX55: 0 | AGY55: 0 | AGZ55: 0 | AHA55: 0 | AHB55: 0 | AHC55: 0 | AHD55: 0 | AHE55: 0 | AHF55: 0 | AHG55: 0 | AHH55: 0 | AHI55: 0 | AHJ55: 0 | AHK55: 0 | AHL55: 0 | AHM55: 0 | AHN55: 0 | AHO55: 0 | AHP55: 0 | AHQ55: 0 | AHR55: 0 | AHS55: 0 | AHT55: 0 | AHU55: 0 | AHV55: 0 | AHW55: 0 | AHX55: 0 | AHY55: 0 | AHZ55: 0 | AIA55: 0 | AIB55: 0 | AIC55: 0 | AID55: 0 | AIE55: 0 | AIF55: 0 | AIG55: 0 | AIH55: 0 | AII55: 0 | AIJ55: 0 | AIK55: 0 | AIL55: 0 | AIM55: 0 | AIN55: 0 | AIO55: 0 | AIP55: 0 | AIQ55: 0 | AIR55: 0 | AIS55: 0 | AIT55: 0 | AIU55: 0 | AIV55: 0 | AIW55: 0 | AIX55: 0 | AIY55: 0 | AIZ55: 0 | AJA55: 0 | AJB55: 0 | AJC55: 0 | AJD55: 0 | AJE55: 0 | AJF55: 0 | AJG55: 0 | AJH55: 0 | AJI55: 0 | AJJ55: 0 | AJK55: 0 | AJL55: 0 | AJM55: 0 | AJN55: 0 | AJO55: 0 | AJP55: 0 | AJQ55: 0 | AJR55: 0 | AJS55: 0 | AJT55: 0 | AJU55: 0 | AJV55: 0
J56: 0 | K56: 0 | L56: 0 | M56: 0 | N56: 0 | O56: 0 | P56: 0 | Q56: 0 | R56: 0 | S56: 0 | T56: 0 | U56: 0 | V56: 0 | W56: 0 | X56: 0 | Y56: 0 | Z56: 0 | AA56: 0 | AB56: 0 | AC56: 0 | AD56: 0 | AE56: 0 | AF56: 0 | AG56: 0 | AH56: 0 | AI56: 0 | AJ56: 0 | AK56: 0 | AL56: 0 | AM56: 0 | AN56: 0 | AO56: 0 | AP56: 0 | AQ56: 0 | AR56: 0 | AS56: 0 | AT56: 0 | AU56: 0 | AV56: 0 | AW56: 0 | AX56: 0 | AY56: 0 | AZ56: 0 | BA56: 0 | BB56: 0 | BC56: 0 | BD56: 0 | BE56: 0 | BF56: 0 | BG56: 0 | BH56: 0 | BI56: 0 | BJ56: 0 | BK56: 0 | BL56: 0 | BM56: 0 | BN56: 0 | BO56: 0 | BP56: 0 | BQ56: 0 | BR56: 0 | BS56: 0 | BT56: 0 | BU56: 0 | BV56: 0 | BW56: 0 | BX56: 0 | BY56: 0 | BZ56: 0 | CA56: 0 | CB56: 0 | CC56: 0 | CD56: 0 | CE56: 0 | CF56: 0 | CG56: 0 | CH56: 0 | CI56: 0 | CJ56: 0 | CK56: 0 | CL56: 0 | CM56: 0 | CN56: 0 | CO56: 0 | CP56: 0 | CQ56: 0 | CR56: 0 | CS56: 0 | CT56: 0 | CU56: 0 | CV56: 0 | CW56: 0 | CX56: 0 | CY56: 0 | CZ56: 0 | DA56: 0 | DB56: 0 | DC56: 0 | DD56: 0 | DE56: 0 | DF56: 0 | DG56: 0 | DH56: 0 | DI56: 0 | DJ56: 0 | DK56: 0 | DL56: 0 | DM56: 0 | DN56: 0 | DO56: 0 | DP56: 0 | DQ56: 0 | DR56: 0 | DS56: 0 | DT56: 0 | DU56: 0 | DV56: 0 | DW56: 0 | DX56: 0 | DY56: 0 | DZ56: 0 | EA56: 0 | EB56: 0 | EC56: 0 | ED56: 0 | EE56: 0 | EF56: 0 | EG56: 0 | EH56: 0 | EI56: 0 | EJ56: 0 | EK56: 0 | EL56: 0 | EM56: 0 | EN56: 0 | EO56: 0 | EP56: 0 | EQ56: 0 | ER56: 0 | ES56: 0 | ET56: 0 | EU56: 0 | EV56: 0 | EW56: 0 | EX56: 0 | EY56: 0 | EZ56: 0 | FA56: 0 | FB56: 0 | FC56: 0 | FD56: 0 | FE56: 0 | FF56: 0 | FG56: 0 | FH56: 0 | FI56: 0 | FJ56: 0 | FK56: 0 | FL56: 0 | FM56: 0 | FN56: 0 | FO56: 0 | FP56: 0 | FQ56: 0 | FR56: 0 | FS56: 0 | FT56: 0 | FU56: 0 | FV56: 0 | FW56: 0 | FX56: 0 | FY56: 0 | FZ56: 0 | GA56: 0 | GB56: 0 | GC56: 0 | GD56: 0 | GE56: 0 | GF56: 0 | GG56: 0 | GH56: 0 | GI56: 0 | GJ56: 0 | GK56: 0 | GL56: 0 | GM56: 0 | GN56: 0 | GO56: 0 | GP56: 0 | GQ56: 0 | GR56: 0 | GS56: 0 | GT56: 0 | GU56: 0 | GV56: 0 | GW56: 0 | GX56: 0 | GY56: 0 | GZ56: 0 | HA56: 0 | HB56: 0 | HC56: 0 | HD56: 0 | HE56: 0 | HF56: 0 | HG56: 0 | HH56: 0 | HI56: 0 | HJ56: 0 | HK56: 0 | HL56: 0 | HM56: 0 | HN56: 0 | HO56: 0 | HP56: 0 | HQ56: 0 | HR56: 0 | HS56: 0 | HT56: 0 | HU56: 0 | HV56: 0 | HW56: 0 | HX56: 0 | HY56: 0 | HZ56: 0 | IA56: 0 | IB56: 0 | IC56: 0 | ID56: 0 | IE56: 0 | IF56: 0 | IG56: 0 | IH56: 0 | II56: 0 | IJ56: 0 | IK56: 0 | IL56: 0 | IM56: 0 | IN56: 0 | IO56: 0 | IP56: 0 | IQ56: 0 | IR56: 0 | IS56: 0 | IT56: 0 | IU56: 0 | IV56: 0 | IW56: 0 | IX56: 0 | IY56: 0 | IZ56: 0 | JA56: 0 | JB56: 0 | JC56: 0 | JD56: 0 | JE56: 0 | JF56: 0 | JG56: 0 | JH56: 0 | JI56: 0 | JJ56: 0 | JK56: 0 | JL56: 0 | JM56: 0 | JN56: 0 | JO56: 0 | JP56: 0 | JQ56: 0 | JR56: 0 | JS56: 0 | JT56: 0 | JU56: 0 | JV56: 0 | JW56: 0 | JX56: 0 | JY56: 0 | JZ56: 0 | KA56: 0 | KB56: 0 | KC56: 0 | KD56: 0 | KE56: 0 | KF56: 0 | KG56: 0 | KH56: 0 | KI56: 0 | KJ56: 0 | KK56: 0 | KL56: 0 | KM56: 0 | KN56: 0 | KO56: 0 | KP56: 0 | KQ56: 0 | KR56: 0 | KS56: 0 | KT56: 0 | KU56: 0 | KV56: 0 | KW56: 0 | KX56: 0 | KY56: 0 | KZ56: 0 | LA56: 0 | LB56: 0 | LC56: 0 | LD56: 0 | LE56: 0 | LF56: 0 | LG56: 0 | LH56: 0 | LI56: 0 | LJ56: 0 | LK56: 0 | LL56: 0 | LM56: 0 | LN56: 0 | LO56: 0 | LP56: 0 | LQ56: 0 | LR56: 0 | LS56: 0 | LT56: 0 | LU56: 0 | LV56: 0 | LW56: 0 | LX56: 0 | LY56: 0 | LZ56: 0 | MA56: 0 | MB56: 0 | MC56: 0 | MD56: 0 | ME56: 0 | MF56: 0 | MG56: 0 | MH56: 0 | MI56: 0 | MJ56: 0 | MK56: 0 | ML56: 0 | MM56: 0 | MN56: 0 | MO56: 0 | MP56: 0 | MQ56: 0 | MR56: 0 | MS56: 0 | MT56: 0 | MU56: 0 | MV56: 0 | MW56: 0 | MX56: 0 | MY56: 0 | MZ56: 0 | NA56: 0 | NB56: 0 | NC56: 0 | ND56: 0 | NE56: 0 | NF56: 0 | NG56: 0 | NH56: 0 | NI56: 0 | NJ56: 0 | NK56: 0 | NL56: 0 | NM56: 0 | NN56: 0 | NO56: 0 | NP56: 0 | NQ56: 0 | NR56: 0 | NS56: 0 | NT56: 0 | NU56: 0 | NV56: 0 | NW56: 0 | NX56: 0 | NY56: 0 | NZ56: 0 | OA56: 0 | OB56: 0 | OC56: 0 | OD56: 0 | OE56: 0 | OF56: 0 | OG56: 0 | OH56: 0 | OI56: 0 | OJ56: 0 | OK56: 0 | OL56: 0 | OM56: 0 | ON56: 0 | OO56: 0 | OP56: 0 | OQ56: 0 | OR56: 0 | OS56: 0 | OT56: 0 | OU56: 0 | OV56: 0 | OW56: 0 | OX56: 0 | OY56: 0 | OZ56: 0 | PA56: 0 | PB56: 0 | PC56: 0 | PD56: 0 | PE56: 0 | PF56: 0 | PG56: 0 | PH56: 0 | PI56: 0 | PJ56: 0 | PK56: 0 | PL56: 0 | PM56: 0 | PN56: 0 | PO56: 0 | PP56: 0 | PQ56: 0 | PR56: 0 | PS56: 0 | PT56: 0 | PU56: 0 | PV56: 0 | PW56: 0 | PX56: 0 | PY56: 0 | PZ56: 0 | QA56: 0 | QB56: 0 | QC56: 0 | QD56: 0 | QE56: 0 | QF56: 0 | QG56: 0 | QH56: 0 | QI56: 0 | QJ56: 0 | QK56: 0 | QL56: 0 | QM56: 0 | QN56: 0 | QO56: 0 | QP56: 0 | QQ56: 0 | QR56: 0 | QS56: 0 | QT56: 0 | QU56: 0 | QV56: 0 | QW56: 0 | QX56: 0 | QY56: 0 | QZ56: 0 | RA56: 0 | RB56: 0 | RC56: 0 | RD56: 0 | RE56: 0 | RF56: 0 | RG56: 0 | RH56: 0 | RI56: 0 | RJ56: 0 | RK56: 0 | RL56: 0 | RM56: 0 | RN56: 0 | RO56: 0 | RP56: 0 | RQ56: 0 | RR56: 0 | RS56: 0 | RT56: 0 | RU56: 0 | RV56: 0 | RW56: 0 | RX56: 0 | RY56: 0 | RZ56: 0 | SA56: 0 | SB56: 0 | SC56: 0 | SD56: 0 | SE56: 0 | SF56: 0 | SG56: 0 | SH56: 0 | SI56: 0 | SJ56: 0 | SK56: 0 | SL56: 0 | SM56: 0 | SN56: 0 | SO56: 0 | SP56: 0 | SQ56: 0 | SR56: 0 | SS56: 0 | ST56: 0 | SU56: 0 | SV56: 0 | SW56: 0 | SX56: 0 | SY56: 0 | SZ56: 0 | TA56: 0 | TB56: 0 | TC56: 0 | TD56: 0 | TE56: 0 | TF56: 0 | TG56: 0 | TH56: 0 | TI56: 0 | TJ56: 0 | TK56: 0 | TL56: 0 | TM56: 0 | TN56: 0 | TO56: 0 | TP56: 0 | TQ56: 0 | TR56: 0 | TS56: 0 | TT56: 0 | TU56: 0 | TV56: 0 | TW56: 0 | TX56: 0 | TY56: 0 | TZ56: 0 | UA56: 0 | UB56: 0 | UC56: 0 | UD56: 0 | UE56: 0 | UF56: 0 | UG56: 0 | UH56: 0 | UI56: 0 | UJ56: 0 | UK56: 0 | UL56: 0 | UM56: 0 | UN56: 0 | UO56: 0 | UP56: 0 | UQ56: 0 | UR56: 0 | US56: 0 | UT56: 0 | UU56: 0 | UV56: 0 | UW56: 0 | UX56: 0 | UY56: 0 | UZ56: 0 | VA56: 0 | VB56: 0 | VC56: 0 | VD56: 0 | VE56: 0 | VF56: 0 | VG56: 0 | VH56: 0 | VI56: 0 | VJ56: 0 | VK56: 0 | VL56: 0 | VM56: 0 | VN56: 0 | VO56: 0 | VP56: 0 | VQ56: 0 | VR56: 0 | VS56: 0 | VT56: 0 | VU56: 0 | VV56: 0 | VW56: 0 | VX56: 0 | VY56: 0 | VZ56: 0 | WA56: 0 | WB56: 0 | WC56: 0 | WD56: 0 | WE56: 0 | WF56: 0 | WG56: 0 | WH56: 0 | WI56: 0 | WJ56: 0 | WK56: 0 | WL56: 0 | WM56: 0 | WN56: 0 | WO56: 0 | WP56: 0 | WQ56: 0 | WR56: 0 | WS56: 0 | WT56: 0 | WU56: 0 | WV56: 0 | WW56: 0 | WX56: 0 | WY56: 0 | WZ56: 0 | XA56: 0 | XB56: 0 | XC56: 0 | XD56: 0 | XE56: 0 | XF56: 0 | XG56: 0 | XH56: 0 | XI56: 0 | XJ56: 0 | XK56: 0 | XL56: 0 | XM56: 0 | XN56: 0 | XO56: 0 | XP56: 0 | XQ56: 0 | XR56: 0 | XS56: 0 | XT56: 0 | XU56: 0 | XV56: 0 | XW56: 0 | XX56: 0 | XY56: 0 | XZ56: 0 | YA56: 0 | YB56: 0 | YC56: 0 | YD56: 0 | YE56: 0 | YF56: 0 | YG56: 0 | YH56: 0 | YI56: 0 | YJ56: 0 | YK56: 0 | YL56: 0 | YM56: 0 | YN56: 0 | YO56: 0 | YP56: 0 | YQ56: 0 | YR56: 0 | YS56: 0 | YT56: 0 | YU56: 0 | YV56: 0 | YW56: 0 | YX56: 0 | YY56: 0 | YZ56: 0 | ZA56: 0 | ZB56: 0 | ZC56: 0 | ZD56: 0 | ZE56: 0 | ZF56: 0 | ZG56: 0 | ZH56: 0 | ZI56: 0 | ZJ56: 0 | ZK56: 0 | ZL56: 0 | ZM56: 0 | ZN56: 0 | ZO56: 0 | ZP56: 0 | ZQ56: 0 | ZR56: 0 | ZS56: 0 | ZT56: 0 | ZU56: 0 | ZV56: 0 | ZW56: 0 | ZX56: 0 | ZY56: 0 | ZZ56: 0 | AAA56: 0 | AAB56: 0 | AAC56: 0 | AAD56: 0 | AAE56: 0 | AAF56: 0 | AAG56: 0 | AAH56: 0 | AAI56: 0 | AAJ56: 0 | AAK56: 0 | AAL56: 0 | AAM56: 0 | AAN56: 0 | AAO56: 0 | AAP56: 0 | AAQ56: 0 | AAR56: 0 | AAS56: 0 | AAT56: 0 | AAU56: 0 | AAV56: 0 | AAW56: 0 | AAX56: 0 | AAY56: 0 | AAZ56: 0 | ABA56: 0 | ABB56: 0 | ABC56: 0 | ABD56: 0 | ABE56: 0 | ABF56: 0 | ABG56: 0 | ABH56: 0 | ABI56: 0 | ABJ56: 0 | ABK56: 0 | ABL56: 0 | ABM56: 0 | ABN56: 0 | ABO56: 0 | ABP56: 0 | ABQ56: 0 | ABR56: 0 | ABS56: 0 | ABT56: 0 | ABU56: 0 | ABV56: 0 | ABW56: 0 | ABX56: 0 | ABY56: 0 | ABZ56: 0 | ACA56: 0 | ACB56: 0 | ACC56: 0 | ACD56: 0 | ACE56: 0 | ACF56: 0 | ACG56: 0 | ACH56: 0 | ACI56: 0 | ACJ56: 0 | ACK56: 0 | ACL56: 0 | ACM56: 0 | ACN56: 0 | ACO56: 0 | ACP56: 0 | ACQ56: 0 | ACR56: 0 | ACS56: 0 | ACT56: 0 | ACU56: 0 | ACV56: 0 | ACW56: 0 | ACX56: 0 | ACY56: 0 | ACZ56: 0 | ADA56: 0 | ADB56: 0 | ADC56: 0 | ADD56: 0 | ADE56: 0 | ADF56: 0 | ADG56: 0 | ADH56: 0 | ADI56: 0 | ADJ56: 0 | ADK56: 0 | ADL56: 0 | ADM56: 0 | ADN56: 0 | ADO56: 0 | ADP56: 0 | ADQ56: 0 | ADR56: 0 | ADS56: 0 | ADT56: 0 | ADU56: 0 | ADV56: 0 | ADW56: 0 | ADX56: 0 | ADY56: 0 | ADZ56: 0 | AEA56: 0 | AEB56: 0 | AEC56: 0 | AED56: 0 | AEE56: 0 | AEF56: 0 | AEG56: 0 | AEH56: 0 | AEI56: 0 | AEJ56: 0 | AEK56: 0 | AEL56: 0 | AEM56: 0 | AEN56: 0 | AEO56: 0 | AEP56: 0 | AEQ56: 0 | AER56: 0 | AES56: 0 | AET56: 0 | AEU56: 0 | AEV56: 0 | AEW56: 0 | AEX56: 0 | AEY56: 0 | AEZ56: 0 | AFA56: 0 | AFB56: 0 | AFC56: 0 | AFD56: 0 | AFE56: 0 | AFF56: 0 | AFG56: 0 | AFH56: 0 | AFI56: 0 | AFJ56: 0 | AFK56: 0 | AFL56: 0 | AFM56: 0 | AFN56: 0 | AFO56: 0 | AFP56: 0 | AFQ56: 0 | AFR56: 0 | AFS56: 0 | AFT56: 0 | AFU56: 0 | AFV56: 0 | AFW56: 0 | AFX56: 0 | AFY56: 0 | AFZ56: 0 | AGA56: 0 | AGB56: 0 | AGC56: 0 | AGD56: 0 | AGE56: 0 | AGF56: 0 | AGG56: 0 | AGH56: 0 | AGI56: 0 | AGJ56: 0 | AGK56: 0 | AGL56: 0 | AGM56: 0 | AGN56: 0 | AGO56: 0 | AGP56: 0 | AGQ56: 0 | AGR56: 0 | AGS56: 0 | AGT56: 0 | AGU56: 0 | AGV56: 0 | AGW56: 0 | AGX56: 0 | AGY56: 0 | AGZ56: 0 | AHA56: 0 | AHB56: 0 | AHC56: 0 | AHD56: 0 | AHE56: 0 | AHF56: 0 | AHG56: 0 | AHH56: 0 | AHI56: 0 | AHJ56: 0 | AHK56: 0 | AHL56: 0 | AHM56: 0 | AHN56: 0 | AHO56: 0 | AHP56: 0 | AHQ56: 0 | AHR56: 0 | AHS56: 0 | AHT56: 0 | AHU56: 0 | AHV56: 0 | AHW56: 0 | AHX56: 0 | AHY56: 0 | AHZ56: 0 | AIA56: 0 | AIB56: 0 | AIC56: 0 | AID56: 0 | AIE56: 0 | AIF56: 0 | AIG56: 0 | AIH56: 0 | AII56: 0 | AIJ56: 0 | AIK56: 0 | AIL56: 0 | AIM56: 0 | AIN56: 0 | AIO56: 0 | AIP56: 0 | AIQ56: 0 | AIR56: 0 | AIS56: 0 | AIT56: 0 | AIU56: 0 | AIV56: 0 | AIW56: 0 | AIX56: 0 | AIY56: 0 | AIZ56: 0 | AJA56: 0 | AJB56: 0 | AJC56: 0 | AJD56: 0 | AJE56: 0 | AJF56: 0 | AJG56: 0 | AJH56: 0 | AJI56: 0 | AJJ56: 0 | AJK56: 0 | AJL56: 0 | AJM56: 0 | AJN56: 0 | AJO56: 0 | AJP56: 0 | AJQ56: 0 | AJR56: 0 | AJS56: 0 | AJT56: 0 | AJU56: 0 | AJV56: 0
J57: 0 | K57: 0 | L57: 0 | M57: 0 | N57: 0 | O57: 0 | P57: 0 | Q57: 0 | R57: 0 | S57: 0 | T57: 0 | U57: 0 | V57: 0 | W57: 0 | X57: 0 | Y57: 0 | Z57: 0 | AA57: 0 | AB57: 0 | AC57: 0 | AD57: 0 | AE57: 0 | AF57: 0 | AG57: 0 | AH57: 0 | AI57: 0 | AJ57: 0 | AK57: 0 | AL57: 0 | AM57: 0 | AN57: 0 | AO57: 0 | AP57: 0 | AQ57: 0 | AR57: 0 | AS57: 0 | AT57: 0 | AU57: 0 | AV57: 0 | AW57: 0 | AX57: 0 | AY57: 0 | AZ57: 0 | BA57: 0 | BB57: 0 | BC57: 0 | BD57: 0 | BE57: 0 | BF57: 0 | BG57: 0 | BH57: 0 | BI57: 0 | BJ57: 0 | BK57: 0 | BL57: 0 | BM57: 0 | BN57: 0 | BO57: 0 | BP57: 0 | BQ57: 0 | BR57: 0 | BS57: 0 | BT57: 0 | BU57: 0 | BV57: 0 | BW57: 0 | BX57: 0 | BY57: 0 | BZ57: 0 | CA57: 0 | CB57: 0 | CC57: 0 | CD57: 0 | CE57: 0 | CF57: 0 | CG57: 0 | CH57: 0 | CI57: 0 | CJ57: 0 | CK57: 0 | CL57: 0 | CM57: 0 | CN57: 0 | CO57: 0 | CP57: 0 | CQ57: 0 | CR57: 0 | CS57: 0 | CT57: 0 | CU57: 0 | CV57: 0 | CW57: 0 | CX57: 0 | CY57: 0 | CZ57: 0 | DA57: 0 | DB57: 0 | DC57: 0 | DD57: 0 | DE57: 0 | DF57: 0 | DG57: 0 | DH57: 0 | DI57: 0 | DJ57: 0 | DK57: 0 | DL57: 0 | DM57: 0 | DN57: 0 | DO57: 0 | DP57: 0 | DQ57: 0 | DR57: 0 | DS57: 0 | DT57: 0 | DU57: 0 | DV57: 0 | DW57: 0 | DX57: 0 | DY57: 0 | DZ57: 0 | EA57: 0 | EB57: 0 | EC57: 0 | ED57: 0 | EE57: 0 | EF57: 0 | EG57: 0 | EH57: 0 | EI57: 0 | EJ57: 0 | EK57: 0 | EL57: 0 | EM57: 0 | EN57: 0 | EO57: 0 | EP57: 0 | EQ57: 0 | ER57: 0 | ES57: 0 | ET57: 0 | EU57: 0 | EV57: 0 | EW57: 0 | EX57: 0 | EY57: 0 | EZ57: 0 | FA57: 0 | FB57: 0 | FC57: 0 | FD57: 0 | FE57: 0 | FF57: 0 | FG57: 0 | FH57: 0 | FI57: 0 | FJ57: 0 | FK57: 0 | FL57: 0 | FM57: 0 | FN57: 0 | FO57: 0 | FP57: 0 | FQ57: 0 | FR57: 0 | FS57: 0 | FT57: 0 | FU57: 0 | FV57: 0 | FW57: 0 | FX57: 0 | FY57: 0 | FZ57: 0 | GA57: 0 | GB57: 0 | GC57: 0 | GD57: 0 | GE57: 0 | GF57: 0 | GG57: 0 | GH57: 0 | GI57: 0 | GJ57: 0 | GK57: 0 | GL57: 0 | GM57: 0 | GN57: 0 | GO57: 0 | GP57: 0 | GQ57: 0 | GR57: 0 | GS57: 0 | GT57: 0 | GU57: 0 | GV57: 0 | GW57: 0 | GX57: 0 | GY57: 0 | GZ57: 0 | HA57: 0 | HB57: 0 | HC57: 0 | HD57: 0 | HE57: 0 | HF57: 0 | HG57: 0 | HH57: 0 | HI57: 0 | HJ57: 0 | HK57: 0 | HL57: 0 | HM57: 0 | HN57: 0 | HO57: 0 | HP57: 0 | HQ57: 0 | HR57: 0 | HS57: 0 | HT57: 0 | HU57: 0 | HV57: 0 | HW57: 0 | HX57: 0 | HY57: 0 | HZ57: 0 | IA57: 0 | IB57: 0 | IC57: 0 | ID57: 0 | IE57: 0 | IF57: 0 | IG57: 0 | IH57: 0 | II57: 0 | IJ57: 0 | IK57: 0 | IL57: 0 | IM57: 0 | IN57: 0 | IO57: 0 | IP57: 0 | IQ57: 0 | IR57: 0 | IS57: 0 | IT57: 0 | IU57: 0 | IV57: 0 | IW57: 0 | IX57: 0 | IY57: 0 | IZ57: 0 | JA57: 0 | JB57: 0 | JC57: 0 | JD57: 0 | JE57: 0 | JF57: 0 | JG57: 0 | JH57: 0 | JI57: 0 | JJ57: 0 | JK57: 0 | JL57: 0 | JM57: 0 | JN57: 0 | JO57: 0 | JP57: 0 | JQ57: 0 | JR57: 0 | JS57: 0 | JT57: 0 | JU57: 0 | JV57: 0 | JW57: 0 | JX57: 0 | JY57: 0 | JZ57: 0 | KA57: 0 | KB57: 0 | KC57: 0 | KD57: 0 | KE57: 0 | KF57: 0 | KG57: 0 | KH57: 0 | KI57: 0 | KJ57: 0 | KK57: 0 | KL57: 0 | KM57: 0 | KN57: 0 | KO57: 0 | KP57: 0 | KQ57: 0 | KR57: 0 | KS57: 0 | KT57: 0 | KU57: 0 | KV57: 0 | KW57: 0 | KX57: 0 | KY57: 0 | KZ57: 0 | LA57: 0 | LB57: 0 | LC57: 0 | LD57: 0 | LE57: 0 | LF57: 0 | LG57: 0 | LH57: 0 | LI57: 0 | LJ57: 0 | LK57: 0 | LL57: 0 | LM57: 0 | LN57: 0 | LO57: 0 | LP57: 0 | LQ57: 0 | LR57: 0 | LS57: 0 | LT57: 0 | LU57: 0 | LV57: 0 | LW57: 0 | LX57: 0 | LY57: 0 | LZ57: 0 | MA57: 0 | MB57: 0 | MC57: 0 | MD57: 0 | ME57: 0 | MF57: 0 | MG57: 0 | MH57: 0 | MI57: 0 | MJ57: 0 | MK57: 0 | ML57: 0 | MM57: 0 | MN57: 0 | MO57: 0 | MP57: 0 | MQ57: 0 | MR57: 0 | MS57: 0 | MT57: 0 | MU57: 0 | MV57: 0 | MW57: 0 | MX57: 0 | MY57: 0 | MZ57: 0 | NA57: 0 | NB57: 0 | NC57: 0 | ND57: 0 | NE57: 0 | NF57: 0 | NG57: 0 | NH57: 0 | NI57: 0 | NJ57: 0 | NK57: 0 | NL57: 0 | NM57: 0 | NN57: 0 | NO57: 0 | NP57: 0 | NQ57: 0 | NR57: 0 | NS57: 0 | NT57: 0 | NU57: 0 | NV57: 0 | NW57: 0 | NX57: 0 | NY57: 0 | NZ57: 0 | OA57: 0 | OB57: 0 | OC57: 0 | OD57: 0 | OE57: 0 | OF57: 0 | OG57: 0 | OH57: 0 | OI57: 0 | OJ57: 0 | OK57: 0 | OL57: 0 | OM57: 0 | ON57: 0 | OO57: 0 | OP57: 0 | OQ57: 0 | OR57: 0 | OS57: 0 | OT57: 0 | OU57: 0 | OV57: 0 | OW57: 0 | OX57: 0 | OY57: 0 | OZ57: 0 | PA57: 0 | PB57: 0 | PC57: 0 | PD57: 0 | PE57: 0 | PF57: 0 | PG57: 0 | PH57: 0 | PI57: 0 | PJ57: 0 | PK57: 0 | PL57: 0 | PM57: 0 | PN57: 0 | PO57: 0 | PP57: 0 | PQ57: 0 | PR57: 0 | PS57: 0 | PT57: 0 | PU57: 0 | PV57: 0 | PW57: 0 | PX57: 0 | PY57: 0 | PZ57: 0 | QA57: 0 | QB57: 0 | QC57: 0 | QD57: 0 | QE57: 0 | QF57: 0 | QG57: 0 | QH57: 0 | QI57: 0 | QJ57: 0 | QK57: 0 | QL57: 0 | QM57: 0 | QN57: 0 | QO57: 0 | QP57: 0 | QQ57: 0 | QR57: 0 | QS57: 0 | QT57: 0 | QU57: 0 | QV57: 0 | QW57: 0 | QX57: 0 | QY57: 0 | QZ57: 0 | RA57: 0 | RB57: 0 | RC57: 0 | RD57: 0 | RE57: 0 | RF57: 0 | RG57: 0 | RH57: 0 | RI57: 0 | RJ57: 0 | RK57: 0 | RL57: 0 | RM57: 0 | RN57: 0 | RO57: 0 | RP57: 0 | RQ57: 0 | RR57: 0 | RS57: 0 | RT57: 0 | RU57: 0 | RV57: 0 | RW57: 0 | RX57: 0 | RY57: 0 | RZ57: 0 | SA57: 0 | SB57: 0 | SC57: 0 | SD57: 0 | SE57: 0 | SF57: 0 | SG57: 0 | SH57: 0 | SI57: 0 | SJ57: 0 | SK57: 0 | SL57: 0 | SM57: 0 | SN57: 0 | SO57: 0 | SP57: 0 | SQ57: 0 | SR57: 0 | SS57: 0 | ST57: 0 | SU57: 0 | SV57: 0 | SW57: 0 | SX57: 0 | SY57: 0 | SZ57: 0 | TA57: 0 | TB57: 0 | TC57: 0 | TD57: 0 | TE57: 0 | TF57: 0 | TG57: 0 | TH57: 0 | TI57: 0 | TJ57: 0 | TK57: 0 | TL57: 0 | TM57: 0 | TN57: 0 | TO57: 0 | TP57: 0 | TQ57: 0 | TR57: 0 | TS57: 0 | TT57: 0 | TU57: 0 | TV57: 0 | TW57: 0 | TX57: 0 | TY57: 0 | TZ57: 0 | UA57: 0 | UB57: 0 | UC57: 0 | UD57: 0 | UE57: 0 | UF57: 0 | UG57: 0 | UH57: 0 | UI57: 0 | UJ57: 0 | UK57: 0 | UL57: 0 | UM57: 0 | UN57: 0 | UO57: 0 | UP57: 0 | UQ57: 0 | UR57: 0 | US57: 0 | UT57: 0 | UU57: 0 | UV57: 0 | UW57: 0 | UX57: 0 | UY57: 0 | UZ57: 0 | VA57: 0 | VB57: 0 | VC57: 0 | VD57: 0 | VE57: 0 | VF57: 0 | VG57: 0 | VH57: 0 | VI57: 0 | VJ57: 0 | VK57: 0 | VL57: 0 | VM57: 0 | VN57: 0 | VO57: 0 | VP57: 0 | VQ57: 0 | VR57: 0 | VS57: 0 | VT57: 0 | VU57: 0 | VV57: 0 | VW57: 0 | VX57: 0 | VY57: 0 | VZ57: 0 | WA57: 0 | WB57: 0 | WC57: 0 | WD57: 0 | WE57: 0 | WF57: 0 | WG57: 0 | WH57: 0 | WI57: 0 | WJ57: 0 | WK57: 0 | WL57: 0 | WM57: 0 | WN57: 0 | WO57: 0 | WP57: 0 | WQ57: 0 | WR57: 0 | WS57: 0 | WT57: 0 | WU57: 0 | WV57: 0 | WW57: 0 | WX57: 0 | WY57: 0 | WZ57: 0 | XA57: 0 | XB57: 0 | XC57: 0 | XD57: 0 | XE57: 0 | XF57: 0 | XG57: 0 | XH57: 0 | XI57: 0 | XJ57: 0 | XK57: 0 | XL57: 0 | XM57: 0 | XN57: 0 | XO57: 0 | XP57: 0 | XQ57: 0 | XR57: 0 | XS57: 0 | XT57: 0 | XU57: 0 | XV57: 0 | XW57: 0 | XX57: 0 | XY57: 0 | XZ57: 0 | YA57: 0 | YB57: 0 | YC57: 0 | YD57: 0 | YE57: 0 | YF57: 0 | YG57: 0 | YH57: 0 | YI57: 0 | YJ57: 0 | YK57: 0 | YL57: 0 | YM57: 0 | YN57: 0 | YO57: 0 | YP57: 0 | YQ57: 0 | YR57: 0 | YS57: 0 | YT57: 0 | YU57: 0 | YV57: 0 | YW57: 0 | YX57: 0 | YY57: 0 | YZ57: 0 | ZA57: 0 | ZB57: 0 | ZC57: 0 | ZD57: 0 | ZE57: 0 | ZF57: 0 | ZG57: 0 | ZH57: 0 | ZI57: 0 | ZJ57: 0 | ZK57: 0 | ZL57: 0 | ZM57: 0 | ZN57: 0 | ZO57: 0 | ZP57: 0 | ZQ57: 0 | ZR57: 0 | ZS57: 0 | ZT57: 0 | ZU57: 0 | ZV57: 0 | ZW57: 0 | ZX57: 0 | ZY57: 0 | ZZ57: 0 | AAA57: 0 | AAB57: 0 | AAC57: 0 | AAD57: 0 | AAE57: 0 | AAF57: 0 | AAG57: 0 | AAH57: 0 | AAI57: 0 | AAJ57: 0 | AAK57: 0 | AAL57: 0 | AAM57: 0 | AAN57: 0 | AAO57: 0 | AAP57: 0 | AAQ57: 0 | AAR57: 0 | AAS57: 0 | AAT57: 0 | AAU57: 0 | AAV57: 0 | AAW57: 0 | AAX57: 0 | AAY57: 0 | AAZ57: 0 | ABA57: 0 | ABB57: 0 | ABC57: 0 | ABD57: 0 | ABE57: 0 | ABF57: 0 | ABG57: 0 | ABH57: 0 | ABI57: 0 | ABJ57: 0 | ABK57: 0 | ABL57: 0 | ABM57: 0 | ABN57: 0 | ABO57: 0 | ABP57: 0 | ABQ57: 0 | ABR57: 0 | ABS57: 0 | ABT57: 0 | ABU57: 0 | ABV57: 0 | ABW57: 0 | ABX57: 0 | ABY57: 0 | ABZ57: 0 | ACA57: 0 | ACB57: 0 | ACC57: 0 | ACD57: 0 | ACE57: 0 | ACF57: 0 | ACG57: 0 | ACH57: 0 | ACI57: 0 | ACJ57: 0 | ACK57: 0 | ACL57: 0 | ACM57: 0 | ACN57: 0 | ACO57: 0 | ACP57: 0 | ACQ57: 0 | ACR57: 0 | ACS57: 0 | ACT57: 0 | ACU57: 0 | ACV57: 0 | ACW57: 0 | ACX57: 0 | ACY57: 0 | ACZ57: 0 | ADA57: 0 | ADB57: 0 | ADC57: 0 | ADD57: 0 | ADE57: 0 | ADF57: 0 | ADG57: 0 | ADH57: 0 | ADI57: 0 | ADJ57: 0 | ADK57: 0 | ADL57: 0 | ADM57: 0 | ADN57: 0 | ADO57: 0 | ADP57: 0 | ADQ57: 0 | ADR57: 0 | ADS57: 0 | ADT57: 0 | ADU57: 0 | ADV57: 0 | ADW57: 0 | ADX57: 0 | ADY57: 0 | ADZ57: 0 | AEA57: 0 | AEB57: 0 | AEC57: 0 | AED57: 0 | AEE57: 0 | AEF57: 0 | AEG57: 0 | AEH57: 0 | AEI57: 0 | AEJ57: 0 | AEK57: 0 | AEL57: 0 | AEM57: 0 | AEN57: 0 | AEO57: 0 | AEP57: 0 | AEQ57: 0 | AER57: 0 | AES57: 0 | AET57: 0 | AEU57: 0 | AEV57: 0 | AEW57: 0 | AEX57: 0 | AEY57: 0 | AEZ57: 0 | AFA57: 0 | AFB57: 0 | AFC57: 0 | AFD57: 0 | AFE57: 0 | AFF57: 0 | AFG57: 0 | AFH57: 0 | AFI57: 0 | AFJ57: 0 | AFK57: 0 | AFL57: 0 | AFM57: 0 | AFN57: 0 | AFO57: 0 | AFP57: 0 | AFQ57: 0 | AFR57: 0 | AFS57: 0 | AFT57: 0 | AFU57: 0 | AFV57: 0 | AFW57: 0 | AFX57: 0 | AFY57: 0 | AFZ57: 0 | AGA57: 0 | AGB57: 0 | AGC57: 0 | AGD57: 0 | AGE57: 0 | AGF57: 0 | AGG57: 0 | AGH57: 0 | AGI57: 0 | AGJ57: 0 | AGK57: 0 | AGL57: 0 | AGM57: 0 | AGN57: 0 | AGO57: 0 | AGP57: 0 | AGQ57: 0 | AGR57: 0 | AGS57: 0 | AGT57: 0 | AGU57: 0 | AGV57: 0 | AGW57: 0 | AGX57: 0 | AGY57: 0 | AGZ57: 0 | AHA57: 0 | AHB57: 0 | AHC57: 0 | AHD57: 0 | AHE57: 0 | AHF57: 0 | AHG57: 0 | AHH57: 0 | AHI57: 0 | AHJ57: 0 | AHK57: 0 | AHL57: 0 | AHM57: 0 | AHN57: 0 | AHO57: 0 | AHP57: 0 | AHQ57: 0 | AHR57: 0 | AHS57: 0 | AHT57: 0 | AHU57: 0 | AHV57: 0 | AHW57: 0 | AHX57: 0 | AHY57: 0 | AHZ57: 0 | AIA57: 0 | AIB57: 0 | AIC57: 0 | AID57: 0 | AIE57: 0 | AIF57: 0 | AIG57: 0 | AIH57: 0 | AII57: 0 | AIJ57: 0 | AIK57: 0 | AIL57: 0 | AIM57: 0 | AIN57: 0 | AIO57: 0 | AIP57: 0 | AIQ57: 0 | AIR57: 0 | AIS57: 0 | AIT57: 0 | AIU57: 0 | AIV57: 0 | AIW57: 0 | AIX57: 0 | AIY57: 0 | AIZ57: 0 | AJA57: 0 | AJB57: 0 | AJC57: 0 | AJD57: 0 | AJE57: 0 | AJF57: 0 | AJG57: 0 | AJH57: 0 | AJI57: 0 | AJJ57: 0 | AJK57: 0 | AJL57: 0 | AJM57: 0 | AJN57: 0 | AJO57: 0 | AJP57: 0 | AJQ57: 0 | AJR57: 0 | AJS57: 0 | AJT57: 0 | AJU57: 0 | AJV57: 0
